Workbook

Sheet Vessel Operating Cost Model
A1: Please enable macros | B1: Port to Port Distance Calculators
A3: USER INPUT | B3: Distance | C3: 1588 | D3: (in nautical miles) | G3: Some Vessel Statistics
A4: CALCULATION | B4: Vessel Speed | C4: 14 | D4: (in knots i.e., nautical mile per hour) | G4: TEU Capacity | H4: 1400
A5: NOTE | B5: Number of Days at Sea | C5: =C3/(C4*24) -> 4.726190476 | D5: [Distance/(Vessel Speed *24)] | G5: Average Vessel Age (Years) | H5: 5
A6: DEFAULT VESSEL DATA | B6: Number of Days in Port | C6: 2 | D6: (in days) | G6: Average Functional Service Life (Years) | H6: 30
B7: Vessel Type | C7: . | D7: 2 | G7: Length Overall (LOA; Feet) | H7: 579.2899135
B8: Vessel Size (in metric tonnes) | D8: 22900 | G8: Length Between Perpendiculars (LBP; Feet) | H8: ?
B9: Fuel Price (Heavy Viscosity Oil) | C9: 516.5273533 | D9: (per metric ton) | G9: Extreme Breadth or Beam (XB; Feet) | H9: 84.75008401
B10: Fuel Price (Marine Diesel Oil) | C10: 819.1876975 | D10: (per metric ton) | G10: Summer Loadline Draft (Feet) | H10: 33.62997781
G11: Immersion Rate (Metric Tonnes Per Inch or TPI) | H11: 89.55989048
B12: Daily Capital and Operating Costs | C12: 10910 | G12: Horsepower (Total) | H12: 16567.082
B13: Bunkerage Consumption at Sea @ Service Speed | C13: 47.83311038 | D13: (in metric tons per day) | G13: Default Service Speed (Knots) | H13: 17.8784169
B14: Bunkerage Consumption at Sea @ Auxiliary Power Generation | C14: 2.572474778 | D14: (in metric tons per day) | G14: Manning or Crew | H14: 17.239366
B15: Average Daily Fuel Cost at Sea | C15: =(bunkerage_at_sea_service_speed*fuel_price_heavy_viscosity_oil) + (bunkerage_at_sea_auxiliary*fuel_price_marine_diesel_oil) -> 26814.44959 | D15: [(Bunkerage Consumption at Sea @ Service Speed * Price_Heavy Viscority Oil) + (Bunkerage Consumption at Sea @ Auxiliary Power* Price_Marine_Diesel_Oil)]
B16: Bunkerage Consumption in Port @ Auxiliary Power | C16: 2.572474778 | D16: (in metric tons per day)
B17: Average Daily Fuel Cost In Port | C17: =(bunkerage_in_port*fuel_price_marine_diesel_oil) -> 2107.33969 | D17: [Bunkerage Consumption In Port @ Auxiliary Power* Price_Marine_Diesel_Oil)]
G18: daily capital and operating costs at sea | H18: =daily_total_capital_cost*C5 -> 51562.7381
B19: Average Daily Total Costs at Sea | C19: =daily_total_capital_cost+C15 -> 37724.44959 | D19: [Daily Capital and Operating Costs + Fuel Cost at Sea] | G19: daily capital and operating costs in port | H19: =daily_total_capital_cost*C6 -> 21820
B20: Average Daily Total Costs in Port | C20: =daily_total_capital_cost+C17 -> 13017.33969 | D20: [Daily Capital and Operating Costs + Fuel Cost In Port] | G20: fuel cost at sea | H20: =C15 * C5 -> 126730.1963
G21: fuel cost in port | H21: =C17*C6 -> 4214.679381
B22: Canal Charges | C22: 0 | D22: (needs to be calculated separately) | G22: canal charges | H22: =C22 -> 0
B24: Select Port | D24: 2
B25: Cargo | C25: =IF(teu_capacity="Not Applic.",vessel_size_store,teu_capacity) -> 1400 | D25: =IF(teu_capacity="Not Applic.","metric tons","TEUs") -> TEUs
B26: Estimated Port Charges* | C26: =IF(D24=2,'POH Variables'!C21,0) -> 240810.6473
B28: TOTAL TRIP COST* | C28: =(C19*C5)+(C20*C6)+(C22+C26) -> 445138.261 | D28: [(Average Daily Total Costs at Sea * Number of Days at Sea )+ (Average Daily Total Costs In Port * Number of Days In Port)] + Canal Charges
B29: Cost per ton-nautical mile | C29: =C28/(vessel_size_store*C3) * 100 -> 1.224077583 | D29: (in cents)
B30: Cost per ton-mile | C30: =(C28/(vessel_size_store*C3*1.15078)) * 100 -> 1.063693827 | D30: (in cents) [1 nautical mile = 1.15078 miles]
B31: * Note: This is only an estimate and may not reflect actual prices charged to a steamship company or major shipper

Sheet Data (hidden)
A1: Vessel Types
A2: 1 | B2: Bulk Carrier | C2: Int Bulker VOC
A3: 2 | B3: Fully Cellular Containerships | C3: Int FCC VOC
A4: 3 | B4: Liquid Natural Gas Carriers | C4: Int Gas VOC
A5: 4 | B5: General Cargo Carriers | C5: Int Gen Cargo VOC
A6: 5 | B6: Oil Tankers | C6: Int Oil Tanker VOC
A7: 6 | B7: Roll-On Roll-Off | C7: RoRo VOC
A10: ='Vessel Operating Cost Model'!D7 -> 2 | B10: =VLOOKUP(A10,Vessel_Data,3,FALSE) -> Int FCC VOC
A13: Ports
A14: 1
A15: 2 | B15: Port of Houston - Bayport Terminal

Sheet Int Bulker VOC (hidden)
C3: Aggregate Vessel Operating Costs (VOCs)
C4: Deep-Draft Self-Propelled Carriers
C5: Bulk Carriers (Open Registry Flag)
C7: Maritime Strategies International, Ltd. | N7: =72-15 -> 57
C9: Generated: | G9: 2011
C10: Price Level: | G10: CY 2011
C11: Currency: | G11: U.S. Dollars
C13: General Vessel Specifications
D14: General Vessel Type | I14: Bulk Carrier | J14: Bulk Carrier | K14: Bulk Carrier | L14: Bulk Carrier | M14: Bulk Carrier | N14: Bulk Carrier | O14: Bulk Carrier | P14: Bulk Carrier | Q14: Bulk Carrier | R14: Bulk Carrier | S14: Bulk Carrier | T14: Bulk Carrier
D15: Deadweight Tonnage (DWT; Metric Tonnes) | I15: 15000 | J15: 25000 | K15: 35000 | L15: 40000 | M15: 50000 | N15: 60000 | O15: 80000 | P15: 10000 | Q15: 120000 | R15: 150000 | S15: 175000 | T15: 200000
D16: Light Displacement Tonnage (LDT; Metric Tonnes) | I16: 2844.21 | J16: 4740.35 | K16: 6636.49 | L16: 7584.56 | M16: 9480.7 | N16: 11376.84 | O16: 15169.12 | P16: 18961.4 | Q16: 22753.68 | R16: 28442.1 | S16: 33182.45 | T16: 37922.8
D17: Displacement (Metric Tonnes) | I17: ? | J17: ? | K17: ? | L17: ? | M17: ? | N17: ? | O17: ? | P17: ? | Q17: ? | R17: ? | S17: ? | T17: ?
D18: TEU Capacity | I18: Not Applic. | J18: Not Applic. | K18: Not Applic. | L18: Not Applic. | M18: Not Applic. | N18: Not Applic. | O18: Not Applic. | P18: Not Applic. | Q18: Not Applic. | R18: Not Applic. | S18: Not Applic. | T18: Not Applic.
D19: Volumetric Capacity (Cubic Meters)
E20: Grain Cubic | I20: ? | J20: ? | K20: ? | L20: ? | M20: ? | N20: ? | O20: ? | P20: ? | Q20: ? | R20: ? | S20: ? | T20: ?
E21: Bale Cubic | I21: ? | J21: ? | K21: ? | L21: ? | M21: ? | N21: ? | O21: ? | P21: ? | Q21: ? | R21: ? | S21: ? | T21: ?
E22: Liquid Cubic | I22: ? | J22: ? | K22: ? | L22: ? | M22: ? | N22: ? | O22: ? | P22: ? | Q22: ? | R22: ? | S22: ? | T22: ?
D23: Average Vessel Age (Years) | I23: 5 | J23: 5 | K23: 5 | L23: 5 | M23: 5 | N23: 5 | O23: 5 | P23: 5 | Q23: 5 | R23: 5 | S23: 5 | T23: 5
D24: Average Functional Service Life (Years) | I24: 30 | J24: 30 | K24: 30 | L24: 27 | M24: 25 | N24: 25 | O24: 25 | P24: 25 | Q24: 25 | R24: 25 | S24: 23 | T24: 23
D25: Length Overall (LOA; Feet) | I25: 511.7560188 | J25: 550.1124061 | K25: 587.115253 | L25: 605.1090987 | M25: 640.081635 | N25: 673.7006308 | O25: 736.8780012 | P25: 794.6412099 | Q25: 846.990257 | R25: 915.3622745 | S25: 963.0333654 | T25: 1002.244829
D26: Length Between Perpendiculars (LBP; Feet) | I26: ? | J26: ? | K26: ? | L26: ? | M26: ? | N26: ? | O26: ? | P26: ? | Q26: ? | R26: ? | S26: ? | T26: ?
D27: Extreme Breadth or Beam (XB; Feet) | I27: 79.98499402 | J27: 85.52603565 | K27: 90.93036584 | L27: 93.58126414 | M27: 98.78052716 | N27: 103.8430787 | O27: 113.5580475 | P27: 122.7261705 | Q27: 131.3474477 | R27: 143.2540277 | S27: 152.2362865 | T27: 160.3640987
D28: Summer Loadline Draft (Feet) | I28: 29.8096502 | J28: 32.46722398 | K28: 35.02377491 | L28: 36.26416681 | M28: 38.66918345 | N28: 40.97317725 | O28: 45.27809627 | P28: 49.17892388 | Q28: 52.67566008 | R28: 57.16309297 | S28: 60.20808826 | T28: 62.62169071
D29: Immersion Rate (Metric Tonnes Per Inch or TPI) | I29: 69.43561175 | J29: 86.12078375 | K29: 103.0762418 | L29: 111.655328 | M29: 129.016215 | N29: 146.647388 | O29: 182.720592 | P29: 219.87494 | Q29: 258.110432 | R29: 317.490815 | S29: 368.8326838 | T29: 421.86384
D30: Horsepower (Total) | I30: 7646.399 | J30: 8674.999 | K30: 9724.399 | L30: 10256.899 | M30: 11337.499 | N30: 12438.899 | O30: 14704.099 | P30: 17052.499 | Q30: 19484.099 | R30: 23287.499 | S30: 26599.999 | T30: 30042.499
D31: Service Speed (Knots) | I31: 13.97198965 | J31: 14.10224802 | K31: 14.18804701 | L31: 14.22209695 | M31: 14.27899761 | N31: 14.32548883 | O31: 14.39884654 | P31: 14.4557472 | Q31: 14.50223843 | R31: 14.55913909 | S31: 14.59844686 | T31: 14.6324968
D32: Manning or Crew | I32: 23 | J32: 23 | K32: 23 | L32: 23 | M32: 23 | N32: 24 | O32: 24 | P32: 25 | Q32: 26 | R32: 26 | S32: 26 | T32: 26
D33: Bunkerage Consumption (Metric Tonnes/Day)
E34: At-Sea
F35: Propulsion\Prime Mover(s)
G36: Service Speed | I36: 20.43999794 | J36: 22.99730205 | K36: 25.51831721 | L36: 26.76521644 | M36: 29.23179819 | N36: 31.66209099 | O36: 36.41380976 | P36: 41.02037274 | Q36: 45.48177995 | R36: 51.90172367 | S36: 57.00219028 | T36: 61.87585097
G37: Economic Speed | I37: ? | J37: ? | K37: ? | L37: ? | M37: ? | N37: ? | O37: ? | P37: ? | Q37: ? | R37: ? | S37: ? | T37: ?
G38: Half-Power | I38: ? | J38: ? | K38: ? | L38: ? | M38: ? | N38: ? | O38: ? | P38: ? | Q38: ? | R38: ? | S38: ? | T38: ?
G39: Base Idle | I39: ? | J39: ? | K39: ? | L39: ? | M39: ? | N39: ? | O39: ? | P39: ? | Q39: ? | R39: ? | S39: ? | T39: ?
F40: Auxiliary Power Generation | I40: 1.617535203 | J40: 1.882430107 | K40: 2.080190482 | L40: 2.164314904 | M40: 2.312555997 | N40: 2.44118412 | O40: 2.658850064 | P40: 2.840963507 | Q40: 2.998982515 | R40: 3.204392756 | S40: 3.354452971 | T40: 3.490109498
E41: In-Port
F42: Propulsion\Prime Mover(s)
G43: Within-Harbor\Channel Transit | I43: ? | J43: ? | K43: ? | L43: ? | M43: ? | N43: ? | O43: ? | P43: ? | Q43: ? | R43: ? | S43: ? | T43: ?
G44: Maneuvering | I44: ? | J44: ? | K44: ? | L44: ? | M44: ? | N44: ? | O44: ? | P44: ? | Q44: ? | R44: ? | S44: ? | T44: ?
F45: Auxiliary Power Generation | I45: 1.617535203 | J45: 1.882430107 | K45: 2.080190482 | L45: 2.164314904 | M45: 2.312555997 | N45: 2.44118412 | O45: 2.658850064 | P45: 2.840963507 | Q45: 2.998982515 | R45: 3.204392756 | S45: 3.354452971 | T45: 3.490109498
C47: Annual Discount\Interest Rate (%) | I47: 0.04125 | J47: 0.04125 | K47: 0.04125 | L47: 0.04125 | M47: 0.04125 | N47: 0.04125 | O47: 0.04125 | P47: 0.04125 | Q47: 0.04125 | R47: 0.04125 | S47: 0.04125 | T47: 0.04125
C48: CRF (for specified rate & period) | I48: 0.05871 | J48: 0.05871 | K48: 0.05871 | L48: 0.0621 | M48: 0.06486 | N48: 0.06486 | O48: 0.06486 | P48: 0.06486 | Q48: 0.06486 | R48: 0.06486 | S48: 0.06814 | T48: 0.06814
C50: Hull Asset Capital Costs (Fixed Capital Asset)
D51: Replacement Cost(s) [1.] | I51: 17327314.4 | J51: 23362858.78 | K51: 29398403.16 | L51: 32416175.35 | M51: 38451719.72 | N51: 39848183.02 | O51: 42641109.61 | P51: 19212237.23 | Q51: 56029036.68 | R51: 66069981.99 | S51: 74437436.41 | T51: 82804890.83
D52: Scrap Value; Baseline | I52: 1327297.732 | J52: 2212162.886 | K52: 3097028.041 | L52: 3539460.618 | M52: 4424325.772 | N52: 5309190.927 | O52: 7078921.236 | P52: 8848651.545 | Q52: 10618381.85 | R52: 13272977.32 | S52: 15485140.2 | T52: 17697303.09
D53: Scrap Value; Adjusted (Discount of Future Value) | I53: 483162.2465 | J53: 805270.4108 | K53: 1127378.575 | L53: 1454543.679 | M53: 1971273.162 | N53: 2365527.794 | O53: 3154037.059 | P53: 3942546.324 | Q53: 4731055.589 | R53: 5913819.486 | S53: 7480401.048 | T53: 8549029.769
D54: Replacement Costs Adjusted for Scrap | I54: 16844152.15 | J54: 22557588.37 | K54: 28271024.58 | L54: 30961631.67 | M54: 36480446.56 | N54: 37482655.23 | O54: 39487072.55 | P54: 15269690.91 | Q54: 51297981.09 | R54: 60156162.5 | S54: 66957035.36 | T54: 74255861.06
D55: Average Annual Capital Asset Cost (Adjusted for Scrap) | I55: 988920.173 | J55: 1324356.013 | K55: 1659791.853 | L55: 1922717.327 | M55: 2366121.764 | N55: 2431125.018 | O55: 2561131.526 | P55: 990392.1524 | Q55: 3327187.054 | R55: 3901728.7 | S55: 4562452.389 | T55: 5059794.373
C57: Operating Costs (Quasi Fixed\Variable Costs)
D58: Crew Cost | I58: 819696.1492 | J58: 850188.6586 | K58: 880681.1679 | L58: 895927.4226 | M58: 926419.932 | N58: 956912.4414 | O58: 1017897.46 | P58: 1078882.479 | Q58: 1139867.498 | R58: 1231345.026 | S58: 1307576.299 | T58: 1383807.573
D59: Lubes & Stores | I59: 204713.0334 | J59: 216313.6397 | K59: 227914.246 | L59: 233714.5491 | M59: 245315.1554 | N59: 256915.7617 | O59: 280116.9743 | P59: 303318.1868 | Q59: 326519.3994 | R59: 361321.2182 | S59: 390322.7339 | T59: 419324.2496
D60: Maintenance & Repair | I60: 376973.6056 | J60: 389691.2881 | K60: 402408.9705 | L60: 408767.8118 | M60: 421485.4943 | N60: 434203.1768 | O60: 459638.5418 | P60: 485073.9067 | Q60: 510509.2717 | R60: 548662.3192 | S60: 580456.5254 | T60: 612250.7317
D61: Insurance | I61: 142756.4559 | J61: 148563.5892 | K61: 154370.7225 | L61: 157274.2891 | M61: 163081.4224 | N61: 168888.5557 | O61: 180502.8223 | P61: 192117.0889 | Q61: 203731.3555 | R61: 221152.7554 | S61: 235670.5886 | T61: 250188.4219
D62: Administration | I62: 175074.8296 | J62: 179284.3101 | K62: 183493.7906 | L62: 185598.5309 | M62: 189808.0113 | N62: 194017.4918 | O62: 202436.4528 | P62: 210855.4138 | Q62: 219274.3747 | R62: 231902.8162 | S62: 242426.5174 | T62: 252950.2186
E63: Average Annual Operating Costs | I63: 1719214.074 | J63: 1784041.486 | K63: 1848868.898 | L63: 1881282.604 | M63: 1946110.015 | N63: 2010937.427 | O63: 2140592.251 | P63: 2270247.075 | Q63: 2399901.899 | R63: 2594384.135 | S63: 2756452.665 | T63: 2918521.194
C65: Average Annual Total Fixed Capital Asset & Operating Costs | I65: 2708130 | J65: 3108400 | K65: 3508660 | L65: 3804000 | M65: 4312230 | N65: 4442060 | O65: 4701720 | P65: 3260640 | Q65: 5727090 | R65: 6496110 | S65: 7318910 | T65: 7978320
C67: Intensity of Employment
D68: Applied Allowances for Temporary Withdrawals from Service (Days) [2.] | I68: 17 | J68: 17 | K68: 17 | L68: 17 | M68: 17 | N68: 17 | O68: 17 | P68: 17 | Q68: 17 | R68: 17 | S68: 17 | T68: 17
D69: Applied Average Operating Days per Year: | I69: 348 | J69: 348 | K69: 348 | L69: 348 | M69: 348 | N69: 348 | O69: 348 | P69: 348 | Q69: 348 | R69: 348 | S69: 348 | T69: 348
D70: Applied Operational Hours Per Day | I70: 24 | J70: 24 | K70: 24 | L70: 24 | M70: 24 | N70: 24 | O70: 24 | P70: 24 | Q70: 24 | R70: 24 | S70: 24 | T70: 24
C72: Average Daily Total Capital & Operating Costs (Excluding Bunkerage) | I72: 7782 | J72: 8932 | K72: 10082 | L72: 10931 | M72: 12391 | N72: 12765 | O72: 13511 | P72: 9370 | Q72: 16457 | R72: 18667 | S72: 21031 | T72: 22926
D74: Average Daily Bunkerage Costs (Variable)
E75: At-Sea
F76: Propulsion\Prime Mover(s)
G77: Service Speed | I77: 10547 | J77: 11867 | K77: 13168 | L77: 13811 | M77: 15084 | N77: 16338 | O77: 18790 | P77: 21167 | Q77: 23470 | R77: 26782 | S77: 29414 | T77: 31929
G78: Economic Speed | I78: ? | J78: ? | K78: ? | L78: ? | M78: ? | N78: ? | O78: ? | P78: ? | Q78: ? | R78: ? | S78: ? | T78: ?
G79: Half-Power | I79: ? | J79: ? | K79: ? | L79: ? | M79: ? | N79: ? | O79: ? | P79: ? | Q79: ? | R79: ? | S79: ? | T79: ?
G80: Base Idle | I80: ? | J80: ? | K80: ? | L80: ? | M80: ? | N80: ? | O80: ? | P80: ? | Q80: ? | R80: ? | S80: ? | T80: ?
F81: Auxiliary Power Generation | I81: 1243 | J81: 1446 | K81: 1598 | L81: 1663 | M81: 1777 | N81: 1876 | O81: 2043 | P81: 2183 | Q81: 2304 | R81: 2462 | S81: 2577 | T81: 2681
E82: In-Port
F83: Propulsion\Prime Mover(s) (PPMV)
G84: Within-Harbor\Channel Transit | I84: ? | J84: ? | K84: ? | L84: ? | M84: ? | N84: ? | O84: ? | P84: ? | Q84: ? | R84: ? | S84: ? | T84: ?
G85: Maneuvering | I85: ? | J85: ? | K85: ? | L85: ? | M85: ? | N85: ? | O85: ? | P85: ? | Q85: ? | R85: ? | S85: ? | T85: ?
F86: Auxiliary Power Generation (APG) | I86: 1243 | J86: 1446 | K86: 1598 | L86: 1663 | M86: 1777 | N86: 1876 | O86: 2043 | P86: 2183 | Q86: 2304 | R86: 2462 | S86: 2577 | T86: 2681
D88: Average Daily Total Vessel Costs; Inclusive
E89: At-Sea | I89: =I72+I77+I81 -> 19572
F90: Propulsion\Prime Mover(s) & Auxiliary Power Generation (PPMV&APG)
G91: Service Speed | I91: 19572 | J91: 22245 | K91: 24848 | L91: 26405 | M91: 29252 | N91: 30979 | O91: 34344 | P91: 32720 | Q91: 42231 | R91: 47911 | S91: 53022 | T91: 57536
G92: Economic Speed | I92: ? | J92: ? | K92: ? | L92: ? | M92: ? | N92: ? | O92: ? | P92: ? | Q92: ? | R92: ? | S92: ? | T92: ?
G93: Half-Power | I93: ? | J93: ? | K93: ? | L93: ? | M93: ? | N93: ? | O93: ? | P93: ? | Q93: ? | R93: ? | S93: ? | T93: ?
G94: Base Idle | I94: ? | J94: ? | K94: ? | L94: ? | M94: ? | N94: ? | O94: ? | P94: ? | Q94: ? | R94: ? | S94: ? | T94: ?
E95: In-Port
F96: Propulsion\Prime Mover(s) & Auxiliary Power Generation (PPMV&APG)
G97: Within-Harbor\Channel Transit | I97: ? | J97: ? | K97: ? | L97: ? | M97: ? | N97: ? | O97: ? | P97: ? | Q97: ? | R97: ? | S97: ? | T97: ?
G98: Maneuvering | I98: ? | J98: ? | K98: ? | L98: ? | M98: ? | N98: ? | O98: ? | P98: ? | Q98: ? | R98: ? | S98: ? | T98: ?
G99: Dockside\Static Condition | I99: 9025 | J99: 10378 | K99: 11680 | L99: 12594 | M99: 14168 | N99: 14641 | O99: 15554 | P99: 11553 | Q99: 18761 | R99: 21129 | S99: 23608 | T99: 25607
D101: Average Hourly Total Vessel Costs; Inclusive
E102: At-Sea | I102: =I89/24 -> 815.5
F103: Propulsion\Prime Mover(s) & Auxiliary Power Generation (PPMV&APG)
G104: Service Speed | I104: 816 | J104: 927 | K104: 1035 | L104: 1100 | M104: 1219 | N104: 1291 | O104: 1431 | P104: 1363 | Q104: 1760 | R104: 1996 | S104: 2209 | T104: 2397
G105: Economic Speed | I105: ? | J105: ? | K105: ? | L105: ? | M105: ? | N105: ? | O105: ? | P105: ? | Q105: ? | R105: ? | S105: ? | T105: ?
G106: Half-Power | I106: ? | J106: ? | K106: ? | L106: ? | M106: ? | N106: ? | O106: ? | P106: ? | Q106: ? | R106: ? | S106: ? | T106: ?
G107: Base Idle | I107: ? | J107: ? | K107: ? | L107: ? | M107: ? | N107: ? | O107: ? | P107: ? | Q107: ? | R107: ? | S107: ? | T107: ?
E108: In-Port
F109: Propulsion\Prime Mover(s) & Auxiliary Power Generation (PPMV&APG)
G110: Within-Harbor\Channel Transit | I110: ? | J110: ? | K110: ? | L110: ? | M110: ? | N110: ? | O110: ? | P110: ? | Q110: ? | R110: ? | S110: ? | T110: ?
G111: Maneuvering | I111: ? | J111: ? | K111: ? | L111: ? | M111: ? | N111: ? | O111: ? | P111: ? | Q111: ? | R111: ? | S111: ? | T111: ?
G112: Dockside\Static Condition | I112: 376 | J112: 432 | K112: 487 | L112: 525 | M112: 590 | N112: 610 | O112: 648 | P112: 481 | Q112: 782 | R112: 880 | S112: 984 | T112: 1067
C115: Applied Bunkerage Cost(s) & Scrap\Breakage Value (Per Metric Tonne)
E117: HVO Price (Heavy Vicosity Oil) | I117: 516.0209496 | J117: 516.0209496 | K117: 516.0209496 | L117: 516.0209496 | M117: 516.0209496 | N117: 516.0209496 | O117: 516.0209496 | P117: 516.0209496 | Q117: 516.0209496 | R117: 516.0209496 | S117: 516.0209496 | T117: 516.0209496
E118: IFO Price (Intermediate Fuel Oil) | I118: Not Applic. | J118: Not Applic. | K118: Not Applic. | L118: Not Applic. | M118: Not Applic. | N118: Not Applic. | O118: Not Applic. | P118: Not Applic. | Q118: Not Applic. | R118: Not Applic. | S118: Not Applic. | T118: Not Applic.
E119: MDO Price (Marine Diesel Oil;) | I119: 768.2847432 | J119: 768.2847432 | K119: 768.2847432 | L119: 768.2847432 | M119: 768.2847432 | N119: 768.2847432 | O119: 768.2847432 | P119: 768.2847432 | Q119: 768.2847432 | R119: 768.2847432 | S119: 768.2847432 | T119: 768.2847432
E120: MGO Price (Marine Gasoline Oil) | I120: Not Applic. | J120: Not Applic. | K120: Not Applic. | L120: Not Applic. | M120: Not Applic. | N120: Not Applic. | O120: Not Applic. | P120: Not Applic. | Q120: Not Applic. | R120: Not Applic. | S120: Not Applic. | T120: Not Applic.
E121: Scrap Price (Per Light Displacement Tonne) | I121: 466.6665723 | J121: 466.6665723 | K121: 466.6665723 | L121: 466.6665723 | M121: 466.6665723 | N121: 466.6665723 | O121: 466.6665723 | P121: 466.6665723 | Q121: 466.6665723 | R121: 466.6665723 | S121: 466.6665723 | T121: 466.6665723
D124: Note(s) | G124: [1.] Excludes cost of containers for containerized cargo carriers.
G125: [2.] Annual average number of days for drydocking or repairs and involuntary lay-up.

Sheet Int FCC VOC (hidden)
C3: Aggregate Vessel Operating Costs (VOCs)
C4: Deep-Draft Self-Propelled Carriers
C5: Fully Cellular Containerships (Open Registry Flag)
C7: Maritime Strategies International, Ltd.
C9: Generated: | G9: 2011
C10: Price Level: | G10: CY 2011
C11: Currency: | G11: U.S. Dollars
C13: General Vessel Specifications
D14: General Vessel Type | I14: Grd FCC | J14: Grd FCC | K14: Grd FCC | L14: Grd FCC | M14: Grd FCC | N14: Grd FCC | O14: Gls FCC | P14: Gls FCC | Q14: Gls FCC | R14: Gls FCC | S14: Gls FCC | T14: Gls FCC | U14: Gls FCC | V14: Gls FCC | W14: Gls FCC | X14: Gls FCC | Y14: Gls FCC
D15: Deadweight Tonnage (DWT; Metric Tonnes) | I15: 9500 | J15: 15000 | K15: 17800 | L15: 22900 | M15: 23200 | N15: 30700 | O15: 31900 | P15: 34800 | Q15: 40300 | R15: 42800 | S15: 46400 | T15: 55600 | U15: 65000 | V15: 70500 | W15: 80700 | X15: 103000 | Y15: 113000
D16: Light Displacement Tonnage (LDT; Metric Tonnes) | I16: 4742.267 | J16: 7487.79 | K16: 8885.5108 | L16: 11431.3594 | M16: 11581.1152 | N16: 15325.0102 | O16: 15924.0334 | P16: 17371.6728 | Q16: 20117.1958 | R16: 21365.1608 | S16: 23162.2304 | T16: 27754.7416 | U16: 32447.09 | V16: 35192.613 | W16: 40284.3102 | X16: 51416.158 | Y16: 56408.018
D17: Displacement (Metric Tonnes) | I17: ? | J17: ? | K17: ? | L17: ? | M17: ? | N17: ? | O17: ? | P17: ? | Q17: ? | R17: ? | S17: ? | T17: ? | U17: ? | V17: ? | W17: ? | X17: ? | Y17: ?
D18: TEU Capacity | I18: 600 | J18: 1000 | K18: 1200 | L18: 1400 | M18: 1600 | N18: 2000 | O18: 2200 | P18: 2500 | Q18: 2800 | R18: 3000 | S18: 3500 | T18: 4000 | U18: 4800 | V18: 6000 | W18: 6500 | X18: 8000 | Y18: 10000
D19: Volumetric Capacity (Cubic Meters)
E20: Grain Cubic | I20: Not Applic | J20: Not Applic | K20: Not Applic | L20: Not Applic | M20: Not Applic | N20: Not Applic | O20: Not Applic | P20: Not Applic | Q20: Not Applic | R20: Not Applic | S20: Not Applic | T20: Not Applic | U20: Not Applic | V20: Not Applic | W20: Not Applic | X20: Not Applic | Y20: Not Applic
E21: Bale Cubic | I21: Not Applic | J21: Not Applic | K21: Not Applic | L21: Not Applic | M21: Not Applic | N21: Not Applic | O21: Not Applic | P21: Not Applic | Q21: Not Applic | R21: Not Applic | S21: Not Applic | T21: Not Applic | U21: Not Applic | V21: Not Applic | W21: Not Applic | X21: Not Applic | Y21: Not Applic
E22: Liquid Cubic | I22: Not Applic | J22: Not Applic | K22: Not Applic | L22: Not Applic | M22: Not Applic | N22: Not Applic | O22: Not Applic | P22: Not Applic | Q22: Not Applic | R22: Not Applic | S22: Not Applic | T22: Not Applic | U22: Not Applic | V22: Not Applic | W22: Not Applic | X22: Not Applic | Y22: Not Applic
D23: Average Vessel Age (Years) | I23: 5 | J23: 5 | K23: 5 | L23: 5 | M23: 5 | N23: 5 | O23: 5 | P23: 5 | Q23: 5 | R23: 5 | S23: 5 | T23: 5 | U23: 5 | V23: 5 | W23: 5 | X23: 5 | Y23: 5 | Z23: 5 | AA23: 5 | AB23: 5 | AC23: 5 | AD23: 5 | AE23: 5 | AF23: 5 | AG23: 5 | AH23: 5 | AI23: 5 | AJ23: 5 | AK23: 5 | AL23: 5 | AM23: 5 | AN23: 5 | AO23: 5 | AP23: 5 | AQ23: 5 | AR23: 5 | AS23: 5 | AT23: 5 | AU23: 5 | AV23: 5 | AW23: 5 | AX23: 5 | AY23: 5 | AZ23: 5 | BA23: 5 | BB23: 5 | BC23: 5 | BD23: 5 | BE23: 5 | BF23: 5 | BG23: 5 | BH23: 5 | BI23: 5 | BJ23: 5 | BK23: 5 | BL23: 5 | BM23: 5 | BN23: 5 | BO23: 5 | BP23: 5 | BQ23: 5 | BR23: 5 | BS23: 5 | BT23: 5 | BU23: 5 | BV23: 5 | BW23: 5 | BX23: 5 | BY23: 5 | BZ23: 5 | CA23: 5 | CB23: 5 | CC23: 5 | CD23: 5 | CE23: 5 | CF23: 5 | CG23: 5 | CH23: 5 | CI23: 5 | CJ23: 5 | CK23: 5 | CL23: 5 | CM23: 5 | CN23: 5 | CO23: 5 | CP23: 5 | CQ23: 5 | CR23: 5 | CS23: 5 | CT23: 5 | CU23: 5 | CV23: 5 | CW23: 5 | CX23: 5 | CY23: 5 | CZ23: 5 | DA23: 5 | DB23: 5 | DC23: 5 | DD23: 5 | DE23: 5 | DF23: 5 | DG23: 5 | DH23: 5 | DI23: 5 | DJ23: 5 | DK23: 5 | DL23: 5 | DM23: 5 | DN23: 5 | DO23: 5 | DP23: 5 | DQ23: 5 | DR23: 5 | DS23: 5 | DT23: 5 | DU23: 5 | DV23: 5 | DW23: 5 | DX23: 5 | DY23: 5 | DZ23: 5 | EA23: 5 | EB23: 5 | EC23: 5 | ED23: 5 | EE23: 5 | EF23: 5 | EG23: 5 | EH23: 5 | EI23: 5 | EJ23: 5 | EK23: 5 | EL23: 5 | EM23: 5 | EN23: 5 | EO23: 5 | EP23: 5 | EQ23: 5 | ER23: 5 | ES23: 5 | ET23: 5 | EU23: 5 | EV23: 5 | EW23: 5 | EX23: 5 | EY23: 5 | EZ23: 5 | FA23: 5 | FB23: 5 | FC23: 5 | FD23: 5 | FE23: 5 | FF23: 5 | FG23: 5 | FH23: 5 | FI23: 5 | FJ23: 5 | FK23: 5 | FL23: 5 | FM23: 5 | FN23: 5 | FO23: 5 | FP23: 5 | FQ23: 5 | FR23: 5 | FS23: 5 | FT23: 5 | FU23: 5 | FV23: 5 | FW23: 5 | FX23: 5 | FY23: 5 | FZ23: 5 | GA23: 5 | GB23: 5 | GC23: 5 | GD23: 5 | GE23: 5 | GF23: 5 | GG23: 5 | GH23: 5 | GI23: 5 | GJ23: 5 | GK23: 5 | GL23: 5 | GM23: 5 | GN23: 5 | GO23: 5 | GP23: 5 | GQ23: 5 | GR23: 5 | GS23: 5 | GT23: 5 | GU23: 5 | GV23: 5 | GW23: 5 | GX23: 5 | GY23: 5 | GZ23: 5 | HA23: 5 | HB23: 5 | HC23: 5 | HD23: 5 | HE23: 5 | HF23: 5 | HG23: 5 | HH23: 5 | HI23: 5 | HJ23: 5 | HK23: 5 | HL23: 5 | HM23: 5 | HN23: 5 | HO23: 5 | HP23: 5 | HQ23: 5 | HR23: 5 | HS23: 5 | HT23: 5 | HU23: 5 | HV23: 5 | HW23: 5 | HX23: 5 | HY23: 5 | HZ23: 5 | IA23: 5 | IB23: 5 | IC23: 5 | ID23: 5 | IE23: 5 | IF23: 5 | IG23: 5 | IH23: 5 | II23: 5 | IJ23: 5 | IK23: 5 | IL23: 5 | IM23: 5 | IN23: 5 | IO23: 5 | IP23: 5 | IQ23: 5 | IR23: 5 | IS23: 5 | IT23: 5 | IU23: 5 | IV23: 5 | IW23: 5 | IX23: 5 | IY23: 5 | IZ23: 5 | JA23: 5 | JB23: 5 | JC23: 5 | JD23: 5 | JE23: 5 | JF23: 5 | JG23: 5 | JH23: 5 | JI23: 5 | JJ23: 5 | JK23: 5 | JL23: 5 | JM23: 5 | JN23: 5 | JO23: 5 | JP23: 5 | JQ23: 5 | JR23: 5 | JS23: 5 | JT23: 5 | JU23: 5 | JV23: 5 | JW23: 5 | JX23: 5 | JY23: 5 | JZ23: 5 | KA23: 5 | KB23: 5 | KC23: 5 | KD23: 5 | KE23: 5 | KF23: 5 | KG23: 5 | KH23: 5 | KI23: 5 | KJ23: 5 | KK23: 5 | KL23: 5 | KM23: 5 | KN23: 5 | KO23: 5 | KP23: 5 | KQ23: 5 | KR23: 5 | KS23: 5 | KT23: 5 | KU23: 5 | KV23: 5 | KW23: 5 | KX23: 5 | KY23: 5 | KZ23: 5 | LA23: 5 | LB23: 5 | LC23: 5 | LD23: 5 | LE23: 5 | LF23: 5 | LG23: 5 | LH23: 5 | LI23: 5 | LJ23: 5 | LK23: 5 | LL23: 5 | LM23: 5 | LN23: 5 | LO23: 5 | LP23: 5 | LQ23: 5 | LR23: 5 | LS23: 5 | LT23: 5 | LU23: 5 | LV23: 5 | LW23: 5 | LX23: 5 | LY23: 5 | LZ23: 5 | MA23: 5 | MB23: 5 | MC23: 5 | MD23: 5 | ME23: 5 | MF23: 5 | MG23: 5 | MH23: 5 | MI23: 5 | MJ23: 5 | MK23: 5 | ML23: 5 | MM23: 5 | MN23: 5 | MO23: 5 | MP23: 5 | MQ23: 5 | MR23: 5 | MS23: 5 | MT23: 5 | MU23: 5 | MV23: 5 | MW23: 5 | MX23: 5 | MY23: 5 | MZ23: 5 | NA23: 5 | NB23: 5 | NC23: 5 | ND23: 5 | NE23: 5 | NF23: 5 | NG23: 5 | NH23: 5 | NI23: 5 | NJ23: 5 | NK23: 5 | NL23: 5 | NM23: 5 | NN23: 5 | NO23: 5 | NP23: 5 | NQ23: 5 | NR23: 5 | NS23: 5 | NT23: 5 | NU23: 5 | NV23: 5 | NW23: 5 | NX23: 5 | NY23: 5 | NZ23: 5 | OA23: 5 | OB23: 5 | OC23: 5 | OD23: 5 | OE23: 5 | OF23: 5 | OG23: 5 | OH23: 5 | OI23: 5 | OJ23: 5 | OK23: 5 | OL23: 5 | OM23: 5 | ON23: 5 | OO23: 5 | OP23: 5 | OQ23: 5 | OR23: 5 | OS23: 5 | OT23: 5 | OU23: 5 | OV23: 5 | OW23: 5 | OX23: 5 | OY23: 5 | OZ23: 5 | PA23: 5 | PB23: 5 | PC23: 5 | PD23: 5 | PE23: 5 | PF23: 5 | PG23: 5 | PH23: 5 | PI23: 5 | PJ23: 5 | PK23: 5 | PL23: 5 | PM23: 5 | PN23: 5 | PO23: 5 | PP23: 5 | PQ23: 5 | PR23: 5 | PS23: 5 | PT23: 5 | PU23: 5 | PV23: 5 | PW23: 5 | PX23: 5 | PY23: 5 | PZ23: 5 | QA23: 5 | QB23: 5 | QC23: 5 | QD23: 5 | QE23: 5 | QF23: 5 | QG23: 5 | QH23: 5 | QI23: 5 | QJ23: 5 | QK23: 5 | QL23: 5 | QM23: 5 | QN23: 5 | QO23: 5 | QP23: 5 | QQ23: 5 | QR23: 5 | QS23: 5 | QT23: 5 | QU23: 5 | QV23: 5 | QW23: 5 | QX23: 5 | QY23: 5 | QZ23: 5 | RA23: 5 | RB23: 5 | RC23: 5 | RD23: 5 | RE23: 5 | RF23: 5 | RG23: 5 | RH23: 5 | RI23: 5 | RJ23: 5 | RK23: 5 | RL23: 5 | RM23: 5 | RN23: 5 | RO23: 5 | RP23: 5 | RQ23: 5 | RR23: 5 | RS23: 5 | RT23: 5 | RU23: 5 | RV23: 5 | RW23: 5 | RX23: 5 | RY23: 5 | RZ23: 5 | SA23: 5 | SB23: 5 | SC23: 5 | SD23: 5 | SE23: 5 | SF23: 5 | SG23: 5 | SH23: 5 | SI23: 5 | SJ23: 5 | SK23: 5 | SL23: 5 | SM23: 5 | SN23: 5 | SO23: 5 | SP23: 5 | SQ23: 5 | SR23: 5 | SS23: 5 | ST23: 5 | SU23: 5 | SV23: 5 | SW23: 5 | SX23: 5 | SY23: 5 | SZ23: 5 | TA23: 5 | TB23: 5 | TC23: 5 | TD23: 5 | TE23: 5 | TF23: 5 | TG23: 5 | TH23: 5 | TI23: 5 | TJ23: 5 | TK23: 5 | TL23: 5 | TM23: 5 | TN23: 5 | TO23: 5 | TP23: 5 | TQ23: 5 | TR23: 5 | TS23: 5 | TT23: 5 | TU23: 5 | TV23: 5 | TW23: 5 | TX23: 5 | TY23: 5 | TZ23: 5 | UA23: 5 | UB23: 5 | UC23: 5 | UD23: 5 | UE23: 5 | UF23: 5 | UG23: 5 | UH23: 5 | UI23: 5 | UJ23: 5 | UK23: 5 | UL23: 5 | UM23: 5 | UN23: 5 | UO23: 5 | UP23: 5 | UQ23: 5 | UR23: 5 | US23: 5 | UT23: 5 | UU23: 5 | UV23: 5 | UW23: 5 | UX23: 5 | UY23: 5 | UZ23: 5 | VA23: 5 | VB23: 5 | VC23: 5 | VD23: 5 | VE23: 5 | VF23: 5 | VG23: 5 | VH23: 5 | VI23: 5 | VJ23: 5 | VK23: 5 | VL23: 5 | VM23: 5 | VN23: 5 | VO23: 5 | VP23: 5 | VQ23: 5 | VR23: 5 | VS23: 5 | VT23: 5 | VU23: 5 | VV23: 5 | VW23: 5 | VX23: 5 | VY23: 5 | VZ23: 5 | WA23: 5 | WB23: 5 | WC23: 5 | WD23: 5 | WE23: 5 | WF23: 5 | WG23: 5 | WH23: 5 | WI23: 5 | WJ23: 5 | WK23: 5 | WL23: 5 | WM23: 5 | WN23: 5 | WO23: 5 | WP23: 5 | WQ23: 5 | WR23: 5 | WS23: 5 | WT23: 5 | WU23: 5 | WV23: 5 | WW23: 5 | WX23: 5 | WY23: 5 | WZ23: 5 | XA23: 5 | XB23: 5 | XC23: 5 | XD23: 5 | XE23: 5 | XF23: 5 | XG23: 5 | XH23: 5 | XI23: 5 | XJ23: 5 | XK23: 5 | XL23: 5 | XM23: 5 | XN23: 5 | XO23: 5 | XP23: 5 | XQ23: 5 | XR23: 5 | XS23: 5 | XT23: 5 | XU23: 5 | XV23: 5 | XW23: 5 | XX23: 5 | XY23: 5 | XZ23: 5 | YA23: 5 | YB23: 5 | YC23: 5 | YD23: 5 | YE23: 5 | YF23: 5 | YG23: 5 | YH23: 5 | YI23: 5 | YJ23: 5 | YK23: 5 | YL23: 5 | YM23: 5 | YN23: 5 | YO23: 5 | YP23: 5 | YQ23: 5 | YR23: 5 | YS23: 5 | YT23: 5 | YU23: 5 | YV23: 5 | YW23: 5 | YX23: 5 | YY23: 5 | YZ23: 5 | ZA23: 5 | ZB23: 5 | ZC23: 5 | ZD23: 5 | ZE23: 5 | ZF23: 5 | ZG23: 5 | ZH23: 5 | ZI23: 5 | ZJ23: 5 | ZK23: 5 | ZL23: 5 | ZM23: 5 | ZN23: 5 | ZO23: 5 | ZP23: 5 | ZQ23: 5 | ZR23: 5 | ZS23: 5 | ZT23: 5 | ZU23: 5 | ZV23: 5 | ZW23: 5 | ZX23: 5 | ZY23: 5 | ZZ23: 5 | AAA23: 5 | AAB23: 5 | AAC23: 5 | AAD23: 5 | AAE23: 5 | AAF23: 5 | AAG23: 5 | AAH23: 5 | AAI23: 5 | AAJ23: 5 | AAK23: 5 | AAL23: 5 | AAM23: 5 | AAN23: 5 | AAO23: 5 | AAP23: 5 | AAQ23: 5 | AAR23: 5 | AAS23: 5 | AAT23: 5 | AAU23: 5 | AAV23: 5 | AAW23: 5 | AAX23: 5 | AAY23: 5 | AAZ23: 5 | ABA23: 5 | ABB23: 5 | ABC23: 5 | ABD23: 5 | ABE23: 5 | ABF23: 5 | ABG23: 5 | ABH23: 5 | ABI23: 5 | ABJ23: 5 | ABK23: 5 | ABL23: 5 | ABM23: 5 | ABN23: 5 | ABO23: 5 | ABP23: 5 | ABQ23: 5 | ABR23: 5 | ABS23: 5 | ABT23: 5 | ABU23: 5 | ABV23: 5 | ABW23: 5 | ABX23: 5 | ABY23: 5 | ABZ23: 5 | ACA23: 5 | ACB23: 5 | ACC23: 5 | ACD23: 5 | ACE23: 5 | ACF23: 5 | ACG23: 5 | ACH23: 5 | ACI23: 5 | ACJ23: 5 | ACK23: 5 | ACL23: 5 | ACM23: 5 | ACN23: 5 | ACO23: 5 | ACP23: 5 | ACQ23: 5 | ACR23: 5 | ACS23: 5 | ACT23: 5 | ACU23: 5 | ACV23: 5 | ACW23: 5 | ACX23: 5 | ACY23: 5 | ACZ23: 5 | ADA23: 5 | ADB23: 5 | ADC23: 5 | ADD23: 5 | ADE23: 5 | ADF23: 5 | ADG23: 5 | ADH23: 5 | ADI23: 5 | ADJ23: 5 | ADK23: 5 | ADL23: 5 | ADM23: 5 | ADN23: 5 | ADO23: 5 | ADP23: 5 | ADQ23: 5 | ADR23: 5 | ADS23: 5 | ADT23: 5 | ADU23: 5 | ADV23: 5 | ADW23: 5 | ADX23: 5 | ADY23: 5 | ADZ23: 5 | AEA23: 5 | AEB23: 5 | AEC23: 5 | AED23: 5 | AEE23: 5 | AEF23: 5 | AEG23: 5 | AEH23: 5 | AEI23: 5 | AEJ23: 5 | AEK23: 5 | AEL23: 5 | AEM23: 5 | AEN23: 5 | AEO23: 5 | AEP23: 5 | AEQ23: 5 | AER23: 5 | AES23: 5 | AET23: 5 | AEU23: 5 | AEV23: 5 | AEW23: 5 | AEX23: 5 | AEY23: 5 | AEZ23: 5 | AFA23: 5 | AFB23: 5 | AFC23: 5 | AFD23: 5 | AFE23: 5 | AFF23: 5 | AFG23: 5 | AFH23: 5 | AFI23: 5 | AFJ23: 5 | AFK23: 5 | AFL23: 5 | AFM23: 5 | AFN23: 5 | AFO23: 5 | AFP23: 5 | AFQ23: 5 | AFR23: 5 | AFS23: 5 | AFT23: 5 | AFU23: 5 | AFV23: 5 | AFW23: 5 | AFX23: 5 | AFY23: 5 | AFZ23: 5 | AGA23: 5 | AGB23: 5 | AGC23: 5 | AGD23: 5 | AGE23: 5 | AGF23: 5 | AGG23: 5 | AGH23: 5 | AGI23: 5 | AGJ23: 5 | AGK23: 5 | AGL23: 5 | AGM23: 5 | AGN23: 5 | AGO23: 5 | AGP23: 5 | AGQ23: 5 | AGR23: 5 | AGS23: 5 | AGT23: 5 | AGU23: 5 | AGV23: 5 | AGW23: 5 | AGX23: 5 | AGY23: 5 | AGZ23: 5 | AHA23: 5 | AHB23: 5 | AHC23: 5 | AHD23: 5 | AHE23: 5 | AHF23: 5 | AHG23: 5 | AHH23: 5 | AHI23: 5 | AHJ23: 5 | AHK23: 5 | AHL23: 5 | AHM23: 5 | AHN23: 5 | AHO23: 5 | AHP23: 5 | AHQ23: 5 | AHR23: 5 | AHS23: 5 | AHT23: 5 | AHU23: 5 | AHV23: 5 | AHW23: 5 | AHX23: 5 | AHY23: 5 | AHZ23: 5 | AIA23: 5 | AIB23: 5 | AIC23: 5 | AID23: 5 | AIE23: 5 | AIF23: 5 | AIG23: 5 | AIH23: 5 | AII23: 5 | AIJ23: 5 | AIK23: 5 | AIL23: 5 | AIM23: 5 | AIN23: 5 | AIO23: 5 | AIP23: 5 | AIQ23: 5 | AIR23: 5 | AIS23: 5 | AIT23: 5 | AIU23: 5 | AIV23: 5 | AIW23: 5 | AIX23: 5 | AIY23: 5 | AIZ23: 5 | AJA23: 5 | AJB23: 5 | AJC23: 5 | AJD23: 5 | AJE23: 5 | AJF23: 5 | AJG23: 5 | AJH23: 5 | AJI23: 5 | AJJ23: 5 | AJK23: 5 | AJL23: 5 | AJM23: 5 | AJN23: 5 | AJO23: 5 | AJP23: 5 | AJQ23: 5 | AJR23: 5 | AJS23: 5 | AJT23: 5 | AJU23: 5 | AJV23: 5 | AJW23: 5 | AJX23: 5 | AJY23: 5 | AJZ23: 5 | AKA23: 5 | AKB23: 5 | AKC23: 5 | AKD23: 5 | AKE23: 5 | AKF23: 5 | AKG23: 5 | AKH23: 5 | AKI23: 5 | AKJ23: 5 | AKK23: 5 | AKL23: 5 | AKM23: 5 | AKN23: 5 | AKO23: 5 | AKP23: 5 | AKQ23: 5 | AKR23: 5 | AKS23: 5 | AKT23: 5 | AKU23: 5 | AKV23: 5 | AKW23: 5 | AKX23: 5 | AKY23: 5 | AKZ23: 5 | ALA23: 5 | ALB23: 5 | ALC23: 5 | ALD23: 5 | ALE23: 5 | ALF23: 5 | ALG23: 5 | ALH23: 5 | ALI23: 5 | ALJ23: 5 | ALK23: 5 | ALL23: 5 | ALM23: 5 | ALN23: 5 | ALO23: 5 | ALP23: 5 | ALQ23: 5 | ALR23: 5 | ALS23: 5 | ALT23: 5 | ALU23: 5 | ALV23: 5 | ALW23: 5 | ALX23: 5 | ALY23: 5 | ALZ23: 5 | AMA23: 5 | AMB23: 5 | AMC23: 5 | AMD23: 5 | AME23: 5 | AMF23: 5 | AMG23: 5 | AMH23: 5 | AMI23: 5 | AMJ23: 5 | AMK23: 5 | AML23: 5 | AMM23: 5 | AMN23: 5 | AMO23: 5 | AMP23: 5 | AMQ23: 5 | AMR23: 5 | AMS23: 5 | AMT23: 5 | AMU23: 5 | AMV23: 5 | AMW23: 5 | AMX23: 5 | AMY23: 5 | AMZ23: 5 | ANA23: 5 | ANB23: 5 | ANC23: 5 | AND23: 5 | ANE23: 5 | ANF23: 5 | ANG23: 5 | ANH23: 5 | ANI23: 5 | ANJ23: 5 | ANK23: 5 | ANL23: 5 | ANM23: 5 | ANN23: 5 | ANO23: 5 | ANP23: 5 | ANQ23: 5 | ANR23: 5 | ANS23: 5 | ANT23: 5 | ANU23: 5 | ANV23: 5 | ANW23: 5 | ANX23: 5 | ANY23: 5 | ANZ23: 5 | AOA23: 5 | AOB23: 5 | AOC23: 5 | AOD23: 5 | AOE23: 5 | AOF23: 5 | AOG23: 5 | AOH23: 5 | AOI23: 5 | AOJ23: 5 | AOK23: 5 | AOL23: 5 | AOM23: 5 | AON23: 5 | AOO23: 5 | AOP23: 5 | AOQ23: 5 | AOR23: 5 | AOS23: 5 | AOT23: 5 | AOU23: 5 | AOV23: 5 | AOW23: 5 | AOX23: 5 | AOY23: 5 | AOZ23: 5 | APA23: 5 | APB23: 5 | APC23: 5 | APD23: 5 | APE23: 5 | APF23: 5 | APG23: 5 | APH23: 5 | API23: 5 | APJ23: 5 | APK23: 5 | APL23: 5 | APM23: 5 | APN23: 5 | APO23: 5 | APP23: 5 | APQ23: 5 | APR23: 5 | APS23: 5 | APT23: 5 | APU23: 5 | APV23: 5 | APW23: 5 | APX23: 5 | APY23: 5 | APZ23: 5 | AQA23: 5 | AQB23: 5 | AQC23: 5 | AQD23: 5 | AQE23: 5 | AQF23: 5 | AQG23: 5 | AQH23: 5 | AQI23: 5 | AQJ23: 5 | AQK23: 5 | AQL23: 5 | AQM23: 5 | AQN23: 5 | AQO23: 5 | AQP23: 5 | AQQ23: 5 | AQR23: 5 | AQS23: 5 | AQT23: 5 | AQU23: 5 | AQV23: 5 | AQW23: 5 | AQX23: 5 | AQY23: 5 | AQZ23: 5 | ARA23: 5 | ARB23: 5 | ARC23: 5 | ARD23: 5 | ARE23: 5 | ARF23: 5 | ARG23: 5 | ARH23: 5 | ARI23: 5 | ARJ23: 5 | ARK23: 5 | ARL23: 5 | ARM23: 5 | ARN23: 5 | ARO23: 5 | ARP23: 5 | ARQ23: 5 | ARR23: 5 | ARS23: 5 | ART23: 5 | ARU23: 5 | ARV23: 5 | ARW23: 5 | ARX23: 5 | ARY23: 5 | ARZ23: 5 | ASA23: 5 | ASB23: 5 | ASC23: 5 | ASD23: 5 | ASE23: 5 | ASF23: 5 | ASG23: 5 | ASH23: 5 | ASI23: 5 | ASJ23: 5 | ASK23: 5 | ASL23: 5 | ASM23: 5 | ASN23: 5 | ASO23: 5 | ASP23: 5 | ASQ23: 5 | ASR23: 5 | ASS23: 5 | AST23: 5 | ASU23: 5 | ASV23: 5 | ASW23: 5 | ASX23: 5 | ASY23: 5 | ASZ23: 5 | ATA23: 5 | ATB23: 5 | ATC23: 5 | ATD23: 5 | ATE23: 5 | ATF23: 5 | ATG23: 5 | ATH23: 5 | ATI23: 5 | ATJ23: 5 | ATK23: 5 | ATL23: 5 | ATM23: 5 | ATN23: 5 | ATO23: 5 | ATP23: 5 | ATQ23: 5 | ATR23: 5 | ATS23: 5 | ATT23: 5 | ATU23: 5 | ATV23: 5 | ATW23: 5 | ATX23: 5 | ATY23: 5 | ATZ23: 5 | AUA23: 5 | AUB23: 5 | AUC23: 5 | AUD23: 5 | AUE23: 5 | AUF23: 5 | AUG23: 5 | AUH23: 5 | AUI23: 5 | AUJ23: 5 | AUK23: 5 | AUL23: 5 | AUM23: 5 | AUN23: 5 | AUO23: 5 | AUP23: 5 | AUQ23: 5 | AUR23: 5 | AUS23: 5 | AUT23: 5 | AUU23: 5 | AUV23: 5 | AUW23: 5 | AUX23: 5 | AUY23: 5 | AUZ23: 5 | AVA23: 5 | AVB23: 5 | AVC23: 5 | AVD23: 5 | AVE23: 5 | AVF23: 5 | AVG23: 5 | AVH23: 5 | AVI23: 5 | AVJ23: 5 | AVK23: 5 | AVL23: 5 | AVM23: 5 | AVN23: 5 | AVO23: 5 | AVP23: 5 | AVQ23: 5 | AVR23: 5 | AVS23: 5 | AVT23: 5 | AVU23: 5 | AVV23: 5 | AVW23: 5 | AVX23: 5 | AVY23: 5 | AVZ23: 5 | AWA23: 5 | AWB23: 5 | AWC23: 5 | AWD23: 5 | AWE23: 5 | AWF23: 5 | AWG23: 5 | AWH23: 5 | AWI23: 5 | AWJ23: 5 | AWK23: 5 | AWL23: 5 | AWM23: 5 | AWN23: 5 | AWO23: 5 | AWP23: 5 | AWQ23: 5 | AWR23: 5 | AWS23: 5 | AWT23: 5 | AWU23: 5 | AWV23: 5 | AWW23: 5 | AWX23: 5 | AWY23: 5 | AWZ23: 5 | AXA23: 5 | AXB23: 5 | AXC23: 5 | AXD23: 5 | AXE23: 5 | AXF23: 5 | AXG23: 5 | AXH23: 5 | AXI23: 5 | AXJ23: 5 | AXK23: 5 | AXL23: 5 | AXM23: 5 | AXN23: 5 | AXO23: 5 | AXP23: 5 | AXQ23: 5 | AXR23: 5 | AXS23: 5 | AXT23: 5 | AXU23: 5 | AXV23: 5 | AXW23: 5 | AXX23: 5 | AXY23: 5 | AXZ23: 5 | AYA23: 5 | AYB23: 5 | AYC23: 5 | AYD23: 5 | AYE23: 5 | AYF23: 5 | AYG23: 5 | AYH23: 5 | AYI23: 5 | AYJ23: 5 | AYK23: 5 | AYL23: 5 | AYM23: 5 | AYN23: 5 | AYO23: 5 | AYP23: 5 | AYQ23: 5 | AYR23: 5 | AYS23: 5 | AYT23: 5 | AYU23: 5 | AYV23: 5 | AYW23: 5 | AYX23: 5 | AYY23: 5 | AYZ23: 5 | AZA23: 5 | AZB23: 5 | AZC23: 5 | AZD23: 5 | AZE23: 5 | AZF23: 5 | AZG23: 5 | AZH23: 5 | AZI23: 5 | AZJ23: 5 | AZK23: 5 | AZL23: 5 | AZM23: 5 | AZN23: 5 | AZO23: 5 | AZP23: 5 | AZQ23: 5 | AZR23: 5 | AZS23: 5 | AZT23: 5 | AZU23: 5 | AZV23: 5 | AZW23: 5 | AZX23: 5 | AZY23: 5 | AZZ23: 5 | BAA23: 5 | BAB23: 5 | BAC23: 5 | BAD23: 5 | BAE23: 5 | BAF23: 5 | BAG23: 5 | BAH23: 5 | BAI23: 5 | BAJ23: 5 | BAK23: 5 | BAL23: 5 | BAM23: 5 | BAN23: 5 | BAO23: 5 | BAP23: 5 | BAQ23: 5 | BAR23: 5 | BAS23: 5 | BAT23: 5 | BAU23: 5 | BAV23: 5 | BAW23: 5 | BAX23: 5 | BAY23: 5 | BAZ23: 5 | BBA23: 5 | BBB23: 5 | BBC23: 5 | BBD23: 5 | BBE23: 5 | BBF23: 5 | BBG23: 5 | BBH23: 5 | BBI23: 5 | BBJ23: 5 | BBK23: 5 | BBL23: 5 | BBM23: 5 | BBN23: 5 | BBO23: 5 | BBP23: 5 | BBQ23: 5 | BBR23: 5 | BBS23: 5 | BBT23: 5 | BBU23: 5 | BBV23: 5 | BBW23: 5 | BBX23: 5 | BBY23: 5 | BBZ23: 5 | BCA23: 5 | BCB23: 5 | BCC23: 5 | BCD23: 5 | BCE23: 5 | BCF23: 5 | BCG23: 5 | BCH23: 5 | BCI23: 5 | BCJ23: 5 | BCK23: 5 | BCL23: 5 | BCM23: 5 | BCN23: 5 | BCO23: 5 | BCP23: 5 | BCQ23: 5 | BCR23: 5 | BCS23: 5 | BCT23: 5 | BCU23: 5 | BCV23: 5 | BCW23: 5 | BCX23: 5 | BCY23: 5 | BCZ23: 5 | BDA23: 5 | BDB23: 5 | BDC23: 5 | BDD23: 5 | BDE23: 5 | BDF23: 5 | BDG23: 5 | BDH23: 5 | BDI23: 5 | BDJ23: 5 | BDK23: 5 | BDL23: 5 | BDM23: 5 | BDN23: 5 | BDO23: 5 | BDP23: 5 | BDQ23: 5 | BDR23: 5 | BDS23: 5 | BDT23: 5 | BDU23: 5 | BDV23: 5 | BDW23: 5 | BDX23: 5 | BDY23: 5 | BDZ23: 5 | BEA23: 5 | BEB23: 5 | BEC23: 5 | BED23: 5 | BEE23: 5 | BEF23: 5 | BEG23: 5 | BEH23: 5 | BEI23: 5 | BEJ23: 5 | BEK23: 5 | BEL23: 5 | BEM23: 5 | BEN23: 5 | BEO23: 5 | BEP23: 5 | BEQ23: 5 | BER23: 5 | BES23: 5 | BET23: 5 | BEU23: 5 | BEV23: 5 | BEW23: 5 | BEX23: 5 | BEY23: 5 | BEZ23: 5 | BFA23: 5 | BFB23: 5 | BFC23: 5 | BFD23: 5 | BFE23: 5 | BFF23: 5 | BFG23: 5 | BFH23: 5 | BFI23: 5 | BFJ23: 5 | BFK23: 5 | BFL23: 5 | BFM23: 5 | BFN23: 5 | BFO23: 5 | BFP23: 5 | BFQ23: 5 | BFR23: 5 | BFS23: 5 | BFT23: 5 | BFU23: 5 | BFV23: 5 | BFW23: 5 | BFX23: 5 | BFY23: 5 | BFZ23: 5 | BGA23: 5 | BGB23: 5 | BGC23: 5 | BGD23: 5 | BGE23: 5 | BGF23: 5 | BGG23: 5 | BGH23: 5 | BGI23: 5 | BGJ23: 5 | BGK23: 5 | BGL23: 5 | BGM23: 5 | BGN23: 5 | BGO23: 5 | BGP23: 5 | BGQ23: 5 | BGR23: 5 | BGS23: 5 | BGT23: 5 | BGU23: 5 | BGV23: 5 | BGW23: 5 | BGX23: 5 | BGY23: 5 | BGZ23: 5 | BHA23: 5 | BHB23: 5 | BHC23: 5 | BHD23: 5 | BHE23: 5 | BHF23: 5 | BHG23: 5 | BHH23: 5 | BHI23: 5 | BHJ23: 5 | BHK23: 5 | BHL23: 5 | BHM23: 5 | BHN23: 5 | BHO23: 5 | BHP23: 5 | BHQ23: 5 | BHR23: 5 | BHS23: 5 | BHT23: 5 | BHU23: 5 | BHV23: 5 | BHW23: 5 | BHX23: 5 | BHY23: 5 | BHZ23: 5 | BIA23: 5 | BIB23: 5 | BIC23: 5 | BID23: 5 | BIE23: 5 | BIF23: 5 | BIG23: 5 | BIH23: 5 | BII23: 5 | BIJ23: 5 | BIK23: 5 | BIL23: 5 | BIM23: 5 | BIN23: 5 | BIO23: 5 | BIP23: 5 | BIQ23: 5 | BIR23: 5 | BIS23: 5 | BIT23: 5 | BIU23: 5 | BIV23: 5 | BIW23: 5 | BIX23: 5 | BIY23: 5 | BIZ23: 5 | BJA23: 5 | BJB23: 5 | BJC23: 5 | BJD23: 5 | BJE23: 5 | BJF23: 5 | BJG23: 5 | BJH23: 5 | BJI23: 5 | BJJ23: 5 | BJK23: 5 | BJL23: 5 | BJM23: 5 | BJN23: 5 | BJO23: 5 | BJP23: 5 | BJQ23: 5 | BJR23: 5 | BJS23: 5 | BJT23: 5 | BJU23: 5 | BJV23: 5 | BJW23: 5 | BJX23: 5 | BJY23: 5 | BJZ23: 5 | BKA23: 5 | BKB23: 5 | BKC23: 5 | BKD23: 5 | BKE23: 5 | BKF23: 5 | BKG23: 5 | BKH23: 5 | BKI23: 5 | BKJ23: 5 | BKK23: 5 | BKL23: 5 | BKM23: 5 | BKN23: 5 | BKO23: 5 | BKP23: 5 | BKQ23: 5 | BKR23: 5 | BKS23: 5 | BKT23: 5 | BKU23: 5 | BKV23: 5 | BKW23: 5 | BKX23: 5 | BKY23: 5 | BKZ23: 5 | BLA23: 5 | BLB23: 5 | BLC23: 5 | BLD23: 5 | BLE23: 5 | BLF23: 5 | BLG23: 5 | BLH23: 5 | BLI23: 5 | BLJ23: 5 | BLK23: 5 | BLL23: 5 | BLM23: 5 | BLN23: 5 | BLO23: 5 | BLP23: 5 | BLQ23: 5 | BLR23: 5 | BLS23: 5 | BLT23: 5 | BLU23: 5 | BLV23: 5 | BLW23: 5 | BLX23: 5 | BLY23: 5 | BLZ23: 5 | BMA23: 5 | BMB23: 5 | BMC23: 5 | BMD23: 5 | BME23: 5 | BMF23: 5 | BMG23: 5 | BMH23: 5 | BMI23: 5 | BMJ23: 5 | BMK23: 5 | BML23: 5 | BMM23: 5 | BMN23: 5 | BMO23: 5 | BMP23: 5 | BMQ23: 5 | BMR23: 5 | BMS23: 5 | BMT23: 5 | BMU23: 5 | BMV23: 5 | BMW23: 5 | BMX23: 5 | BMY23: 5 | BMZ23: 5 | BNA23: 5 | BNB23: 5 | BNC23: 5 | BND23: 5 | BNE23: 5 | BNF23: 5 | BNG23: 5 | BNH23: 5 | BNI23: 5 | BNJ23: 5 | BNK23: 5 | BNL23: 5 | BNM23: 5 | BNN23: 5 | BNO23: 5 | BNP23: 5 | BNQ23: 5 | BNR23: 5 | BNS23: 5 | BNT23: 5 | BNU23: 5 | BNV23: 5 | BNW23: 5 | BNX23: 5 | BNY23: 5 | BNZ23: 5 | BOA23: 5 | BOB23: 5 | BOC23: 5 | BOD23: 5 | BOE23: 5 | BOF23: 5 | BOG23: 5 | BOH23: 5 | BOI23: 5 | BOJ23: 5 | BOK23: 5 | BOL23: 5 | BOM23: 5 | BON23: 5 | BOO23: 5 | BOP23: 5 | BOQ23: 5 | BOR23: 5 | BOS23: 5 | BOT23: 5 | BOU23: 5 | BOV23: 5 | BOW23: 5 | BOX23: 5 | BOY23: 5 | BOZ23: 5 | BPA23: 5 | BPB23: 5 | BPC23: 5 | BPD23: 5 | BPE23: 5 | BPF23: 5 | BPG23: 5 | BPH23: 5 | BPI23: 5 | BPJ23: 5 | BPK23: 5 | BPL23: 5 | BPM23: 5 | BPN23: 5 | BPO23: 5 | BPP23: 5 | BPQ23: 5 | BPR23: 5 | BPS23: 5 | BPT23: 5 | BPU23: 5 | BPV23: 5 | BPW23: 5 | BPX23: 5 | BPY23: 5 | BPZ23: 5 | BQA23: 5 | BQB23: 5 | BQC23: 5 | BQD23: 5 | BQE23: 5 | BQF23: 5 | BQG23: 5 | BQH23: 5 | BQI23: 5 | BQJ23: 5 | BQK23: 5 | BQL23: 5 | BQM23: 5 | BQN23: 5 | BQO23: 5 | BQP23: 5 | BQQ23: 5 | BQR23: 5 | BQS23: 5 | BQT23: 5 | BQU23: 5 | BQV23: 5 | BQW23: 5 | BQX23: 5 | BQY23: 5 | BQZ23: 5 | BRA23: 5 | BRB23: 5 | BRC23: 5 | BRD23: 5 | BRE23: 5 | BRF23: 5 | BRG23: 5 | BRH23: 5 | BRI23: 5 | BRJ23: 5 | BRK23: 5 | BRL23: 5 | BRM23: 5 | BRN23: 5 | BRO23: 5 | BRP23: 5 | BRQ23: 5 | BRR23: 5 | BRS23: 5 | BRT23: 5 | BRU23: 5 | BRV23: 5 | BRW23: 5 | BRX23: 5 | BRY23: 5 | BRZ23: 5 | BSA23: 5 | BSB23: 5 | BSC23: 5 | BSD23: 5 | BSE23: 5 | BSF23: 5 | BSG23: 5 | BSH23: 5 | BSI23: 5 | BSJ23: 5 | BSK23: 5 | BSL23: 5 | BSM23: 5 | BSN23: 5 | BSO23: 5 | BSP23: 5 | BSQ23: 5 | BSR23: 5 | BSS23: 5 | BST23: 5 | BSU23: 5 | BSV23: 5 | BSW23: 5 | BSX23: 5 | BSY23: 5 | BSZ23: 5 | BTA23: 5 | BTB23: 5 | BTC23: 5 | BTD23: 5 | BTE23: 5 | BTF23: 5 | BTG23: 5 | BTH23: 5 | BTI23: 5 | BTJ23: 5 | BTK23: 5 | BTL23: 5 | BTM23: 5 | BTN23: 5 | BTO23: 5 | BTP23: 5 | BTQ23: 5 | BTR23: 5 | BTS23: 5 | BTT23: 5 | BTU23: 5 | BTV23: 5 | BTW23: 5 | BTX23: 5 | BTY23: 5 | BTZ23: 5 | BUA23: 5 | BUB23: 5 | BUC23: 5 | BUD23: 5 | BUE23: 5 | BUF23: 5 | BUG23: 5 | BUH23: 5 | BUI23: 5 | BUJ23: 5 | BUK23: 5 | BUL23: 5 | BUM23: 5 | BUN23: 5 | BUO23: 5 | BUP23: 5 | BUQ23: 5 | BUR23: 5 | BUS23: 5 | BUT23: 5 | BUU23: 5 | BUV23: 5 | BUW23: 5 | BUX23: 5 | BUY23: 5 | BUZ23: 5 | BVA23: 5 | BVB23: 5 | BVC23: 5 | BVD23: 5 | BVE23: 5 | BVF23: 5 | BVG23: 5 | BVH23: 5 | BVI23: 5 | BVJ23: 5 | BVK23: 5 | BVL23: 5 | BVM23: 5 | BVN23: 5 | BVO23: 5 | BVP23: 5 | BVQ23: 5 | BVR23: 5 | BVS23: 5 | BVT23: 5 | BVU23: 5 | BVV23: 5 | BVW23: 5 | BVX23: 5 | BVY23: 5 | BVZ23: 5 | BWA23: 5 | BWB23: 5 | BWC23: 5 | BWD23: 5 | BWE23: 5 | BWF23: 5 | BWG23: 5 | BWH23: 5 | BWI23: 5 | BWJ23: 5 | BWK23: 5 | BWL23: 5 | BWM23: 5 | BWN23: 5 | BWO23: 5 | BWP23: 5 | BWQ23: 5 | BWR23: 5 | BWS23: 5 | BWT23: 5 | BWU23: 5 | BWV23: 5 | BWW23: 5 | BWX23: 5 | BWY23: 5 | BWZ23: 5 | BXA23: 5 | BXB23: 5 | BXC23: 5 | BXD23: 5 | BXE23: 5 | BXF23: 5 | BXG23: 5 | BXH23: 5 | BXI23: 5 | BXJ23: 5 | BXK23: 5 | BXL23: 5 | BXM23: 5 | BXN23: 5 | BXO23: 5 | BXP23: 5 | BXQ23: 5 | BXR23: 5 | BXS23: 5 | BXT23: 5 | BXU23: 5 | BXV23: 5 | BXW23: 5 | BXX23: 5 | BXY23: 5 | BXZ23: 5 | BYA23: 5 | BYB23: 5 | BYC23: 5 | BYD23: 5 | BYE23: 5 | BYF23: 5 | BYG23: 5 | BYH23: 5 | BYI23: 5 | BYJ23: 5 | BYK23: 5 | BYL23: 5 | BYM23: 5 | BYN23: 5 | BYO23: 5 | BYP23: 5 | BYQ23: 5 | BYR23: 5 | BYS23: 5 | BYT23: 5 | BYU23: 5 | BYV23: 5 | BYW23: 5 | BYX23: 5 | BYY23: 5 | BYZ23: 5 | BZA23: 5 | BZB23: 5 | BZC23: 5 | BZD23: 5 | BZE23: 5 | BZF23: 5 | BZG23: 5 | BZH23: 5 | BZI23: 5 | BZJ23: 5 | BZK23: 5 | BZL23: 5 | BZM23: 5 | BZN23: 5 | BZO23: 5 | BZP23: 5 | BZQ23: 5 | BZR23: 5 | BZS23: 5 | BZT23: 5 | BZU23: 5 | BZV23: 5 | BZW23: 5 | BZX23: 5 | BZY23: 5 | BZZ23: 5 | CAA23: 5 | CAB23: 5 | CAC23: 5 | CAD23: 5 | CAE23: 5 | CAF23: 5 | CAG23: 5 | CAH23: 5 | CAI23: 5 | CAJ23: 5 | CAK23: 5 | CAL23: 5 | CAM23: 5 | CAN23: 5 | CAO23: 5 | CAP23: 5 | CAQ23: 5 | CAR23: 5 | CAS23: 5 | CAT23: 5 | CAU23: 5 | CAV23: 5 | CAW23: 5 | CAX23: 5 | CAY23: 5 | CAZ23: 5 | CBA23: 5 | CBB23: 5 | CBC23: 5 | CBD23: 5 | CBE23: 5 | CBF23: 5 | CBG23: 5 | CBH23: 5 | CBI23: 5 | CBJ23: 5 | CBK23: 5 | CBL23: 5 | CBM23: 5 | CBN23: 5 | CBO23: 5 | CBP23: 5 | CBQ23: 5 | CBR23: 5 | CBS23: 5 | CBT23: 5 | CBU23: 5 | CBV23: 5 | CBW23: 5 | CBX23: 5 | CBY23: 5 | CBZ23: 5 | CCA23: 5 | CCB23: 5 | CCC23: 5 | CCD23: 5 | CCE23: 5 | CCF23: 5 | CCG23: 5 | CCH23: 5 | CCI23: 5 | CCJ23: 5 | CCK23: 5 | CCL23: 5 | CCM23: 5 | CCN23: 5 | CCO23: 5 | CCP23: 5 | CCQ23: 5 | CCR23: 5 | CCS23: 5 | CCT23: 5 | CCU23: 5 | CCV23: 5 | CCW23: 5 | CCX23: 5 | CCY23: 5 | CCZ23: 5 | CDA23: 5 | CDB23: 5 | CDC23: 5 | CDD23: 5 | CDE23: 5 | CDF23: 5 | CDG23: 5 | CDH23: 5 | CDI23: 5 | CDJ23: 5 | CDK23: 5 | CDL23: 5 | CDM23: 5 | CDN23: 5 | CDO23: 5 | CDP23: 5 | CDQ23: 5 | CDR23: 5 | CDS23: 5 | CDT23: 5 | CDU23: 5 | CDV23: 5 | CDW23: 5 | CDX23: 5 | CDY23: 5 | CDZ23: 5 | CEA23: 5 | CEB23: 5 | CEC23: 5 | CED23: 5 | CEE23: 5 | CEF23: 5 | CEG23: 5 | CEH23: 5 | CEI23: 5 | CEJ23: 5 | CEK23: 5 | CEL23: 5 | CEM23: 5 | CEN23: 5 | CEO23: 5 | CEP23: 5 | CEQ23: 5 | CER23: 5 | CES23: 5 | CET23: 5 | CEU23: 5 | CEV23: 5 | CEW23: 5 | CEX23: 5 | CEY23: 5 | CEZ23: 5 | CFA23: 5 | CFB23: 5 | CFC23: 5 | CFD23: 5 | CFE23: 5 | CFF23: 5 | CFG23: 5 | CFH23: 5 | CFI23: 5 | CFJ23: 5 | CFK23: 5 | CFL23: 5 | CFM23: 5 | CFN23: 5 | CFO23: 5 | CFP23: 5 | CFQ23: 5 | CFR23: 5 | CFS23: 5 | CFT23: 5 | CFU23: 5 | CFV23: 5 | CFW23: 5 | CFX23: 5 | CFY23: 5 | CFZ23: 5 | CGA23: 5 | CGB23: 5 | CGC23: 5 | CGD23: 5 | CGE23: 5 | CGF23: 5 | CGG23: 5 | CGH23: 5 | CGI23: 5 | CGJ23: 5 | CGK23: 5 | CGL23: 5 | CGM23: 5 | CGN23: 5 | CGO23: 5 | CGP23: 5 | CGQ23: 5 | CGR23: 5 | CGS23: 5 | CGT23: 5 | CGU23: 5 | CGV23: 5 | CGW23: 5 | CGX23: 5 | CGY23: 5 | CGZ23: 5 | CHA23: 5 | CHB23: 5 | CHC23: 5 | CHD23: 5 | CHE23: 5 | CHF23: 5 | CHG23: 5 | CHH23: 5 | CHI23: 5 | CHJ23: 5 | CHK23: 5 | CHL23: 5 | CHM23: 5 | CHN23: 5 | CHO23: 5 | CHP23: 5 | CHQ23: 5 | CHR23: 5 | CHS23: 5 | CHT23: 5 | CHU23: 5 | CHV23: 5 | CHW23: 5 | CHX23: 5 | CHY23: 5 | CHZ23: 5 | CIA23: 5 | CIB23: 5 | CIC23: 5 | CID23: 5 | CIE23: 5 | CIF23: 5 | CIG23: 5 | CIH23: 5 | CII23: 5 | CIJ23: 5 | CIK23: 5 | CIL23: 5 | CIM23: 5 | CIN23: 5 | CIO23: 5 | CIP23: 5 | CIQ23: 5 | CIR23: 5 | CIS23: 5 | CIT23: 5 | CIU23: 5 | CIV23: 5 | CIW23: 5 | CIX23: 5 | CIY23: 5 | CIZ23: 5 | CJA23: 5 | CJB23: 5 | CJC23: 5 | CJD23: 5 | CJE23: 5 | CJF23: 5 | CJG23: 5 | CJH23: 5 | CJI23: 5 | CJJ23: 5 | CJK23: 5 | CJL23: 5 | CJM23: 5 | CJN23: 5 | CJO23: 5 | CJP23: 5 | CJQ23: 5 | CJR23: 5 | CJS23: 5 | CJT23: 5 | CJU23: 5 | CJV23: 5 | CJW23: 5 | CJX23: 5 | CJY23: 5 | CJZ23: 5 | CKA23: 5 | CKB23: 5 | CKC23: 5 | CKD23: 5 | CKE23: 5 | CKF23: 5 | CKG23: 5 | CKH23: 5 | CKI23: 5 | CKJ23: 5 | CKK23: 5 | CKL23: 5 | CKM23: 5 | CKN23: 5 | CKO23: 5 | CKP23: 5 | CKQ23: 5 | CKR23: 5 | CKS23: 5 | CKT23: 5 | CKU23: 5 | CKV23: 5 | CKW23: 5 | CKX23: 5 | CKY23: 5 | CKZ23: 5 | CLA23: 5 | CLB23: 5 | CLC23: 5 | CLD23: 5 | CLE23: 5 | CLF23: 5 | CLG23: 5 | CLH23: 5 | CLI23: 5 | CLJ23: 5 | CLK23: 5 | CLL23: 5 | CLM23: 5 | CLN23: 5 | CLO23: 5 | CLP23: 5 | CLQ23: 5 | CLR23: 5 | CLS23: 5 | CLT23: 5 | CLU23: 5 | CLV23: 5 | CLW23: 5 | CLX23: 5 | CLY23: 5 | CLZ23: 5 | CMA23: 5 | CMB23: 5 | CMC23: 5 | CMD23: 5 | CME23: 5 | CMF23: 5 | CMG23: 5 | CMH23: 5 | CMI23: 5 | CMJ23: 5 | CMK23: 5 | CML23: 5 | CMM23: 5 | CMN23: 5 | CMO23: 5 | CMP23: 5 | CMQ23: 5 | CMR23: 5 | CMS23: 5 | CMT23: 5 | CMU23: 5 | CMV23: 5 | CMW23: 5 | CMX23: 5 | CMY23: 5 | CMZ23: 5 | CNA23: 5 | CNB23: 5 | CNC23: 5 | CND23: 5 | CNE23: 5 | CNF23: 5 | CNG23: 5 | CNH23: 5 | CNI23: 5 | CNJ23: 5 | CNK23: 5 | CNL23: 5 | CNM23: 5 | CNN23: 5 | CNO23: 5 | CNP23: 5 | CNQ23: 5 | CNR23: 5 | CNS23: 5 | CNT23: 5 | CNU23: 5 | CNV23: 5 | CNW23: 5 | CNX23: 5 | CNY23: 5 | CNZ23: 5 | COA23: 5 | COB23: 5 | COC23: 5 | COD23: 5 | COE23: 5 | COF23: 5 | COG23: 5 | COH23: 5 | COI23: 5 | COJ23: 5 | COK23: 5 | COL23: 5 | COM23: 5 | CON23: 5 | COO23: 5 | COP23: 5 | COQ23: 5 | COR23: 5 | COS23: 5 | COT23: 5 | COU23: 5 | COV23: 5 | COW23: 5 | COX23: 5 | COY23: 5 | COZ23: 5 | CPA23: 5 | CPB23: 5 | CPC23: 5 | CPD23: 5 | CPE23: 5 | CPF23: 5 | CPG23: 5 | CPH23: 5 | CPI23: 5 | CPJ23: 5 | CPK23: 5 | CPL23: 5 | CPM23: 5 | CPN23: 5 | CPO23: 5 | CPP23: 5 | CPQ23: 5 | CPR23: 5 | CPS23: 5 | CPT23: 5 | CPU23: 5 | CPV23: 5 | CPW23: 5 | CPX23: 5 | CPY23: 5 | CPZ23: 5 | CQA23: 5 | CQB23: 5 | CQC23: 5 | CQD23: 5 | CQE23: 5 | CQF23: 5 | CQG23: 5 | CQH23: 5 | CQI23: 5 | CQJ23: 5 | CQK23: 5 | CQL23: 5 | CQM23: 5 | CQN23: 5 | CQO23: 5 | CQP23: 5 | CQQ23: 5 | CQR23: 5 | CQS23: 5 | CQT23: 5 | CQU23: 5 | CQV23: 5 | CQW23: 5 | CQX23: 5 | CQY23: 5 | CQZ23: 5 | CRA23: 5 | CRB23: 5 | CRC23: 5 | CRD23: 5 | CRE23: 5 | CRF23: 5 | CRG23: 5 | CRH23: 5 | CRI23: 5 | CRJ23: 5 | CRK23: 5 | CRL23: 5 | CRM23: 5 | CRN23: 5 | CRO23: 5 | CRP23: 5 | CRQ23: 5 | CRR23: 5 | CRS23: 5 | CRT23: 5 | CRU23: 5 | CRV23: 5 | CRW23: 5 | CRX23: 5 | CRY23: 5 | CRZ23: 5 | CSA23: 5 | CSB23: 5 | CSC23: 5 | CSD23: 5 | CSE23: 5 | CSF23: 5 | CSG23: 5 | CSH23: 5 | CSI23: 5 | CSJ23: 5 | CSK23: 5 | CSL23: 5 | CSM23: 5 | CSN23: 5 | CSO23: 5 | CSP23: 5 | CSQ23: 5 | CSR23: 5 | CSS23: 5 | CST23: 5 | CSU23: 5 | CSV23: 5 | CSW23: 5 | CSX23: 5 | CSY23: 5 | CSZ23: 5 | CTA23: 5 | CTB23: 5 | CTC23: 5 | CTD23: 5 | CTE23: 5 | CTF23: 5 | CTG23: 5 | CTH23: 5 | CTI23: 5 | CTJ23: 5 | CTK23: 5 | CTL23: 5 | CTM23: 5 | CTN23: 5 | CTO23: 5 | CTP23: 5 | CTQ23: 5 | CTR23: 5 | CTS23: 5 | CTT23: 5 | CTU23: 5 | CTV23: 5 | CTW23: 5 | CTX23: 5 | CTY23: 5 | CTZ23: 5 | CUA23: 5 | CUB23: 5 | CUC23: 5 | CUD23: 5 | CUE23: 5 | CUF23: 5 | CUG23: 5 | CUH23: 5 | CUI23: 5 | CUJ23: 5 | CUK23: 5 | CUL23: 5 | CUM23: 5 | CUN23: 5 | CUO23: 5 | CUP23: 5 | CUQ23: 5 | CUR23: 5 | CUS23: 5 | CUT23: 5 | CUU23: 5 | CUV23: 5 | CUW23: 5 | CUX23: 5 | CUY23: 5 | CUZ23: 5 | CVA23: 5 | CVB23: 5 | CVC23: 5 | CVD23: 5 | CVE23: 5 | CVF23: 5 | CVG23: 5 | CVH23: 5 | CVI23: 5 | CVJ23: 5 | CVK23: 5 | CVL23: 5 | CVM23: 5 | CVN23: 5 | CVO23: 5 | CVP23: 5 | CVQ23: 5 | CVR23: 5 | CVS23: 5 | CVT23: 5 | CVU23: 5 | CVV23: 5 | CVW23: 5 | CVX23: 5 | CVY23: 5 | CVZ23: 5 | CWA23: 5 | CWB23: 5 | CWC23: 5 | CWD23: 5 | CWE23: 5 | CWF23: 5 | CWG23: 5 | CWH23: 5 | CWI23: 5 | CWJ23: 5 | CWK23: 5 | CWL23: 5 | CWM23: 5 | CWN23: 5 | CWO23: 5 | CWP23: 5 | CWQ23: 5 | CWR23: 5 | CWS23: 5 | CWT23: 5 | CWU23: 5 | CWV23: 5 | CWW23: 5 | CWX23: 5 | CWY23: 5 | CWZ23: 5 | CXA23: 5 | CXB23: 5 | CXC23: 5 | CXD23: 5 | CXE23: 5 | CXF23: 5 | CXG23: 5 | CXH23: 5 | CXI23: 5 | CXJ23: 5 | CXK23: 5 | CXL23: 5 | CXM23: 5 | CXN23: 5 | CXO23: 5 | CXP23: 5 | CXQ23: 5 | CXR23: 5 | CXS23: 5 | CXT23: 5 | CXU23: 5 | CXV23: 5 | CXW23: 5 | CXX23: 5 | CXY23: 5 | CXZ23: 5 | CYA23: 5 | CYB23: 5 | CYC23: 5 | CYD23: 5 | CYE23: 5 | CYF23: 5 | CYG23: 5 | CYH23: 5 | CYI23: 5 | CYJ23: 5 | CYK23: 5 | CYL23: 5 | CYM23: 5 | CYN23: 5 | CYO23: 5 | CYP23: 5 | CYQ23: 5 | CYR23: 5 | CYS23: 5 | CYT23: 5 | CYU23: 5 | CYV23: 5 | CYW23: 5 | CYX23: 5 | CYY23: 5 | CYZ23: 5 | CZA23: 5 | CZB23: 5 | CZC23: 5 | CZD23: 5 | CZE23: 5 | CZF23: 5 | CZG23: 5 | CZH23: 5 | CZI23: 5 | CZJ23: 5 | CZK23: 5 | CZL23: 5 | CZM23: 5 | CZN23: 5 | CZO23: 5 | CZP23: 5 | CZQ23: 5 | CZR23: 5 | CZS23: 5 | CZT23: 5 | CZU23: 5 | CZV23: 5 | CZW23: 5 | CZX23: 5 | CZY23: 5 | CZZ23: 5 | DAA23: 5 | DAB23: 5 | DAC23: 5 | DAD23: 5 | DAE23: 5 | DAF23: 5 | DAG23: 5 | DAH23: 5 | DAI23: 5 | DAJ23: 5 | DAK23: 5 | DAL23: 5 | DAM23: 5 | DAN23: 5 | DAO23: 5 | DAP23: 5 | DAQ23: 5 | DAR23: 5 | DAS23: 5 | DAT23: 5 | DAU23: 5 | DAV23: 5 | DAW23: 5 | DAX23: 5 | DAY23: 5 | DAZ23: 5 | DBA23: 5 | DBB23: 5 | DBC23: 5 | DBD23: 5 | DBE23: 5 | DBF23: 5 | DBG23: 5 | DBH23: 5 | DBI23: 5 | DBJ23: 5 | DBK23: 5 | DBL23: 5 | DBM23: 5 | DBN23: 5 | DBO23: 5 | DBP23: 5 | DBQ23: 5 | DBR23: 5 | DBS23: 5 | DBT23: 5 | DBU23: 5 | DBV23: 5 | DBW23: 5 | DBX23: 5 | DBY23: 5 | DBZ23: 5 | DCA23: 5 | DCB23: 5 | DCC23: 5 | DCD23: 5 | DCE23: 5 | DCF23: 5 | DCG23: 5 | DCH23: 5 | DCI23: 5 | DCJ23: 5 | DCK23: 5 | DCL23: 5 | DCM23: 5 | DCN23: 5 | DCO23: 5 | DCP23: 5 | DCQ23: 5 | DCR23: 5 | DCS23: 5 | DCT23: 5 | DCU23: 5 | DCV23: 5 | DCW23: 5 | DCX23: 5 | DCY23: 5 | DCZ23: 5 | DDA23: 5 | DDB23: 5 | DDC23: 5 | DDD23: 5 | DDE23: 5 | DDF23: 5 | DDG23: 5 | DDH23: 5 | DDI23: 5 | DDJ23: 5 | DDK23: 5 | DDL23: 5 | DDM23: 5 | DDN23: 5 | DDO23: 5 | DDP23: 5 | DDQ23: 5 | DDR23: 5 | DDS23: 5 | DDT23: 5 | DDU23: 5 | DDV23: 5 | DDW23: 5 | DDX23: 5 | DDY23: 5 | DDZ23: 5 | DEA23: 5 | DEB23: 5 | DEC23: 5 | DED23: 5 | DEE23: 5 | DEF23: 5 | DEG23: 5 | DEH23: 5 | DEI23: 5 | DEJ23: 5 | DEK23: 5 | DEL23: 5 | DEM23: 5 | DEN23: 5 | DEO23: 5 | DEP23: 5 | DEQ23: 5 | DER23: 5 | DES23: 5 | DET23: 5 | DEU23: 5 | DEV23: 5 | DEW23: 5 | DEX23: 5 | DEY23: 5 | DEZ23: 5 | DFA23: 5 | DFB23: 5 | DFC23: 5 | DFD23: 5 | DFE23: 5 | DFF23: 5 | DFG23: 5 | DFH23: 5 | DFI23: 5 | DFJ23: 5 | DFK23: 5 | DFL23: 5 | DFM23: 5 | DFN23: 5 | DFO23: 5 | DFP23: 5 | DFQ23: 5 | DFR23: 5 | DFS23: 5 | DFT23: 5 | DFU23: 5 | DFV23: 5 | DFW23: 5 | DFX23: 5 | DFY23: 5 | DFZ23: 5 | DGA23: 5 | DGB23: 5 | DGC23: 5 | DGD23: 5 | DGE23: 5 | DGF23: 5 | DGG23: 5 | DGH23: 5 | DGI23: 5 | DGJ23: 5 | DGK23: 5 | DGL23: 5 | DGM23: 5 | DGN23: 5 | DGO23: 5 | DGP23: 5 | DGQ23: 5 | DGR23: 5 | DGS23: 5 | DGT23: 5 | DGU23: 5 | DGV23: 5 | DGW23: 5 | DGX23: 5 | DGY23: 5 | DGZ23: 5 | DHA23: 5 | DHB23: 5 | DHC23: 5 | DHD23: 5 | DHE23: 5 | DHF23: 5 | DHG23: 5 | DHH23: 5 | DHI23: 5 | DHJ23: 5 | DHK23: 5 | DHL23: 5 | DHM23: 5 | DHN23: 5 | DHO23: 5 | DHP23: 5 | DHQ23: 5 | DHR23: 5 | DHS23: 5 | DHT23: 5 | DHU23: 5 | DHV23: 5 | DHW23: 5 | DHX23: 5 | DHY23: 5 | DHZ23: 5 | DIA23: 5 | DIB23: 5 | DIC23: 5 | DID23: 5 | DIE23: 5 | DIF23: 5 | DIG23: 5 | DIH23: 5 | DII23: 5 | DIJ23: 5 | DIK23: 5 | DIL23: 5 | DIM23: 5 | DIN23: 5 | DIO23: 5 | DIP23: 5 | DIQ23: 5 | DIR23: 5 | DIS23: 5 | DIT23: 5 | DIU23: 5 | DIV23: 5 | DIW23: 5 | DIX23: 5 | DIY23: 5 | DIZ23: 5 | DJA23: 5 | DJB23: 5 | DJC23: 5 | DJD23: 5 | DJE23: 5 | DJF23: 5 | DJG23: 5 | DJH23: 5 | DJI23: 5 | DJJ23: 5 | DJK23: 5 | DJL23: 5 | DJM23: 5 | DJN23: 5 | DJO23: 5 | DJP23: 5 | DJQ23: 5 | DJR23: 5 | DJS23: 5 | DJT23: 5 | DJU23: 5 | DJV23: 5 | DJW23: 5 | DJX23: 5 | DJY23: 5 | DJZ23: 5 | DKA23: 5 | DKB23: 5 | DKC23: 5 | DKD23: 5 | DKE23: 5 | DKF23: 5 | DKG23: 5 | DKH23: 5 | DKI23: 5 | DKJ23: 5 | DKK23: 5 | DKL23: 5 | DKM23: 5 | DKN23: 5 | DKO23: 5 | DKP23: 5 | DKQ23: 5 | DKR23: 5 | DKS23: 5 | DKT23: 5 | DKU23: 5 | DKV23: 5 | DKW23: 5 | DKX23: 5 | DKY23: 5 | DKZ23: 5 | DLA23: 5 | DLB23: 5 | DLC23: 5 | DLD23: 5 | DLE23: 5 | DLF23: 5 | DLG23: 5 | DLH23: 5 | DLI23: 5 | DLJ23: 5 | DLK23: 5 | DLL23: 5 | DLM23: 5 | DLN23: 5 | DLO23: 5 | DLP23: 5 | DLQ23: 5 | DLR23: 5 | DLS23: 5 | DLT23: 5 | DLU23: 5 | DLV23: 5 | DLW23: 5 | DLX23: 5 | DLY23: 5 | DLZ23: 5 | DMA23: 5 | DMB23: 5 | DMC23: 5 | DMD23: 5 | DME23: 5 | DMF23: 5 | DMG23: 5 | DMH23: 5 | DMI23: 5 | DMJ23: 5 | DMK23: 5 | DML23: 5 | DMM23: 5 | DMN23: 5 | DMO23: 5 | DMP23: 5 | DMQ23: 5 | DMR23: 5 | DMS23: 5 | DMT23: 5 | DMU23: 5 | DMV23: 5 | DMW23: 5 | DMX23: 5 | DMY23: 5 | DMZ23: 5 | DNA23: 5 | DNB23: 5 | DNC23: 5 | DND23: 5 | DNE23: 5 | DNF23: 5 | DNG23: 5 | DNH23: 5 | DNI23: 5 | DNJ23: 5 | DNK23: 5 | DNL23: 5 | DNM23: 5 | DNN23: 5 | DNO23: 5 | DNP23: 5 | DNQ23: 5 | DNR23: 5 | DNS23: 5 | DNT23: 5 | DNU23: 5 | DNV23: 5 | DNW23: 5 | DNX23: 5 | DNY23: 5 | DNZ23: 5 | DOA23: 5 | DOB23: 5 | DOC23: 5 | DOD23: 5 | DOE23: 5 | DOF23: 5 | DOG23: 5 | DOH23: 5 | DOI23: 5 | DOJ23: 5 | DOK23: 5 | DOL23: 5 | DOM23: 5 | DON23: 5 | DOO23: 5 | DOP23: 5 | DOQ23: 5 | DOR23: 5 | DOS23: 5 | DOT23: 5 | DOU23: 5 | DOV23: 5 | DOW23: 5 | DOX23: 5 | DOY23: 5 | DOZ23: 5 | DPA23: 5 | DPB23: 5 | DPC23: 5 | DPD23: 5 | DPE23: 5 | DPF23: 5 | DPG23: 5 | DPH23: 5 | DPI23: 5 | DPJ23: 5 | DPK23: 5 | DPL23: 5 | DPM23: 5 | DPN23: 5 | DPO23: 5 | DPP23: 5 | DPQ23: 5 | DPR23: 5 | DPS23: 5 | DPT23: 5 | DPU23: 5 | DPV23: 5 | DPW23: 5 | DPX23: 5 | DPY23: 5 | DPZ23: 5 | DQA23: 5 | DQB23: 5 | DQC23: 5 | DQD23: 5 | DQE23: 5 | DQF23: 5 | DQG23: 5 | DQH23: 5 | DQI23: 5 | DQJ23: 5 | DQK23: 5 | DQL23: 5 | DQM23: 5 | DQN23: 5 | DQO23: 5 | DQP23: 5 | DQQ23: 5 | DQR23: 5 | DQS23: 5 | DQT23: 5 | DQU23: 5 | DQV23: 5 | DQW23: 5 | DQX23: 5 | DQY23: 5 | DQZ23: 5 | DRA23: 5 | DRB23: 5 | DRC23: 5 | DRD23: 5 | DRE23: 5 | DRF23: 5 | DRG23: 5 | DRH23: 5 | DRI23: 5 | DRJ23: 5 | DRK23: 5 | DRL23: 5 | DRM23: 5 | DRN23: 5 | DRO23: 5 | DRP23: 5 | DRQ23: 5 | DRR23: 5 | DRS23: 5 | DRT23: 5 | DRU23: 5 | DRV23: 5 | DRW23: 5 | DRX23: 5 | DRY23: 5 | DRZ23: 5 | DSA23: 5 | DSB23: 5 | DSC23: 5 | DSD23: 5 | DSE23: 5 | DSF23: 5 | DSG23: 5 | DSH23: 5 | DSI23: 5 | DSJ23: 5 | DSK23: 5 | DSL23: 5 | DSM23: 5 | DSN23: 5 | DSO23: 5 | DSP23: 5 | DSQ23: 5 | DSR23: 5 | DSS23: 5 | DST23: 5 | DSU23: 5 | DSV23: 5 | DSW23: 5 | DSX23: 5 | DSY23: 5 | DSZ23: 5 | DTA23: 5 | DTB23: 5 | DTC23: 5 | DTD23: 5 | DTE23: 5 | DTF23: 5 | DTG23: 5 | DTH23: 5 | DTI23: 5 | DTJ23: 5 | DTK23: 5 | DTL23: 5 | DTM23: 5 | DTN23: 5 | DTO23: 5 | DTP23: 5 | DTQ23: 5 | DTR23: 5 | DTS23: 5 | DTT23: 5 | DTU23: 5 | DTV23: 5 | DTW23: 5 | DTX23: 5 | DTY23: 5 | DTZ23: 5 | DUA23: 5 | DUB23: 5 | DUC23: 5 | DUD23: 5 | DUE23: 5 | DUF23: 5 | DUG23: 5 | DUH23: 5 | DUI23: 5 | DUJ23: 5 | DUK23: 5 | DUL23: 5 | DUM23: 5 | DUN23: 5 | DUO23: 5 | DUP23: 5 | DUQ23: 5 | DUR23: 5 | DUS23: 5 | DUT23: 5 | DUU23: 5 | DUV23: 5 | DUW23: 5 | DUX23: 5 | DUY23: 5 | DUZ23: 5 | DVA23: 5 | DVB23: 5 | DVC23: 5 | DVD23: 5 | DVE23: 5 | DVF23: 5 | DVG23: 5 | DVH23: 5 | DVI23: 5 | DVJ23: 5 | DVK23: 5 | DVL23: 5 | DVM23: 5 | DVN23: 5 | DVO23: 5 | DVP23: 5 | DVQ23: 5 | DVR23: 5 | DVS23: 5 | DVT23: 5 | DVU23: 5 | DVV23: 5 | DVW23: 5 | DVX23: 5 | DVY23: 5 | DVZ23: 5 | DWA23: 5 | DWB23: 5 | DWC23: 5 | DWD23: 5 | DWE23: 5 | DWF23: 5 | DWG23: 5 | DWH23: 5 | DWI23: 5 | DWJ23: 5 | DWK23: 5 | DWL23: 5 | DWM23: 5 | DWN23: 5 | DWO23: 5 | DWP23: 5 | DWQ23: 5 | DWR23: 5 | DWS23: 5 | DWT23: 5 | DWU23: 5 | DWV23: 5 | DWW23: 5 | DWX23: 5 | DWY23: 5 | DWZ23: 5 | DXA23: 5 | DXB23: 5 | DXC23: 5 | DXD23: 5 | DXE23: 5 | DXF23: 5 | DXG23: 5 | DXH23: 5 | DXI23: 5 | DXJ23: 5 | DXK23: 5 | DXL23: 5 | DXM23: 5 | DXN23: 5 | DXO23: 5 | DXP23: 5 | DXQ23: 5 | DXR23: 5 | DXS23: 5 | DXT23: 5 | DXU23: 5 | DXV23: 5 | DXW23: 5 | DXX23: 5 | DXY23: 5 | DXZ23: 5 | DYA23: 5 | DYB23: 5 | DYC23: 5 | DYD23: 5 | DYE23: 5 | DYF23: 5 | DYG23: 5 | DYH23: 5 | DYI23: 5 | DYJ23: 5 | DYK23: 5 | DYL23: 5 | DYM23: 5 | DYN23: 5 | DYO23: 5 | DYP23: 5 | DYQ23: 5 | DYR23: 5 | DYS23: 5 | DYT23: 5 | DYU23: 5 | DYV23: 5 | DYW23: 5 | DYX23: 5 | DYY23: 5 | DYZ23: 5 | DZA23: 5 | DZB23: 5 | DZC23: 5 | DZD23: 5 | DZE23: 5 | DZF23: 5 | DZG23: 5 | DZH23: 5 | DZI23: 5 | DZJ23: 5 | DZK23: 5 | DZL23: 5 | DZM23: 5 | DZN23: 5 | DZO23: 5 | DZP23: 5 | DZQ23: 5 | DZR23: 5 | DZS23: 5 | DZT23: 5 | DZU23: 5 | DZV23: 5 | DZW23: 5 | DZX23: 5 | DZY23: 5 | DZZ23: 5 | EAA23: 5 | EAB23: 5 | EAC23: 5 | EAD23: 5 | EAE23: 5 | EAF23: 5 | EAG23: 5 | EAH23: 5 | EAI23: 5 | EAJ23: 5 | EAK23: 5 | EAL23: 5 | EAM23: 5 | EAN23: 5 | EAO23: 5 | EAP23: 5 | EAQ23: 5 | EAR23: 5 | EAS23: 5 | EAT23: 5 | EAU23: 5 | EAV23: 5 | EAW23: 5 | EAX23: 5 | EAY23: 5 | EAZ23: 5 | EBA23: 5 | EBB23: 5 | EBC23: 5 | EBD23: 5 | EBE23: 5 | EBF23: 5 | EBG23: 5 | EBH23: 5 | EBI23: 5 | EBJ23: 5 | EBK23: 5 | EBL23: 5 | EBM23: 5 | EBN23: 5 | EBO23: 5 | EBP23: 5 | EBQ23: 5 | EBR23: 5 | EBS23: 5 | EBT23: 5 | EBU23: 5 | EBV23: 5 | EBW23: 5 | EBX23: 5 | EBY23: 5 | EBZ23: 5 | ECA23: 5 | ECB23: 5 | ECC23: 5 | ECD23: 5 | ECE23: 5 | ECF23: 5 | ECG23: 5 | ECH23: 5 | ECI23: 5 | ECJ23: 5 | ECK23: 5 | ECL23: 5 | ECM23: 5 | ECN23: 5 | ECO23: 5 | ECP23: 5 | ECQ23: 5 | ECR23: 5 | ECS23: 5 | ECT23: 5 | ECU23: 5 | ECV23: 5 | ECW23: 5 | ECX23: 5 | ECY23: 5 | ECZ23: 5 | EDA23: 5 | EDB23: 5 | EDC23: 5 | EDD23: 5 | EDE23: 5 | EDF23: 5 | EDG23: 5 | EDH23: 5 | EDI23: 5 | EDJ23: 5 | EDK23: 5 | EDL23: 5 | EDM23: 5 | EDN23: 5 | EDO23: 5 | EDP23: 5 | EDQ23: 5 | EDR23: 5 | EDS23: 5 | EDT23: 5 | EDU23: 5 | EDV23: 5 | EDW23: 5 | EDX23: 5 | EDY23: 5 | EDZ23: 5 | EEA23: 5 | EEB23: 5 | EEC23: 5 | EED23: 5 | EEE23: 5 | EEF23: 5 | EEG23: 5 | EEH23: 5 | EEI23: 5 | EEJ23: 5 | EEK23: 5 | EEL23: 5 | EEM23: 5 | EEN23: 5 | EEO23: 5 | EEP23: 5 | EEQ23: 5 | EER23: 5 | EES23: 5 | EET23: 5 | EEU23: 5 | EEV23: 5 | EEW23: 5 | EEX23: 5 | EEY23: 5 | EEZ23: 5 | EFA23: 5 | EFB23: 5 | EFC23: 5 | EFD23: 5 | EFE23: 5 | EFF23: 5 | EFG23: 5 | EFH23: 5 | EFI23: 5 | EFJ23: 5 | EFK23: 5 | EFL23: 5 | EFM23: 5 | EFN23: 5 | EFO23: 5 | EFP23: 5 | EFQ23: 5 | EFR23: 5 | EFS23: 5 | EFT23: 5 | EFU23: 5 | EFV23: 5 | EFW23: 5 | EFX23: 5 | EFY23: 5 | EFZ23: 5 | EGA23: 5 | EGB23: 5 | EGC23: 5 | EGD23: 5 | EGE23: 5 | EGF23: 5 | EGG23: 5 | EGH23: 5 | EGI23: 5 | EGJ23: 5 | EGK23: 5 | EGL23: 5 | EGM23: 5 | EGN23: 5 | EGO23: 5 | EGP23: 5 | EGQ23: 5 | EGR23: 5 | EGS23: 5 | EGT23: 5 | EGU23: 5 | EGV23: 5 | EGW23: 5 | EGX23: 5 | EGY23: 5 | EGZ23: 5 | EHA23: 5 | EHB23: 5 | EHC23: 5 | EHD23: 5 | EHE23: 5 | EHF23: 5 | EHG23: 5 | EHH23: 5 | EHI23: 5 | EHJ23: 5 | EHK23: 5 | EHL23: 5 | EHM23: 5 | EHN23: 5 | EHO23: 5 | EHP23: 5 | EHQ23: 5 | EHR23: 5 | EHS23: 5 | EHT23: 5 | EHU23: 5 | EHV23: 5 | EHW23: 5 | EHX23: 5 | EHY23: 5 | EHZ23: 5 | EIA23: 5 | EIB23: 5 | EIC23: 5 | EID23: 5 | EIE23: 5 | EIF23: 5 | EIG23: 5 | EIH23: 5 | EII23: 5 | EIJ23: 5 | EIK23: 5 | EIL23: 5 | EIM23: 5 | EIN23: 5 | EIO23: 5 | EIP23: 5 | EIQ23: 5 | EIR23: 5 | EIS23: 5 | EIT23: 5 | EIU23: 5 | EIV23: 5 | EIW23: 5 | EIX23: 5 | EIY23: 5 | EIZ23: 5 | EJA23: 5 | EJB23: 5 | EJC23: 5 | EJD23: 5 | EJE23: 5 | EJF23: 5 | EJG23: 5 | EJH23: 5 | EJI23: 5 | EJJ23: 5 | EJK23: 5 | EJL23: 5 | EJM23: 5 | EJN23: 5 | EJO23: 5 | EJP23: 5 | EJQ23: 5 | EJR23: 5 | EJS23: 5 | EJT23: 5 | EJU23: 5 | EJV23: 5 | EJW23: 5 | EJX23: 5 | EJY23: 5 | EJZ23: 5 | EKA23: 5 | EKB23: 5 | EKC23: 5 | EKD23: 5 | EKE23: 5 | EKF23: 5 | EKG23: 5 | EKH23: 5 | EKI23: 5 | EKJ23: 5 | EKK23: 5 | EKL23: 5 | EKM23: 5 | EKN23: 5 | EKO23: 5 | EKP23: 5 | EKQ23: 5 | EKR23: 5 | EKS23: 5 | EKT23: 5 | EKU23: 5 | EKV23: 5 | EKW23: 5 | EKX23: 5 | EKY23: 5 | EKZ23: 5 | ELA23: 5 | ELB23: 5 | ELC23: 5 | ELD23: 5 | ELE23: 5 | ELF23: 5 | ELG23: 5 | ELH23: 5 | ELI23: 5 | ELJ23: 5 | ELK23: 5 | ELL23: 5 | ELM23: 5 | ELN23: 5 | ELO23: 5 | ELP23: 5 | ELQ23: 5 | ELR23: 5 | ELS23: 5 | ELT23: 5 | ELU23: 5 | ELV23: 5 | ELW23: 5 | ELX23: 5 | ELY23: 5 | ELZ23: 5 | EMA23: 5 | EMB23: 5 | EMC23: 5 | EMD23: 5 | EME23: 5 | EMF23: 5 | EMG23: 5 | EMH23: 5 | EMI23: 5 | EMJ23: 5 | EMK23: 5 | EML23: 5 | EMM23: 5 | EMN23: 5 | EMO23: 5 | EMP23: 5 | EMQ23: 5 | EMR23: 5 | EMS23: 5 | EMT23: 5 | EMU23: 5 | EMV23: 5 | EMW23: 5 | EMX23: 5 | EMY23: 5 | EMZ23: 5 | ENA23: 5 | ENB23: 5 | ENC23: 5 | END23: 5 | ENE23: 5 | ENF23: 5 | ENG23: 5 | ENH23: 5 | ENI23: 5 | ENJ23: 5 | ENK23: 5 | ENL23: 5 | ENM23: 5 | ENN23: 5 | ENO23: 5 | ENP23: 5 | ENQ23: 5 | ENR23: 5 | ENS23: 5 | ENT23: 5 | ENU23: 5 | ENV23: 5 | ENW23: 5 | ENX23: 5 | ENY23: 5 | ENZ23: 5 | EOA23: 5 | EOB23: 5 | EOC23: 5 | EOD23: 5 | EOE23: 5 | EOF23: 5 | EOG23: 5 | EOH23: 5 | EOI23: 5 | EOJ23: 5 | EOK23: 5 | EOL23: 5 | EOM23: 5 | EON23: 5 | EOO23: 5 | EOP23: 5 | EOQ23: 5 | EOR23: 5 | EOS23: 5 | EOT23: 5 | EOU23: 5 | EOV23: 5 | EOW23: 5 | EOX23: 5 | EOY23: 5 | EOZ23: 5 | EPA23: 5 | EPB23: 5 | EPC23: 5 | EPD23: 5 | EPE23: 5 | EPF23: 5 | EPG23: 5 | EPH23: 5 | EPI23: 5 | EPJ23: 5 | EPK23: 5 | EPL23: 5 | EPM23: 5 | EPN23: 5 | EPO23: 5 | EPP23: 5 | EPQ23: 5 | EPR23: 5 | EPS23: 5 | EPT23: 5 | EPU23: 5 | EPV23: 5 | EPW23: 5 | EPX23: 5 | EPY23: 5 | EPZ23: 5 | EQA23: 5 | EQB23: 5 | EQC23: 5 | EQD23: 5 | EQE23: 5 | EQF23: 5 | EQG23: 5 | EQH23: 5 | EQI23: 5 | EQJ23: 5 | EQK23: 5 | EQL23: 5 | EQM23: 5 | EQN23: 5 | EQO23: 5 | EQP23: 5 | EQQ23: 5 | EQR23: 5 | EQS23: 5 | EQT23: 5 | EQU23: 5 | EQV23: 5 | EQW23: 5 | EQX23: 5 | EQY23: 5 | EQZ23: 5 | ERA23: 5 | ERB23: 5 | ERC23: 5 | ERD23: 5 | ERE23: 5 | ERF23: 5 | ERG23: 5 | ERH23: 5 | ERI23: 5 | ERJ23: 5 | ERK23: 5 | ERL23: 5 | ERM23: 5 | ERN23: 5 | ERO23: 5 | ERP23: 5 | ERQ23: 5 | ERR23: 5 | ERS23: 5 | ERT23: 5 | ERU23: 5 | ERV23: 5 | ERW23: 5 | ERX23: 5 | ERY23: 5 | ERZ23: 5 | ESA23: 5 | ESB23: 5 | ESC23: 5 | ESD23: 5 | ESE23: 5 | ESF23: 5 | ESG23: 5 | ESH23: 5 | ESI23: 5 | ESJ23: 5 | ESK23: 5 | ESL23: 5 | ESM23: 5 | ESN23: 5 | ESO23: 5 | ESP23: 5 | ESQ23: 5 | ESR23: 5 | ESS23: 5 | EST23: 5 | ESU23: 5 | ESV23: 5 | ESW23: 5 | ESX23: 5 | ESY23: 5 | ESZ23: 5 | ETA23: 5 | ETB23: 5 | ETC23: 5 | ETD23: 5 | ETE23: 5 | ETF23: 5 | ETG23: 5 | ETH23: 5 | ETI23: 5 | ETJ23: 5 | ETK23: 5 | ETL23: 5 | ETM23: 5 | ETN23: 5 | ETO23: 5 | ETP23: 5 | ETQ23: 5 | ETR23: 5 | ETS23: 5 | ETT23: 5 | ETU23: 5 | ETV23: 5 | ETW23: 5 | ETX23: 5 | ETY23: 5 | ETZ23: 5 | EUA23: 5 | EUB23: 5 | EUC23: 5 | EUD23: 5 | EUE23: 5 | EUF23: 5 | EUG23: 5 | EUH23: 5 | EUI23: 5 | EUJ23: 5 | EUK23: 5 | EUL23: 5 | EUM23: 5 | EUN23: 5 | EUO23: 5 | EUP23: 5 | EUQ23: 5 | EUR23: 5 | EUS23: 5 | EUT23: 5 | EUU23: 5 | EUV23: 5 | EUW23: 5 | EUX23: 5 | EUY23: 5 | EUZ23: 5 | EVA23: 5 | EVB23: 5 | EVC23: 5 | EVD23: 5 | EVE23: 5 | EVF23: 5 | EVG23: 5 | EVH23: 5 | EVI23: 5 | EVJ23: 5 | EVK23: 5 | EVL23: 5 | EVM23: 5 | EVN23: 5 | EVO23: 5 | EVP23: 5 | EVQ23: 5 | EVR23: 5 | EVS23: 5 | EVT23: 5 | EVU23: 5 | EVV23: 5 | EVW23: 5 | EVX23: 5 | EVY23: 5 | EVZ23: 5 | EWA23: 5 | EWB23: 5 | EWC23: 5 | EWD23: 5 | EWE23: 5 | EWF23: 5 | EWG23: 5 | EWH23: 5 | EWI23: 5 | EWJ23: 5 | EWK23: 5 | EWL23: 5 | EWM23: 5 | EWN23: 5 | EWO23: 5 | EWP23: 5 | EWQ23: 5 | EWR23: 5 | EWS23: 5 | EWT23: 5 | EWU23: 5 | EWV23: 5 | EWW23: 5 | EWX23: 5 | EWY23: 5 | EWZ23: 5 | EXA23: 5 | EXB23: 5 | EXC23: 5 | EXD23: 5 | EXE23: 5 | EXF23: 5 | EXG23: 5 | EXH23: 5 | EXI23: 5 | EXJ23: 5 | EXK23: 5 | EXL23: 5 | EXM23: 5 | EXN23: 5 | EXO23: 5 | EXP23: 5 | EXQ23: 5 | EXR23: 5 | EXS23: 5 | EXT23: 5 | EXU23: 5 | EXV23: 5 | EXW23: 5 | EXX23: 5 | EXY23: 5 | EXZ23: 5 | EYA23: 5 | EYB23: 5 | EYC23: 5 | EYD23: 5 | EYE23: 5 | EYF23: 5 | EYG23: 5 | EYH23: 5 | EYI23: 5 | EYJ23: 5 | EYK23: 5 | EYL23: 5 | EYM23: 5 | EYN23: 5 | EYO23: 5 | EYP23: 5 | EYQ23: 5 | EYR23: 5 | EYS23: 5 | EYT23: 5 | EYU23: 5 | EYV23: 5 | EYW23: 5 | EYX23: 5 | EYY23: 5 | EYZ23: 5 | EZA23: 5 | EZB23: 5 | EZC23: 5 | EZD23: 5 | EZE23: 5 | EZF23: 5 | EZG23: 5 | EZH23: 5 | EZI23: 5 | EZJ23: 5 | EZK23: 5 | EZL23: 5 | EZM23: 5 | EZN23: 5 | EZO23: 5 | EZP23: 5 | EZQ23: 5 | EZR23: 5 | EZS23: 5 | EZT23: 5 | EZU23: 5 | EZV23: 5 | EZW23: 5 | EZX23: 5 | EZY23: 5 | EZZ23: 5 | FAA23: 5 | FAB23: 5 | FAC23: 5 | FAD23: 5 | FAE23: 5 | FAF23: 5 | FAG23: 5 | FAH23: 5 | FAI23: 5 | FAJ23: 5 | FAK23: 5 | FAL23: 5 | FAM23: 5 | FAN23: 5 | FAO23: 5 | FAP23: 5 | FAQ23: 5 | FAR23: 5 | FAS23: 5 | FAT23: 5 | FAU23: 5 | FAV23: 5 | FAW23: 5 | FAX23: 5 | FAY23: 5 | FAZ23: 5 | FBA23: 5 | FBB23: 5 | FBC23: 5 | FBD23: 5 | FBE23: 5 | FBF23: 5 | FBG23: 5 | FBH23: 5 | FBI23: 5 | FBJ23: 5 | FBK23: 5 | FBL23: 5 | FBM23: 5 | FBN23: 5 | FBO23: 5 | FBP23: 5 | FBQ23: 5 | FBR23: 5 | FBS23: 5 | FBT23: 5 | FBU23: 5 | FBV23: 5 | FBW23: 5 | FBX23: 5 | FBY23: 5 | FBZ23: 5 | FCA23: 5 | FCB23: 5 | FCC23: 5 | FCD23: 5 | FCE23: 5 | FCF23: 5 | FCG23: 5 | FCH23: 5 | FCI23: 5 | FCJ23: 5 | FCK23: 5 | FCL23: 5 | FCM23: 5 | FCN23: 5 | FCO23: 5 | FCP23: 5 | FCQ23: 5 | FCR23: 5 | FCS23: 5 | FCT23: 5 | FCU23: 5 | FCV23: 5 | FCW23: 5 | FCX23: 5 | FCY23: 5 | FCZ23: 5 | FDA23: 5 | FDB23: 5 | FDC23: 5 | FDD23: 5 | FDE23: 5 | FDF23: 5 | FDG23: 5 | FDH23: 5 | FDI23: 5 | FDJ23: 5 | FDK23: 5 | FDL23: 5 | FDM23: 5 | FDN23: 5 | FDO23: 5 | FDP23: 5 | FDQ23: 5 | FDR23: 5 | FDS23: 5 | FDT23: 5 | FDU23: 5 | FDV23: 5 | FDW23: 5 | FDX23: 5 | FDY23: 5 | FDZ23: 5 | FEA23: 5 | FEB23: 5 | FEC23: 5 | FED23: 5 | FEE23: 5 | FEF23: 5 | FEG23: 5 | FEH23: 5 | FEI23: 5 | FEJ23: 5 | FEK23: 5 | FEL23: 5 | FEM23: 5 | FEN23: 5 | FEO23: 5 | FEP23: 5 | FEQ23: 5 | FER23: 5 | FES23: 5 | FET23: 5 | FEU23: 5 | FEV23: 5 | FEW23: 5 | FEX23: 5 | FEY23: 5 | FEZ23: 5 | FFA23: 5 | FFB23: 5 | FFC23: 5 | FFD23: 5 | FFE23: 5 | FFF23: 5 | FFG23: 5 | FFH23: 5 | FFI23: 5 | FFJ23: 5 | FFK23: 5 | FFL23: 5 | FFM23: 5 | FFN23: 5 | FFO23: 5 | FFP23: 5 | FFQ23: 5 | FFR23: 5 | FFS23: 5 | FFT23: 5 | FFU23: 5 | FFV23: 5 | FFW23: 5 | FFX23: 5 | FFY23: 5 | FFZ23: 5 | FGA23: 5 | FGB23: 5 | FGC23: 5 | FGD23: 5 | FGE23: 5 | FGF23: 5 | FGG23: 5 | FGH23: 5 | FGI23: 5 | FGJ23: 5 | FGK23: 5 | FGL23: 5 | FGM23: 5 | FGN23: 5 | FGO23: 5 | FGP23: 5 | FGQ23: 5 | FGR23: 5 | FGS23: 5 | FGT23: 5 | FGU23: 5 | FGV23: 5 | FGW23: 5 | FGX23: 5 | FGY23: 5 | FGZ23: 5 | FHA23: 5 | FHB23: 5 | FHC23: 5 | FHD23: 5 | FHE23: 5 | FHF23: 5 | FHG23: 5 | FHH23: 5 | FHI23: 5 | FHJ23: 5 | FHK23: 5 | FHL23: 5 | FHM23: 5 | FHN23: 5 | FHO23: 5 | FHP23: 5 | FHQ23: 5 | FHR23: 5 | FHS23: 5 | FHT23: 5 | FHU23: 5 | FHV23: 5 | FHW23: 5 | FHX23: 5 | FHY23: 5 | FHZ23: 5 | FIA23: 5 | FIB23: 5 | FIC23: 5 | FID23: 5 | FIE23: 5 | FIF23: 5 | FIG23: 5 | FIH23: 5 | FII23: 5 | FIJ23: 5 | FIK23: 5 | FIL23: 5 | FIM23: 5 | FIN23: 5 | FIO23: 5 | FIP23: 5 | FIQ23: 5 | FIR23: 5 | FIS23: 5 | FIT23: 5 | FIU23: 5 | FIV23: 5 | FIW23: 5 | FIX23: 5 | FIY23: 5 | FIZ23: 5 | FJA23: 5 | FJB23: 5 | FJC23: 5 | FJD23: 5 | FJE23: 5 | FJF23: 5 | FJG23: 5 | FJH23: 5 | FJI23: 5 | FJJ23: 5 | FJK23: 5 | FJL23: 5 | FJM23: 5 | FJN23: 5 | FJO23: 5 | FJP23: 5 | FJQ23: 5 | FJR23: 5 | FJS23: 5 | FJT23: 5 | FJU23: 5 | FJV23: 5 | FJW23: 5 | FJX23: 5 | FJY23: 5 | FJZ23: 5 | FKA23: 5 | FKB23: 5 | FKC23: 5 | FKD23: 5 | FKE23: 5 | FKF23: 5 | FKG23: 5 | FKH23: 5 | FKI23: 5 | FKJ23: 5 | FKK23: 5 | FKL23: 5 | FKM23: 5 | FKN23: 5 | FKO23: 5 | FKP23: 5 | FKQ23: 5 | FKR23: 5 | FKS23: 5 | FKT23: 5 | FKU23: 5 | FKV23: 5 | FKW23: 5 | FKX23: 5 | FKY23: 5 | FKZ23: 5 | FLA23: 5 | FLB23: 5 | FLC23: 5 | FLD23: 5 | FLE23: 5 | FLF23: 5 | FLG23: 5 | FLH23: 5 | FLI23: 5 | FLJ23: 5 | FLK23: 5 | FLL23: 5 | FLM23: 5 | FLN23: 5 | FLO23: 5 | FLP23: 5 | FLQ23: 5 | FLR23: 5 | FLS23: 5 | FLT23: 5 | FLU23: 5 | FLV23: 5 | FLW23: 5 | FLX23: 5 | FLY23: 5 | FLZ23: 5 | FMA23: 5 | FMB23: 5 | FMC23: 5 | FMD23: 5 | FME23: 5 | FMF23: 5 | FMG23: 5 | FMH23: 5 | FMI23: 5 | FMJ23: 5 | FMK23: 5 | FML23: 5 | FMM23: 5 | FMN23: 5 | FMO23: 5 | FMP23: 5 | FMQ23: 5 | FMR23: 5 | FMS23: 5 | FMT23: 5 | FMU23: 5 | FMV23: 5 | FMW23: 5 | FMX23: 5 | FMY23: 5 | FMZ23: 5 | FNA23: 5 | FNB23: 5 | FNC23: 5 | FND23: 5 | FNE23: 5 | FNF23: 5 | FNG23: 5 | FNH23: 5 | FNI23: 5 | FNJ23: 5 | FNK23: 5 | FNL23: 5 | FNM23: 5 | FNN23: 5 | FNO23: 5 | FNP23: 5 | FNQ23: 5 | FNR23: 5 | FNS23: 5 | FNT23: 5 | FNU23: 5 | FNV23: 5 | FNW23: 5 | FNX23: 5 | FNY23: 5 | FNZ23: 5 | FOA23: 5 | FOB23: 5 | FOC23: 5 | FOD23: 5 | FOE23: 5 | FOF23: 5 | FOG23: 5 | FOH23: 5 | FOI23: 5 | FOJ23: 5 | FOK23: 5 | FOL23: 5 | FOM23: 5 | FON23: 5 | FOO23: 5 | FOP23: 5 | FOQ23: 5 | FOR23: 5 | FOS23: 5 | FOT23: 5 | FOU23: 5 | FOV23: 5 | FOW23: 5 | FOX23: 5 | FOY23: 5 | FOZ23: 5 | FPA23: 5 | FPB23: 5 | FPC23: 5 | FPD23: 5 | FPE23: 5 | FPF23: 5 | FPG23: 5 | FPH23: 5 | FPI23: 5 | FPJ23: 5 | FPK23: 5 | FPL23: 5 | FPM23: 5 | FPN23: 5 | FPO23: 5 | FPP23: 5 | FPQ23: 5 | FPR23: 5 | FPS23: 5 | FPT23: 5 | FPU23: 5 | FPV23: 5 | FPW23: 5 | FPX23: 5 | FPY23: 5 | FPZ23: 5 | FQA23: 5 | FQB23: 5 | FQC23: 5 | FQD23: 5 | FQE23: 5 | FQF23: 5 | FQG23: 5 | FQH23: 5 | FQI23: 5 | FQJ23: 5 | FQK23: 5 | FQL23: 5 | FQM23: 5 | FQN23: 5 | FQO23: 5 | FQP23: 5 | FQQ23: 5 | FQR23: 5 | FQS23: 5 | FQT23: 5 | FQU23: 5 | FQV23: 5 | FQW23: 5 | FQX23: 5 | FQY23: 5 | FQZ23: 5 | FRA23: 5 | FRB23: 5 | FRC23: 5 | FRD23: 5 | FRE23: 5 | FRF23: 5 | FRG23: 5 | FRH23: 5 | FRI23: 5 | FRJ23: 5 | FRK23: 5 | FRL23: 5 | FRM23: 5 | FRN23: 5 | FRO23: 5 | FRP23: 5 | FRQ23: 5 | FRR23: 5 | FRS23: 5 | FRT23: 5 | FRU23: 5 | FRV23: 5 | FRW23: 5 | FRX23: 5 | FRY23: 5 | FRZ23: 5 | FSA23: 5 | FSB23: 5 | FSC23: 5 | FSD23: 5 | FSE23: 5 | FSF23: 5 | FSG23: 5 | FSH23: 5 | FSI23: 5 | FSJ23: 5 | FSK23: 5 | FSL23: 5 | FSM23: 5 | FSN23: 5 | FSO23: 5 | FSP23: 5 | FSQ23: 5 | FSR23: 5 | FSS23: 5 | FST23: 5 | FSU23: 5 | FSV23: 5 | FSW23: 5 | FSX23: 5 | FSY23: 5 | FSZ23: 5 | FTA23: 5 | FTB23: 5 | FTC23: 5 | FTD23: 5 | FTE23: 5 | FTF23: 5 | FTG23: 5 | FTH23: 5 | FTI23: 5 | FTJ23: 5 | FTK23: 5 | FTL23: 5 | FTM23: 5 | FTN23: 5 | FTO23: 5 | FTP23: 5 | FTQ23: 5 | FTR23: 5 | FTS23: 5 | FTT23: 5 | FTU23: 5 | FTV23: 5 | FTW23: 5 | FTX23: 5 | FTY23: 5 | FTZ23: 5 | FUA23: 5 | FUB23: 5 | FUC23: 5 | FUD23: 5 | FUE23: 5 | FUF23: 5 | FUG23: 5 | FUH23: 5 | FUI23: 5 | FUJ23: 5 | FUK23: 5 | FUL23: 5 | FUM23: 5 | FUN23: 5 | FUO23: 5 | FUP23: 5 | FUQ23: 5 | FUR23: 5 | FUS23: 5 | FUT23: 5 | FUU23: 5 | FUV23: 5 | FUW23: 5 | FUX23: 5 | FUY23: 5 | FUZ23: 5 | FVA23: 5 | FVB23: 5 | FVC23: 5 | FVD23: 5 | FVE23: 5 | FVF23: 5 | FVG23: 5 | FVH23: 5 | FVI23: 5 | FVJ23: 5 | FVK23: 5 | FVL23: 5 | FVM23: 5 | FVN23: 5 | FVO23: 5 | FVP23: 5 | FVQ23: 5 | FVR23: 5 | FVS23: 5 | FVT23: 5 | FVU23: 5 | FVV23: 5 | FVW23: 5 | FVX23: 5 | FVY23: 5 | FVZ23: 5 | FWA23: 5 | FWB23: 5 | FWC23: 5 | FWD23: 5 | FWE23: 5 | FWF23: 5 | FWG23: 5 | FWH23: 5 | FWI23: 5 | FWJ23: 5 | FWK23: 5 | FWL23: 5 | FWM23: 5 | FWN23: 5 | FWO23: 5 | FWP23: 5 | FWQ23: 5 | FWR23: 5 | FWS23: 5 | FWT23: 5 | FWU23: 5 | FWV23: 5 | FWW23: 5 | FWX23: 5 | FWY23: 5 | FWZ23: 5 | FXA23: 5 | FXB23: 5 | FXC23: 5 | FXD23: 5 | FXE23: 5 | FXF23: 5 | FXG23: 5 | FXH23: 5 | FXI23: 5 | FXJ23: 5 | FXK23: 5 | FXL23: 5 | FXM23: 5 | FXN23: 5 | FXO23: 5 | FXP23: 5 | FXQ23: 5 | FXR23: 5 | FXS23: 5 | FXT23: 5 | FXU23: 5 | FXV23: 5 | FXW23: 5 | FXX23: 5 | FXY23: 5 | FXZ23: 5 | FYA23: 5 | FYB23: 5 | FYC23: 5 | FYD23: 5 | FYE23: 5 | FYF23: 5 | FYG23: 5 | FYH23: 5 | FYI23: 5 | FYJ23: 5 | FYK23: 5 | FYL23: 5 | FYM23: 5 | FYN23: 5 | FYO23: 5 | FYP23: 5 | FYQ23: 5 | FYR23: 5 | FYS23: 5 | FYT23: 5 | FYU23: 5 | FYV23: 5 | FYW23: 5 | FYX23: 5 | FYY23: 5 | FYZ23: 5 | FZA23: 5 | FZB23: 5 | FZC23: 5 | FZD23: 5 | FZE23: 5 | FZF23: 5 | FZG23: 5 | FZH23: 5 | FZI23: 5 | FZJ23: 5 | FZK23: 5 | FZL23: 5 | FZM23: 5 | FZN23: 5 | FZO23: 5 | FZP23: 5 | FZQ23: 5 | FZR23: 5 | FZS23: 5 | FZT23: 5 | FZU23: 5 | FZV23: 5 | FZW23: 5 | FZX23: 5 | FZY23: 5 | FZZ23: 5 | GAA23: 5 | GAB23: 5 | GAC23: 5 | GAD23: 5 | GAE23: 5 | GAF23: 5 | GAG23: 5 | GAH23: 5 | GAI23: 5 | GAJ23: 5 | GAK23: 5 | GAL23: 5 | GAM23: 5 | GAN23: 5 | GAO23: 5 | GAP23: 5 | GAQ23: 5 | GAR23: 5 | GAS23: 5 | GAT23: 5 | GAU23: 5 | GAV23: 5 | GAW23: 5 | GAX23: 5 | GAY23: 5 | GAZ23: 5 | GBA23: 5 | GBB23: 5 | GBC23: 5 | GBD23: 5 | GBE23: 5 | GBF23: 5 | GBG23: 5 | GBH23: 5 | GBI23: 5 | GBJ23: 5 | GBK23: 5 | GBL23: 5 | GBM23: 5 | GBN23: 5 | GBO23: 5 | GBP23: 5 | GBQ23: 5 | GBR23: 5 | GBS23: 5 | GBT23: 5 | GBU23: 5 | GBV23: 5 | GBW23: 5 | GBX23: 5 | GBY23: 5 | GBZ23: 5 | GCA23: 5 | GCB23: 5 | GCC23: 5 | GCD23: 5 | GCE23: 5 | GCF23: 5 | GCG23: 5 | GCH23: 5 | GCI23: 5 | GCJ23: 5 | GCK23: 5 | GCL23: 5 | GCM23: 5 | GCN23: 5 | GCO23: 5 | GCP23: 5 | GCQ23: 5 | GCR23: 5 | GCS23: 5 | GCT23: 5 | GCU23: 5 | GCV23: 5 | GCW23: 5 | GCX23: 5 | GCY23: 5 | GCZ23: 5 | GDA23: 5 | GDB23: 5 | GDC23: 5 | GDD23: 5 | GDE23: 5 | GDF23: 5 | GDG23: 5 | GDH23: 5 | GDI23: 5 | GDJ23: 5 | GDK23: 5 | GDL23: 5 | GDM23: 5 | GDN23: 5 | GDO23: 5 | GDP23: 5 | GDQ23: 5 | GDR23: 5 | GDS23: 5 | GDT23: 5 | GDU23: 5 | GDV23: 5 | GDW23: 5 | GDX23: 5 | GDY23: 5 | GDZ23: 5 | GEA23: 5 | GEB23: 5 | GEC23: 5 | GED23: 5 | GEE23: 5 | GEF23: 5 | GEG23: 5 | GEH23: 5 | GEI23: 5 | GEJ23: 5 | GEK23: 5 | GEL23: 5 | GEM23: 5 | GEN23: 5 | GEO23: 5 | GEP23: 5 | GEQ23: 5 | GER23: 5 | GES23: 5 | GET23: 5 | GEU23: 5 | GEV23: 5 | GEW23: 5 | GEX23: 5 | GEY23: 5 | GEZ23: 5 | GFA23: 5 | GFB23: 5 | GFC23: 5 | GFD23: 5 | GFE23: 5 | GFF23: 5 | GFG23: 5 | GFH23: 5 | GFI23: 5 | GFJ23: 5 | GFK23: 5 | GFL23: 5 | GFM23: 5 | GFN23: 5 | GFO23: 5 | GFP23: 5 | GFQ23: 5 | GFR23: 5 | GFS23: 5 | GFT23: 5 | GFU23: 5 | GFV23: 5 | GFW23: 5 | GFX23: 5 | GFY23: 5 | GFZ23: 5 | GGA23: 5 | GGB23: 5 | GGC23: 5 | GGD23: 5 | GGE23: 5 | GGF23: 5 | GGG23: 5 | GGH23: 5 | GGI23: 5 | GGJ23: 5 | GGK23: 5 | GGL23: 5 | GGM23: 5 | GGN23: 5 | GGO23: 5 | GGP23: 5 | GGQ23: 5 | GGR23: 5 | GGS23: 5 | GGT23: 5 | GGU23: 5 | GGV23: 5 | GGW23: 5 | GGX23: 5 | GGY23: 5 | GGZ23: 5 | GHA23: 5 | GHB23: 5 | GHC23: 5 | GHD23: 5 | GHE23: 5 | GHF23: 5 | GHG23: 5 | GHH23: 5 | GHI23: 5 | GHJ23: 5 | GHK23: 5 | GHL23: 5 | GHM23: 5 | GHN23: 5 | GHO23: 5 | GHP23: 5 | GHQ23: 5 | GHR23: 5 | GHS23: 5 | GHT23: 5 | GHU23: 5 | GHV23: 5 | GHW23: 5 | GHX23: 5 | GHY23: 5 | GHZ23: 5 | GIA23: 5 | GIB23: 5 | GIC23: 5 | GID23: 5 | GIE23: 5 | GIF23: 5 | GIG23: 5 | GIH23: 5 | GII23: 5 | GIJ23: 5 | GIK23: 5 | GIL23: 5 | GIM23: 5 | GIN23: 5 | GIO23: 5 | GIP23: 5 | GIQ23: 5 | GIR23: 5 | GIS23: 5 | GIT23: 5 | GIU23: 5 | GIV23: 5 | GIW23: 5 | GIX23: 5 | GIY23: 5 | GIZ23: 5 | GJA23: 5 | GJB23: 5 | GJC23: 5 | GJD23: 5 | GJE23: 5 | GJF23: 5 | GJG23: 5 | GJH23: 5 | GJI23: 5 | GJJ23: 5 | GJK23: 5 | GJL23: 5 | GJM23: 5 | GJN23: 5 | GJO23: 5 | GJP23: 5 | GJQ23: 5 | GJR23: 5 | GJS23: 5 | GJT23: 5 | GJU23: 5 | GJV23: 5 | GJW23: 5 | GJX23: 5 | GJY23: 5 | GJZ23: 5 | GKA23: 5 | GKB23: 5 | GKC23: 5 | GKD23: 5 | GKE23: 5 | GKF23: 5 | GKG23: 5 | GKH23: 5 | GKI23: 5 | GKJ23: 5 | GKK23: 5 | GKL23: 5 | GKM23: 5 | GKN23: 5 | GKO23: 5 | GKP23: 5 | GKQ23: 5 | GKR23: 5 | GKS23: 5 | GKT23: 5 | GKU23: 5 | GKV23: 5 | GKW23: 5 | GKX23: 5 | GKY23: 5 | GKZ23: 5 | GLA23: 5 | GLB23: 5 | GLC23: 5 | GLD23: 5 | GLE23: 5 | GLF23: 5 | GLG23: 5 | GLH23: 5 | GLI23: 5 | GLJ23: 5 | GLK23: 5 | GLL23: 5 | GLM23: 5 | GLN23: 5 | GLO23: 5 | GLP23: 5 | GLQ23: 5 | GLR23: 5 | GLS23: 5 | GLT23: 5 | GLU23: 5 | GLV23: 5 | GLW23: 5 | GLX23: 5 | GLY23: 5 | GLZ23: 5 | GMA23: 5 | GMB23: 5 | GMC23: 5 | GMD23: 5 | GME23: 5 | GMF23: 5 | GMG23: 5 | GMH23: 5 | GMI23: 5 | GMJ23: 5 | GMK23: 5 | GML23: 5 | GMM23: 5 | GMN23: 5 | GMO23: 5 | GMP23: 5 | GMQ23: 5 | GMR23: 5 | GMS23: 5 | GMT23: 5 | GMU23: 5 | GMV23: 5 | GMW23: 5 | GMX23: 5 | GMY23: 5 | GMZ23: 5 | GNA23: 5 | GNB23: 5 | GNC23: 5 | GND23: 5 | GNE23: 5 | GNF23: 5 | GNG23: 5 | GNH23: 5 | GNI23: 5 | GNJ23: 5 | GNK23: 5 | GNL23: 5 | GNM23: 5 | GNN23: 5 | GNO23: 5 | GNP23: 5 | GNQ23: 5 | GNR23: 5 | GNS23: 5 | GNT23: 5 | GNU23: 5 | GNV23: 5 | GNW23: 5 | GNX23: 5 | GNY23: 5 | GNZ23: 5 | GOA23: 5 | GOB23: 5 | GOC23: 5 | GOD23: 5 | GOE23: 5 | GOF23: 5 | GOG23: 5 | GOH23: 5 | GOI23: 5 | GOJ23: 5 | GOK23: 5 | GOL23: 5 | GOM23: 5 | GON23: 5 | GOO23: 5 | GOP23: 5 | GOQ23: 5 | GOR23: 5 | GOS23: 5 | GOT23: 5 | GOU23: 5 | GOV23: 5 | GOW23: 5 | GOX23: 5 | GOY23: 5 | GOZ23: 5 | GPA23: 5 | GPB23: 5 | GPC23: 5 | GPD23: 5 | GPE23: 5 | GPF23: 5 | GPG23: 5 | GPH23: 5 | GPI23: 5 | GPJ23: 5 | GPK23: 5 | GPL23: 5 | GPM23: 5 | GPN23: 5 | GPO23: 5 | GPP23: 5 | GPQ23: 5 | GPR23: 5 | GPS23: 5 | GPT23: 5 | GPU23: 5 | GPV23: 5 | GPW23: 5 | GPX23: 5 | GPY23: 5 | GPZ23: 5 | GQA23: 5 | GQB23: 5 | GQC23: 5 | GQD23: 5 | GQE23: 5 | GQF23: 5 | GQG23: 5 | GQH23: 5 | GQI23: 5 | GQJ23: 5 | GQK23: 5 | GQL23: 5 | GQM23: 5 | GQN23: 5 | GQO23: 5 | GQP23: 5 | GQQ23: 5 | GQR23: 5 | GQS23: 5 | GQT23: 5 | GQU23: 5 | GQV23: 5 | GQW23: 5 | GQX23: 5 | GQY23: 5 | GQZ23: 5 | GRA23: 5 | GRB23: 5 | GRC23: 5 | GRD23: 5 | GRE23: 5 | GRF23: 5 | GRG23: 5 | GRH23: 5 | GRI23: 5 | GRJ23: 5 | GRK23: 5 | GRL23: 5 | GRM23: 5 | GRN23: 5 | GRO23: 5 | GRP23: 5 | GRQ23: 5 | GRR23: 5 | GRS23: 5 | GRT23: 5 | GRU23: 5 | GRV23: 5 | GRW23: 5 | GRX23: 5 | GRY23: 5 | GRZ23: 5 | GSA23: 5 | GSB23: 5 | GSC23: 5 | GSD23: 5 | GSE23: 5 | GSF23: 5 | GSG23: 5 | GSH23: 5 | GSI23: 5 | GSJ23: 5 | GSK23: 5 | GSL23: 5 | GSM23: 5 | GSN23: 5 | GSO23: 5 | GSP23: 5 | GSQ23: 5 | GSR23: 5 | GSS23: 5 | GST23: 5 | GSU23: 5 | GSV23: 5 | GSW23: 5 | GSX23: 5 | GSY23: 5 | GSZ23: 5 | GTA23: 5 | GTB23: 5 | GTC23: 5 | GTD23: 5 | GTE23: 5 | GTF23: 5 | GTG23: 5 | GTH23: 5 | GTI23: 5 | GTJ23: 5 | GTK23: 5 | GTL23: 5 | GTM23: 5 | GTN23: 5 | GTO23: 5 | GTP23: 5 | GTQ23: 5 | GTR23: 5 | GTS23: 5 | GTT23: 5 | GTU23: 5 | GTV23: 5 | GTW23: 5 | GTX23: 5 | GTY23: 5 | GTZ23: 5 | GUA23: 5 | GUB23: 5 | GUC23: 5 | GUD23: 5 | GUE23: 5 | GUF23: 5 | GUG23: 5 | GUH23: 5 | GUI23: 5 | GUJ23: 5 | GUK23: 5 | GUL23: 5 | GUM23: 5 | GUN23: 5 | GUO23: 5 | GUP23: 5 | GUQ23: 5 | GUR23: 5 | GUS23: 5 | GUT23: 5 | GUU23: 5 | GUV23: 5 | GUW23: 5 | GUX23: 5 | GUY23: 5 | GUZ23: 5 | GVA23: 5 | GVB23: 5 | GVC23: 5 | GVD23: 5 | GVE23: 5 | GVF23: 5 | GVG23: 5 | GVH23: 5 | GVI23: 5 | GVJ23: 5 | GVK23: 5 | GVL23: 5 | GVM23: 5 | GVN23: 5 | GVO23: 5 | GVP23: 5 | GVQ23: 5 | GVR23: 5 | GVS23: 5 | GVT23: 5 | GVU23: 5 | GVV23: 5 | GVW23: 5 | GVX23: 5 | GVY23: 5 | GVZ23: 5 | GWA23: 5 | GWB23: 5 | GWC23: 5 | GWD23: 5 | GWE23: 5 | GWF23: 5 | GWG23: 5 | GWH23: 5 | GWI23: 5 | GWJ23: 5 | GWK23: 5 | GWL23: 5 | GWM23: 5 | GWN23: 5 | GWO23: 5 | GWP23: 5 | GWQ23: 5 | GWR23: 5 | GWS23: 5 | GWT23: 5 | GWU23: 5 | GWV23: 5 | GWW23: 5 | GWX23: 5 | GWY23: 5 | GWZ23: 5 | GXA23: 5 | GXB23: 5 | GXC23: 5 | GXD23: 5 | GXE23: 5 | GXF23: 5 | GXG23: 5 | GXH23: 5 | GXI23: 5 | GXJ23: 5 | GXK23: 5 | GXL23: 5 | GXM23: 5 | GXN23: 5 | GXO23: 5 | GXP23: 5 | GXQ23: 5 | GXR23: 5 | GXS23: 5 | GXT23: 5 | GXU23: 5 | GXV23: 5 | GXW23: 5 | GXX23: 5 | GXY23: 5 | GXZ23: 5 | GYA23: 5 | GYB23: 5 | GYC23: 5 | GYD23: 5 | GYE23: 5 | GYF23: 5 | GYG23: 5 | GYH23: 5 | GYI23: 5 | GYJ23: 5 | GYK23: 5 | GYL23: 5 | GYM23: 5 | GYN23: 5 | GYO23: 5 | GYP23: 5 | GYQ23: 5 | GYR23: 5 | GYS23: 5 | GYT23: 5 | GYU23: 5 | GYV23: 5 | GYW23: 5 | GYX23: 5 | GYY23: 5 | GYZ23: 5 | GZA23: 5 | GZB23: 5 | GZC23: 5 | GZD23: 5 | GZE23: 5 | GZF23: 5 | GZG23: 5 | GZH23: 5 | GZI23: 5 | GZJ23: 5 | GZK23: 5 | GZL23: 5 | GZM23: 5 | GZN23: 5 | GZO23: 5 | GZP23: 5 | GZQ23: 5 | GZR23: 5 | GZS23: 5 | GZT23: 5 | GZU23: 5 | GZV23: 5 | GZW23: 5 | GZX23: 5 | GZY23: 5 | GZZ23: 5 | HAA23: 5 | HAB23: 5 | HAC23: 5 | HAD23: 5 | HAE23: 5 | HAF23: 5 | HAG23: 5 | HAH23: 5 | HAI23: 5 | HAJ23: 5 | HAK23: 5 | HAL23: 5 | HAM23: 5 | HAN23: 5 | HAO23: 5 | HAP23: 5 | HAQ23: 5 | HAR23: 5 | HAS23: 5 | HAT23: 5 | HAU23: 5 | HAV23: 5 | HAW23: 5 | HAX23: 5 | HAY23: 5 | HAZ23: 5 | HBA23: 5 | HBB23: 5 | HBC23: 5 | HBD23: 5 | HBE23: 5 | HBF23: 5 | HBG23: 5 | HBH23: 5 | HBI23: 5 | HBJ23: 5 | HBK23: 5 | HBL23: 5 | HBM23: 5 | HBN23: 5 | HBO23: 5 | HBP23: 5 | HBQ23: 5 | HBR23: 5 | HBS23: 5 | HBT23: 5 | HBU23: 5 | HBV23: 5 | HBW23: 5 | HBX23: 5 | HBY23: 5 | HBZ23: 5 | HCA23: 5 | HCB23: 5 | HCC23: 5 | HCD23: 5 | HCE23: 5 | HCF23: 5 | HCG23: 5 | HCH23: 5 | HCI23: 5 | HCJ23: 5 | HCK23: 5 | HCL23: 5 | HCM23: 5 | HCN23: 5 | HCO23: 5 | HCP23: 5 | HCQ23: 5 | HCR23: 5 | HCS23: 5 | HCT23: 5 | HCU23: 5 | HCV23: 5 | HCW23: 5 | HCX23: 5 | HCY23: 5 | HCZ23: 5 | HDA23: 5 | HDB23: 5 | HDC23: 5 | HDD23: 5 | HDE23: 5 | HDF23: 5 | HDG23: 5 | HDH23: 5 | HDI23: 5 | HDJ23: 5 | HDK23: 5 | HDL23: 5 | HDM23: 5 | HDN23: 5 | HDO23: 5 | HDP23: 5 | HDQ23: 5 | HDR23: 5 | HDS23: 5 | HDT23: 5 | HDU23: 5 | HDV23: 5 | HDW23: 5 | HDX23: 5 | HDY23: 5 | HDZ23: 5 | HEA23: 5 | HEB23: 5 | HEC23: 5 | HED23: 5 | HEE23: 5 | HEF23: 5 | HEG23: 5 | HEH23: 5 | HEI23: 5 | HEJ23: 5 | HEK23: 5 | HEL23: 5 | HEM23: 5 | HEN23: 5 | HEO23: 5 | HEP23: 5 | HEQ23: 5 | HER23: 5 | HES23: 5 | HET23: 5 | HEU23: 5 | HEV23: 5 | HEW23: 5 | HEX23: 5 | HEY23: 5 | HEZ23: 5 | HFA23: 5 | HFB23: 5 | HFC23: 5 | HFD23: 5 | HFE23: 5 | HFF23: 5 | HFG23: 5 | HFH23: 5 | HFI23: 5 | HFJ23: 5 | HFK23: 5 | HFL23: 5 | HFM23: 5 | HFN23: 5 | HFO23: 5 | HFP23: 5 | HFQ23: 5 | HFR23: 5 | HFS23: 5 | HFT23: 5 | HFU23: 5 | HFV23: 5 | HFW23: 5 | HFX23: 5 | HFY23: 5 | HFZ23: 5 | HGA23: 5 | HGB23: 5 | HGC23: 5 | HGD23: 5 | HGE23: 5 | HGF23: 5 | HGG23: 5 | HGH23: 5 | HGI23: 5 | HGJ23: 5 | HGK23: 5 | HGL23: 5 | HGM23: 5 | HGN23: 5 | HGO23: 5 | HGP23: 5 | HGQ23: 5 | HGR23: 5 | HGS23: 5 | HGT23: 5 | HGU23: 5 | HGV23: 5 | HGW23: 5 | HGX23: 5 | HGY23: 5 | HGZ23: 5 | HHA23: 5 | HHB23: 5 | HHC23: 5 | HHD23: 5 | HHE23: 5 | HHF23: 5 | HHG23: 5 | HHH23: 5 | HHI23: 5 | HHJ23: 5 | HHK23: 5 | HHL23: 5 | HHM23: 5 | HHN23: 5 | HHO23: 5 | HHP23: 5 | HHQ23: 5 | HHR23: 5 | HHS23: 5 | HHT23: 5 | HHU23: 5 | HHV23: 5 | HHW23: 5 | HHX23: 5 | HHY23: 5 | HHZ23: 5 | HIA23: 5 | HIB23: 5 | HIC23: 5 | HID23: 5 | HIE23: 5 | HIF23: 5 | HIG23: 5 | HIH23: 5 | HII23: 5 | HIJ23: 5 | HIK23: 5 | HIL23: 5 | HIM23: 5 | HIN23: 5 | HIO23: 5 | HIP23: 5 | HIQ23: 5 | HIR23: 5 | HIS23: 5 | HIT23: 5 | HIU23: 5 | HIV23: 5 | HIW23: 5 | HIX23: 5 | HIY23: 5 | HIZ23: 5 | HJA23: 5 | HJB23: 5 | HJC23: 5 | HJD23: 5 | HJE23: 5 | HJF23: 5 | HJG23: 5 | HJH23: 5 | HJI23: 5 | HJJ23: 5 | HJK23: 5 | HJL23: 5 | HJM23: 5 | HJN23: 5 | HJO23: 5 | HJP23: 5 | HJQ23: 5 | HJR23: 5 | HJS23: 5 | HJT23: 5 | HJU23: 5 | HJV23: 5 | HJW23: 5 | HJX23: 5 | HJY23: 5 | HJZ23: 5 | HKA23: 5 | HKB23: 5 | HKC23: 5 | HKD23: 5 | HKE23: 5 | HKF23: 5 | HKG23: 5 | HKH23: 5 | HKI23: 5 | HKJ23: 5 | HKK23: 5 | HKL23: 5 | HKM23: 5 | HKN23: 5 | HKO23: 5 | HKP23: 5 | HKQ23: 5 | HKR23: 5 | HKS23: 5 | HKT23: 5 | HKU23: 5 | HKV23: 5 | HKW23: 5 | HKX23: 5 | HKY23: 5 | HKZ23: 5 | HLA23: 5 | HLB23: 5 | HLC23: 5 | HLD23: 5 | HLE23: 5 | HLF23: 5 | HLG23: 5 | HLH23: 5 | HLI23: 5 | HLJ23: 5 | HLK23: 5 | HLL23: 5 | HLM23: 5 | HLN23: 5 | HLO23: 5 | HLP23: 5 | HLQ23: 5 | HLR23: 5 | HLS23: 5 | HLT23: 5 | HLU23: 5 | HLV23: 5 | HLW23: 5 | HLX23: 5 | HLY23: 5 | HLZ23: 5 | HMA23: 5 | HMB23: 5 | HMC23: 5 | HMD23: 5 | HME23: 5 | HMF23: 5 | HMG23: 5 | HMH23: 5 | HMI23: 5 | HMJ23: 5 | HMK23: 5 | HML23: 5 | HMM23: 5 | HMN23: 5 | HMO23: 5 | HMP23: 5 | HMQ23: 5 | HMR23: 5 | HMS23: 5 | HMT23: 5 | HMU23: 5 | HMV23: 5 | HMW23: 5 | HMX23: 5 | HMY23: 5 | HMZ23: 5 | HNA23: 5 | HNB23: 5 | HNC23: 5 | HND23: 5 | HNE23: 5 | HNF23: 5 | HNG23: 5 | HNH23: 5 | HNI23: 5 | HNJ23: 5 | HNK23: 5 | HNL23: 5 | HNM23: 5 | HNN23: 5 | HNO23: 5 | HNP23: 5 | HNQ23: 5 | HNR23: 5 | HNS23: 5 | HNT23: 5 | HNU23: 5 | HNV23: 5 | HNW23: 5 | HNX23: 5 | HNY23: 5 | HNZ23: 5 | HOA23: 5 | HOB23: 5 | HOC23: 5 | HOD23: 5 | HOE23: 5 | HOF23: 5 | HOG23: 5 | HOH23: 5 | HOI23: 5 | HOJ23: 5 | HOK23: 5 | HOL23: 5 | HOM23: 5 | HON23: 5 | HOO23: 5 | HOP23: 5 | HOQ23: 5 | HOR23: 5 | HOS23: 5 | HOT23: 5 | HOU23: 5 | HOV23: 5 | HOW23: 5 | HOX23: 5 | HOY23: 5 | HOZ23: 5 | HPA23: 5 | HPB23: 5 | HPC23: 5 | HPD23: 5 | HPE23: 5 | HPF23: 5 | HPG23: 5 | HPH23: 5 | HPI23: 5 | HPJ23: 5 | HPK23: 5 | HPL23: 5 | HPM23: 5 | HPN23: 5 | HPO23: 5 | HPP23: 5 | HPQ23: 5 | HPR23: 5 | HPS23: 5 | HPT23: 5 | HPU23: 5 | HPV23: 5 | HPW23: 5 | HPX23: 5 | HPY23: 5 | HPZ23: 5 | HQA23: 5 | HQB23: 5 | HQC23: 5 | HQD23: 5 | HQE23: 5 | HQF23: 5 | HQG23: 5 | HQH23: 5 | HQI23: 5 | HQJ23: 5 | HQK23: 5 | HQL23: 5 | HQM23: 5 | HQN23: 5 | HQO23: 5 | HQP23: 5 | HQQ23: 5 | HQR23: 5 | HQS23: 5 | HQT23: 5 | HQU23: 5 | HQV23: 5 | HQW23: 5 | HQX23: 5 | HQY23: 5 | HQZ23: 5 | HRA23: 5 | HRB23: 5 | HRC23: 5 | HRD23: 5 | HRE23: 5 | HRF23: 5 | HRG23: 5 | HRH23: 5 | HRI23: 5 | HRJ23: 5 | HRK23: 5 | HRL23: 5 | HRM23: 5 | HRN23: 5 | HRO23: 5 | HRP23: 5 | HRQ23: 5 | HRR23: 5 | HRS23: 5 | HRT23: 5 | HRU23: 5 | HRV23: 5 | HRW23: 5 | HRX23: 5 | HRY23: 5 | HRZ23: 5 | HSA23: 5 | HSB23: 5 | HSC23: 5 | HSD23: 5 | HSE23: 5 | HSF23: 5 | HSG23: 5 | HSH23: 5 | HSI23: 5 | HSJ23: 5 | HSK23: 5 | HSL23: 5 | HSM23: 5 | HSN23: 5 | HSO23: 5 | HSP23: 5 | HSQ23: 5 | HSR23: 5 | HSS23: 5 | HST23: 5 | HSU23: 5 | HSV23: 5 | HSW23: 5 | HSX23: 5 | HSY23: 5 | HSZ23: 5 | HTA23: 5 | HTB23: 5 | HTC23: 5 | HTD23: 5 | HTE23: 5 | HTF23: 5 | HTG23: 5 | HTH23: 5 | HTI23: 5 | HTJ23: 5 | HTK23: 5 | HTL23: 5 | HTM23: 5 | HTN23: 5 | HTO23: 5 | HTP23: 5 | HTQ23: 5 | HTR23: 5 | HTS23: 5 | HTT23: 5 | HTU23: 5 | HTV23: 5 | HTW23: 5 | HTX23: 5 | HTY23: 5 | HTZ23: 5 | HUA23: 5 | HUB23: 5 | HUC23: 5 | HUD23: 5 | HUE23: 5 | HUF23: 5 | HUG23: 5 | HUH23: 5 | HUI23: 5 | HUJ23: 5 | HUK23: 5 | HUL23: 5 | HUM23: 5 | HUN23: 5 | HUO23: 5 | HUP23: 5 | HUQ23: 5 | HUR23: 5 | HUS23: 5 | HUT23: 5 | HUU23: 5 | HUV23: 5 | HUW23: 5 | HUX23: 5 | HUY23: 5 | HUZ23: 5 | HVA23: 5 | HVB23: 5 | HVC23: 5 | HVD23: 5 | HVE23: 5 | HVF23: 5 | HVG23: 5 | HVH23: 5 | HVI23: 5 | HVJ23: 5 | HVK23: 5 | HVL23: 5 | HVM23: 5 | HVN23: 5 | HVO23: 5 | HVP23: 5 | HVQ23: 5 | HVR23: 5 | HVS23: 5 | HVT23: 5 | HVU23: 5 | HVV23: 5 | HVW23: 5 | HVX23: 5 | HVY23: 5 | HVZ23: 5 | HWA23: 5 | HWB23: 5 | HWC23: 5 | HWD23: 5 | HWE23: 5 | HWF23: 5 | HWG23: 5 | HWH23: 5 | HWI23: 5 | HWJ23: 5 | HWK23: 5 | HWL23: 5 | HWM23: 5 | HWN23: 5 | HWO23: 5 | HWP23: 5 | HWQ23: 5 | HWR23: 5 | HWS23: 5 | HWT23: 5 | HWU23: 5 | HWV23: 5 | HWW23: 5 | HWX23: 5 | HWY23: 5 | HWZ23: 5 | HXA23: 5 | HXB23: 5 | HXC23: 5 | HXD23: 5 | HXE23: 5 | HXF23: 5 | HXG23: 5 | HXH23: 5 | HXI23: 5 | HXJ23: 5 | HXK23: 5 | HXL23: 5 | HXM23: 5 | HXN23: 5 | HXO23: 5 | HXP23: 5 | HXQ23: 5 | HXR23: 5 | HXS23: 5 | HXT23: 5 | HXU23: 5 | HXV23: 5 | HXW23: 5 | HXX23: 5 | HXY23: 5 | HXZ23: 5 | HYA23: 5 | HYB23: 5 | HYC23: 5 | HYD23: 5 | HYE23: 5 | HYF23: 5 | HYG23: 5 | HYH23: 5 | HYI23: 5 | HYJ23: 5 | HYK23: 5 | HYL23: 5 | HYM23: 5 | HYN23: 5 | HYO23: 5 | HYP23: 5 | HYQ23: 5 | HYR23: 5 | HYS23: 5 | HYT23: 5 | HYU23: 5 | HYV23: 5 | HYW23: 5 | HYX23: 5 | HYY23: 5 | HYZ23: 5 | HZA23: 5 | HZB23: 5 | HZC23: 5 | HZD23: 5 | HZE23: 5 | HZF23: 5 | HZG23: 5 | HZH23: 5 | HZI23: 5 | HZJ23: 5 | HZK23: 5 | HZL23: 5 | HZM23: 5 | HZN23: 5 | HZO23: 5 | HZP23: 5 | HZQ23: 5 | HZR23: 5 | HZS23: 5 | HZT23: 5 | HZU23: 5 | HZV23: 5 | HZW23: 5 | HZX23: 5 | HZY23: 5 | HZZ23: 5 | IAA23: 5 | IAB23: 5 | IAC23: 5 | IAD23: 5 | IAE23: 5 | IAF23: 5 | IAG23: 5 | IAH23: 5 | IAI23: 5 | IAJ23: 5 | IAK23: 5 | IAL23: 5 | IAM23: 5 | IAN23: 5 | IAO23: 5 | IAP23: 5 | IAQ23: 5 | IAR23: 5 | IAS23: 5 | IAT23: 5 | IAU23: 5 | IAV23: 5 | IAW23: 5 | IAX23: 5 | IAY23: 5 | IAZ23: 5 | IBA23: 5 | IBB23: 5 | IBC23: 5 | IBD23: 5 | IBE23: 5 | IBF23: 5 | IBG23: 5 | IBH23: 5 | IBI23: 5 | IBJ23: 5 | IBK23: 5 | IBL23: 5 | IBM23: 5 | IBN23: 5 | IBO23: 5 | IBP23: 5 | IBQ23: 5 | IBR23: 5 | IBS23: 5 | IBT23: 5 | IBU23: 5 | IBV23: 5 | IBW23: 5 | IBX23: 5 | IBY23: 5 | IBZ23: 5 | ICA23: 5 | ICB23: 5 | ICC23: 5 | ICD23: 5 | ICE23: 5 | ICF23: 5 | ICG23: 5 | ICH23: 5 | ICI23: 5 | ICJ23: 5 | ICK23: 5 | ICL23: 5 | ICM23: 5 | ICN23: 5 | ICO23: 5 | ICP23: 5 | ICQ23: 5 | ICR23: 5 | ICS23: 5 | ICT23: 5 | ICU23: 5 | ICV23: 5 | ICW23: 5 | ICX23: 5 | ICY23: 5 | ICZ23: 5 | IDA23: 5 | IDB23: 5 | IDC23: 5 | IDD23: 5 | IDE23: 5 | IDF23: 5 | IDG23: 5 | IDH23: 5 | IDI23: 5 | IDJ23: 5 | IDK23: 5 | IDL23: 5 | IDM23: 5 | IDN23: 5 | IDO23: 5 | IDP23: 5 | IDQ23: 5 | IDR23: 5 | IDS23: 5 | IDT23: 5 | IDU23: 5 | IDV23: 5 | IDW23: 5 | IDX23: 5 | IDY23: 5 | IDZ23: 5 | IEA23: 5 | IEB23: 5 | IEC23: 5 | IED23: 5 | IEE23: 5 | IEF23: 5 | IEG23: 5 | IEH23: 5 | IEI23: 5 | IEJ23: 5 | IEK23: 5 | IEL23: 5 | IEM23: 5 | IEN23: 5 | IEO23: 5 | IEP23: 5 | IEQ23: 5 | IER23: 5 | IES23: 5 | IET23: 5 | IEU23: 5 | IEV23: 5 | IEW23: 5 | IEX23: 5 | IEY23: 5 | IEZ23: 5 | IFA23: 5 | IFB23: 5 | IFC23: 5 | IFD23: 5 | IFE23: 5 | IFF23: 5 | IFG23: 5 | IFH23: 5 | IFI23: 5 | IFJ23: 5 | IFK23: 5 | IFL23: 5 | IFM23: 5 | IFN23: 5 | IFO23: 5 | IFP23: 5 | IFQ23: 5 | IFR23: 5 | IFS23: 5 | IFT23: 5 | IFU23: 5 | IFV23: 5 | IFW23: 5 | IFX23: 5 | IFY23: 5 | IFZ23: 5 | IGA23: 5 | IGB23: 5 | IGC23: 5 | IGD23: 5 | IGE23: 5 | IGF23: 5 | IGG23: 5 | IGH23: 5 | IGI23: 5 | IGJ23: 5 | IGK23: 5 | IGL23: 5 | IGM23: 5 | IGN23: 5 | IGO23: 5 | IGP23: 5 | IGQ23: 5 | IGR23: 5 | IGS23: 5 | IGT23: 5 | IGU23: 5 | IGV23: 5 | IGW23: 5 | IGX23: 5 | IGY23: 5 | IGZ23: 5 | IHA23: 5 | IHB23: 5 | IHC23: 5 | IHD23: 5 | IHE23: 5 | IHF23: 5 | IHG23: 5 | IHH23: 5 | IHI23: 5 | IHJ23: 5 | IHK23: 5 | IHL23: 5 | IHM23: 5 | IHN23: 5 | IHO23: 5 | IHP23: 5 | IHQ23: 5 | IHR23: 5 | IHS23: 5 | IHT23: 5 | IHU23: 5 | IHV23: 5 | IHW23: 5 | IHX23: 5 | IHY23: 5 | IHZ23: 5 | IIA23: 5 | IIB23: 5 | IIC23: 5 | IID23: 5 | IIE23: 5 | IIF23: 5 | IIG23: 5 | IIH23: 5 | III23: 5 | IIJ23: 5 | IIK23: 5 | IIL23: 5 | IIM23: 5 | IIN23: 5 | IIO23: 5 | IIP23: 5 | IIQ23: 5 | IIR23: 5 | IIS23: 5 | IIT23: 5 | IIU23: 5 | IIV23: 5 | IIW23: 5 | IIX23: 5 | IIY23: 5 | IIZ23: 5 | IJA23: 5 | IJB23: 5 | IJC23: 5 | IJD23: 5 | IJE23: 5 | IJF23: 5 | IJG23: 5 | IJH23: 5 | IJI23: 5 | IJJ23: 5 | IJK23: 5 | IJL23: 5 | IJM23: 5 | IJN23: 5 | IJO23: 5 | IJP23: 5 | IJQ23: 5 | IJR23: 5 | IJS23: 5 | IJT23: 5 | IJU23: 5 | IJV23: 5 | IJW23: 5 | IJX23: 5 | IJY23: 5 | IJZ23: 5 | IKA23: 5 | IKB23: 5 | IKC23: 5 | IKD23: 5 | IKE23: 5 | IKF23: 5 | IKG23: 5 | IKH23: 5 | IKI23: 5 | IKJ23: 5 | IKK23: 5 | IKL23: 5 | IKM23: 5 | IKN23: 5 | IKO23: 5 | IKP23: 5 | IKQ23: 5 | IKR23: 5 | IKS23: 5 | IKT23: 5 | IKU23: 5 | IKV23: 5 | IKW23: 5 | IKX23: 5 | IKY23: 5 | IKZ23: 5 | ILA23: 5 | ILB23: 5 | ILC23: 5 | ILD23: 5 | ILE23: 5 | ILF23: 5 | ILG23: 5 | ILH23: 5 | ILI23: 5 | ILJ23: 5 | ILK23: 5 | ILL23: 5 | ILM23: 5 | ILN23: 5 | ILO23: 5 | ILP23: 5 | ILQ23: 5 | ILR23: 5 | ILS23: 5 | ILT23: 5 | ILU23: 5 | ILV23: 5 | ILW23: 5 | ILX23: 5 | ILY23: 5 | ILZ23: 5 | IMA23: 5 | IMB23: 5 | IMC23: 5 | IMD23: 5 | IME23: 5 | IMF23: 5 | IMG23: 5 | IMH23: 5 | IMI23: 5 | IMJ23: 5 | IMK23: 5 | IML23: 5 | IMM23: 5 | IMN23: 5 | IMO23: 5 | IMP23: 5 | IMQ23: 5 | IMR23: 5 | IMS23: 5 | IMT23: 5 | IMU23: 5 | IMV23: 5 | IMW23: 5 | IMX23: 5 | IMY23: 5 | IMZ23: 5 | INA23: 5 | INB23: 5 | INC23: 5 | IND23: 5 | INE23: 5 | INF23: 5 | ING23: 5 | INH23: 5 | INI23: 5 | INJ23: 5 | INK23: 5 | INL23: 5 | INM23: 5 | INN23: 5 | INO23: 5 | INP23: 5 | INQ23: 5 | INR23: 5 | INS23: 5 | INT23: 5 | INU23: 5 | INV23: 5 | INW23: 5 | INX23: 5 | INY23: 5 | INZ23: 5 | IOA23: 5 | IOB23: 5 | IOC23: 5 | IOD23: 5 | IOE23: 5 | IOF23: 5 | IOG23: 5 | IOH23: 5 | IOI23: 5 | IOJ23: 5 | IOK23: 5 | IOL23: 5 | IOM23: 5 | ION23: 5 | IOO23: 5 | IOP23: 5 | IOQ23: 5 | IOR23: 5 | IOS23: 5 | IOT23: 5 | IOU23: 5 | IOV23: 5 | IOW23: 5 | IOX23: 5 | IOY23: 5 | IOZ23: 5 | IPA23: 5 | IPB23: 5 | IPC23: 5 | IPD23: 5 | IPE23: 5 | IPF23: 5 | IPG23: 5 | IPH23: 5 | IPI23: 5 | IPJ23: 5 | IPK23: 5 | IPL23: 5 | IPM23: 5 | IPN23: 5 | IPO23: 5 | IPP23: 5 | IPQ23: 5 | IPR23: 5 | IPS23: 5 | IPT23: 5 | IPU23: 5 | IPV23: 5 | IPW23: 5 | IPX23: 5 | IPY23: 5 | IPZ23: 5 | IQA23: 5 | IQB23: 5 | IQC23: 5 | IQD23: 5 | IQE23: 5 | IQF23: 5 | IQG23: 5 | IQH23: 5 | IQI23: 5 | IQJ23: 5 | IQK23: 5 | IQL23: 5 | IQM23: 5 | IQN23: 5 | IQO23: 5 | IQP23: 5 | IQQ23: 5 | IQR23: 5 | IQS23: 5 | IQT23: 5 | IQU23: 5 | IQV23: 5 | IQW23: 5 | IQX23: 5 | IQY23: 5 | IQZ23: 5 | IRA23: 5 | IRB23: 5 | IRC23: 5 | IRD23: 5 | IRE23: 5 | IRF23: 5 | IRG23: 5 | IRH23: 5 | IRI23: 5 | IRJ23: 5 | IRK23: 5 | IRL23: 5 | IRM23: 5 | IRN23: 5 | IRO23: 5 | IRP23: 5 | IRQ23: 5 | IRR23: 5 | IRS23: 5 | IRT23: 5 | IRU23: 5 | IRV23: 5 | IRW23: 5 | IRX23: 5 | IRY23: 5 | IRZ23: 5 | ISA23: 5 | ISB23: 5 | ISC23: 5 | ISD23: 5 | ISE23: 5 | ISF23: 5 | ISG23: 5 | ISH23: 5 | ISI23: 5 | ISJ23: 5 | ISK23: 5 | ISL23: 5 | ISM23: 5 | ISN23: 5 | ISO23: 5 | ISP23: 5 | ISQ23: 5 | ISR23: 5 | ISS23: 5 | IST23: 5 | ISU23: 5 | ISV23: 5 | ISW23: 5 | ISX23: 5 | ISY23: 5 | ISZ23: 5 | ITA23: 5 | ITB23: 5 | ITC23: 5 | ITD23: 5 | ITE23: 5 | ITF23: 5 | ITG23: 5 | ITH23: 5 | ITI23: 5 | ITJ23: 5 | ITK23: 5 | ITL23: 5 | ITM23: 5 | ITN23: 5 | ITO23: 5 | ITP23: 5 | ITQ23: 5 | ITR23: 5 | ITS23: 5 | ITT23: 5 | ITU23: 5 | ITV23: 5 | ITW23: 5 | ITX23: 5 | ITY23: 5 | ITZ23: 5 | IUA23: 5 | IUB23: 5 | IUC23: 5 | IUD23: 5 | IUE23: 5 | IUF23: 5 | IUG23: 5 | IUH23: 5 | IUI23: 5 | IUJ23: 5 | IUK23: 5 | IUL23: 5 | IUM23: 5 | IUN23: 5 | IUO23: 5 | IUP23: 5 | IUQ23: 5 | IUR23: 5 | IUS23: 5 | IUT23: 5 | IUU23: 5 | IUV23: 5 | IUW23: 5 | IUX23: 5 | IUY23: 5 | IUZ23: 5 | IVA23: 5 | IVB23: 5 | IVC23: 5 | IVD23: 5 | IVE23: 5 | IVF23: 5 | IVG23: 5 | IVH23: 5 | IVI23: 5 | IVJ23: 5 | IVK23: 5 | IVL23: 5 | IVM23: 5 | IVN23: 5 | IVO23: 5 | IVP23: 5 | IVQ23: 5 | IVR23: 5 | IVS23: 5 | IVT23: 5 | IVU23: 5 | IVV23: 5 | IVW23: 5 | IVX23: 5 | IVY23: 5 | IVZ23: 5 | IWA23: 5 | IWB23: 5 | IWC23: 5 | IWD23: 5 | IWE23: 5 | IWF23: 5 | IWG23: 5 | IWH23: 5 | IWI23: 5 | IWJ23: 5 | IWK23: 5 | IWL23: 5 | IWM23: 5 | IWN23: 5 | IWO23: 5 | IWP23: 5 | IWQ23: 5 | IWR23: 5 | IWS23: 5 | IWT23: 5 | IWU23: 5 | IWV23: 5 | IWW23: 5 | IWX23: 5 | IWY23: 5 | IWZ23: 5 | IXA23: 5 | IXB23: 5 | IXC23: 5 | IXD23: 5 | IXE23: 5 | IXF23: 5 | IXG23: 5 | IXH23: 5 | IXI23: 5 | IXJ23: 5 | IXK23: 5 | IXL23: 5 | IXM23: 5 | IXN23: 5 | IXO23: 5 | IXP23: 5 | IXQ23: 5 | IXR23: 5 | IXS23: 5 | IXT23: 5 | IXU23: 5 | IXV23: 5 | IXW23: 5 | IXX23: 5 | IXY23: 5 | IXZ23: 5 | IYA23: 5 | IYB23: 5 | IYC23: 5 | IYD23: 5 | IYE23: 5 | IYF23: 5 | IYG23: 5 | IYH23: 5 | IYI23: 5 | IYJ23: 5 | IYK23: 5 | IYL23: 5 | IYM23: 5 | IYN23: 5 | IYO23: 5 | IYP23: 5 | IYQ23: 5 | IYR23: 5 | IYS23: 5 | IYT23: 5 | IYU23: 5 | IYV23: 5 | IYW23: 5 | IYX23: 5 | IYY23: 5 | IYZ23: 5 | IZA23: 5 | IZB23: 5 | IZC23: 5 | IZD23: 5 | IZE23: 5 | IZF23: 5 | IZG23: 5 | IZH23: 5 | IZI23: 5 | IZJ23: 5 | IZK23: 5 | IZL23: 5 | IZM23: 5 | IZN23: 5 | IZO23: 5 | IZP23: 5 | IZQ23: 5 | IZR23: 5 | IZS23: 5 | IZT23: 5 | IZU23: 5 | IZV23: 5 | IZW23: 5 | IZX23: 5 | IZY23: 5 | IZZ23: 5 | JAA23: 5 | JAB23: 5 | JAC23: 5 | JAD23: 5 | JAE23: 5 | JAF23: 5 | JAG23: 5 | JAH23: 5 | JAI23: 5 | JAJ23: 5 | JAK23: 5 | JAL23: 5 | JAM23: 5 | JAN23: 5 | JAO23: 5 | JAP23: 5 | JAQ23: 5 | JAR23: 5 | JAS23: 5 | JAT23: 5 | JAU23: 5 | JAV23: 5 | JAW23: 5 | JAX23: 5 | JAY23: 5 | JAZ23: 5 | JBA23: 5 | JBB23: 5 | JBC23: 5 | JBD23: 5 | JBE23: 5 | JBF23: 5 | JBG23: 5 | JBH23: 5 | JBI23: 5 | JBJ23: 5 | JBK23: 5 | JBL23: 5 | JBM23: 5 | JBN23: 5 | JBO23: 5 | JBP23: 5 | JBQ23: 5 | JBR23: 5 | JBS23: 5 | JBT23: 5 | JBU23: 5 | JBV23: 5 | JBW23: 5 | JBX23: 5 | JBY23: 5 | JBZ23: 5 | JCA23: 5 | JCB23: 5 | JCC23: 5 | JCD23: 5 | JCE23: 5 | JCF23: 5 | JCG23: 5 | JCH23: 5 | JCI23: 5 | JCJ23: 5 | JCK23: 5 | JCL23: 5 | JCM23: 5 | JCN23: 5 | JCO23: 5 | JCP23: 5 | JCQ23: 5 | JCR23: 5 | JCS23: 5 | JCT23: 5 | JCU23: 5 | JCV23: 5 | JCW23: 5 | JCX23: 5 | JCY23: 5 | JCZ23: 5 | JDA23: 5 | JDB23: 5 | JDC23: 5 | JDD23: 5 | JDE23: 5 | JDF23: 5 | JDG23: 5 | JDH23: 5 | JDI23: 5 | JDJ23: 5 | JDK23: 5 | JDL23: 5 | JDM23: 5 | JDN23: 5 | JDO23: 5 | JDP23: 5 | JDQ23: 5 | JDR23: 5 | JDS23: 5 | JDT23: 5 | JDU23: 5 | JDV23: 5 | JDW23: 5 | JDX23: 5 | JDY23: 5 | JDZ23: 5 | JEA23: 5 | JEB23: 5 | JEC23: 5 | JED23: 5 | JEE23: 5 | JEF23: 5 | JEG23: 5 | JEH23: 5 | JEI23: 5 | JEJ23: 5 | JEK23: 5 | JEL23: 5 | JEM23: 5 | JEN23: 5 | JEO23: 5 | JEP23: 5 | JEQ23: 5 | JER23: 5 | JES23: 5 | JET23: 5 | JEU23: 5 | JEV23: 5 | JEW23: 5 | JEX23: 5 | JEY23: 5 | JEZ23: 5 | JFA23: 5 | JFB23: 5 | JFC23: 5 | JFD23: 5 | JFE23: 5 | JFF23: 5 | JFG23: 5 | JFH23: 5 | JFI23: 5 | JFJ23: 5 | JFK23: 5 | JFL23: 5 | JFM23: 5 | JFN23: 5 | JFO23: 5 | JFP23: 5 | JFQ23: 5 | JFR23: 5 | JFS23: 5 | JFT23: 5 | JFU23: 5 | JFV23: 5 | JFW23: 5 | JFX23: 5 | JFY23: 5 | JFZ23: 5 | JGA23: 5 | JGB23: 5 | JGC23: 5 | JGD23: 5 | JGE23: 5 | JGF23: 5 | JGG23: 5 | JGH23: 5 | JGI23: 5 | JGJ23: 5 | JGK23: 5 | JGL23: 5 | JGM23: 5 | JGN23: 5 | JGO23: 5 | JGP23: 5 | JGQ23: 5 | JGR23: 5 | JGS23: 5 | JGT23: 5 | JGU23: 5 | JGV23: 5 | JGW23: 5 | JGX23: 5 | JGY23: 5 | JGZ23: 5 | JHA23: 5 | JHB23: 5 | JHC23: 5 | JHD23: 5 | JHE23: 5 | JHF23: 5 | JHG23: 5 | JHH23: 5 | JHI23: 5 | JHJ23: 5 | JHK23: 5 | JHL23: 5 | JHM23: 5 | JHN23: 5 | JHO23: 5 | JHP23: 5 | JHQ23: 5 | JHR23: 5 | JHS23: 5 | JHT23: 5 | JHU23: 5 | JHV23: 5 | JHW23: 5 | JHX23: 5 | JHY23: 5 | JHZ23: 5 | JIA23: 5 | JIB23: 5 | JIC23: 5 | JID23: 5 | JIE23: 5 | JIF23: 5 | JIG23: 5 | JIH23: 5 | JII23: 5 | JIJ23: 5 | JIK23: 5 | JIL23: 5 | JIM23: 5 | JIN23: 5 | JIO23: 5 | JIP23: 5 | JIQ23: 5 | JIR23: 5 | JIS23: 5 | JIT23: 5 | JIU23: 5 | JIV23: 5 | JIW23: 5 | JIX23: 5 | JIY23: 5 | JIZ23: 5 | JJA23: 5 | JJB23: 5 | JJC23: 5 | JJD23: 5 | JJE23: 5 | JJF23: 5 | JJG23: 5 | JJH23: 5 | JJI23: 5 | JJJ23: 5 | JJK23: 5 | JJL23: 5 | JJM23: 5 | JJN23: 5 | JJO23: 5 | JJP23: 5 | JJQ23: 5 | JJR23: 5 | JJS23: 5 | JJT23: 5 | JJU23: 5 | JJV23: 5 | JJW23: 5 | JJX23: 5 | JJY23: 5 | JJZ23: 5 | JKA23: 5 | JKB23: 5 | JKC23: 5 | JKD23: 5 | JKE23: 5 | JKF23: 5 | JKG23: 5 | JKH23: 5 | JKI23: 5 | JKJ23: 5 | JKK23: 5 | JKL23: 5 | JKM23: 5 | JKN23: 5 | JKO23: 5 | JKP23: 5 | JKQ23: 5 | JKR23: 5 | JKS23: 5 | JKT23: 5 | JKU23: 5 | JKV23: 5 | JKW23: 5 | JKX23: 5 | JKY23: 5 | JKZ23: 5 | JLA23: 5 | JLB23: 5 | JLC23: 5 | JLD23: 5 | JLE23: 5 | JLF23: 5 | JLG23: 5 | JLH23: 5 | JLI23: 5 | JLJ23: 5 | JLK23: 5 | JLL23: 5 | JLM23: 5 | JLN23: 5 | JLO23: 5 | JLP23: 5 | JLQ23: 5 | JLR23: 5 | JLS23: 5 | JLT23: 5 | JLU23: 5 | JLV23: 5 | JLW23: 5 | JLX23: 5 | JLY23: 5 | JLZ23: 5 | JMA23: 5 | JMB23: 5 | JMC23: 5 | JMD23: 5 | JME23: 5 | JMF23: 5 | JMG23: 5 | JMH23: 5 | JMI23: 5 | JMJ23: 5 | JMK23: 5 | JML23: 5 | JMM23: 5 | JMN23: 5 | JMO23: 5 | JMP23: 5 | JMQ23: 5 | JMR23: 5 | JMS23: 5 | JMT23: 5 | JMU23: 5 | JMV23: 5 | JMW23: 5 | JMX23: 5 | JMY23: 5 | JMZ23: 5 | JNA23: 5 | JNB23: 5 | JNC23: 5 | JND23: 5 | JNE23: 5 | JNF23: 5 | JNG23: 5 | JNH23: 5 | JNI23: 5 | JNJ23: 5 | JNK23: 5 | JNL23: 5 | JNM23: 5 | JNN23: 5 | JNO23: 5 | JNP23: 5 | JNQ23: 5 | JNR23: 5 | JNS23: 5 | JNT23: 5 | JNU23: 5 | JNV23: 5 | JNW23: 5 | JNX23: 5 | JNY23: 5 | JNZ23: 5 | JOA23: 5 | JOB23: 5 | JOC23: 5 | JOD23: 5 | JOE23: 5 | JOF23: 5 | JOG23: 5 | JOH23: 5 | JOI23: 5 | JOJ23: 5 | JOK23: 5 | JOL23: 5 | JOM23: 5 | JON23: 5 | JOO23: 5 | JOP23: 5 | JOQ23: 5 | JOR23: 5 | JOS23: 5 | JOT23: 5 | JOU23: 5 | JOV23: 5 | JOW23: 5 | JOX23: 5 | JOY23: 5 | JOZ23: 5 | JPA23: 5 | JPB23: 5 | JPC23: 5 | JPD23: 5 | JPE23: 5 | JPF23: 5 | JPG23: 5 | JPH23: 5 | JPI23: 5 | JPJ23: 5 | JPK23: 5 | JPL23: 5 | JPM23: 5 | JPN23: 5 | JPO23: 5 | JPP23: 5 | JPQ23: 5 | JPR23: 5 | JPS23: 5 | JPT23: 5 | JPU23: 5 | JPV23: 5 | JPW23: 5 | JPX23: 5 | JPY23: 5 | JPZ23: 5 | JQA23: 5 | JQB23: 5 | JQC23: 5 | JQD23: 5 | JQE23: 5 | JQF23: 5 | JQG23: 5 | JQH23: 5 | JQI23: 5 | JQJ23: 5 | JQK23: 5 | JQL23: 5 | JQM23: 5 | JQN23: 5 | JQO23: 5 | JQP23: 5 | JQQ23: 5 | JQR23: 5 | JQS23: 5 | JQT23: 5 | JQU23: 5 | JQV23: 5 | JQW23: 5 | JQX23: 5 | JQY23: 5 | JQZ23: 5 | JRA23: 5 | JRB23: 5 | JRC23: 5 | JRD23: 5 | JRE23: 5 | JRF23: 5 | JRG23: 5 | JRH23: 5 | JRI23: 5 | JRJ23: 5 | JRK23: 5 | JRL23: 5 | JRM23: 5 | JRN23: 5 | JRO23: 5 | JRP23: 5 | JRQ23: 5 | JRR23: 5 | JRS23: 5 | JRT23: 5 | JRU23: 5 | JRV23: 5 | JRW23: 5 | JRX23: 5 | JRY23: 5 | JRZ23: 5 | JSA23: 5 | JSB23: 5 | JSC23: 5 | JSD23: 5 | JSE23: 5 | JSF23: 5 | JSG23: 5 | JSH23: 5 | JSI23: 5 | JSJ23: 5 | JSK23: 5 | JSL23: 5 | JSM23: 5 | JSN23: 5 | JSO23: 5 | JSP23: 5 | JSQ23: 5 | JSR23: 5 | JSS23: 5 | JST23: 5 | JSU23: 5 | JSV23: 5 | JSW23: 5 | JSX23: 5 | JSY23: 5 | JSZ23: 5 | JTA23: 5 | JTB23: 5 | JTC23: 5 | JTD23: 5 | JTE23: 5 | JTF23: 5 | JTG23: 5 | JTH23: 5 | JTI23: 5 | JTJ23: 5 | JTK23: 5 | JTL23: 5 | JTM23: 5 | JTN23: 5 | JTO23: 5 | JTP23: 5 | JTQ23: 5 | JTR23: 5 | JTS23: 5 | JTT23: 5 | JTU23: 5 | JTV23: 5 | JTW23: 5 | JTX23: 5 | JTY23: 5 | JTZ23: 5 | JUA23: 5 | JUB23: 5 | JUC23: 5 | JUD23: 5 | JUE23: 5 | JUF23: 5 | JUG23: 5 | JUH23: 5 | JUI23: 5 | JUJ23: 5 | JUK23: 5 | JUL23: 5 | JUM23: 5 | JUN23: 5 | JUO23: 5 | JUP23: 5 | JUQ23: 5 | JUR23: 5 | JUS23: 5 | JUT23: 5 | JUU23: 5 | JUV23: 5 | JUW23: 5 | JUX23: 5 | JUY23: 5 | JUZ23: 5 | JVA23: 5 | JVB23: 5 | JVC23: 5 | JVD23: 5 | JVE23: 5 | JVF23: 5 | JVG23: 5 | JVH23: 5 | JVI23: 5 | JVJ23: 5 | JVK23: 5 | JVL23: 5 | JVM23: 5 | JVN23: 5 | JVO23: 5 | JVP23: 5 | JVQ23: 5 | JVR23: 5 | JVS23: 5 | JVT23: 5 | JVU23: 5 | JVV23: 5 | JVW23: 5 | JVX23: 5 | JVY23: 5 | JVZ23: 5 | JWA23: 5 | JWB23: 5 | JWC23: 5 | JWD23: 5 | JWE23: 5 | JWF23: 5 | JWG23: 5 | JWH23: 5 | JWI23: 5 | JWJ23: 5 | JWK23: 5 | JWL23: 5 | JWM23: 5 | JWN23: 5 | JWO23: 5 | JWP23: 5 | JWQ23: 5 | JWR23: 5 | JWS23: 5 | JWT23: 5 | JWU23: 5 | JWV23: 5 | JWW23: 5 | JWX23: 5 | JWY23: 5 | JWZ23: 5 | JXA23: 5 | JXB23: 5 | JXC23: 5 | JXD23: 5 | JXE23: 5 | JXF23: 5 | JXG23: 5 | JXH23: 5 | JXI23: 5 | JXJ23: 5 | JXK23: 5 | JXL23: 5 | JXM23: 5 | JXN23: 5 | JXO23: 5 | JXP23: 5 | JXQ23: 5 | JXR23: 5 | JXS23: 5 | JXT23: 5 | JXU23: 5 | JXV23: 5 | JXW23: 5 | JXX23: 5 | JXY23: 5 | JXZ23: 5 | JYA23: 5 | JYB23: 5 | JYC23: 5 | JYD23: 5 | JYE23: 5 | JYF23: 5 | JYG23: 5 | JYH23: 5 | JYI23: 5 | JYJ23: 5 | JYK23: 5 | JYL23: 5 | JYM23: 5 | JYN23: 5 | JYO23: 5 | JYP23: 5 | JYQ23: 5 | JYR23: 5 | JYS23: 5 | JYT23: 5 | JYU23: 5 | JYV23: 5 | JYW23: 5 | JYX23: 5 | JYY23: 5 | JYZ23: 5 | JZA23: 5 | JZB23: 5 | JZC23: 5 | JZD23: 5 | JZE23: 5 | JZF23: 5 | JZG23: 5 | JZH23: 5 | JZI23: 5 | JZJ23: 5 | JZK23: 5 | JZL23: 5 | JZM23: 5 | JZN23: 5 | JZO23: 5 | JZP23: 5 | JZQ23: 5 | JZR23: 5 | JZS23: 5 | JZT23: 5 | JZU23: 5 | JZV23: 5 | JZW23: 5 | JZX23: 5 | JZY23: 5 | JZZ23: 5 | KAA23: 5 | KAB23: 5 | KAC23: 5 | KAD23: 5 | KAE23: 5 | KAF23: 5 | KAG23: 5 | KAH23: 5 | KAI23: 5 | KAJ23: 5 | KAK23: 5 | KAL23: 5 | KAM23: 5 | KAN23: 5 | KAO23: 5 | KAP23: 5 | KAQ23: 5 | KAR23: 5 | KAS23: 5 | KAT23: 5 | KAU23: 5 | KAV23: 5 | KAW23: 5 | KAX23: 5 | KAY23: 5 | KAZ23: 5 | KBA23: 5 | KBB23: 5 | KBC23: 5 | KBD23: 5 | KBE23: 5 | KBF23: 5 | KBG23: 5 | KBH23: 5 | KBI23: 5 | KBJ23: 5 | KBK23: 5 | KBL23: 5 | KBM23: 5 | KBN23: 5 | KBO23: 5 | KBP23: 5 | KBQ23: 5 | KBR23: 5 | KBS23: 5 | KBT23: 5 | KBU23: 5 | KBV23: 5 | KBW23: 5 | KBX23: 5 | KBY23: 5 | KBZ23: 5 | KCA23: 5 | KCB23: 5 | KCC23: 5 | KCD23: 5 | KCE23: 5 | KCF23: 5 | KCG23: 5 | KCH23: 5 | KCI23: 5 | KCJ23: 5 | KCK23: 5 | KCL23: 5 | KCM23: 5 | KCN23: 5 | KCO23: 5 | KCP23: 5 | KCQ23: 5 | KCR23: 5 | KCS23: 5 | KCT23: 5 | KCU23: 5 | KCV23: 5 | KCW23: 5 | KCX23: 5 | KCY23: 5 | KCZ23: 5 | KDA23: 5 | KDB23: 5 | KDC23: 5 | KDD23: 5 | KDE23: 5 | KDF23: 5 | KDG23: 5 | KDH23: 5 | KDI23: 5 | KDJ23: 5 | KDK23: 5 | KDL23: 5 | KDM23: 5 | KDN23: 5 | KDO23: 5 | KDP23: 5 | KDQ23: 5 | KDR23: 5 | KDS23: 5 | KDT23: 5 | KDU23: 5 | KDV23: 5 | KDW23: 5 | KDX23: 5 | KDY23: 5 | KDZ23: 5 | KEA23: 5 | KEB23: 5 | KEC23: 5 | KED23: 5 | KEE23: 5 | KEF23: 5 | KEG23: 5 | KEH23: 5 | KEI23: 5 | KEJ23: 5 | KEK23: 5 | KEL23: 5 | KEM23: 5 | KEN23: 5 | KEO23: 5 | KEP23: 5 | KEQ23: 5 | KER23: 5 | KES23: 5 | KET23: 5 | KEU23: 5 | KEV23: 5 | KEW23: 5 | KEX23: 5 | KEY23: 5 | KEZ23: 5 | KFA23: 5 | KFB23: 5 | KFC23: 5 | KFD23: 5 | KFE23: 5 | KFF23: 5 | KFG23: 5 | KFH23: 5 | KFI23: 5 | KFJ23: 5 | KFK23: 5 | KFL23: 5 | KFM23: 5 | KFN23: 5 | KFO23: 5 | KFP23: 5 | KFQ23: 5 | KFR23: 5 | KFS23: 5 | KFT23: 5 | KFU23: 5 | KFV23: 5 | KFW23: 5 | KFX23: 5 | KFY23: 5 | KFZ23: 5 | KGA23: 5 | KGB23: 5 | KGC23: 5 | KGD23: 5 | KGE23: 5 | KGF23: 5 | KGG23: 5 | KGH23: 5 | KGI23: 5 | KGJ23: 5 | KGK23: 5 | KGL23: 5 | KGM23: 5 | KGN23: 5 | KGO23: 5 | KGP23: 5 | KGQ23: 5 | KGR23: 5 | KGS23: 5 | KGT23: 5 | KGU23: 5 | KGV23: 5 | KGW23: 5 | KGX23: 5 | KGY23: 5 | KGZ23: 5 | KHA23: 5 | KHB23: 5 | KHC23: 5 | KHD23: 5 | KHE23: 5 | KHF23: 5 | KHG23: 5 | KHH23: 5 | KHI23: 5 | KHJ23: 5 | KHK23: 5 | KHL23: 5 | KHM23: 5 | KHN23: 5 | KHO23: 5 | KHP23: 5 | KHQ23: 5 | KHR23: 5 | KHS23: 5 | KHT23: 5 | KHU23: 5 | KHV23: 5 | KHW23: 5 | KHX23: 5 | KHY23: 5 | KHZ23: 5 | KIA23: 5 | KIB23: 5 | KIC23: 5 | KID23: 5 | KIE23: 5 | KIF23: 5 | KIG23: 5 | KIH23: 5 | KII23: 5 | KIJ23: 5 | KIK23: 5 | KIL23: 5 | KIM23: 5 | KIN23: 5 | KIO23: 5 | KIP23: 5 | KIQ23: 5 | KIR23: 5 | KIS23: 5 | KIT23: 5 | KIU23: 5 | KIV23: 5 | KIW23: 5 | KIX23: 5 | KIY23: 5 | KIZ23: 5 | KJA23: 5 | KJB23: 5 | KJC23: 5 | KJD23: 5 | KJE23: 5 | KJF23: 5 | KJG23: 5 | KJH23: 5 | KJI23: 5 | KJJ23: 5 | KJK23: 5 | KJL23: 5 | KJM23: 5 | KJN23: 5 | KJO23: 5 | KJP23: 5 | KJQ23: 5 | KJR23: 5 | KJS23: 5 | KJT23: 5 | KJU23: 5 | KJV23: 5 | KJW23: 5 | KJX23: 5 | KJY23: 5 | KJZ23: 5 | KKA23: 5 | KKB23: 5 | KKC23: 5 | KKD23: 5 | KKE23: 5 | KKF23: 5 | KKG23: 5 | KKH23: 5 | KKI23: 5 | KKJ23: 5 | KKK23: 5 | KKL23: 5 | KKM23: 5 | KKN23: 5 | KKO23: 5 | KKP23: 5 | KKQ23: 5 | KKR23: 5 | KKS23: 5 | KKT23: 5 | KKU23: 5 | KKV23: 5 | KKW23: 5 | KKX23: 5 | KKY23: 5 | KKZ23: 5 | KLA23: 5 | KLB23: 5 | KLC23: 5 | KLD23: 5 | KLE23: 5 | KLF23: 5 | KLG23: 5 | KLH23: 5 | KLI23: 5 | KLJ23: 5 | KLK23: 5 | KLL23: 5 | KLM23: 5 | KLN23: 5 | KLO23: 5 | KLP23: 5 | KLQ23: 5 | KLR23: 5 | KLS23: 5 | KLT23: 5 | KLU23: 5 | KLV23: 5 | KLW23: 5 | KLX23: 5 | KLY23: 5 | KLZ23: 5 | KMA23: 5 | KMB23: 5 | KMC23: 5 | KMD23: 5 | KME23: 5 | KMF23: 5 | KMG23: 5 | KMH23: 5 | KMI23: 5 | KMJ23: 5 | KMK23: 5 | KML23: 5 | KMM23: 5 | KMN23: 5 | KMO23: 5 | KMP23: 5 | KMQ23: 5 | KMR23: 5 | KMS23: 5 | KMT23: 5 | KMU23: 5 | KMV23: 5 | KMW23: 5 | KMX23: 5 | KMY23: 5 | KMZ23: 5 | KNA23: 5 | KNB23: 5 | KNC23: 5 | KND23: 5 | KNE23: 5 | KNF23: 5 | KNG23: 5 | KNH23: 5 | KNI23: 5 | KNJ23: 5 | KNK23: 5 | KNL23: 5 | KNM23: 5 | KNN23: 5 | KNO23: 5 | KNP23: 5 | KNQ23: 5 | KNR23: 5 | KNS23: 5 | KNT23: 5 | KNU23: 5 | KNV23: 5 | KNW23: 5 | KNX23: 5 | KNY23: 5 | KNZ23: 5 | KOA23: 5 | KOB23: 5 | KOC23: 5 | KOD23: 5 | KOE23: 5 | KOF23: 5 | KOG23: 5 | KOH23: 5 | KOI23: 5 | KOJ23: 5 | KOK23: 5 | KOL23: 5 | KOM23: 5 | KON23: 5 | KOO23: 5 | KOP23: 5 | KOQ23: 5 | KOR23: 5 | KOS23: 5 | KOT23: 5 | KOU23: 5 | KOV23: 5 | KOW23: 5 | KOX23: 5 | KOY23: 5 | KOZ23: 5 | KPA23: 5 | KPB23: 5 | KPC23: 5 | KPD23: 5 | KPE23: 5 | KPF23: 5 | KPG23: 5 | KPH23: 5 | KPI23: 5 | KPJ23: 5 | KPK23: 5 | KPL23: 5 | KPM23: 5 | KPN23: 5 | KPO23: 5 | KPP23: 5 | KPQ23: 5 | KPR23: 5 | KPS23: 5 | KPT23: 5 | KPU23: 5 | KPV23: 5 | KPW23: 5 | KPX23: 5 | KPY23: 5 | KPZ23: 5 | KQA23: 5 | KQB23: 5 | KQC23: 5 | KQD23: 5 | KQE23: 5 | KQF23: 5 | KQG23: 5 | KQH23: 5 | KQI23: 5 | KQJ23: 5 | KQK23: 5 | KQL23: 5 | KQM23: 5 | KQN23: 5 | KQO23: 5 | KQP23: 5 | KQQ23: 5 | KQR23: 5 | KQS23: 5 | KQT23: 5 | KQU23: 5 | KQV23: 5 | KQW23: 5 | KQX23: 5 | KQY23: 5 | KQZ23: 5 | KRA23: 5 | KRB23: 5 | KRC23: 5 | KRD23: 5 | KRE23: 5 | KRF23: 5 | KRG23: 5 | KRH23: 5 | KRI23: 5 | KRJ23: 5 | KRK23: 5 | KRL23: 5 | KRM23: 5 | KRN23: 5 | KRO23: 5 | KRP23: 5 | KRQ23: 5 | KRR23: 5 | KRS23: 5 | KRT23: 5 | KRU23: 5 | KRV23: 5 | KRW23: 5 | KRX23: 5 | KRY23: 5 | KRZ23: 5 | KSA23: 5 | KSB23: 5 | KSC23: 5 | KSD23: 5 | KSE23: 5 | KSF23: 5 | KSG23: 5 | KSH23: 5 | KSI23: 5 | KSJ23: 5 | KSK23: 5 | KSL23: 5 | KSM23: 5 | KSN23: 5 | KSO23: 5 | KSP23: 5 | KSQ23: 5 | KSR23: 5 | KSS23: 5 | KST23: 5 | KSU23: 5 | KSV23: 5 | KSW23: 5 | KSX23: 5 | KSY23: 5 | KSZ23: 5 | KTA23: 5 | KTB23: 5 | KTC23: 5 | KTD23: 5 | KTE23: 5 | KTF23: 5 | KTG23: 5 | KTH23: 5 | KTI23: 5 | KTJ23: 5 | KTK23: 5 | KTL23: 5 | KTM23: 5 | KTN23: 5 | KTO23: 5 | KTP23: 5 | KTQ23: 5 | KTR23: 5 | KTS23: 5 | KTT23: 5 | KTU23: 5 | KTV23: 5 | KTW23: 5 | KTX23: 5 | KTY23: 5 | KTZ23: 5 | KUA23: 5 | KUB23: 5 | KUC23: 5 | KUD23: 5 | KUE23: 5 | KUF23: 5 | KUG23: 5 | KUH23: 5 | KUI23: 5 | KUJ23: 5 | KUK23: 5 | KUL23: 5 | KUM23: 5 | KUN23: 5 | KUO23: 5 | KUP23: 5 | KUQ23: 5 | KUR23: 5 | KUS23: 5 | KUT23: 5 | KUU23: 5 | KUV23: 5 | KUW23: 5 | KUX23: 5 | KUY23: 5 | KUZ23: 5 | KVA23: 5 | KVB23: 5 | KVC23: 5 | KVD23: 5 | KVE23: 5 | KVF23: 5 | KVG23: 5 | KVH23: 5 | KVI23: 5 | KVJ23: 5 | KVK23: 5 | KVL23: 5 | KVM23: 5 | KVN23: 5 | KVO23: 5 | KVP23: 5 | KVQ23: 5 | KVR23: 5 | KVS23: 5 | KVT23: 5 | KVU23: 5 | KVV23: 5 | KVW23: 5 | KVX23: 5 | KVY23: 5 | KVZ23: 5 | KWA23: 5 | KWB23: 5 | KWC23: 5 | KWD23: 5 | KWE23: 5 | KWF23: 5 | KWG23: 5 | KWH23: 5 | KWI23: 5 | KWJ23: 5 | KWK23: 5 | KWL23: 5 | KWM23: 5 | KWN23: 5 | KWO23: 5 | KWP23: 5 | KWQ23: 5 | KWR23: 5 | KWS23: 5 | KWT23: 5 | KWU23: 5 | KWV23: 5 | KWW23: 5 | KWX23: 5 | KWY23: 5 | KWZ23: 5 | KXA23: 5 | KXB23: 5 | KXC23: 5 | KXD23: 5 | KXE23: 5 | KXF23: 5 | KXG23: 5 | KXH23: 5 | KXI23: 5 | KXJ23: 5 | KXK23: 5 | KXL23: 5 | KXM23: 5 | KXN23: 5 | KXO23: 5 | KXP23: 5 | KXQ23: 5 | KXR23: 5 | KXS23: 5 | KXT23: 5 | KXU23: 5 | KXV23: 5 | KXW23: 5 | KXX23: 5 | KXY23: 5 | KXZ23: 5 | KYA23: 5 | KYB23: 5 | KYC23: 5 | KYD23: 5 | KYE23: 5 | KYF23: 5 | KYG23: 5 | KYH23: 5 | KYI23: 5 | KYJ23: 5 | KYK23: 5 | KYL23: 5 | KYM23: 5 | KYN23: 5 | KYO23: 5 | KYP23: 5 | KYQ23: 5 | KYR23: 5 | KYS23: 5 | KYT23: 5 | KYU23: 5 | KYV23: 5 | KYW23: 5 | KYX23: 5 | KYY23: 5 | KYZ23: 5 | KZA23: 5 | KZB23: 5 | KZC23: 5 | KZD23: 5 | KZE23: 5 | KZF23: 5 | KZG23: 5 | KZH23: 5 | KZI23: 5 | KZJ23: 5 | KZK23: 5 | KZL23: 5 | KZM23: 5 | KZN23: 5 | KZO23: 5 | KZP23: 5 | KZQ23: 5 | KZR23: 5 | KZS23: 5 | KZT23: 5 | KZU23: 5 | KZV23: 5 | KZW23: 5 | KZX23: 5 | KZY23: 5 | KZZ23: 5 | LAA23: 5 | LAB23: 5 | LAC23: 5 | LAD23: 5 | LAE23: 5 | LAF23: 5 | LAG23: 5 | LAH23: 5 | LAI23: 5 | LAJ23: 5 | LAK23: 5 | LAL23: 5 | LAM23: 5 | LAN23: 5 | LAO23: 5 | LAP23: 5 | LAQ23: 5 | LAR23: 5 | LAS23: 5 | LAT23: 5 | LAU23: 5 | LAV23: 5 | LAW23: 5 | LAX23: 5 | LAY23: 5 | LAZ23: 5 | LBA23: 5 | LBB23: 5 | LBC23: 5 | LBD23: 5 | LBE23: 5 | LBF23: 5 | LBG23: 5 | LBH23: 5 | LBI23: 5 | LBJ23: 5 | LBK23: 5 | LBL23: 5 | LBM23: 5 | LBN23: 5 | LBO23: 5 | LBP23: 5 | LBQ23: 5 | LBR23: 5 | LBS23: 5 | LBT23: 5 | LBU23: 5 | LBV23: 5 | LBW23: 5 | LBX23: 5 | LBY23: 5 | LBZ23: 5 | LCA23: 5 | LCB23: 5 | LCC23: 5 | LCD23: 5 | LCE23: 5 | LCF23: 5 | LCG23: 5 | LCH23: 5 | LCI23: 5 | LCJ23: 5 | LCK23: 5 | LCL23: 5 | LCM23: 5 | LCN23: 5 | LCO23: 5 | LCP23: 5 | LCQ23: 5 | LCR23: 5 | LCS23: 5 | LCT23: 5 | LCU23: 5 | LCV23: 5 | LCW23: 5 | LCX23: 5 | LCY23: 5 | LCZ23: 5 | LDA23: 5 | LDB23: 5 | LDC23: 5 | LDD23: 5 | LDE23: 5 | LDF23: 5 | LDG23: 5 | LDH23: 5 | LDI23: 5 | LDJ23: 5 | LDK23: 5 | LDL23: 5 | LDM23: 5 | LDN23: 5 | LDO23: 5 | LDP23: 5 | LDQ23: 5 | LDR23: 5 | LDS23: 5 | LDT23: 5 | LDU23: 5 | LDV23: 5 | LDW23: 5 | LDX23: 5 | LDY23: 5 | LDZ23: 5 | LEA23: 5 | LEB23: 5 | LEC23: 5 | LED23: 5 | LEE23: 5 | LEF23: 5 | LEG23: 5 | LEH23: 5 | LEI23: 5 | LEJ23: 5 | LEK23: 5 | LEL23: 5 | LEM23: 5 | LEN23: 5 | LEO23: 5 | LEP23: 5 | LEQ23: 5 | LER23: 5 | LES23: 5 | LET23: 5 | LEU23: 5 | LEV23: 5 | LEW23: 5 | LEX23: 5 | LEY23: 5 | LEZ23: 5 | LFA23: 5 | LFB23: 5 | LFC23: 5 | LFD23: 5 | LFE23: 5 | LFF23: 5 | LFG23: 5 | LFH23: 5 | LFI23: 5 | LFJ23: 5 | LFK23: 5 | LFL23: 5 | LFM23: 5 | LFN23: 5 | LFO23: 5 | LFP23: 5 | LFQ23: 5 | LFR23: 5 | LFS23: 5 | LFT23: 5 | LFU23: 5 | LFV23: 5 | LFW23: 5 | LFX23: 5 | LFY23: 5 | LFZ23: 5 | LGA23: 5 | LGB23: 5 | LGC23: 5 | LGD23: 5 | LGE23: 5 | LGF23: 5 | LGG23: 5 | LGH23: 5 | LGI23: 5 | LGJ23: 5 | LGK23: 5 | LGL23: 5 | LGM23: 5 | LGN23: 5 | LGO23: 5 | LGP23: 5 | LGQ23: 5 | LGR23: 5 | LGS23: 5 | LGT23: 5 | LGU23: 5 | LGV23: 5 | LGW23: 5 | LGX23: 5 | LGY23: 5 | LGZ23: 5 | LHA23: 5 | LHB23: 5 | LHC23: 5 | LHD23: 5 | LHE23: 5 | LHF23: 5 | LHG23: 5 | LHH23: 5 | LHI23: 5 | LHJ23: 5 | LHK23: 5 | LHL23: 5 | LHM23: 5 | LHN23: 5 | LHO23: 5 | LHP23: 5 | LHQ23: 5 | LHR23: 5 | LHS23: 5 | LHT23: 5 | LHU23: 5 | LHV23: 5 | LHW23: 5 | LHX23: 5 | LHY23: 5 | LHZ23: 5 | LIA23: 5 | LIB23: 5 | LIC23: 5 | LID23: 5 | LIE23: 5 | LIF23: 5 | LIG23: 5 | LIH23: 5 | LII23: 5 | LIJ23: 5 | LIK23: 5 | LIL23: 5 | LIM23: 5 | LIN23: 5 | LIO23: 5 | LIP23: 5 | LIQ23: 5 | LIR23: 5 | LIS23: 5 | LIT23: 5 | LIU23: 5 | LIV23: 5 | LIW23: 5 | LIX23: 5 | LIY23: 5 | LIZ23: 5 | LJA23: 5 | LJB23: 5 | LJC23: 5 | LJD23: 5 | LJE23: 5 | LJF23: 5 | LJG23: 5 | LJH23: 5 | LJI23: 5 | LJJ23: 5 | LJK23: 5 | LJL23: 5 | LJM23: 5 | LJN23: 5 | LJO23: 5 | LJP23: 5 | LJQ23: 5 | LJR23: 5 | LJS23: 5 | LJT23: 5 | LJU23: 5 | LJV23: 5 | LJW23: 5 | LJX23: 5 | LJY23: 5 | LJZ23: 5 | LKA23: 5 | LKB23: 5 | LKC23: 5 | LKD23: 5 | LKE23: 5 | LKF23: 5 | LKG23: 5 | LKH23: 5 | LKI23: 5 | LKJ23: 5 | LKK23: 5 | LKL23: 5 | LKM23: 5 | LKN23: 5 | LKO23: 5 | LKP23: 5 | LKQ23: 5 | LKR23: 5 | LKS23: 5 | LKT23: 5 | LKU23: 5 | LKV23: 5 | LKW23: 5 | LKX23: 5 | LKY23: 5 | LKZ23: 5 | LLA23: 5 | LLB23: 5 | LLC23: 5 | LLD23: 5 | LLE23: 5 | LLF23: 5 | LLG23: 5 | LLH23: 5 | LLI23: 5 | LLJ23: 5 | LLK23: 5 | LLL23: 5 | LLM23: 5 | LLN23: 5 | LLO23: 5 | LLP23: 5 | LLQ23: 5 | LLR23: 5 | LLS23: 5 | LLT23: 5 | LLU23: 5 | LLV23: 5 | LLW23: 5 | LLX23: 5 | LLY23: 5 | LLZ23: 5 | LMA23: 5 | LMB23: 5 | LMC23: 5 | LMD23: 5 | LME23: 5 | LMF23: 5 | LMG23: 5 | LMH23: 5 | LMI23: 5 | LMJ23: 5 | LMK23: 5 | LML23: 5 | LMM23: 5 | LMN23: 5 | LMO23: 5 | LMP23: 5 | LMQ23: 5 | LMR23: 5 | LMS23: 5 | LMT23: 5 | LMU23: 5 | LMV23: 5 | LMW23: 5 | LMX23: 5 | LMY23: 5 | LMZ23: 5 | LNA23: 5 | LNB23: 5 | LNC23: 5 | LND23: 5 | LNE23: 5 | LNF23: 5 | LNG23: 5 | LNH23: 5 | LNI23: 5 | LNJ23: 5 | LNK23: 5 | LNL23: 5 | LNM23: 5 | LNN23: 5 | LNO23: 5 | LNP23: 5 | LNQ23: 5 | LNR23: 5 | LNS23: 5 | LNT23: 5 | LNU23: 5 | LNV23: 5 | LNW23: 5 | LNX23: 5 | LNY23: 5 | LNZ23: 5 | LOA23: 5 | LOB23: 5 | LOC23: 5 | LOD23: 5 | LOE23: 5 | LOF23: 5 | LOG23: 5 | LOH23: 5 | LOI23: 5 | LOJ23: 5 | LOK23: 5 | LOL23: 5 | LOM23: 5 | LON23: 5 | LOO23: 5 | LOP23: 5 | LOQ23: 5 | LOR23: 5 | LOS23: 5 | LOT23: 5 | LOU23: 5 | LOV23: 5 | LOW23: 5 | LOX23: 5 | LOY23: 5 | LOZ23: 5 | LPA23: 5 | LPB23: 5 | LPC23: 5 | LPD23: 5 | LPE23: 5 | LPF23: 5 | LPG23: 5 | LPH23: 5 | LPI23: 5 | LPJ23: 5 | LPK23: 5 | LPL23: 5 | LPM23: 5 | LPN23: 5 | LPO23: 5 | LPP23: 5 | LPQ23: 5 | LPR23: 5 | LPS23: 5 | LPT23: 5 | LPU23: 5 | LPV23: 5 | LPW23: 5 | LPX23: 5 | LPY23: 5 | LPZ23: 5 | LQA23: 5 | LQB23: 5 | LQC23: 5 | LQD23: 5 | LQE23: 5 | LQF23: 5 | LQG23: 5 | LQH23: 5 | LQI23: 5 | LQJ23: 5 | LQK23: 5 | LQL23: 5 | LQM23: 5 | LQN23: 5 | LQO23: 5 | LQP23: 5 | LQQ23: 5 | LQR23: 5 | LQS23: 5 | LQT23: 5 | LQU23: 5 | LQV23: 5 | LQW23: 5 | LQX23: 5 | LQY23: 5 | LQZ23: 5 | LRA23: 5 | LRB23: 5 | LRC23: 5 | LRD23: 5 | LRE23: 5 | LRF23: 5 | LRG23: 5 | LRH23: 5 | LRI23: 5 | LRJ23: 5 | LRK23: 5 | LRL23: 5 | LRM23: 5 | LRN23: 5 | LRO23: 5 | LRP23: 5 | LRQ23: 5 | LRR23: 5 | LRS23: 5 | LRT23: 5 | LRU23: 5 | LRV23: 5 | LRW23: 5 | LRX23: 5 | LRY23: 5 | LRZ23: 5 | LSA23: 5 | LSB23: 5 | LSC23: 5 | LSD23: 5 | LSE23: 5 | LSF23: 5 | LSG23: 5 | LSH23: 5 | LSI23: 5 | LSJ23: 5 | LSK23: 5 | LSL23: 5 | LSM23: 5 | LSN23: 5 | LSO23: 5 | LSP23: 5 | LSQ23: 5 | LSR23: 5 | LSS23: 5 | LST23: 5 | LSU23: 5 | LSV23: 5 | LSW23: 5 | LSX23: 5 | LSY23: 5 | LSZ23: 5 | LTA23: 5 | LTB23: 5 | LTC23: 5 | LTD23: 5 | LTE23: 5 | LTF23: 5 | LTG23: 5 | LTH23: 5 | LTI23: 5 | LTJ23: 5 | LTK23: 5 | LTL23: 5 | LTM23: 5 | LTN23: 5 | LTO23: 5 | LTP23: 5 | LTQ23: 5 | LTR23: 5 | LTS23: 5 | LTT23: 5 | LTU23: 5 | LTV23: 5 | LTW23: 5 | LTX23: 5 | LTY23: 5 | LTZ23: 5 | LUA23: 5 | LUB23: 5 | LUC23: 5 | LUD23: 5 | LUE23: 5 | LUF23: 5 | LUG23: 5 | LUH23: 5 | LUI23: 5 | LUJ23: 5 | LUK23: 5 | LUL23: 5 | LUM23: 5 | LUN23: 5 | LUO23: 5 | LUP23: 5 | LUQ23: 5 | LUR23: 5 | LUS23: 5 | LUT23: 5 | LUU23: 5 | LUV23: 5 | LUW23: 5 | LUX23: 5 | LUY23: 5 | LUZ23: 5 | LVA23: 5 | LVB23: 5 | LVC23: 5 | LVD23: 5 | LVE23: 5 | LVF23: 5 | LVG23: 5 | LVH23: 5 | LVI23: 5 | LVJ23: 5 | LVK23: 5 | LVL23: 5 | LVM23: 5 | LVN23: 5 | LVO23: 5 | LVP23: 5 | LVQ23: 5 | LVR23: 5 | LVS23: 5 | LVT23: 5 | LVU23: 5 | LVV23: 5 | LVW23: 5 | LVX23: 5 | LVY23: 5 | LVZ23: 5 | LWA23: 5 | LWB23: 5 | LWC23: 5 | LWD23: 5 | LWE23: 5 | LWF23: 5 | LWG23: 5 | LWH23: 5 | LWI23: 5 | LWJ23: 5 | LWK23: 5 | LWL23: 5 | LWM23: 5 | LWN23: 5 | LWO23: 5 | LWP23: 5 | LWQ23: 5 | LWR23: 5 | LWS23: 5 | LWT23: 5 | LWU23: 5 | LWV23: 5 | LWW23: 5 | LWX23: 5 | LWY23: 5 | LWZ23: 5 | LXA23: 5 | LXB23: 5 | LXC23: 5 | LXD23: 5 | LXE23: 5 | LXF23: 5 | LXG23: 5 | LXH23: 5 | LXI23: 5 | LXJ23: 5 | LXK23: 5 | LXL23: 5 | LXM23: 5 | LXN23: 5 | LXO23: 5 | LXP23: 5 | LXQ23: 5 | LXR23: 5 | LXS23: 5 | LXT23: 5 | LXU23: 5 | LXV23: 5 | LXW23: 5 | LXX23: 5 | LXY23: 5 | LXZ23: 5 | LYA23: 5 | LYB23: 5 | LYC23: 5 | LYD23: 5 | LYE23: 5 | LYF23: 5 | LYG23: 5 | LYH23: 5 | LYI23: 5 | LYJ23: 5 | LYK23: 5 | LYL23: 5 | LYM23: 5 | LYN23: 5 | LYO23: 5 | LYP23: 5 | LYQ23: 5 | LYR23: 5 | LYS23: 5 | LYT23: 5 | LYU23: 5 | LYV23: 5 | LYW23: 5 | LYX23: 5 | LYY23: 5 | LYZ23: 5 | LZA23: 5 | LZB23: 5 | LZC23: 5 | LZD23: 5 | LZE23: 5 | LZF23: 5 | LZG23: 5 | LZH23: 5 | LZI23: 5 | LZJ23: 5 | LZK23: 5 | LZL23: 5 | LZM23: 5 | LZN23: 5 | LZO23: 5 | LZP23: 5 | LZQ23: 5 | LZR23: 5 | LZS23: 5 | LZT23: 5 | LZU23: 5 | LZV23: 5 | LZW23: 5 | LZX23: 5 | LZY23: 5 | LZZ23: 5 | MAA23: 5 | MAB23: 5 | MAC23: 5 | MAD23: 5 | MAE23: 5 | MAF23: 5 | MAG23: 5 | MAH23: 5 | MAI23: 5 | MAJ23: 5 | MAK23: 5 | MAL23: 5 | MAM23: 5 | MAN23: 5 | MAO23: 5 | MAP23: 5 | MAQ23: 5 | MAR23: 5 | MAS23: 5 | MAT23: 5 | MAU23: 5 | MAV23: 5 | MAW23: 5 | MAX23: 5 | MAY23: 5 | MAZ23: 5 | MBA23: 5 | MBB23: 5 | MBC23: 5 | MBD23: 5 | MBE23: 5 | MBF23: 5 | MBG23: 5 | MBH23: 5 | MBI23: 5 | MBJ23: 5 | MBK23: 5 | MBL23: 5 | MBM23: 5 | MBN23: 5 | MBO23: 5 | MBP23: 5 | MBQ23: 5 | MBR23: 5 | MBS23: 5 | MBT23: 5 | MBU23: 5 | MBV23: 5 | MBW23: 5 | MBX23: 5 | MBY23: 5 | MBZ23: 5 | MCA23: 5 | MCB23: 5 | MCC23: 5 | MCD23: 5 | MCE23: 5 | MCF23: 5 | MCG23: 5 | MCH23: 5 | MCI23: 5 | MCJ23: 5 | MCK23: 5 | MCL23: 5 | MCM23: 5 | MCN23: 5 | MCO23: 5 | MCP23: 5 | MCQ23: 5 | MCR23: 5 | MCS23: 5 | MCT23: 5 | MCU23: 5 | MCV23: 5 | MCW23: 5 | MCX23: 5 | MCY23: 5 | MCZ23: 5 | MDA23: 5 | MDB23: 5 | MDC23: 5 | MDD23: 5 | MDE23: 5 | MDF23: 5 | MDG23: 5 | MDH23: 5 | MDI23: 5 | MDJ23: 5 | MDK23: 5 | MDL23: 5 | MDM23: 5 | MDN23: 5 | MDO23: 5 | MDP23: 5 | MDQ23: 5 | MDR23: 5 | MDS23: 5 | MDT23: 5 | MDU23: 5 | MDV23: 5 | MDW23: 5 | MDX23: 5 | MDY23: 5 | MDZ23: 5 | MEA23: 5 | MEB23: 5 | MEC23: 5 | MED23: 5 | MEE23: 5 | MEF23: 5 | MEG23: 5 | MEH23: 5 | MEI23: 5 | MEJ23: 5 | MEK23: 5 | MEL23: 5 | MEM23: 5 | MEN23: 5 | MEO23: 5 | MEP23: 5 | MEQ23: 5 | MER23: 5 | MES23: 5 | MET23: 5 | MEU23: 5 | MEV23: 5 | MEW23: 5 | MEX23: 5 | MEY23: 5 | MEZ23: 5 | MFA23: 5 | MFB23: 5 | MFC23: 5 | MFD23: 5 | MFE23: 5 | MFF23: 5 | MFG23: 5 | MFH23: 5 | MFI23: 5 | MFJ23: 5 | MFK23: 5 | MFL23: 5 | MFM23: 5 | MFN23: 5 | MFO23: 5 | MFP23: 5 | MFQ23: 5 | MFR23: 5 | MFS23: 5 | MFT23: 5 | MFU23: 5 | MFV23: 5 | MFW23: 5 | MFX23: 5 | MFY23: 5 | MFZ23: 5 | MGA23: 5 | MGB23: 5 | MGC23: 5 | MGD23: 5 | MGE23: 5 | MGF23: 5 | MGG23: 5 | MGH23: 5 | MGI23: 5 | MGJ23: 5 | MGK23: 5 | MGL23: 5 | MGM23: 5 | MGN23: 5 | MGO23: 5 | MGP23: 5 | MGQ23: 5 | MGR23: 5 | MGS23: 5 | MGT23: 5 | MGU23: 5 | MGV23: 5 | MGW23: 5 | MGX23: 5 | MGY23: 5 | MGZ23: 5 | MHA23: 5 | MHB23: 5 | MHC23: 5 | MHD23: 5 | MHE23: 5 | MHF23: 5 | MHG23: 5 | MHH23: 5 | MHI23: 5 | MHJ23: 5 | MHK23: 5 | MHL23: 5 | MHM23: 5 | MHN23: 5 | MHO23: 5 | MHP23: 5 | MHQ23: 5 | MHR23: 5 | MHS23: 5 | MHT23: 5 | MHU23: 5 | MHV23: 5 | MHW23: 5 | MHX23: 5 | MHY23: 5 | MHZ23: 5 | MIA23: 5 | MIB23: 5 | MIC23: 5 | MID23: 5 | MIE23: 5 | MIF23: 5 | MIG23: 5 | MIH23: 5 | MII23: 5 | MIJ23: 5 | MIK23: 5 | MIL23: 5 | MIM23: 5 | MIN23: 5 | MIO23: 5 | MIP23: 5 | MIQ23: 5 | MIR23: 5 | MIS23: 5 | MIT23: 5 | MIU23: 5 | MIV23: 5 | MIW23: 5 | MIX23: 5 | MIY23: 5 | MIZ23: 5 | MJA23: 5 | MJB23: 5 | MJC23: 5 | MJD23: 5 | MJE23: 5 | MJF23: 5 | MJG23: 5 | MJH23: 5 | MJI23: 5 | MJJ23: 5 | MJK23: 5 | MJL23: 5 | MJM23: 5 | MJN23: 5 | MJO23: 5 | MJP23: 5 | MJQ23: 5 | MJR23: 5 | MJS23: 5 | MJT23: 5 | MJU23: 5 | MJV23: 5 | MJW23: 5 | MJX23: 5 | MJY23: 5 | MJZ23: 5 | MKA23: 5 | MKB23: 5 | MKC23: 5 | MKD23: 5 | MKE23: 5 | MKF23: 5 | MKG23: 5 | MKH23: 5 | MKI23: 5 | MKJ23: 5 | MKK23: 5 | MKL23: 5 | MKM23: 5 | MKN23: 5 | MKO23: 5 | MKP23: 5 | MKQ23: 5 | MKR23: 5 | MKS23: 5 | MKT23: 5 | MKU23: 5 | MKV23: 5 | MKW23: 5 | MKX23: 5 | MKY23: 5 | MKZ23: 5 | MLA23: 5 | MLB23: 5 | MLC23: 5 | MLD23: 5 | MLE23: 5 | MLF23: 5 | MLG23: 5 | MLH23: 5 | MLI23: 5 | MLJ23: 5 | MLK23: 5 | MLL23: 5 | MLM23: 5 | MLN23: 5 | MLO23: 5 | MLP23: 5 | MLQ23: 5 | MLR23: 5 | MLS23: 5 | MLT23: 5 | MLU23: 5 | MLV23: 5 | MLW23: 5 | MLX23: 5 | MLY23: 5 | MLZ23: 5 | MMA23: 5 | MMB23: 5 | MMC23: 5 | MMD23: 5 | MME23: 5 | MMF23: 5 | MMG23: 5 | MMH23: 5 | MMI23: 5 | MMJ23: 5 | MMK23: 5 | MML23: 5 | MMM23: 5 | MMN23: 5 | MMO23: 5 | MMP23: 5 | MMQ23: 5 | MMR23: 5 | MMS23: 5 | MMT23: 5 | MMU23: 5 | MMV23: 5 | MMW23: 5 | MMX23: 5 | MMY23: 5 | MMZ23: 5 | MNA23: 5 | MNB23: 5 | MNC23: 5 | MND23: 5 | MNE23: 5 | MNF23: 5 | MNG23: 5 | MNH23: 5 | MNI23: 5 | MNJ23: 5 | MNK23: 5 | MNL23: 5 | MNM23: 5 | MNN23: 5 | MNO23: 5 | MNP23: 5 | MNQ23: 5 | MNR23: 5 | MNS23: 5 | MNT23: 5 | MNU23: 5 | MNV23: 5 | MNW23: 5 | MNX23: 5 | MNY23: 5 | MNZ23: 5 | MOA23: 5 | MOB23: 5 | MOC23: 5 | MOD23: 5 | MOE23: 5 | MOF23: 5 | MOG23: 5 | MOH23: 5 | MOI23: 5 | MOJ23: 5 | MOK23: 5 | MOL23: 5 | MOM23: 5 | MON23: 5 | MOO23: 5 | MOP23: 5 | MOQ23: 5 | MOR23: 5 | MOS23: 5 | MOT23: 5 | MOU23: 5 | MOV23: 5 | MOW23: 5 | MOX23: 5 | MOY23: 5 | MOZ23: 5 | MPA23: 5 | MPB23: 5 | MPC23: 5 | MPD23: 5 | MPE23: 5 | MPF23: 5 | MPG23: 5 | MPH23: 5 | MPI23: 5 | MPJ23: 5 | MPK23: 5 | MPL23: 5 | MPM23: 5 | MPN23: 5 | MPO23: 5 | MPP23: 5 | MPQ23: 5 | MPR23: 5 | MPS23: 5 | MPT23: 5 | MPU23: 5 | MPV23: 5 | MPW23: 5 | MPX23: 5 | MPY23: 5 | MPZ23: 5 | MQA23: 5 | MQB23: 5 | MQC23: 5 | MQD23: 5 | MQE23: 5 | MQF23: 5 | MQG23: 5 | MQH23: 5 | MQI23: 5 | MQJ23: 5 | MQK23: 5 | MQL23: 5 | MQM23: 5 | MQN23: 5 | MQO23: 5 | MQP23: 5 | MQQ23: 5 | MQR23: 5 | MQS23: 5 | MQT23: 5 | MQU23: 5 | MQV23: 5 | MQW23: 5 | MQX23: 5 | MQY23: 5 | MQZ23: 5 | MRA23: 5 | MRB23: 5 | MRC23: 5 | MRD23: 5 | MRE23: 5 | MRF23: 5 | MRG23: 5 | MRH23: 5 | MRI23: 5 | MRJ23: 5 | MRK23: 5 | MRL23: 5 | MRM23: 5 | MRN23: 5 | MRO23: 5 | MRP23: 5 | MRQ23: 5 | MRR23: 5 | MRS23: 5 | MRT23: 5 | MRU23: 5 | MRV23: 5 | MRW23: 5 | MRX23: 5 | MRY23: 5 | MRZ23: 5 | MSA23: 5 | MSB23: 5 | MSC23: 5 | MSD23: 5 | MSE23: 5 | MSF23: 5 | MSG23: 5 | MSH23: 5 | MSI23: 5 | MSJ23: 5 | MSK23: 5 | MSL23: 5 | MSM23: 5 | MSN23: 5 | MSO23: 5 | MSP23: 5 | MSQ23: 5 | MSR23: 5 | MSS23: 5 | MST23: 5 | MSU23: 5 | MSV23: 5 | MSW23: 5 | MSX23: 5 | MSY23: 5 | MSZ23: 5 | MTA23: 5 | MTB23: 5 | MTC23: 5 | MTD23: 5 | MTE23: 5 | MTF23: 5 | MTG23: 5 | MTH23: 5 | MTI23: 5 | MTJ23: 5 | MTK23: 5 | MTL23: 5 | MTM23: 5 | MTN23: 5 | MTO23: 5 | MTP23: 5 | MTQ23: 5 | MTR23: 5 | MTS23: 5 | MTT23: 5 | MTU23: 5 | MTV23: 5 | MTW23: 5 | MTX23: 5 | MTY23: 5 | MTZ23: 5 | MUA23: 5 | MUB23: 5 | MUC23: 5 | MUD23: 5 | MUE23: 5 | MUF23: 5 | MUG23: 5 | MUH23: 5 | MUI23: 5 | MUJ23: 5 | MUK23: 5 | MUL23: 5 | MUM23: 5 | MUN23: 5 | MUO23: 5 | MUP23: 5 | MUQ23: 5 | MUR23: 5 | MUS23: 5 | MUT23: 5 | MUU23: 5 | MUV23: 5 | MUW23: 5 | MUX23: 5 | MUY23: 5 | MUZ23: 5 | MVA23: 5 | MVB23: 5 | MVC23: 5 | MVD23: 5 | MVE23: 5 | MVF23: 5 | MVG23: 5 | MVH23: 5 | MVI23: 5 | MVJ23: 5 | MVK23: 5 | MVL23: 5 | MVM23: 5 | MVN23: 5 | MVO23: 5 | MVP23: 5 | MVQ23: 5 | MVR23: 5 | MVS23: 5 | MVT23: 5 | MVU23: 5 | MVV23: 5 | MVW23: 5 | MVX23: 5 | MVY23: 5 | MVZ23: 5 | MWA23: 5 | MWB23: 5 | MWC23: 5 | MWD23: 5 | MWE23: 5 | MWF23: 5 | MWG23: 5 | MWH23: 5 | MWI23: 5 | MWJ23: 5 | MWK23: 5 | MWL23: 5 | MWM23: 5 | MWN23: 5 | MWO23: 5 | MWP23: 5 | MWQ23: 5 | MWR23: 5 | MWS23: 5 | MWT23: 5 | MWU23: 5 | MWV23: 5 | MWW23: 5 | MWX23: 5 | MWY23: 5 | MWZ23: 5 | MXA23: 5 | MXB23: 5 | MXC23: 5 | MXD23: 5 | MXE23: 5 | MXF23: 5 | MXG23: 5 | MXH23: 5 | MXI23: 5 | MXJ23: 5 | MXK23: 5 | MXL23: 5 | MXM23: 5 | MXN23: 5 | MXO23: 5 | MXP23: 5 | MXQ23: 5 | MXR23: 5 | MXS23: 5 | MXT23: 5 | MXU23: 5 | MXV23: 5 | MXW23: 5 | MXX23: 5 | MXY23: 5 | MXZ23: 5 | MYA23: 5 | MYB23: 5 | MYC23: 5 | MYD23: 5 | MYE23: 5 | MYF23: 5 | MYG23: 5 | MYH23: 5 | MYI23: 5 | MYJ23: 5 | MYK23: 5 | MYL23: 5 | MYM23: 5 | MYN23: 5 | MYO23: 5 | MYP23: 5 | MYQ23: 5 | MYR23: 5 | MYS23: 5 | MYT23: 5 | MYU23: 5 | MYV23: 5 | MYW23: 5 | MYX23: 5 | MYY23: 5 | MYZ23: 5 | MZA23: 5 | MZB23: 5 | MZC23: 5 | MZD23: 5 | MZE23: 5 | MZF23: 5 | MZG23: 5 | MZH23: 5 | MZI23: 5 | MZJ23: 5 | MZK23: 5 | MZL23: 5 | MZM23: 5 | MZN23: 5 | MZO23: 5 | MZP23: 5 | MZQ23: 5 | MZR23: 5 | MZS23: 5 | MZT23: 5 | MZU23: 5 | MZV23: 5 | MZW23: 5 | MZX23: 5 | MZY23: 5 | MZZ23: 5 | NAA23: 5 | NAB23: 5 | NAC23: 5 | NAD23: 5 | NAE23: 5 | NAF23: 5 | NAG23: 5 | NAH23: 5 | NAI23: 5 | NAJ23: 5 | NAK23: 5 | NAL23: 5 | NAM23: 5 | NAN23: 5 | NAO23: 5 | NAP23: 5 | NAQ23: 5 | NAR23: 5 | NAS23: 5 | NAT23: 5 | NAU23: 5 | NAV23: 5 | NAW23: 5 | NAX23: 5 | NAY23: 5 | NAZ23: 5 | NBA23: 5 | NBB23: 5 | NBC23: 5 | NBD23: 5 | NBE23: 5 | NBF23: 5 | NBG23: 5 | NBH23: 5 | NBI23: 5 | NBJ23: 5 | NBK23: 5 | NBL23: 5 | NBM23: 5 | NBN23: 5 | NBO23: 5 | NBP23: 5 | NBQ23: 5 | NBR23: 5 | NBS23: 5 | NBT23: 5 | NBU23: 5 | NBV23: 5 | NBW23: 5 | NBX23: 5 | NBY23: 5 | NBZ23: 5 | NCA23: 5 | NCB23: 5 | NCC23: 5 | NCD23: 5 | NCE23: 5 | NCF23: 5 | NCG23: 5 | NCH23: 5 | NCI23: 5 | NCJ23: 5 | NCK23: 5 | NCL23: 5 | NCM23: 5 | NCN23: 5 | NCO23: 5 | NCP23: 5 | NCQ23: 5 | NCR23: 5 | NCS23: 5 | NCT23: 5 | NCU23: 5 | NCV23: 5 | NCW23: 5 | NCX23: 5 | NCY23: 5 | NCZ23: 5 | NDA23: 5 | NDB23: 5 | NDC23: 5 | NDD23: 5 | NDE23: 5 | NDF23: 5 | NDG23: 5 | NDH23: 5 | NDI23: 5 | NDJ23: 5 | NDK23: 5 | NDL23: 5 | NDM23: 5 | NDN23: 5 | NDO23: 5 | NDP23: 5 | NDQ23: 5 | NDR23: 5 | NDS23: 5 | NDT23: 5 | NDU23: 5 | NDV23: 5 | NDW23: 5 | NDX23: 5 | NDY23: 5 | NDZ23: 5 | NEA23: 5 | NEB23: 5 | NEC23: 5 | NED23: 5 | NEE23: 5 | NEF23: 5 | NEG23: 5 | NEH23: 5 | NEI23: 5 | NEJ23: 5 | NEK23: 5 | NEL23: 5 | NEM23: 5 | NEN23: 5 | NEO23: 5 | NEP23: 5 | NEQ23: 5 | NER23: 5 | NES23: 5 | NET23: 5 | NEU23: 5 | NEV23: 5 | NEW23: 5 | NEX23: 5 | NEY23: 5 | NEZ23: 5 | NFA23: 5 | NFB23: 5 | NFC23: 5 | NFD23: 5 | NFE23: 5 | NFF23: 5 | NFG23: 5 | NFH23: 5 | NFI23: 5 | NFJ23: 5 | NFK23: 5 | NFL23: 5 | NFM23: 5 | NFN23: 5 | NFO23: 5 | NFP23: 5 | NFQ23: 5 | NFR23: 5 | NFS23: 5 | NFT23: 5 | NFU23: 5 | NFV23: 5 | NFW23: 5 | NFX23: 5 | NFY23: 5 | NFZ23: 5 | NGA23: 5 | NGB23: 5 | NGC23: 5 | NGD23: 5 | NGE23: 5 | NGF23: 5 | NGG23: 5 | NGH23: 5 | NGI23: 5 | NGJ23: 5 | NGK23: 5 | NGL23: 5 | NGM23: 5 | NGN23: 5 | NGO23: 5 | NGP23: 5 | NGQ23: 5 | NGR23: 5 | NGS23: 5 | NGT23: 5 | NGU23: 5 | NGV23: 5 | NGW23: 5 | NGX23: 5 | NGY23: 5 | NGZ23: 5 | NHA23: 5 | NHB23: 5 | NHC23: 5 | NHD23: 5 | NHE23: 5 | NHF23: 5 | NHG23: 5 | NHH23: 5 | NHI23: 5 | NHJ23: 5 | NHK23: 5 | NHL23: 5 | NHM23: 5 | NHN23: 5 | NHO23: 5 | NHP23: 5 | NHQ23: 5 | NHR23: 5 | NHS23: 5 | NHT23: 5 | NHU23: 5 | NHV23: 5 | NHW23: 5 | NHX23: 5 | NHY23: 5 | NHZ23: 5 | NIA23: 5 | NIB23: 5 | NIC23: 5 | NID23: 5 | NIE23: 5 | NIF23: 5 | NIG23: 5 | NIH23: 5 | NII23: 5 | NIJ23: 5 | NIK23: 5 | NIL23: 5 | NIM23: 5 | NIN23: 5 | NIO23: 5 | NIP23: 5 | NIQ23: 5 | NIR23: 5 | NIS23: 5 | NIT23: 5 | NIU23: 5 | NIV23: 5 | NIW23: 5 | NIX23: 5 | NIY23: 5 | NIZ23: 5 | NJA23: 5 | NJB23: 5 | NJC23: 5 | NJD23: 5 | NJE23: 5 | NJF23: 5 | NJG23: 5 | NJH23: 5 | NJI23: 5 | NJJ23: 5 | NJK23: 5 | NJL23: 5 | NJM23: 5 | NJN23: 5 | NJO23: 5 | NJP23: 5 | NJQ23: 5 | NJR23: 5 | NJS23: 5 | NJT23: 5 | NJU23: 5 | NJV23: 5 | NJW23: 5 | NJX23: 5 | NJY23: 5 | NJZ23: 5 | NKA23: 5 | NKB23: 5 | NKC23: 5 | NKD23: 5 | NKE23: 5 | NKF23: 5 | NKG23: 5 | NKH23: 5 | NKI23: 5 | NKJ23: 5 | NKK23: 5 | NKL23: 5 | NKM23: 5 | NKN23: 5 | NKO23: 5 | NKP23: 5 | NKQ23: 5 | NKR23: 5 | NKS23: 5 | NKT23: 5 | NKU23: 5 | NKV23: 5 | NKW23: 5 | NKX23: 5 | NKY23: 5 | NKZ23: 5 | NLA23: 5 | NLB23: 5 | NLC23: 5 | NLD23: 5 | NLE23: 5 | NLF23: 5 | NLG23: 5 | NLH23: 5 | NLI23: 5 | NLJ23: 5 | NLK23: 5 | NLL23: 5 | NLM23: 5 | NLN23: 5 | NLO23: 5 | NLP23: 5 | NLQ23: 5 | NLR23: 5 | NLS23: 5 | NLT23: 5 | NLU23: 5 | NLV23: 5 | NLW23: 5 | NLX23: 5 | NLY23: 5 | NLZ23: 5 | NMA23: 5 | NMB23: 5 | NMC23: 5 | NMD23: 5 | NME23: 5 | NMF23: 5 | NMG23: 5 | NMH23: 5 | NMI23: 5 | NMJ23: 5 | NMK23: 5 | NML23: 5 | NMM23: 5 | NMN23: 5 | NMO23: 5 | NMP23: 5 | NMQ23: 5 | NMR23: 5 | NMS23: 5 | NMT23: 5 | NMU23: 5 | NMV23: 5 | NMW23: 5 | NMX23: 5 | NMY23: 5 | NMZ23: 5 | NNA23: 5 | NNB23: 5 | NNC23: 5 | NND23: 5 | NNE23: 5 | NNF23: 5 | NNG23: 5 | NNH23: 5 | NNI23: 5 | NNJ23: 5 | NNK23: 5 | NNL23: 5 | NNM23: 5 | NNN23: 5 | NNO23: 5 | NNP23: 5 | NNQ23: 5 | NNR23: 5 | NNS23: 5 | NNT23: 5 | NNU23: 5 | NNV23: 5 | NNW23: 5 | NNX23: 5 | NNY23: 5 | NNZ23: 5 | NOA23: 5 | NOB23: 5 | NOC23: 5 | NOD23: 5 | NOE23: 5 | NOF23: 5 | NOG23: 5 | NOH23: 5 | NOI23: 5 | NOJ23: 5 | NOK23: 5 | NOL23: 5 | NOM23: 5 | NON23: 5 | NOO23: 5 | NOP23: 5 | NOQ23: 5 | NOR23: 5 | NOS23: 5 | NOT23: 5 | NOU23: 5 | NOV23: 5 | NOW23: 5 | NOX23: 5 | NOY23: 5 | NOZ23: 5 | NPA23: 5 | NPB23: 5 | NPC23: 5 | NPD23: 5 | NPE23: 5 | NPF23: 5 | NPG23: 5 | NPH23: 5 | NPI23: 5 | NPJ23: 5 | NPK23: 5 | NPL23: 5 | NPM23: 5 | NPN23: 5 | NPO23: 5 | NPP23: 5 | NPQ23: 5 | NPR23: 5 | NPS23: 5 | NPT23: 5 | NPU23: 5 | NPV23: 5 | NPW23: 5 | NPX23: 5 | NPY23: 5 | NPZ23: 5 | NQA23: 5 | NQB23: 5 | NQC23: 5 | NQD23: 5 | NQE23: 5 | NQF23: 5 | NQG23: 5 | NQH23: 5 | NQI23: 5 | NQJ23: 5 | NQK23: 5 | NQL23: 5 | NQM23: 5 | NQN23: 5 | NQO23: 5 | NQP23: 5 | NQQ23: 5 | NQR23: 5 | NQS23: 5 | NQT23: 5 | NQU23: 5 | NQV23: 5 | NQW23: 5 | NQX23: 5 | NQY23: 5 | NQZ23: 5 | NRA23: 5 | NRB23: 5 | NRC23: 5 | NRD23: 5 | NRE23: 5 | NRF23: 5 | NRG23: 5 | NRH23: 5 | NRI23: 5 | NRJ23: 5 | NRK23: 5 | NRL23: 5 | NRM23: 5 | NRN23: 5 | NRO23: 5 | NRP23: 5 | NRQ23: 5 | NRR23: 5 | NRS23: 5 | NRT23: 5 | NRU23: 5 | NRV23: 5 | NRW23: 5 | NRX23: 5 | NRY23: 5 | NRZ23: 5 | NSA23: 5 | NSB23: 5 | NSC23: 5 | NSD23: 5 | NSE23: 5 | NSF23: 5 | NSG23: 5 | NSH23: 5 | NSI23: 5 | NSJ23: 5 | NSK23: 5 | NSL23: 5 | NSM23: 5 | NSN23: 5 | NSO23: 5 | NSP23: 5 | NSQ23: 5 | NSR23: 5 | NSS23: 5 | NST23: 5 | NSU23: 5 | NSV23: 5 | NSW23: 5 | NSX23: 5 | NSY23: 5 | NSZ23: 5 | NTA23: 5 | NTB23: 5 | NTC23: 5 | NTD23: 5 | NTE23: 5 | NTF23: 5 | NTG23: 5 | NTH23: 5 | NTI23: 5 | NTJ23: 5 | NTK23: 5 | NTL23: 5 | NTM23: 5 | NTN23: 5 | NTO23: 5 | NTP23: 5 | NTQ23: 5 | NTR23: 5 | NTS23: 5 | NTT23: 5 | NTU23: 5 | NTV23: 5 | NTW23: 5 | NTX23: 5 | NTY23: 5 | NTZ23: 5 | NUA23: 5 | NUB23: 5 | NUC23: 5 | NUD23: 5 | NUE23: 5 | NUF23: 5 | NUG23: 5 | NUH23: 5 | NUI23: 5 | NUJ23: 5 | NUK23: 5 | NUL23: 5 | NUM23: 5 | NUN23: 5 | NUO23: 5 | NUP23: 5 | NUQ23: 5 | NUR23: 5 | NUS23: 5 | NUT23: 5 | NUU23: 5 | NUV23: 5 | NUW23: 5 | NUX23: 5 | NUY23: 5 | NUZ23: 5 | NVA23: 5 | NVB23: 5 | NVC23: 5 | NVD23: 5 | NVE23: 5 | NVF23: 5 | NVG23: 5 | NVH23: 5 | NVI23: 5 | NVJ23: 5 | NVK23: 5 | NVL23: 5 | NVM23: 5 | NVN23: 5 | NVO23: 5 | NVP23: 5 | NVQ23: 5 | NVR23: 5 | NVS23: 5 | NVT23: 5 | NVU23: 5 | NVV23: 5 | NVW23: 5 | NVX23: 5 | NVY23: 5 | NVZ23: 5 | NWA23: 5 | NWB23: 5 | NWC23: 5 | NWD23: 5 | NWE23: 5 | NWF23: 5 | NWG23: 5 | NWH23: 5 | NWI23: 5 | NWJ23: 5 | NWK23: 5 | NWL23: 5 | NWM23: 5 | NWN23: 5 | NWO23: 5 | NWP23: 5 | NWQ23: 5 | NWR23: 5 | NWS23: 5 | NWT23: 5 | NWU23: 5 | NWV23: 5 | NWW23: 5 | NWX23: 5 | NWY23: 5 | NWZ23: 5 | NXA23: 5 | NXB23: 5 | NXC23: 5 | NXD23: 5 | NXE23: 5 | NXF23: 5 | NXG23: 5 | NXH23: 5 | NXI23: 5 | NXJ23: 5 | NXK23: 5 | NXL23: 5 | NXM23: 5 | NXN23: 5 | NXO23: 5 | NXP23: 5 | NXQ23: 5 | NXR23: 5 | NXS23: 5 | NXT23: 5 | NXU23: 5 | NXV23: 5 | NXW23: 5 | NXX23: 5 | NXY23: 5 | NXZ23: 5 | NYA23: 5 | NYB23: 5 | NYC23: 5 | NYD23: 5 | NYE23: 5 | NYF23: 5 | NYG23: 5 | NYH23: 5 | NYI23: 5 | NYJ23: 5 | NYK23: 5 | NYL23: 5 | NYM23: 5 | NYN23: 5 | NYO23: 5 | NYP23: 5 | NYQ23: 5 | NYR23: 5 | NYS23: 5 | NYT23: 5 | NYU23: 5 | NYV23: 5 | NYW23: 5 | NYX23: 5 | NYY23: 5 | NYZ23: 5 | NZA23: 5 | NZB23: 5 | NZC23: 5 | NZD23: 5 | NZE23: 5 | NZF23: 5 | NZG23: 5 | NZH23: 5 | NZI23: 5 | NZJ23: 5 | NZK23: 5 | NZL23: 5 | NZM23: 5 | NZN23: 5 | NZO23: 5 | NZP23: 5 | NZQ23: 5 | NZR23: 5 | NZS23: 5 | NZT23: 5 | NZU23: 5 | NZV23: 5 | NZW23: 5 | NZX23: 5 | NZY23: 5 | NZZ23: 5 | OAA23: 5 | OAB23: 5 | OAC23: 5 | OAD23: 5 | OAE23: 5 | OAF23: 5 | OAG23: 5 | OAH23: 5 | OAI23: 5 | OAJ23: 5 | OAK23: 5 | OAL23: 5 | OAM23: 5 | OAN23: 5 | OAO23: 5 | OAP23: 5 | OAQ23: 5 | OAR23: 5 | OAS23: 5 | OAT23: 5 | OAU23: 5 | OAV23: 5 | OAW23: 5 | OAX23: 5 | OAY23: 5 | OAZ23: 5 | OBA23: 5 | OBB23: 5 | OBC23: 5 | OBD23: 5 | OBE23: 5 | OBF23: 5 | OBG23: 5 | OBH23: 5 | OBI23: 5 | OBJ23: 5 | OBK23: 5 | OBL23: 5 | OBM23: 5 | OBN23: 5 | OBO23: 5 | OBP23: 5 | OBQ23: 5 | OBR23: 5 | OBS23: 5 | OBT23: 5 | OBU23: 5 | OBV23: 5 | OBW23: 5 | OBX23: 5 | OBY23: 5 | OBZ23: 5 | OCA23: 5 | OCB23: 5 | OCC23: 5 | OCD23: 5 | OCE23: 5 | OCF23: 5 | OCG23: 5 | OCH23: 5 | OCI23: 5 | OCJ23: 5 | OCK23: 5 | OCL23: 5 | OCM23: 5 | OCN23: 5 | OCO23: 5 | OCP23: 5 | OCQ23: 5 | OCR23: 5 | OCS23: 5 | OCT23: 5 | OCU23: 5 | OCV23: 5 | OCW23: 5 | OCX23: 5 | OCY23: 5 | OCZ23: 5 | ODA23: 5 | ODB23: 5 | ODC23: 5 | ODD23: 5 | ODE23: 5 | ODF23: 5 | ODG23: 5 | ODH23: 5 | ODI23: 5 | ODJ23: 5 | ODK23: 5 | ODL23: 5 | ODM23: 5 | ODN23: 5 | ODO23: 5 | ODP23: 5 | ODQ23: 5 | ODR23: 5 | ODS23: 5 | ODT23: 5 | ODU23: 5 | ODV23: 5 | ODW23: 5 | ODX23: 5 | ODY23: 5 | ODZ23: 5 | OEA23: 5 | OEB23: 5 | OEC23: 5 | OED23: 5 | OEE23: 5 | OEF23: 5 | OEG23: 5 | OEH23: 5 | OEI23: 5 | OEJ23: 5 | OEK23: 5 | OEL23: 5 | OEM23: 5 | OEN23: 5 | OEO23: 5 | OEP23: 5 | OEQ23: 5 | OER23: 5 | OES23: 5 | OET23: 5 | OEU23: 5 | OEV23: 5 | OEW23: 5 | OEX23: 5 | OEY23: 5 | OEZ23: 5 | OFA23: 5 | OFB23: 5 | OFC23: 5 | OFD23: 5 | OFE23: 5 | OFF23: 5 | OFG23: 5 | OFH23: 5 | OFI23: 5 | OFJ23: 5 | OFK23: 5 | OFL23: 5 | OFM23: 5 | OFN23: 5 | OFO23: 5 | OFP23: 5 | OFQ23: 5 | OFR23: 5 | OFS23: 5 | OFT23: 5 | OFU23: 5 | OFV23: 5 | OFW23: 5 | OFX23: 5 | OFY23: 5 | OFZ23: 5 | OGA23: 5 | OGB23: 5 | OGC23: 5 | OGD23: 5 | OGE23: 5 | OGF23: 5 | OGG23: 5 | OGH23: 5 | OGI23: 5 | OGJ23: 5 | OGK23: 5 | OGL23: 5 | OGM23: 5 | OGN23: 5 | OGO23: 5 | OGP23: 5 | OGQ23: 5 | OGR23: 5 | OGS23: 5 | OGT23: 5 | OGU23: 5 | OGV23: 5 | OGW23: 5 | OGX23: 5 | OGY23: 5 | OGZ23: 5 | OHA23: 5 | OHB23: 5 | OHC23: 5 | OHD23: 5 | OHE23: 5 | OHF23: 5 | OHG23: 5 | OHH23: 5 | OHI23: 5 | OHJ23: 5 | OHK23: 5 | OHL23: 5 | OHM23: 5 | OHN23: 5 | OHO23: 5 | OHP23: 5 | OHQ23: 5 | OHR23: 5 | OHS23: 5 | OHT23: 5 | OHU23: 5 | OHV23: 5 | OHW23: 5 | OHX23: 5 | OHY23: 5 | OHZ23: 5 | OIA23: 5 | OIB23: 5 | OIC23: 5 | OID23: 5 | OIE23: 5 | OIF23: 5 | OIG23: 5 | OIH23: 5 | OII23: 5 | OIJ23: 5 | OIK23: 5 | OIL23: 5 | OIM23: 5 | OIN23: 5 | OIO23: 5 | OIP23: 5 | OIQ23: 5 | OIR23: 5 | OIS23: 5 | OIT23: 5 | OIU23: 5 | OIV23: 5 | OIW23: 5 | OIX23: 5 | OIY23: 5 | OIZ23: 5 | OJA23: 5 | OJB23: 5 | OJC23: 5 | OJD23: 5 | OJE23: 5 | OJF23: 5 | OJG23: 5 | OJH23: 5 | OJI23: 5 | OJJ23: 5 | OJK23: 5 | OJL23: 5 | OJM23: 5 | OJN23: 5 | OJO23: 5 | OJP23: 5 | OJQ23: 5 | OJR23: 5 | OJS23: 5 | OJT23: 5 | OJU23: 5 | OJV23: 5 | OJW23: 5 | OJX23: 5 | OJY23: 5 | OJZ23: 5 | OKA23: 5 | OKB23: 5 | OKC23: 5 | OKD23: 5 | OKE23: 5 | OKF23: 5 | OKG23: 5 | OKH23: 5 | OKI23: 5 | OKJ23: 5 | OKK23: 5 | OKL23: 5 | OKM23: 5 | OKN23: 5 | OKO23: 5 | OKP23: 5 | OKQ23: 5 | OKR23: 5 | OKS23: 5 | OKT23: 5 | OKU23: 5 | OKV23: 5 | OKW23: 5 | OKX23: 5 | OKY23: 5 | OKZ23: 5 | OLA23: 5 | OLB23: 5 | OLC23: 5 | OLD23: 5 | OLE23: 5 | OLF23: 5 | OLG23: 5 | OLH23: 5 | OLI23: 5 | OLJ23: 5 | OLK23: 5 | OLL23: 5 | OLM23: 5 | OLN23: 5 | OLO23: 5 | OLP23: 5 | OLQ23: 5 | OLR23: 5 | OLS23: 5 | OLT23: 5 | OLU23: 5 | OLV23: 5 | OLW23: 5 | OLX23: 5 | OLY23: 5 | OLZ23: 5 | OMA23: 5 | OMB23: 5 | OMC23: 5 | OMD23: 5 | OME23: 5 | OMF23: 5 | OMG23: 5 | OMH23: 5 | OMI23: 5 | OMJ23: 5 | OMK23: 5 | OML23: 5 | OMM23: 5 | OMN23: 5 | OMO23: 5 | OMP23: 5 | OMQ23: 5 | OMR23: 5 | OMS23: 5 | OMT23: 5 | OMU23: 5 | OMV23: 5 | OMW23: 5 | OMX23: 5 | OMY23: 5 | OMZ23: 5 | ONA23: 5 | ONB23: 5 | ONC23: 5 | OND23: 5 | ONE23: 5 | ONF23: 5 | ONG23: 5 | ONH23: 5 | ONI23: 5 | ONJ23: 5 | ONK23: 5 | ONL23: 5 | ONM23: 5 | ONN23: 5 | ONO23: 5 | ONP23: 5 | ONQ23: 5 | ONR23: 5 | ONS23: 5 | ONT23: 5 | ONU23: 5 | ONV23: 5 | ONW23: 5 | ONX23: 5 | ONY23: 5 | ONZ23: 5 | OOA23: 5 | OOB23: 5 | OOC23: 5 | OOD23: 5 | OOE23: 5 | OOF23: 5 | OOG23: 5 | OOH23: 5 | OOI23: 5 | OOJ23: 5 | OOK23: 5 | OOL23: 5 | OOM23: 5 | OON23: 5 | OOO23: 5 | OOP23: 5 | OOQ23: 5 | OOR23: 5 | OOS23: 5 | OOT23: 5 | OOU23: 5 | OOV23: 5 | OOW23: 5 | OOX23: 5 | OOY23: 5 | OOZ23: 5 | OPA23: 5 | OPB23: 5 | OPC23: 5 | OPD23: 5 | OPE23: 5 | OPF23: 5 | OPG23: 5 | OPH23: 5 | OPI23: 5 | OPJ23: 5 | OPK23: 5 | OPL23: 5 | OPM23: 5 | OPN23: 5 | OPO23: 5 | OPP23: 5 | OPQ23: 5 | OPR23: 5 | OPS23: 5 | OPT23: 5 | OPU23: 5 | OPV23: 5 | OPW23: 5 | OPX23: 5 | OPY23: 5 | OPZ23: 5 | OQA23: 5 | OQB23: 5 | OQC23: 5 | OQD23: 5 | OQE23: 5 | OQF23: 5 | OQG23: 5 | OQH23: 5 | OQI23: 5 | OQJ23: 5 | OQK23: 5 | OQL23: 5 | OQM23: 5 | OQN23: 5 | OQO23: 5 | OQP23: 5 | OQQ23: 5 | OQR23: 5 | OQS23: 5 | OQT23: 5 | OQU23: 5 | OQV23: 5 | OQW23: 5 | OQX23: 5 | OQY23: 5 | OQZ23: 5 | ORA23: 5 | ORB23: 5 | ORC23: 5 | ORD23: 5 | ORE23: 5 | ORF23: 5 | ORG23: 5 | ORH23: 5 | ORI23: 5 | ORJ23: 5 | ORK23: 5 | ORL23: 5 | ORM23: 5 | ORN23: 5 | ORO23: 5 | ORP23: 5 | ORQ23: 5 | ORR23: 5 | ORS23: 5 | ORT23: 5 | ORU23: 5 | ORV23: 5 | ORW23: 5 | ORX23: 5 | ORY23: 5 | ORZ23: 5 | OSA23: 5 | OSB23: 5 | OSC23: 5 | OSD23: 5 | OSE23: 5 | OSF23: 5 | OSG23: 5 | OSH23: 5 | OSI23: 5 | OSJ23: 5 | OSK23: 5 | OSL23: 5 | OSM23: 5 | OSN23: 5 | OSO23: 5 | OSP23: 5 | OSQ23: 5 | OSR23: 5 | OSS23: 5 | OST23: 5 | OSU23: 5 | OSV23: 5 | OSW23: 5 | OSX23: 5 | OSY23: 5 | OSZ23: 5 | OTA23: 5 | OTB23: 5 | OTC23: 5 | OTD23: 5 | OTE23: 5 | OTF23: 5 | OTG23: 5 | OTH23: 5 | OTI23: 5 | OTJ23: 5 | OTK23: 5 | OTL23: 5 | OTM23: 5 | OTN23: 5 | OTO23: 5 | OTP23: 5 | OTQ23: 5 | OTR23: 5 | OTS23: 5 | OTT23: 5 | OTU23: 5 | OTV23: 5 | OTW23: 5 | OTX23: 5 | OTY23: 5 | OTZ23: 5 | OUA23: 5 | OUB23: 5 | OUC23: 5 | OUD23: 5 | OUE23: 5 | OUF23: 5 | OUG23: 5 | OUH23: 5 | OUI23: 5 | OUJ23: 5 | OUK23: 5 | OUL23: 5 | OUM23: 5 | OUN23: 5 | OUO23: 5 | OUP23: 5 | OUQ23: 5 | OUR23: 5 | OUS23: 5 | OUT23: 5 | OUU23: 5 | OUV23: 5 | OUW23: 5 | OUX23: 5 | OUY23: 5 | OUZ23: 5 | OVA23: 5 | OVB23: 5 | OVC23: 5 | OVD23: 5 | OVE23: 5 | OVF23: 5 | OVG23: 5 | OVH23: 5 | OVI23: 5 | OVJ23: 5 | OVK23: 5 | OVL23: 5 | OVM23: 5 | OVN23: 5 | OVO23: 5 | OVP23: 5 | OVQ23: 5 | OVR23: 5 | OVS23: 5 | OVT23: 5 | OVU23: 5 | OVV23: 5 | OVW23: 5 | OVX23: 5 | OVY23: 5 | OVZ23: 5 | OWA23: 5 | OWB23: 5 | OWC23: 5 | OWD23: 5 | OWE23: 5 | OWF23: 5 | OWG23: 5 | OWH23: 5 | OWI23: 5 | OWJ23: 5 | OWK23: 5 | OWL23: 5 | OWM23: 5 | OWN23: 5 | OWO23: 5 | OWP23: 5 | OWQ23: 5 | OWR23: 5 | OWS23: 5 | OWT23: 5 | OWU23: 5 | OWV23: 5 | OWW23: 5 | OWX23: 5 | OWY23: 5 | OWZ23: 5 | OXA23: 5 | OXB23: 5 | OXC23: 5 | OXD23: 5 | OXE23: 5 | OXF23: 5 | OXG23: 5 | OXH23: 5 | OXI23: 5 | OXJ23: 5 | OXK23: 5 | OXL23: 5 | OXM23: 5 | OXN23: 5 | OXO23: 5 | OXP23: 5 | OXQ23: 5 | OXR23: 5 | OXS23: 5 | OXT23: 5 | OXU23: 5 | OXV23: 5 | OXW23: 5 | OXX23: 5 | OXY23: 5 | OXZ23: 5 | OYA23: 5 | OYB23: 5 | OYC23: 5 | OYD23: 5 | OYE23: 5 | OYF23: 5 | OYG23: 5 | OYH23: 5 | OYI23: 5 | OYJ23: 5 | OYK23: 5 | OYL23: 5 | OYM23: 5 | OYN23: 5 | OYO23: 5 | OYP23: 5 | OYQ23: 5 | OYR23: 5 | OYS23: 5 | OYT23: 5 | OYU23: 5 | OYV23: 5 | OYW23: 5 | OYX23: 5 | OYY23: 5 | OYZ23: 5 | OZA23: 5 | OZB23: 5 | OZC23: 5 | OZD23: 5 | OZE23: 5 | OZF23: 5 | OZG23: 5 | OZH23: 5 | OZI23: 5 | OZJ23: 5 | OZK23: 5 | OZL23: 5 | OZM23: 5 | OZN23: 5 | OZO23: 5 | OZP23: 5 | OZQ23: 5 | OZR23: 5 | OZS23: 5 | OZT23: 5 | OZU23: 5 | OZV23: 5 | OZW23: 5 | OZX23: 5 | OZY23: 5 | OZZ23: 5 | PAA23: 5 | PAB23: 5 | PAC23: 5 | PAD23: 5 | PAE23: 5 | PAF23: 5 | PAG23: 5 | PAH23: 5 | PAI23: 5 | PAJ23: 5 | PAK23: 5 | PAL23: 5 | PAM23: 5 | PAN23: 5 | PAO23: 5 | PAP23: 5 | PAQ23: 5 | PAR23: 5 | PAS23: 5 | PAT23: 5 | PAU23: 5 | PAV23: 5 | PAW23: 5 | PAX23: 5 | PAY23: 5 | PAZ23: 5 | PBA23: 5 | PBB23: 5 | PBC23: 5 | PBD23: 5 | PBE23: 5 | PBF23: 5 | PBG23: 5 | PBH23: 5 | PBI23: 5 | PBJ23: 5 | PBK23: 5 | PBL23: 5 | PBM23: 5 | PBN23: 5 | PBO23: 5 | PBP23: 5 | PBQ23: 5 | PBR23: 5 | PBS23: 5 | PBT23: 5 | PBU23: 5 | PBV23: 5 | PBW23: 5 | PBX23: 5 | PBY23: 5 | PBZ23: 5 | PCA23: 5 | PCB23: 5 | PCC23: 5 | PCD23: 5 | PCE23: 5 | PCF23: 5 | PCG23: 5 | PCH23: 5 | PCI23: 5 | PCJ23: 5 | PCK23: 5 | PCL23: 5 | PCM23: 5 | PCN23: 5 | PCO23: 5 | PCP23: 5 | PCQ23: 5 | PCR23: 5 | PCS23: 5 | PCT23: 5 | PCU23: 5 | PCV23: 5 | PCW23: 5 | PCX23: 5 | PCY23: 5 | PCZ23: 5 | PDA23: 5 | PDB23: 5 | PDC23: 5 | PDD23: 5 | PDE23: 5 | PDF23: 5 | PDG23: 5 | PDH23: 5 | PDI23: 5 | PDJ23: 5 | PDK23: 5 | PDL23: 5 | PDM23: 5 | PDN23: 5 | PDO23: 5 | PDP23: 5 | PDQ23: 5 | PDR23: 5 | PDS23: 5 | PDT23: 5 | PDU23: 5 | PDV23: 5 | PDW23: 5 | PDX23: 5 | PDY23: 5 | PDZ23: 5 | PEA23: 5 | PEB23: 5 | PEC23: 5 | PED23: 5 | PEE23: 5 | PEF23: 5 | PEG23: 5 | PEH23: 5 | PEI23: 5 | PEJ23: 5 | PEK23: 5 | PEL23: 5 | PEM23: 5 | PEN23: 5 | PEO23: 5 | PEP23: 5 | PEQ23: 5 | PER23: 5 | PES23: 5 | PET23: 5 | PEU23: 5 | PEV23: 5 | PEW23: 5 | PEX23: 5 | PEY23: 5 | PEZ23: 5 | PFA23: 5 | PFB23: 5 | PFC23: 5 | PFD23: 5 | PFE23: 5 | PFF23: 5 | PFG23: 5 | PFH23: 5 | PFI23: 5 | PFJ23: 5 | PFK23: 5 | PFL23: 5 | PFM23: 5 | PFN23: 5 | PFO23: 5 | PFP23: 5 | PFQ23: 5 | PFR23: 5 | PFS23: 5 | PFT23: 5 | PFU23: 5 | PFV23: 5 | PFW23: 5 | PFX23: 5 | PFY23: 5 | PFZ23: 5 | PGA23: 5 | PGB23: 5 | PGC23: 5 | PGD23: 5 | PGE23: 5 | PGF23: 5 | PGG23: 5 | PGH23: 5 | PGI23: 5 | PGJ23: 5 | PGK23: 5 | PGL23: 5 | PGM23: 5 | PGN23: 5 | PGO23: 5 | PGP23: 5 | PGQ23: 5 | PGR23: 5 | PGS23: 5 | PGT23: 5 | PGU23: 5 | PGV23: 5 | PGW23: 5 | PGX23: 5 | PGY23: 5 | PGZ23: 5 | PHA23: 5 | PHB23: 5 | PHC23: 5 | PHD23: 5 | PHE23: 5 | PHF23: 5 | PHG23: 5 | PHH23: 5 | PHI23: 5 | PHJ23: 5 | PHK23: 5 | PHL23: 5 | PHM23: 5 | PHN23: 5 | PHO23: 5 | PHP23: 5 | PHQ23: 5 | PHR23: 5 | PHS23: 5 | PHT23: 5 | PHU23: 5 | PHV23: 5 | PHW23: 5 | PHX23: 5 | PHY23: 5 | PHZ23: 5 | PIA23: 5 | PIB23: 5 | PIC23: 5 | PID23: 5 | PIE23: 5 | PIF23: 5 | PIG23: 5 | PIH23: 5 | PII23: 5 | PIJ23: 5 | PIK23: 5 | PIL23: 5 | PIM23: 5 | PIN23: 5 | PIO23: 5 | PIP23: 5 | PIQ23: 5 | PIR23: 5 | PIS23: 5 | PIT23: 5 | PIU23: 5 | PIV23: 5 | PIW23: 5 | PIX23: 5 | PIY23: 5 | PIZ23: 5 | PJA23: 5 | PJB23: 5 | PJC23: 5 | PJD23: 5 | PJE23: 5 | PJF23: 5 | PJG23: 5 | PJH23: 5 | PJI23: 5 | PJJ23: 5 | PJK23: 5 | PJL23: 5 | PJM23: 5 | PJN23: 5 | PJO23: 5 | PJP23: 5 | PJQ23: 5 | PJR23: 5 | PJS23: 5 | PJT23: 5 | PJU23: 5 | PJV23: 5 | PJW23: 5 | PJX23: 5 | PJY23: 5 | PJZ23: 5 | PKA23: 5 | PKB23: 5 | PKC23: 5 | PKD23: 5 | PKE23: 5 | PKF23: 5 | PKG23: 5 | PKH23: 5 | PKI23: 5 | PKJ23: 5 | PKK23: 5 | PKL23: 5 | PKM23: 5 | PKN23: 5 | PKO23: 5 | PKP23: 5 | PKQ23: 5 | PKR23: 5 | PKS23: 5 | PKT23: 5 | PKU23: 5 | PKV23: 5 | PKW23: 5 | PKX23: 5 | PKY23: 5 | PKZ23: 5 | PLA23: 5 | PLB23: 5 | PLC23: 5 | PLD23: 5 | PLE23: 5 | PLF23: 5 | PLG23: 5 | PLH23: 5 | PLI23: 5 | PLJ23: 5 | PLK23: 5 | PLL23: 5 | PLM23: 5 | PLN23: 5 | PLO23: 5 | PLP23: 5 | PLQ23: 5 | PLR23: 5 | PLS23: 5 | PLT23: 5 | PLU23: 5 | PLV23: 5 | PLW23: 5 | PLX23: 5 | PLY23: 5 | PLZ23: 5 | PMA23: 5 | PMB23: 5 | PMC23: 5 | PMD23: 5 | PME23: 5 | PMF23: 5 | PMG23: 5 | PMH23: 5 | PMI23: 5 | PMJ23: 5 | PMK23: 5 | PML23: 5 | PMM23: 5 | PMN23: 5 | PMO23: 5 | PMP23: 5 | PMQ23: 5 | PMR23: 5 | PMS23: 5 | PMT23: 5 | PMU23: 5 | PMV23: 5 | PMW23: 5 | PMX23: 5 | PMY23: 5 | PMZ23: 5 | PNA23: 5 | PNB23: 5 | PNC23: 5 | PND23: 5 | PNE23: 5 | PNF23: 5 | PNG23: 5 | PNH23: 5 | PNI23: 5 | PNJ23: 5 | PNK23: 5 | PNL23: 5 | PNM23: 5 | PNN23: 5 | PNO23: 5 | PNP23: 5 | PNQ23: 5 | PNR23: 5 | PNS23: 5 | PNT23: 5 | PNU23: 5 | PNV23: 5 | PNW23: 5 | PNX23: 5 | PNY23: 5 | PNZ23: 5 | POA23: 5 | POB23: 5 | POC23: 5 | POD23: 5 | POE23: 5 | POF23: 5 | POG23: 5 | POH23: 5 | POI23: 5 | POJ23: 5 | POK23: 5 | POL23: 5 | POM23: 5 | PON23: 5 | POO23: 5 | POP23: 5 | POQ23: 5 | POR23: 5 | POS23: 5 | POT23: 5 | POU23: 5 | POV23: 5 | POW23: 5 | POX23: 5 | POY23: 5 | POZ23: 5 | PPA23: 5 | PPB23: 5 | PPC23: 5 | PPD23: 5 | PPE23: 5 | PPF23: 5 | PPG23: 5 | PPH23: 5 | PPI23: 5 | PPJ23: 5 | PPK23: 5 | PPL23: 5 | PPM23: 5 | PPN23: 5 | PPO23: 5 | PPP23: 5 | PPQ23: 5 | PPR23: 5 | PPS23: 5 | PPT23: 5 | PPU23: 5 | PPV23: 5 | PPW23: 5 | PPX23: 5 | PPY23: 5 | PPZ23: 5 | PQA23: 5 | PQB23: 5 | PQC23: 5 | PQD23: 5 | PQE23: 5 | PQF23: 5 | PQG23: 5 | PQH23: 5 | PQI23: 5 | PQJ23: 5 | PQK23: 5 | PQL23: 5 | PQM23: 5 | PQN23: 5 | PQO23: 5 | PQP23: 5 | PQQ23: 5 | PQR23: 5 | PQS23: 5 | PQT23: 5 | PQU23: 5 | PQV23: 5 | PQW23: 5 | PQX23: 5 | PQY23: 5 | PQZ23: 5 | PRA23: 5 | PRB23: 5 | PRC23: 5 | PRD23: 5 | PRE23: 5 | PRF23: 5 | PRG23: 5 | PRH23: 5 | PRI23: 5 | PRJ23: 5 | PRK23: 5 | PRL23: 5 | PRM23: 5 | PRN23: 5 | PRO23: 5 | PRP23: 5 | PRQ23: 5 | PRR23: 5 | PRS23: 5 | PRT23: 5 | PRU23: 5 | PRV23: 5 | PRW23: 5 | PRX23: 5 | PRY23: 5 | PRZ23: 5 | PSA23: 5 | PSB23: 5 | PSC23: 5 | PSD23: 5 | PSE23: 5 | PSF23: 5 | PSG23: 5 | PSH23: 5 | PSI23: 5 | PSJ23: 5 | PSK23: 5 | PSL23: 5 | PSM23: 5 | PSN23: 5 | PSO23: 5 | PSP23: 5 | PSQ23: 5 | PSR23: 5 | PSS23: 5 | PST23: 5 | PSU23: 5 | PSV23: 5 | PSW23: 5 | PSX23: 5 | PSY23: 5 | PSZ23: 5 | PTA23: 5 | PTB23: 5 | PTC23: 5 | PTD23: 5 | PTE23: 5 | PTF23: 5 | PTG23: 5 | PTH23: 5 | PTI23: 5 | PTJ23: 5 | PTK23: 5 | PTL23: 5 | PTM23: 5 | PTN23: 5 | PTO23: 5 | PTP23: 5 | PTQ23: 5 | PTR23: 5 | PTS23: 5 | PTT23: 5 | PTU23: 5 | PTV23: 5 | PTW23: 5 | PTX23: 5 | PTY23: 5 | PTZ23: 5 | PUA23: 5 | PUB23: 5 | PUC23: 5 | PUD23: 5 | PUE23: 5 | PUF23: 5 | PUG23: 5 | PUH23: 5 | PUI23: 5 | PUJ23: 5 | PUK23: 5 | PUL23: 5 | PUM23: 5 | PUN23: 5 | PUO23: 5 | PUP23: 5 | PUQ23: 5 | PUR23: 5 | PUS23: 5 | PUT23: 5 | PUU23: 5 | PUV23: 5 | PUW23: 5 | PUX23: 5 | PUY23: 5 | PUZ23: 5 | PVA23: 5 | PVB23: 5 | PVC23: 5 | PVD23: 5 | PVE23: 5 | PVF23: 5 | PVG23: 5 | PVH23: 5 | PVI23: 5 | PVJ23: 5 | PVK23: 5 | PVL23: 5 | PVM23: 5 | PVN23: 5 | PVO23: 5 | PVP23: 5 | PVQ23: 5 | PVR23: 5 | PVS23: 5 | PVT23: 5 | PVU23: 5 | PVV23: 5 | PVW23: 5 | PVX23: 5 | PVY23: 5 | PVZ23: 5 | PWA23: 5 | PWB23: 5 | PWC23: 5 | PWD23: 5 | PWE23: 5 | PWF23: 5 | PWG23: 5 | PWH23: 5 | PWI23: 5 | PWJ23: 5 | PWK23: 5 | PWL23: 5 | PWM23: 5 | PWN23: 5 | PWO23: 5 | PWP23: 5 | PWQ23: 5 | PWR23: 5 | PWS23: 5 | PWT23: 5 | PWU23: 5 | PWV23: 5 | PWW23: 5 | PWX23: 5 | PWY23: 5 | PWZ23: 5 | PXA23: 5 | PXB23: 5 | PXC23: 5 | PXD23: 5 | PXE23: 5 | PXF23: 5 | PXG23: 5 | PXH23: 5 | PXI23: 5 | PXJ23: 5 | PXK23: 5 | PXL23: 5 | PXM23: 5 | PXN23: 5 | PXO23: 5 | PXP23: 5 | PXQ23: 5 | PXR23: 5 | PXS23: 5 | PXT23: 5 | PXU23: 5 | PXV23: 5 | PXW23: 5 | PXX23: 5 | PXY23: 5 | PXZ23: 5 | PYA23: 5 | PYB23: 5 | PYC23: 5 | PYD23: 5 | PYE23: 5 | PYF23: 5 | PYG23: 5 | PYH23: 5 | PYI23: 5 | PYJ23: 5 | PYK23: 5 | PYL23: 5 | PYM23: 5 | PYN23: 5 | PYO23: 5 | PYP23: 5 | PYQ23: 5 | PYR23: 5 | PYS23: 5 | PYT23: 5 | PYU23: 5 | PYV23: 5 | PYW23: 5 | PYX23: 5 | PYY23: 5 | PYZ23: 5 | PZA23: 5 | PZB23: 5 | PZC23: 5 | PZD23: 5 | PZE23: 5 | PZF23: 5 | PZG23: 5 | PZH23: 5 | PZI23: 5 | PZJ23: 5 | PZK23: 5 | PZL23: 5 | PZM23: 5 | PZN23: 5 | PZO23: 5 | PZP23: 5 | PZQ23: 5 | PZR23: 5 | PZS23: 5 | PZT23: 5 | PZU23: 5 | PZV23: 5 | PZW23: 5 | PZX23: 5 | PZY23: 5 | PZZ23: 5 | QAA23: 5 | QAB23: 5 | QAC23: 5 | QAD23: 5 | QAE23: 5 | QAF23: 5 | QAG23: 5 | QAH23: 5 | QAI23: 5 | QAJ23: 5 | QAK23: 5 | QAL23: 5 | QAM23: 5 | QAN23: 5 | QAO23: 5 | QAP23: 5 | QAQ23: 5 | QAR23: 5 | QAS23: 5 | QAT23: 5 | QAU23: 5 | QAV23: 5 | QAW23: 5 | QAX23: 5 | QAY23: 5 | QAZ23: 5 | QBA23: 5 | QBB23: 5 | QBC23: 5 | QBD23: 5 | QBE23: 5 | QBF23: 5 | QBG23: 5 | QBH23: 5 | QBI23: 5 | QBJ23: 5 | QBK23: 5 | QBL23: 5 | QBM23: 5 | QBN23: 5 | QBO23: 5 | QBP23: 5 | QBQ23: 5 | QBR23: 5 | QBS23: 5 | QBT23: 5 | QBU23: 5 | QBV23: 5 | QBW23: 5 | QBX23: 5 | QBY23: 5 | QBZ23: 5 | QCA23: 5 | QCB23: 5 | QCC23: 5 | QCD23: 5 | QCE23: 5 | QCF23: 5 | QCG23: 5 | QCH23: 5 | QCI23: 5 | QCJ23: 5 | QCK23: 5 | QCL23: 5 | QCM23: 5 | QCN23: 5 | QCO23: 5 | QCP23: 5 | QCQ23: 5 | QCR23: 5 | QCS23: 5 | QCT23: 5 | QCU23: 5 | QCV23: 5 | QCW23: 5 | QCX23: 5 | QCY23: 5 | QCZ23: 5 | QDA23: 5 | QDB23: 5 | QDC23: 5 | QDD23: 5 | QDE23: 5 | QDF23: 5 | QDG23: 5 | QDH23: 5 | QDI23: 5 | QDJ23: 5 | QDK23: 5 | QDL23: 5 | QDM23: 5 | QDN23: 5 | QDO23: 5 | QDP23: 5 | QDQ23: 5 | QDR23: 5 | QDS23: 5 | QDT23: 5 | QDU23: 5 | QDV23: 5 | QDW23: 5 | QDX23: 5 | QDY23: 5 | QDZ23: 5 | QEA23: 5 | QEB23: 5 | QEC23: 5 | QED23: 5 | QEE23: 5 | QEF23: 5 | QEG23: 5 | QEH23: 5 | QEI23: 5 | QEJ23: 5 | QEK23: 5 | QEL23: 5 | QEM23: 5 | QEN23: 5 | QEO23: 5 | QEP23: 5 | QEQ23: 5 | QER23: 5 | QES23: 5 | QET23: 5 | QEU23: 5 | QEV23: 5 | QEW23: 5 | QEX23: 5 | QEY23: 5 | QEZ23: 5 | QFA23: 5 | QFB23: 5 | QFC23: 5 | QFD23: 5 | QFE23: 5 | QFF23: 5 | QFG23: 5 | QFH23: 5 | QFI23: 5 | QFJ23: 5 | QFK23: 5 | QFL23: 5 | QFM23: 5 | QFN23: 5 | QFO23: 5 | QFP23: 5 | QFQ23: 5 | QFR23: 5 | QFS23: 5 | QFT23: 5 | QFU23: 5 | QFV23: 5 | QFW23: 5 | QFX23: 5 | QFY23: 5 | QFZ23: 5 | QGA23: 5 | QGB23: 5 | QGC23: 5 | QGD23: 5 | QGE23: 5 | QGF23: 5 | QGG23: 5 | QGH23: 5 | QGI23: 5 | QGJ23: 5 | QGK23: 5 | QGL23: 5 | QGM23: 5 | QGN23: 5 | QGO23: 5 | QGP23: 5 | QGQ23: 5 | QGR23: 5 | QGS23: 5 | QGT23: 5 | QGU23: 5 | QGV23: 5 | QGW23: 5 | QGX23: 5 | QGY23: 5 | QGZ23: 5 | QHA23: 5 | QHB23: 5 | QHC23: 5 | QHD23: 5 | QHE23: 5 | QHF23: 5 | QHG23: 5 | QHH23: 5 | QHI23: 5 | QHJ23: 5 | QHK23: 5 | QHL23: 5 | QHM23: 5 | QHN23: 5 | QHO23: 5 | QHP23: 5 | QHQ23: 5 | QHR23: 5 | QHS23: 5 | QHT23: 5 | QHU23: 5 | QHV23: 5 | QHW23: 5 | QHX23: 5 | QHY23: 5 | QHZ23: 5 | QIA23: 5 | QIB23: 5 | QIC23: 5 | QID23: 5 | QIE23: 5 | QIF23: 5 | QIG23: 5 | QIH23: 5 | QII23: 5 | QIJ23: 5 | QIK23: 5 | QIL23: 5 | QIM23: 5 | QIN23: 5 | QIO23: 5 | QIP23: 5 | QIQ23: 5 | QIR23: 5 | QIS23: 5 | QIT23: 5 | QIU23: 5 | QIV23: 5 | QIW23: 5 | QIX23: 5 | QIY23: 5 | QIZ23: 5 | QJA23: 5 | QJB23: 5 | QJC23: 5 | QJD23: 5 | QJE23: 5 | QJF23: 5 | QJG23: 5 | QJH23: 5 | QJI23: 5 | QJJ23: 5 | QJK23: 5 | QJL23: 5 | QJM23: 5 | QJN23: 5 | QJO23: 5 | QJP23: 5 | QJQ23: 5 | QJR23: 5 | QJS23: 5 | QJT23: 5 | QJU23: 5 | QJV23: 5 | QJW23: 5 | QJX23: 5 | QJY23: 5 | QJZ23: 5 | QKA23: 5 | QKB23: 5 | QKC23: 5 | QKD23: 5 | QKE23: 5 | QKF23: 5 | QKG23: 5 | QKH23: 5 | QKI23: 5 | QKJ23: 5 | QKK23: 5 | QKL23: 5 | QKM23: 5 | QKN23: 5 | QKO23: 5 | QKP23: 5 | QKQ23: 5 | QKR23: 5 | QKS23: 5 | QKT23: 5 | QKU23: 5 | QKV23: 5 | QKW23: 5 | QKX23: 5 | QKY23: 5 | QKZ23: 5 | QLA23: 5 | QLB23: 5 | QLC23: 5 | QLD23: 5 | QLE23: 5 | QLF23: 5 | QLG23: 5 | QLH23: 5 | QLI23: 5 | QLJ23: 5 | QLK23: 5 | QLL23: 5 | QLM23: 5 | QLN23: 5 | QLO23: 5 | QLP23: 5 | QLQ23: 5 | QLR23: 5 | QLS23: 5 | QLT23: 5 | QLU23: 5 | QLV23: 5 | QLW23: 5 | QLX23: 5 | QLY23: 5 | QLZ23: 5 | QMA23: 5 | QMB23: 5 | QMC23: 5 | QMD23: 5 | QME23: 5 | QMF23: 5 | QMG23: 5 | QMH23: 5 | QMI23: 5 | QMJ23: 5 | QMK23: 5 | QML23: 5 | QMM23: 5 | QMN23: 5 | QMO23: 5 | QMP23: 5 | QMQ23: 5 | QMR23: 5 | QMS23: 5 | QMT23: 5 | QMU23: 5 | QMV23: 5 | QMW23: 5 | QMX23: 5 | QMY23: 5 | QMZ23: 5 | QNA23: 5 | QNB23: 5 | QNC23: 5 | QND23: 5 | QNE23: 5 | QNF23: 5 | QNG23: 5 | QNH23: 5 | QNI23: 5 | QNJ23: 5 | QNK23: 5 | QNL23: 5 | QNM23: 5 | QNN23: 5 | QNO23: 5 | QNP23: 5 | QNQ23: 5 | QNR23: 5 | QNS23: 5 | QNT23: 5 | QNU23: 5 | QNV23: 5 | QNW23: 5 | QNX23: 5 | QNY23: 5 | QNZ23: 5 | QOA23: 5 | QOB23: 5 | QOC23: 5 | QOD23: 5 | QOE23: 5 | QOF23: 5 | QOG23: 5 | QOH23: 5 | QOI23: 5 | QOJ23: 5 | QOK23: 5 | QOL23: 5 | QOM23: 5 | QON23: 5 | QOO23: 5 | QOP23: 5 | QOQ23: 5 | QOR23: 5 | QOS23: 5 | QOT23: 5 | QOU23: 5 | QOV23: 5 | QOW23: 5 | QOX23: 5 | QOY23: 5 | QOZ23: 5 | QPA23: 5 | QPB23: 5 | QPC23: 5 | QPD23: 5 | QPE23: 5 | QPF23: 5 | QPG23: 5 | QPH23: 5 | QPI23: 5 | QPJ23: 5 | QPK23: 5 | QPL23: 5 | QPM23: 5 | QPN23: 5 | QPO23: 5 | QPP23: 5 | QPQ23: 5 | QPR23: 5 | QPS23: 5 | QPT23: 5 | QPU23: 5 | QPV23: 5 | QPW23: 5 | QPX23: 5 | QPY23: 5 | QPZ23: 5 | QQA23: 5 | QQB23: 5 | QQC23: 5 | QQD23: 5 | QQE23: 5 | QQF23: 5 | QQG23: 5 | QQH23: 5 | QQI23: 5 | QQJ23: 5 | QQK23: 5 | QQL23: 5 | QQM23: 5 | QQN23: 5 | QQO23: 5 | QQP23: 5 | QQQ23: 5 | QQR23: 5 | QQS23: 5 | QQT23: 5 | QQU23: 5 | QQV23: 5 | QQW23: 5 | QQX23: 5 | QQY23: 5 | QQZ23: 5 | QRA23: 5 | QRB23: 5 | QRC23: 5 | QRD23: 5 | QRE23: 5 | QRF23: 5 | QRG23: 5 | QRH23: 5 | QRI23: 5 | QRJ23: 5 | QRK23: 5 | QRL23: 5 | QRM23: 5 | QRN23: 5 | QRO23: 5 | QRP23: 5 | QRQ23: 5 | QRR23: 5 | QRS23: 5 | QRT23: 5 | QRU23: 5 | QRV23: 5 | QRW23: 5 | QRX23: 5 | QRY23: 5 | QRZ23: 5 | QSA23: 5 | QSB23: 5 | QSC23: 5 | QSD23: 5 | QSE23: 5 | QSF23: 5 | QSG23: 5 | QSH23: 5 | QSI23: 5 | QSJ23: 5 | QSK23: 5 | QSL23: 5 | QSM23: 5 | QSN23: 5 | QSO23: 5 | QSP23: 5 | QSQ23: 5 | QSR23: 5 | QSS23: 5 | QST23: 5 | QSU23: 5 | QSV23: 5 | QSW23: 5 | QSX23: 5 | QSY23: 5 | QSZ23: 5 | QTA23: 5 | QTB23: 5 | QTC23: 5 | QTD23: 5 | QTE23: 5 | QTF23: 5 | QTG23: 5 | QTH23: 5 | QTI23: 5 | QTJ23: 5 | QTK23: 5 | QTL23: 5 | QTM23: 5 | QTN23: 5 | QTO23: 5 | QTP23: 5 | QTQ23: 5 | QTR23: 5 | QTS23: 5 | QTT23: 5 | QTU23: 5 | QTV23: 5 | QTW23: 5 | QTX23: 5 | QTY23: 5 | QTZ23: 5 | QUA23: 5 | QUB23: 5 | QUC23: 5 | QUD23: 5 | QUE23: 5 | QUF23: 5 | QUG23: 5 | QUH23: 5 | QUI23: 5 | QUJ23: 5 | QUK23: 5 | QUL23: 5 | QUM23: 5 | QUN23: 5 | QUO23: 5 | QUP23: 5 | QUQ23: 5 | QUR23: 5 | QUS23: 5 | QUT23: 5 | QUU23: 5 | QUV23: 5 | QUW23: 5 | QUX23: 5 | QUY23: 5 | QUZ23: 5 | QVA23: 5 | QVB23: 5 | QVC23: 5 | QVD23: 5 | QVE23: 5 | QVF23: 5 | QVG23: 5 | QVH23: 5 | QVI23: 5 | QVJ23: 5 | QVK23: 5 | QVL23: 5 | QVM23: 5 | QVN23: 5 | QVO23: 5 | QVP23: 5 | QVQ23: 5 | QVR23: 5 | QVS23: 5 | QVT23: 5 | QVU23: 5 | QVV23: 5 | QVW23: 5 | QVX23: 5 | QVY23: 5 | QVZ23: 5 | QWA23: 5 | QWB23: 5 | QWC23: 5 | QWD23: 5 | QWE23: 5 | QWF23: 5 | QWG23: 5 | QWH23: 5 | QWI23: 5 | QWJ23: 5 | QWK23: 5 | QWL23: 5 | QWM23: 5 | QWN23: 5 | QWO23: 5 | QWP23: 5 | QWQ23: 5 | QWR23: 5 | QWS23: 5 | QWT23: 5 | QWU23: 5 | QWV23: 5 | QWW23: 5 | QWX23: 5 | QWY23: 5 | QWZ23: 5 | QXA23: 5 | QXB23: 5 | QXC23: 5 | QXD23: 5 | QXE23: 5 | QXF23: 5 | QXG23: 5 | QXH23: 5 | QXI23: 5 | QXJ23: 5 | QXK23: 5 | QXL23: 5 | QXM23: 5 | QXN23: 5 | QXO23: 5 | QXP23: 5 | QXQ23: 5 | QXR23: 5 | QXS23: 5 | QXT23: 5 | QXU23: 5 | QXV23: 5 | QXW23: 5 | QXX23: 5 | QXY23: 5 | QXZ23: 5 | QYA23: 5 | QYB23: 5 | QYC23: 5 | QYD23: 5 | QYE23: 5 | QYF23: 5 | QYG23: 5 | QYH23: 5 | QYI23: 5 | QYJ23: 5 | QYK23: 5 | QYL23: 5 | QYM23: 5 | QYN23: 5 | QYO23: 5 | QYP23: 5 | QYQ23: 5 | QYR23: 5 | QYS23: 5 | QYT23: 5 | QYU23: 5 | QYV23: 5 | QYW23: 5 | QYX23: 5 | QYY23: 5 | QYZ23: 5 | QZA23: 5 | QZB23: 5 | QZC23: 5 | QZD23: 5 | QZE23: 5 | QZF23: 5 | QZG23: 5 | QZH23: 5 | QZI23: 5 | QZJ23: 5 | QZK23: 5 | QZL23: 5 | QZM23: 5 | QZN23: 5 | QZO23: 5 | QZP23: 5 | QZQ23: 5 | QZR23: 5 | QZS23: 5 | QZT23: 5 | QZU23: 5 | QZV23: 5 | QZW23: 5 | QZX23: 5 | QZY23: 5 | QZZ23: 5 | RAA23: 5 | RAB23: 5 | RAC23: 5 | RAD23: 5 | RAE23: 5 | RAF23: 5 | RAG23: 5 | RAH23: 5 | RAI23: 5 | RAJ23: 5 | RAK23: 5 | RAL23: 5 | RAM23: 5 | RAN23: 5 | RAO23: 5 | RAP23: 5 | RAQ23: 5 | RAR23: 5 | RAS23: 5 | RAT23: 5 | RAU23: 5 | RAV23: 5 | RAW23: 5 | RAX23: 5 | RAY23: 5 | RAZ23: 5 | RBA23: 5 | RBB23: 5 | RBC23: 5 | RBD23: 5 | RBE23: 5 | RBF23: 5 | RBG23: 5 | RBH23: 5 | RBI23: 5 | RBJ23: 5 | RBK23: 5 | RBL23: 5 | RBM23: 5 | RBN23: 5 | RBO23: 5 | RBP23: 5 | RBQ23: 5 | RBR23: 5 | RBS23: 5 | RBT23: 5 | RBU23: 5 | RBV23: 5 | RBW23: 5 | RBX23: 5 | RBY23: 5 | RBZ23: 5 | RCA23: 5 | RCB23: 5 | RCC23: 5 | RCD23: 5 | RCE23: 5 | RCF23: 5 | RCG23: 5 | RCH23: 5 | RCI23: 5 | RCJ23: 5 | RCK23: 5 | RCL23: 5 | RCM23: 5 | RCN23: 5 | RCO23: 5 | RCP23: 5 | RCQ23: 5 | RCR23: 5 | RCS23: 5 | RCT23: 5 | RCU23: 5 | RCV23: 5 | RCW23: 5 | RCX23: 5 | RCY23: 5 | RCZ23: 5 | RDA23: 5 | RDB23: 5 | RDC23: 5 | RDD23: 5 | RDE23: 5 | RDF23: 5 | RDG23: 5 | RDH23: 5 | RDI23: 5 | RDJ23: 5 | RDK23: 5 | RDL23: 5 | RDM23: 5 | RDN23: 5 | RDO23: 5 | RDP23: 5 | RDQ23: 5 | RDR23: 5 | RDS23: 5 | RDT23: 5 | RDU23: 5 | RDV23: 5 | RDW23: 5 | RDX23: 5 | RDY23: 5 | RDZ23: 5 | REA23: 5 | REB23: 5 | REC23: 5 | RED23: 5 | REE23: 5 | REF23: 5 | REG23: 5 | REH23: 5 | REI23: 5 | REJ23: 5 | REK23: 5 | REL23: 5 | REM23: 5 | REN23: 5 | REO23: 5 | REP23: 5 | REQ23: 5 | RER23: 5 | RES23: 5 | RET23: 5 | REU23: 5 | REV23: 5 | REW23: 5 | REX23: 5 | REY23: 5 | REZ23: 5 | RFA23: 5 | RFB23: 5 | RFC23: 5 | RFD23: 5 | RFE23: 5 | RFF23: 5 | RFG23: 5 | RFH23: 5 | RFI23: 5 | RFJ23: 5 | RFK23: 5 | RFL23: 5 | RFM23: 5 | RFN23: 5 | RFO23: 5 | RFP23: 5 | RFQ23: 5 | RFR23: 5 | RFS23: 5 | RFT23: 5 | RFU23: 5 | RFV23: 5 | RFW23: 5 | RFX23: 5 | RFY23: 5 | RFZ23: 5 | RGA23: 5 | RGB23: 5 | RGC23: 5 | RGD23: 5 | RGE23: 5 | RGF23: 5 | RGG23: 5 | RGH23: 5 | RGI23: 5 | RGJ23: 5 | RGK23: 5 | RGL23: 5 | RGM23: 5 | RGN23: 5 | RGO23: 5 | RGP23: 5 | RGQ23: 5 | RGR23: 5 | RGS23: 5 | RGT23: 5 | RGU23: 5 | RGV23: 5 | RGW23: 5 | RGX23: 5 | RGY23: 5 | RGZ23: 5 | RHA23: 5 | RHB23: 5 | RHC23: 5 | RHD23: 5 | RHE23: 5 | RHF23: 5 | RHG23: 5 | RHH23: 5 | RHI23: 5 | RHJ23: 5 | RHK23: 5 | RHL23: 5 | RHM23: 5 | RHN23: 5 | RHO23: 5 | RHP23: 5 | RHQ23: 5 | RHR23: 5 | RHS23: 5 | RHT23: 5 | RHU23: 5 | RHV23: 5 | RHW23: 5 | RHX23: 5 | RHY23: 5 | RHZ23: 5 | RIA23: 5 | RIB23: 5 | RIC23: 5 | RID23: 5 | RIE23: 5 | RIF23: 5 | RIG23: 5 | RIH23: 5 | RII23: 5 | RIJ23: 5 | RIK23: 5 | RIL23: 5 | RIM23: 5 | RIN23: 5 | RIO23: 5 | RIP23: 5 | RIQ23: 5 | RIR23: 5 | RIS23: 5 | RIT23: 5 | RIU23: 5 | RIV23: 5 | RIW23: 5 | RIX23: 5 | RIY23: 5 | RIZ23: 5 | RJA23: 5 | RJB23: 5 | RJC23: 5 | RJD23: 5 | RJE23: 5 | RJF23: 5 | RJG23: 5 | RJH23: 5 | RJI23: 5 | RJJ23: 5 | RJK23: 5 | RJL23: 5 | RJM23: 5 | RJN23: 5 | RJO23: 5 | RJP23: 5 | RJQ23: 5 | RJR23: 5 | RJS23: 5 | RJT23: 5 | RJU23: 5 | RJV23: 5 | RJW23: 5 | RJX23: 5 | RJY23: 5 | RJZ23: 5 | RKA23: 5 | RKB23: 5 | RKC23: 5 | RKD23: 5 | RKE23: 5 | RKF23: 5 | RKG23: 5 | RKH23: 5 | RKI23: 5 | RKJ23: 5 | RKK23: 5 | RKL23: 5 | RKM23: 5 | RKN23: 5 | RKO23: 5 | RKP23: 5 | RKQ23: 5 | RKR23: 5 | RKS23: 5 | RKT23: 5 | RKU23: 5 | RKV23: 5 | RKW23: 5 | RKX23: 5 | RKY23: 5 | RKZ23: 5 | RLA23: 5 | RLB23: 5 | RLC23: 5 | RLD23: 5 | RLE23: 5 | RLF23: 5 | RLG23: 5 | RLH23: 5 | RLI23: 5 | RLJ23: 5 | RLK23: 5 | RLL23: 5 | RLM23: 5 | RLN23: 5 | RLO23: 5 | RLP23: 5 | RLQ23: 5 | RLR23: 5 | RLS23: 5 | RLT23: 5 | RLU23: 5 | RLV23: 5 | RLW23: 5 | RLX23: 5 | RLY23: 5 | RLZ23: 5 | RMA23: 5 | RMB23: 5 | RMC23: 5 | RMD23: 5 | RME23: 5 | RMF23: 5 | RMG23: 5 | RMH23: 5 | RMI23: 5 | RMJ23: 5 | RMK23: 5 | RML23: 5 | RMM23: 5 | RMN23: 5 | RMO23: 5 | RMP23: 5 | RMQ23: 5 | RMR23: 5 | RMS23: 5 | RMT23: 5 | RMU23: 5 | RMV23: 5 | RMW23: 5 | RMX23: 5 | RMY23: 5 | RMZ23: 5 | RNA23: 5 | RNB23: 5 | RNC23: 5 | RND23: 5 | RNE23: 5 | RNF23: 5 | RNG23: 5 | RNH23: 5 | RNI23: 5 | RNJ23: 5 | RNK23: 5 | RNL23: 5 | RNM23: 5 | RNN23: 5 | RNO23: 5 | RNP23: 5 | RNQ23: 5 | RNR23: 5 | RNS23: 5 | RNT23: 5 | RNU23: 5 | RNV23: 5 | RNW23: 5 | RNX23: 5 | RNY23: 5 | RNZ23: 5 | ROA23: 5 | ROB23: 5 | ROC23: 5 | ROD23: 5 | ROE23: 5 | ROF23: 5 | ROG23: 5 | ROH23: 5 | ROI23: 5 | ROJ23: 5 | ROK23: 5 | ROL23: 5 | ROM23: 5 | RON23: 5 | ROO23: 5 | ROP23: 5 | ROQ23: 5 | ROR23: 5 | ROS23: 5 | ROT23: 5 | ROU23: 5 | ROV23: 5 | ROW23: 5 | ROX23: 5 | ROY23: 5 | ROZ23: 5 | RPA23: 5 | RPB23: 5 | RPC23: 5 | RPD23: 5 | RPE23: 5 | RPF23: 5 | RPG23: 5 | RPH23: 5 | RPI23: 5 | RPJ23: 5 | RPK23: 5 | RPL23: 5 | RPM23: 5 | RPN23: 5 | RPO23: 5 | RPP23: 5 | RPQ23: 5 | RPR23: 5 | RPS23: 5 | RPT23: 5 | RPU23: 5 | RPV23: 5 | RPW23: 5 | RPX23: 5 | RPY23: 5 | RPZ23: 5 | RQA23: 5 | RQB23: 5 | RQC23: 5 | RQD23: 5 | RQE23: 5 | RQF23: 5 | RQG23: 5 | RQH23: 5 | RQI23: 5 | RQJ23: 5 | RQK23: 5 | RQL23: 5 | RQM23: 5 | RQN23: 5 | RQO23: 5 | RQP23: 5 | RQQ23: 5 | RQR23: 5 | RQS23: 5 | RQT23: 5 | RQU23: 5 | RQV23: 5 | RQW23: 5 | RQX23: 5 | RQY23: 5 | RQZ23: 5 | RRA23: 5 | RRB23: 5 | RRC23: 5 | RRD23: 5 | RRE23: 5 | RRF23: 5 | RRG23: 5 | RRH23: 5 | RRI23: 5 | RRJ23: 5 | RRK23: 5 | RRL23: 5 | RRM23: 5 | RRN23: 5 | RRO23: 5 | RRP23: 5 | RRQ23: 5 | RRR23: 5 | RRS23: 5 | RRT23: 5 | RRU23: 5 | RRV23: 5 | RRW23: 5 | RRX23: 5 | RRY23: 5 | RRZ23: 5 | RSA23: 5 | RSB23: 5 | RSC23: 5 | RSD23: 5 | RSE23: 5 | RSF23: 5 | RSG23: 5 | RSH23: 5 | RSI23: 5 | RSJ23: 5 | RSK23: 5 | RSL23: 5 | RSM23: 5 | RSN23: 5 | RSO23: 5 | RSP23: 5 | RSQ23: 5 | RSR23: 5 | RSS23: 5 | RST23: 5 | RSU23: 5 | RSV23: 5 | RSW23: 5 | RSX23: 5 | RSY23: 5 | RSZ23: 5 | RTA23: 5 | RTB23: 5 | RTC23: 5 | RTD23: 5 | RTE23: 5 | RTF23: 5 | RTG23: 5 | RTH23: 5 | RTI23: 5 | RTJ23: 5 | RTK23: 5 | RTL23: 5 | RTM23: 5 | RTN23: 5 | RTO23: 5 | RTP23: 5 | RTQ23: 5 | RTR23: 5 | RTS23: 5 | RTT23: 5 | RTU23: 5 | RTV23: 5 | RTW23: 5 | RTX23: 5 | RTY23: 5 | RTZ23: 5 | RUA23: 5 | RUB23: 5 | RUC23: 5 | RUD23: 5 | RUE23: 5 | RUF23: 5 | RUG23: 5 | RUH23: 5 | RUI23: 5 | RUJ23: 5 | RUK23: 5 | RUL23: 5 | RUM23: 5 | RUN23: 5 | RUO23: 5 | RUP23: 5 | RUQ23: 5 | RUR23: 5 | RUS23: 5 | RUT23: 5 | RUU23: 5 | RUV23: 5 | RUW23: 5 | RUX23: 5 | RUY23: 5 | RUZ23: 5 | RVA23: 5 | RVB23: 5 | RVC23: 5 | RVD23: 5 | RVE23: 5 | RVF23: 5 | RVG23: 5 | RVH23: 5 | RVI23: 5 | RVJ23: 5 | RVK23: 5 | RVL23: 5 | RVM23: 5 | RVN23: 5 | RVO23: 5 | RVP23: 5 | RVQ23: 5 | RVR23: 5 | RVS23: 5 | RVT23: 5 | RVU23: 5 | RVV23: 5 | RVW23: 5 | RVX23: 5 | RVY23: 5 | RVZ23: 5 | RWA23: 5 | RWB23: 5 | RWC23: 5 | RWD23: 5 | RWE23: 5 | RWF23: 5 | RWG23: 5 | RWH23: 5 | RWI23: 5 | RWJ23: 5 | RWK23: 5 | RWL23: 5 | RWM23: 5 | RWN23: 5 | RWO23: 5 | RWP23: 5 | RWQ23: 5 | RWR23: 5 | RWS23: 5 | RWT23: 5 | RWU23: 5 | RWV23: 5 | RWW23: 5 | RWX23: 5 | RWY23: 5 | RWZ23: 5 | RXA23: 5 | RXB23: 5 | RXC23: 5 | RXD23: 5 | RXE23: 5 | RXF23: 5 | RXG23: 5 | RXH23: 5 | RXI23: 5 | RXJ23: 5 | RXK23: 5 | RXL23: 5 | RXM23: 5 | RXN23: 5 | RXO23: 5 | RXP23: 5 | RXQ23: 5 | RXR23: 5 | RXS23: 5 | RXT23: 5 | RXU23: 5 | RXV23: 5 | RXW23: 5 | RXX23: 5 | RXY23: 5 | RXZ23: 5 | RYA23: 5 | RYB23: 5 | RYC23: 5 | RYD23: 5 | RYE23: 5 | RYF23: 5 | RYG23: 5 | RYH23: 5 | RYI23: 5 | RYJ23: 5 | RYK23: 5 | RYL23: 5 | RYM23: 5 | RYN23: 5 | RYO23: 5 | RYP23: 5 | RYQ23: 5 | RYR23: 5 | RYS23: 5 | RYT23: 5 | RYU23: 5 | RYV23: 5 | RYW23: 5 | RYX23: 5 | RYY23: 5 | RYZ23: 5 | RZA23: 5 | RZB23: 5 | RZC23: 5 | RZD23: 5 | RZE23: 5 | RZF23: 5 | RZG23: 5 | RZH23: 5 | RZI23: 5 | RZJ23: 5 | RZK23: 5 | RZL23: 5 | RZM23: 5 | RZN23: 5 | RZO23: 5 | RZP23: 5 | RZQ23: 5 | RZR23: 5 | RZS23: 5 | RZT23: 5 | RZU23: 5 | RZV23: 5 | RZW23: 5 | RZX23: 5 | RZY23: 5 | RZZ23: 5 | SAA23: 5 | SAB23: 5 | SAC23: 5 | SAD23: 5 | SAE23: 5 | SAF23: 5 | SAG23: 5 | SAH23: 5 | SAI23: 5 | SAJ23: 5 | SAK23: 5 | SAL23: 5 | SAM23: 5 | SAN23: 5 | SAO23: 5 | SAP23: 5 | SAQ23: 5 | SAR23: 5 | SAS23: 5 | SAT23: 5 | SAU23: 5 | SAV23: 5 | SAW23: 5 | SAX23: 5 | SAY23: 5 | SAZ23: 5 | SBA23: 5 | SBB23: 5 | SBC23: 5 | SBD23: 5 | SBE23: 5 | SBF23: 5 | SBG23: 5 | SBH23: 5 | SBI23: 5 | SBJ23: 5 | SBK23: 5 | SBL23: 5 | SBM23: 5 | SBN23: 5 | SBO23: 5 | SBP23: 5 | SBQ23: 5 | SBR23: 5 | SBS23: 5 | SBT23: 5 | SBU23: 5 | SBV23: 5 | SBW23: 5 | SBX23: 5 | SBY23: 5 | SBZ23: 5 | SCA23: 5 | SCB23: 5 | SCC23: 5 | SCD23: 5 | SCE23: 5 | SCF23: 5 | SCG23: 5 | SCH23: 5 | SCI23: 5 | SCJ23: 5 | SCK23: 5 | SCL23: 5 | SCM23: 5 | SCN23: 5 | SCO23: 5 | SCP23: 5 | SCQ23: 5 | SCR23: 5 | SCS23: 5 | SCT23: 5 | SCU23: 5 | SCV23: 5 | SCW23: 5 | SCX23: 5 | SCY23: 5 | SCZ23: 5 | SDA23: 5 | SDB23: 5 | SDC23: 5 | SDD23: 5 | SDE23: 5 | SDF23: 5 | SDG23: 5 | SDH23: 5 | SDI23: 5 | SDJ23: 5 | SDK23: 5 | SDL23: 5 | SDM23: 5 | SDN23: 5 | SDO23: 5 | SDP23: 5 | SDQ23: 5 | SDR23: 5 | SDS23: 5 | SDT23: 5 | SDU23: 5 | SDV23: 5 | SDW23: 5 | SDX23: 5 | SDY23: 5 | SDZ23: 5 | SEA23: 5 | SEB23: 5 | SEC23: 5 | SED23: 5 | SEE23: 5 | SEF23: 5 | SEG23: 5 | SEH23: 5 | SEI23: 5 | SEJ23: 5 | SEK23: 5 | SEL23: 5 | SEM23: 5 | SEN23: 5 | SEO23: 5 | SEP23: 5 | SEQ23: 5 | SER23: 5 | SES23: 5 | SET23: 5 | SEU23: 5 | SEV23: 5 | SEW23: 5 | SEX23: 5 | SEY23: 5 | SEZ23: 5 | SFA23: 5 | SFB23: 5 | SFC23: 5 | SFD23: 5 | SFE23: 5 | SFF23: 5 | SFG23: 5 | SFH23: 5 | SFI23: 5 | SFJ23: 5 | SFK23: 5 | SFL23: 5 | SFM23: 5 | SFN23: 5 | SFO23: 5 | SFP23: 5 | SFQ23: 5 | SFR23: 5 | SFS23: 5 | SFT23: 5 | SFU23: 5 | SFV23: 5 | SFW23: 5 | SFX23: 5 | SFY23: 5 | SFZ23: 5 | SGA23: 5 | SGB23: 5 | SGC23: 5 | SGD23: 5 | SGE23: 5 | SGF23: 5 | SGG23: 5 | SGH23: 5 | SGI23: 5 | SGJ23: 5 | SGK23: 5 | SGL23: 5 | SGM23: 5 | SGN23: 5 | SGO23: 5 | SGP23: 5 | SGQ23: 5 | SGR23: 5 | SGS23: 5 | SGT23: 5 | SGU23: 5 | SGV23: 5 | SGW23: 5 | SGX23: 5 | SGY23: 5 | SGZ23: 5 | SHA23: 5 | SHB23: 5 | SHC23: 5 | SHD23: 5 | SHE23: 5 | SHF23: 5 | SHG23: 5 | SHH23: 5 | SHI23: 5 | SHJ23: 5 | SHK23: 5 | SHL23: 5 | SHM23: 5 | SHN23: 5 | SHO23: 5 | SHP23: 5 | SHQ23: 5 | SHR23: 5 | SHS23: 5 | SHT23: 5 | SHU23: 5 | SHV23: 5 | SHW23: 5 | SHX23: 5 | SHY23: 5 | SHZ23: 5 | SIA23: 5 | SIB23: 5 | SIC23: 5 | SID23: 5 | SIE23: 5 | SIF23: 5 | SIG23: 5 | SIH23: 5 | SII23: 5 | SIJ23: 5 | SIK23: 5 | SIL23: 5 | SIM23: 5 | SIN23: 5 | SIO23: 5 | SIP23: 5 | SIQ23: 5 | SIR23: 5 | SIS23: 5 | SIT23: 5 | SIU23: 5 | SIV23: 5 | SIW23: 5 | SIX23: 5 | SIY23: 5 | SIZ23: 5 | SJA23: 5 | SJB23: 5 | SJC23: 5 | SJD23: 5 | SJE23: 5 | SJF23: 5 | SJG23: 5 | SJH23: 5 | SJI23: 5 | SJJ23: 5 | SJK23: 5 | SJL23: 5 | SJM23: 5 | SJN23: 5 | SJO23: 5 | SJP23: 5 | SJQ23: 5 | SJR23: 5 | SJS23: 5 | SJT23: 5 | SJU23: 5 | SJV23: 5 | SJW23: 5 | SJX23: 5 | SJY23: 5 | SJZ23: 5 | SKA23: 5 | SKB23: 5 | SKC23: 5 | SKD23: 5 | SKE23: 5 | SKF23: 5 | SKG23: 5 | SKH23: 5 | SKI23: 5 | SKJ23: 5 | SKK23: 5 | SKL23: 5 | SKM23: 5 | SKN23: 5 | SKO23: 5 | SKP23: 5 | SKQ23: 5 | SKR23: 5 | SKS23: 5 | SKT23: 5 | SKU23: 5 | SKV23: 5 | SKW23: 5 | SKX23: 5 | SKY23: 5 | SKZ23: 5 | SLA23: 5 | SLB23: 5 | SLC23: 5 | SLD23: 5 | SLE23: 5 | SLF23: 5 | SLG23: 5 | SLH23: 5 | SLI23: 5 | SLJ23: 5 | SLK23: 5 | SLL23: 5 | SLM23: 5 | SLN23: 5 | SLO23: 5 | SLP23: 5 | SLQ23: 5 | SLR23: 5 | SLS23: 5 | SLT23: 5 | SLU23: 5 | SLV23: 5 | SLW23: 5 | SLX23: 5 | SLY23: 5 | SLZ23: 5 | SMA23: 5 | SMB23: 5 | SMC23: 5 | SMD23: 5 | SME23: 5 | SMF23: 5 | SMG23: 5 | SMH23: 5 | SMI23: 5 | SMJ23: 5 | SMK23: 5 | SML23: 5 | SMM23: 5 | SMN23: 5 | SMO23: 5 | SMP23: 5 | SMQ23: 5 | SMR23: 5 | SMS23: 5 | SMT23: 5 | SMU23: 5 | SMV23: 5 | SMW23: 5 | SMX23: 5 | SMY23: 5 | SMZ23: 5 | SNA23: 5 | SNB23: 5 | SNC23: 5 | SND23: 5 | SNE23: 5 | SNF23: 5 | SNG23: 5 | SNH23: 5 | SNI23: 5 | SNJ23: 5 | SNK23: 5 | SNL23: 5 | SNM23: 5 | SNN23: 5 | SNO23: 5 | SNP23: 5 | SNQ23: 5 | SNR23: 5 | SNS23: 5 | SNT23: 5 | SNU23: 5 | SNV23: 5 | SNW23: 5 | SNX23: 5 | SNY23: 5 | SNZ23: 5 | SOA23: 5 | SOB23: 5 | SOC23: 5 | SOD23: 5 | SOE23: 5 | SOF23: 5 | SOG23: 5 | SOH23: 5 | SOI23: 5 | SOJ23: 5 | SOK23: 5 | SOL23: 5 | SOM23: 5 | SON23: 5 | SOO23: 5 | SOP23: 5 | SOQ23: 5 | SOR23: 5 | SOS23: 5 | SOT23: 5 | SOU23: 5 | SOV23: 5 | SOW23: 5 | SOX23: 5 | SOY23: 5 | SOZ23: 5 | SPA23: 5 | SPB23: 5 | SPC23: 5 | SPD23: 5 | SPE23: 5 | SPF23: 5 | SPG23: 5 | SPH23: 5 | SPI23: 5 | SPJ23: 5 | SPK23: 5 | SPL23: 5 | SPM23: 5 | SPN23: 5 | SPO23: 5 | SPP23: 5 | SPQ23: 5 | SPR23: 5 | SPS23: 5 | SPT23: 5 | SPU23: 5 | SPV23: 5 | SPW23: 5 | SPX23: 5 | SPY23: 5 | SPZ23: 5 | SQA23: 5 | SQB23: 5 | SQC23: 5 | SQD23: 5 | SQE23: 5 | SQF23: 5 | SQG23: 5 | SQH23: 5 | SQI23: 5 | SQJ23: 5 | SQK23: 5 | SQL23: 5 | SQM23: 5 | SQN23: 5 | SQO23: 5 | SQP23: 5 | SQQ23: 5 | SQR23: 5 | SQS23: 5 | SQT23: 5 | SQU23: 5 | SQV23: 5 | SQW23: 5 | SQX23: 5 | SQY23: 5 | SQZ23: 5 | SRA23: 5 | SRB23: 5 | SRC23: 5 | SRD23: 5 | SRE23: 5 | SRF23: 5 | SRG23: 5 | SRH23: 5 | SRI23: 5 | SRJ23: 5 | SRK23: 5 | SRL23: 5 | SRM23: 5 | SRN23: 5 | SRO23: 5 | SRP23: 5 | SRQ23: 5 | SRR23: 5 | SRS23: 5 | SRT23: 5 | SRU23: 5 | SRV23: 5 | SRW23: 5 | SRX23: 5 | SRY23: 5 | SRZ23: 5 | SSA23: 5 | SSB23: 5 | SSC23: 5 | SSD23: 5 | SSE23: 5 | SSF23: 5 | SSG23: 5 | SSH23: 5 | SSI23: 5 | SSJ23: 5 | SSK23: 5 | SSL23: 5 | SSM23: 5 | SSN23: 5 | SSO23: 5 | SSP23: 5 | SSQ23: 5 | SSR23: 5 | SSS23: 5 | SST23: 5 | SSU23: 5 | SSV23: 5 | SSW23: 5 | SSX23: 5 | SSY23: 5 | SSZ23: 5 | STA23: 5 | STB23: 5 | STC23: 5 | STD23: 5 | STE23: 5 | STF23: 5 | STG23: 5 | STH23: 5 | STI23: 5 | STJ23: 5 | STK23: 5 | STL23: 5 | STM23: 5 | STN23: 5 | STO23: 5 | STP23: 5 | STQ23: 5 | STR23: 5 | STS23: 5 | STT23: 5 | STU23: 5 | STV23: 5 | STW23: 5 | STX23: 5 | STY23: 5 | STZ23: 5 | SUA23: 5 | SUB23: 5 | SUC23: 5 | SUD23: 5 | SUE23: 5 | SUF23: 5 | SUG23: 5 | SUH23: 5 | SUI23: 5 | SUJ23: 5 | SUK23: 5 | SUL23: 5 | SUM23: 5 | SUN23: 5 | SUO23: 5 | SUP23: 5 | SUQ23: 5 | SUR23: 5 | SUS23: 5 | SUT23: 5 | SUU23: 5 | SUV23: 5 | SUW23: 5 | SUX23: 5 | SUY23: 5 | SUZ23: 5 | SVA23: 5 | SVB23: 5 | SVC23: 5 | SVD23: 5 | SVE23: 5 | SVF23: 5 | SVG23: 5 | SVH23: 5 | SVI23: 5 | SVJ23: 5 | SVK23: 5 | SVL23: 5 | SVM23: 5 | SVN23: 5 | SVO23: 5 | SVP23: 5 | SVQ23: 5 | SVR23: 5 | SVS23: 5 | SVT23: 5 | SVU23: 5 | SVV23: 5 | SVW23: 5 | SVX23: 5 | SVY23: 5 | SVZ23: 5 | SWA23: 5 | SWB23: 5 | SWC23: 5 | SWD23: 5 | SWE23: 5 | SWF23: 5 | SWG23: 5 | SWH23: 5 | SWI23: 5 | SWJ23: 5 | SWK23: 5 | SWL23: 5 | SWM23: 5 | SWN23: 5 | SWO23: 5 | SWP23: 5 | SWQ23: 5 | SWR23: 5 | SWS23: 5 | SWT23: 5 | SWU23: 5 | SWV23: 5 | SWW23: 5 | SWX23: 5 | SWY23: 5 | SWZ23: 5 | SXA23: 5 | SXB23: 5 | SXC23: 5 | SXD23: 5 | SXE23: 5 | SXF23: 5 | SXG23: 5 | SXH23: 5 | SXI23: 5 | SXJ23: 5 | SXK23: 5 | SXL23: 5 | SXM23: 5 | SXN23: 5 | SXO23: 5 | SXP23: 5 | SXQ23: 5 | SXR23: 5 | SXS23: 5 | SXT23: 5 | SXU23: 5 | SXV23: 5 | SXW23: 5 | SXX23: 5 | SXY23: 5 | SXZ23: 5 | SYA23: 5 | SYB23: 5 | SYC23: 5 | SYD23: 5 | SYE23: 5 | SYF23: 5 | SYG23: 5 | SYH23: 5 | SYI23: 5 | SYJ23: 5 | SYK23: 5 | SYL23: 5 | SYM23: 5 | SYN23: 5 | SYO23: 5 | SYP23: 5 | SYQ23: 5 | SYR23: 5 | SYS23: 5 | SYT23: 5 | SYU23: 5 | SYV23: 5 | SYW23: 5 | SYX23: 5 | SYY23: 5 | SYZ23: 5 | SZA23: 5 | SZB23: 5 | SZC23: 5 | SZD23: 5 | SZE23: 5 | SZF23: 5 | SZG23: 5 | SZH23: 5 | SZI23: 5 | SZJ23: 5 | SZK23: 5 | SZL23: 5 | SZM23: 5 | SZN23: 5 | SZO23: 5 | SZP23: 5 | SZQ23: 5 | SZR23: 5 | SZS23: 5 | SZT23: 5 | SZU23: 5 | SZV23: 5 | SZW23: 5 | SZX23: 5 | SZY23: 5 | SZZ23: 5 | TAA23: 5 | TAB23: 5 | TAC23: 5 | TAD23: 5 | TAE23: 5 | TAF23: 5 | TAG23: 5 | TAH23: 5 | TAI23: 5 | TAJ23: 5 | TAK23: 5 | TAL23: 5 | TAM23: 5 | TAN23: 5 | TAO23: 5 | TAP23: 5 | TAQ23: 5 | TAR23: 5 | TAS23: 5 | TAT23: 5 | TAU23: 5 | TAV23: 5 | TAW23: 5 | TAX23: 5 | TAY23: 5 | TAZ23: 5 | TBA23: 5 | TBB23: 5 | TBC23: 5 | TBD23: 5 | TBE23: 5 | TBF23: 5 | TBG23: 5 | TBH23: 5 | TBI23: 5 | TBJ23: 5 | TBK23: 5 | TBL23: 5 | TBM23: 5 | TBN23: 5 | TBO23: 5 | TBP23: 5 | TBQ23: 5 | TBR23: 5 | TBS23: 5 | TBT23: 5 | TBU23: 5 | TBV23: 5 | TBW23: 5 | TBX23: 5 | TBY23: 5 | TBZ23: 5 | TCA23: 5 | TCB23: 5 | TCC23: 5 | TCD23: 5 | TCE23: 5 | TCF23: 5 | TCG23: 5 | TCH23: 5 | TCI23: 5 | TCJ23: 5 | TCK23: 5 | TCL23: 5 | TCM23: 5 | TCN23: 5 | TCO23: 5 | TCP23: 5 | TCQ23: 5 | TCR23: 5 | TCS23: 5 | TCT23: 5 | TCU23: 5 | TCV23: 5 | TCW23: 5 | TCX23: 5 | TCY23: 5 | TCZ23: 5 | TDA23: 5 | TDB23: 5 | TDC23: 5 | TDD23: 5 | TDE23: 5 | TDF23: 5 | TDG23: 5 | TDH23: 5 | TDI23: 5 | TDJ23: 5 | TDK23: 5 | TDL23: 5 | TDM23: 5 | TDN23: 5 | TDO23: 5 | TDP23: 5 | TDQ23: 5 | TDR23: 5 | TDS23: 5 | TDT23: 5 | TDU23: 5 | TDV23: 5 | TDW23: 5 | TDX23: 5 | TDY23: 5 | TDZ23: 5 | TEA23: 5 | TEB23: 5 | TEC23: 5 | TED23: 5 | TEE23: 5 | TEF23: 5 | TEG23: 5 | TEH23: 5 | TEI23: 5 | TEJ23: 5 | TEK23: 5 | TEL23: 5 | TEM23: 5 | TEN23: 5 | TEO23: 5 | TEP23: 5 | TEQ23: 5 | TER23: 5 | TES23: 5 | TET23: 5 | TEU23: 5 | TEV23: 5 | TEW23: 5 | TEX23: 5 | TEY23: 5 | TEZ23: 5 | TFA23: 5 | TFB23: 5 | TFC23: 5 | TFD23: 5 | TFE23: 5 | TFF23: 5 | TFG23: 5 | TFH23: 5 | TFI23: 5 | TFJ23: 5 | TFK23: 5 | TFL23: 5 | TFM23: 5 | TFN23: 5 | TFO23: 5 | TFP23: 5 | TFQ23: 5 | TFR23: 5 | TFS23: 5 | TFT23: 5 | TFU23: 5 | TFV23: 5 | TFW23: 5 | TFX23: 5 | TFY23: 5 | TFZ23: 5 | TGA23: 5 | TGB23: 5 | TGC23: 5 | TGD23: 5 | TGE23: 5 | TGF23: 5 | TGG23: 5 | TGH23: 5 | TGI23: 5 | TGJ23: 5 | TGK23: 5 | TGL23: 5 | TGM23: 5 | TGN23: 5 | TGO23: 5 | TGP23: 5 | TGQ23: 5 | TGR23: 5 | TGS23: 5 | TGT23: 5 | TGU23: 5 | TGV23: 5 | TGW23: 5 | TGX23: 5 | TGY23: 5 | TGZ23: 5 | THA23: 5 | THB23: 5 | THC23: 5 | THD23: 5 | THE23: 5 | THF23: 5 | THG23: 5 | THH23: 5 | THI23: 5 | THJ23: 5 | THK23: 5 | THL23: 5 | THM23: 5 | THN23: 5 | THO23: 5 | THP23: 5 | THQ23: 5 | THR23: 5 | THS23: 5 | THT23: 5 | THU23: 5 | THV23: 5 | THW23: 5 | THX23: 5 | THY23: 5 | THZ23: 5 | TIA23: 5 | TIB23: 5 | TIC23: 5 | TID23: 5 | TIE23: 5 | TIF23: 5 | TIG23: 5 | TIH23: 5 | TII23: 5 | TIJ23: 5 | TIK23: 5 | TIL23: 5 | TIM23: 5 | TIN23: 5 | TIO23: 5 | TIP23: 5 | TIQ23: 5 | TIR23: 5 | TIS23: 5 | TIT23: 5 | TIU23: 5 | TIV23: 5 | TIW23: 5 | TIX23: 5 | TIY23: 5 | TIZ23: 5 | TJA23: 5 | TJB23: 5 | TJC23: 5 | TJD23: 5 | TJE23: 5 | TJF23: 5 | TJG23: 5 | TJH23: 5 | TJI23: 5 | TJJ23: 5 | TJK23: 5 | TJL23: 5 | TJM23: 5 | TJN23: 5 | TJO23: 5 | TJP23: 5 | TJQ23: 5 | TJR23: 5 | TJS23: 5 | TJT23: 5 | TJU23: 5 | TJV23: 5 | TJW23: 5 | TJX23: 5 | TJY23: 5 | TJZ23: 5 | TKA23: 5 | TKB23: 5 | TKC23: 5 | TKD23: 5 | TKE23: 5 | TKF23: 5 | TKG23: 5 | TKH23: 5 | TKI23: 5 | TKJ23: 5 | TKK23: 5 | TKL23: 5 | TKM23: 5 | TKN23: 5 | TKO23: 5 | TKP23: 5 | TKQ23: 5 | TKR23: 5 | TKS23: 5 | TKT23: 5 | TKU23: 5 | TKV23: 5 | TKW23: 5 | TKX23: 5 | TKY23: 5 | TKZ23: 5 | TLA23: 5 | TLB23: 5 | TLC23: 5 | TLD23: 5 | TLE23: 5 | TLF23: 5 | TLG23: 5 | TLH23: 5 | TLI23: 5 | TLJ23: 5 | TLK23: 5 | TLL23: 5 | TLM23: 5 | TLN23: 5 | TLO23: 5 | TLP23: 5 | TLQ23: 5 | TLR23: 5 | TLS23: 5 | TLT23: 5 | TLU23: 5 | TLV23: 5 | TLW23: 5 | TLX23: 5 | TLY23: 5 | TLZ23: 5 | TMA23: 5 | TMB23: 5 | TMC23: 5 | TMD23: 5 | TME23: 5 | TMF23: 5 | TMG23: 5 | TMH23: 5 | TMI23: 5 | TMJ23: 5 | TMK23: 5 | TML23: 5 | TMM23: 5 | TMN23: 5 | TMO23: 5 | TMP23: 5 | TMQ23: 5 | TMR23: 5 | TMS23: 5 | TMT23: 5 | TMU23: 5 | TMV23: 5 | TMW23: 5 | TMX23: 5 | TMY23: 5 | TMZ23: 5 | TNA23: 5 | TNB23: 5 | TNC23: 5 | TND23: 5 | TNE23: 5 | TNF23: 5 | TNG23: 5 | TNH23: 5 | TNI23: 5 | TNJ23: 5 | TNK23: 5 | TNL23: 5 | TNM23: 5 | TNN23: 5 | TNO23: 5 | TNP23: 5 | TNQ23: 5 | TNR23: 5 | TNS23: 5 | TNT23: 5 | TNU23: 5 | TNV23: 5 | TNW23: 5 | TNX23: 5 | TNY23: 5 | TNZ23: 5 | TOA23: 5 | TOB23: 5 | TOC23: 5 | TOD23: 5 | TOE23: 5 | TOF23: 5 | TOG23: 5 | TOH23: 5 | TOI23: 5 | TOJ23: 5 | TOK23: 5 | TOL23: 5 | TOM23: 5 | TON23: 5 | TOO23: 5 | TOP23: 5 | TOQ23: 5 | TOR23: 5 | TOS23: 5 | TOT23: 5 | TOU23: 5 | TOV23: 5 | TOW23: 5 | TOX23: 5 | TOY23: 5 | TOZ23: 5 | TPA23: 5 | TPB23: 5 | TPC23: 5 | TPD23: 5 | TPE23: 5 | TPF23: 5 | TPG23: 5 | TPH23: 5 | TPI23: 5 | TPJ23: 5 | TPK23: 5 | TPL23: 5 | TPM23: 5 | TPN23: 5 | TPO23: 5 | TPP23: 5 | TPQ23: 5 | TPR23: 5 | TPS23: 5 | TPT23: 5 | TPU23: 5 | TPV23: 5 | TPW23: 5 | TPX23: 5 | TPY23: 5 | TPZ23: 5 | TQA23: 5 | TQB23: 5 | TQC23: 5 | TQD23: 5 | TQE23: 5 | TQF23: 5 | TQG23: 5 | TQH23: 5 | TQI23: 5 | TQJ23: 5 | TQK23: 5 | TQL23: 5 | TQM23: 5 | TQN23: 5 | TQO23: 5 | TQP23: 5 | TQQ23: 5 | TQR23: 5 | TQS23: 5 | TQT23: 5 | TQU23: 5 | TQV23: 5 | TQW23: 5 | TQX23: 5 | TQY23: 5 | TQZ23: 5 | TRA23: 5 | TRB23: 5 | TRC23: 5 | TRD23: 5 | TRE23: 5 | TRF23: 5 | TRG23: 5 | TRH23: 5 | TRI23: 5 | TRJ23: 5 | TRK23: 5 | TRL23: 5 | TRM23: 5 | TRN23: 5 | TRO23: 5 | TRP23: 5 | TRQ23: 5 | TRR23: 5 | TRS23: 5 | TRT23: 5 | TRU23: 5 | TRV23: 5 | TRW23: 5 | TRX23: 5 | TRY23: 5 | TRZ23: 5 | TSA23: 5 | TSB23: 5 | TSC23: 5 | TSD23: 5 | TSE23: 5 | TSF23: 5 | TSG23: 5 | TSH23: 5 | TSI23: 5 | TSJ23: 5 | TSK23: 5 | TSL23: 5 | TSM23: 5 | TSN23: 5 | TSO23: 5 | TSP23: 5 | TSQ23: 5 | TSR23: 5 | TSS23: 5 | TST23: 5 | TSU23: 5 | TSV23: 5 | TSW23: 5 | TSX23: 5 | TSY23: 5 | TSZ23: 5 | TTA23: 5 | TTB23: 5 | TTC23: 5 | TTD23: 5 | TTE23: 5 | TTF23: 5 | TTG23: 5 | TTH23: 5 | TTI23: 5 | TTJ23: 5 | TTK23: 5 | TTL23: 5 | TTM23: 5 | TTN23: 5 | TTO23: 5 | TTP23: 5 | TTQ23: 5 | TTR23: 5 | TTS23: 5 | TTT23: 5 | TTU23: 5 | TTV23: 5 | TTW23: 5 | TTX23: 5 | TTY23: 5 | TTZ23: 5 | TUA23: 5 | TUB23: 5 | TUC23: 5 | TUD23: 5 | TUE23: 5 | TUF23: 5 | TUG23: 5 | TUH23: 5 | TUI23: 5 | TUJ23: 5 | TUK23: 5 | TUL23: 5 | TUM23: 5 | TUN23: 5 | TUO23: 5 | TUP23: 5 | TUQ23: 5 | TUR23: 5 | TUS23: 5 | TUT23: 5 | TUU23: 5 | TUV23: 5 | TUW23: 5 | TUX23: 5 | TUY23: 5 | TUZ23: 5 | TVA23: 5 | TVB23: 5 | TVC23: 5 | TVD23: 5 | TVE23: 5 | TVF23: 5 | TVG23: 5 | TVH23: 5 | TVI23: 5 | TVJ23: 5 | TVK23: 5 | TVL23: 5 | TVM23: 5 | TVN23: 5 | TVO23: 5 | TVP23: 5 | TVQ23: 5 | TVR23: 5 | TVS23: 5 | TVT23: 5 | TVU23: 5 | TVV23: 5 | TVW23: 5 | TVX23: 5 | TVY23: 5 | TVZ23: 5 | TWA23: 5 | TWB23: 5 | TWC23: 5 | TWD23: 5 | TWE23: 5 | TWF23: 5 | TWG23: 5 | TWH23: 5 | TWI23: 5 | TWJ23: 5 | TWK23: 5 | TWL23: 5 | TWM23: 5 | TWN23: 5 | TWO23: 5 | TWP23: 5 | TWQ23: 5 | TWR23: 5 | TWS23: 5 | TWT23: 5 | TWU23: 5 | TWV23: 5 | TWW23: 5 | TWX23: 5 | TWY23: 5 | TWZ23: 5 | TXA23: 5 | TXB23: 5 | TXC23: 5 | TXD23: 5 | TXE23: 5 | TXF23: 5 | TXG23: 5 | TXH23: 5 | TXI23: 5 | TXJ23: 5 | TXK23: 5 | TXL23: 5 | TXM23: 5 | TXN23: 5 | TXO23: 5 | TXP23: 5 | TXQ23: 5 | TXR23: 5 | TXS23: 5 | TXT23: 5 | TXU23: 5 | TXV23: 5 | TXW23: 5 | TXX23: 5 | TXY23: 5 | TXZ23: 5 | TYA23: 5 | TYB23: 5 | TYC23: 5 | TYD23: 5 | TYE23: 5 | TYF23: 5 | TYG23: 5 | TYH23: 5 | TYI23: 5 | TYJ23: 5 | TYK23: 5 | TYL23: 5 | TYM23: 5 | TYN23: 5 | TYO23: 5 | TYP23: 5 | TYQ23: 5 | TYR23: 5 | TYS23: 5 | TYT23: 5 | TYU23: 5 | TYV23: 5 | TYW23: 5 | TYX23: 5 | TYY23: 5 | TYZ23: 5 | TZA23: 5 | TZB23: 5 | TZC23: 5 | TZD23: 5 | TZE23: 5 | TZF23: 5 | TZG23: 5 | TZH23: 5 | TZI23: 5 | TZJ23: 5 | TZK23: 5 | TZL23: 5 | TZM23: 5 | TZN23: 5 | TZO23: 5 | TZP23: 5 | TZQ23: 5 | TZR23: 5 | TZS23: 5 | TZT23: 5 | TZU23: 5 | TZV23: 5 | TZW23: 5 | TZX23: 5 | TZY23: 5 | TZZ23: 5 | UAA23: 5 | UAB23: 5 | UAC23: 5 | UAD23: 5 | UAE23: 5 | UAF23: 5 | UAG23: 5 | UAH23: 5 | UAI23: 5 | UAJ23: 5 | UAK23: 5 | UAL23: 5 | UAM23: 5 | UAN23: 5 | UAO23: 5 | UAP23: 5 | UAQ23: 5 | UAR23: 5 | UAS23: 5 | UAT23: 5 | UAU23: 5 | UAV23: 5 | UAW23: 5 | UAX23: 5 | UAY23: 5 | UAZ23: 5 | UBA23: 5 | UBB23: 5 | UBC23: 5 | UBD23: 5 | UBE23: 5 | UBF23: 5 | UBG23: 5 | UBH23: 5 | UBI23: 5 | UBJ23: 5 | UBK23: 5 | UBL23: 5 | UBM23: 5 | UBN23: 5 | UBO23: 5 | UBP23: 5 | UBQ23: 5 | UBR23: 5 | UBS23: 5 | UBT23: 5 | UBU23: 5 | UBV23: 5 | UBW23: 5 | UBX23: 5 | UBY23: 5 | UBZ23: 5 | UCA23: 5 | UCB23: 5 | UCC23: 5 | UCD23: 5 | UCE23: 5 | UCF23: 5 | UCG23: 5 | UCH23: 5 | UCI23: 5 | UCJ23: 5 | UCK23: 5 | UCL23: 5 | UCM23: 5 | UCN23: 5 | UCO23: 5 | UCP23: 5 | UCQ23: 5 | UCR23: 5 | UCS23: 5 | UCT23: 5 | UCU23: 5 | UCV23: 5 | UCW23: 5 | UCX23: 5 | UCY23: 5 | UCZ23: 5 | UDA23: 5 | UDB23: 5 | UDC23: 5 | UDD23: 5 | UDE23: 5 | UDF23: 5 | UDG23: 5 | UDH23: 5 | UDI23: 5 | UDJ23: 5 | UDK23: 5 | UDL23: 5 | UDM23: 5 | UDN23: 5 | UDO23: 5 | UDP23: 5 | UDQ23: 5 | UDR23: 5 | UDS23: 5 | UDT23: 5 | UDU23: 5 | UDV23: 5 | UDW23: 5 | UDX23: 5 | UDY23: 5 | UDZ23: 5 | UEA23: 5 | UEB23: 5 | UEC23: 5 | UED23: 5 | UEE23: 5 | UEF23: 5 | UEG23: 5 | UEH23: 5 | UEI23: 5 | UEJ23: 5 | UEK23: 5 | UEL23: 5 | UEM23: 5 | UEN23: 5 | UEO23: 5 | UEP23: 5 | UEQ23: 5 | UER23: 5 | UES23: 5 | UET23: 5 | UEU23: 5 | UEV23: 5 | UEW23: 5 | UEX23: 5 | UEY23: 5 | UEZ23: 5 | UFA23: 5 | UFB23: 5 | UFC23: 5 | UFD23: 5 | UFE23: 5 | UFF23: 5 | UFG23: 5 | UFH23: 5 | UFI23: 5 | UFJ23: 5 | UFK23: 5 | UFL23: 5 | UFM23: 5 | UFN23: 5 | UFO23: 5 | UFP23: 5 | UFQ23: 5 | UFR23: 5 | UFS23: 5 | UFT23: 5 | UFU23: 5 | UFV23: 5 | UFW23: 5 | UFX23: 5 | UFY23: 5 | UFZ23: 5 | UGA23: 5 | UGB23: 5 | UGC23: 5 | UGD23: 5 | UGE23: 5 | UGF23: 5 | UGG23: 5 | UGH23: 5 | UGI23: 5 | UGJ23: 5 | UGK23: 5 | UGL23: 5 | UGM23: 5 | UGN23: 5 | UGO23: 5 | UGP23: 5 | UGQ23: 5 | UGR23: 5 | UGS23: 5 | UGT23: 5 | UGU23: 5 | UGV23: 5 | UGW23: 5 | UGX23: 5 | UGY23: 5 | UGZ23: 5 | UHA23: 5 | UHB23: 5 | UHC23: 5 | UHD23: 5 | UHE23: 5 | UHF23: 5 | UHG23: 5 | UHH23: 5 | UHI23: 5 | UHJ23: 5 | UHK23: 5 | UHL23: 5 | UHM23: 5 | UHN23: 5 | UHO23: 5 | UHP23: 5 | UHQ23: 5 | UHR23: 5 | UHS23: 5 | UHT23: 5 | UHU23: 5 | UHV23: 5 | UHW23: 5 | UHX23: 5 | UHY23: 5 | UHZ23: 5 | UIA23: 5 | UIB23: 5 | UIC23: 5 | UID23: 5 | UIE23: 5 | UIF23: 5 | UIG23: 5 | UIH23: 5 | UII23: 5 | UIJ23: 5 | UIK23: 5 | UIL23: 5 | UIM23: 5 | UIN23: 5 | UIO23: 5 | UIP23: 5 | UIQ23: 5 | UIR23: 5 | UIS23: 5 | UIT23: 5 | UIU23: 5 | UIV23: 5 | UIW23: 5 | UIX23: 5 | UIY23: 5 | UIZ23: 5 | UJA23: 5 | UJB23: 5 | UJC23: 5 | UJD23: 5 | UJE23: 5 | UJF23: 5 | UJG23: 5 | UJH23: 5 | UJI23: 5 | UJJ23: 5 | UJK23: 5 | UJL23: 5 | UJM23: 5 | UJN23: 5 | UJO23: 5 | UJP23: 5 | UJQ23: 5 | UJR23: 5 | UJS23: 5 | UJT23: 5 | UJU23: 5 | UJV23: 5 | UJW23: 5 | UJX23: 5 | UJY23: 5 | UJZ23: 5 | UKA23: 5 | UKB23: 5 | UKC23: 5 | UKD23: 5 | UKE23: 5 | UKF23: 5 | UKG23: 5 | UKH23: 5 | UKI23: 5 | UKJ23: 5 | UKK23: 5 | UKL23: 5 | UKM23: 5 | UKN23: 5 | UKO23: 5 | UKP23: 5 | UKQ23: 5 | UKR23: 5 | UKS23: 5 | UKT23: 5 | UKU23: 5 | UKV23: 5 | UKW23: 5 | UKX23: 5 | UKY23: 5 | UKZ23: 5 | ULA23: 5 | ULB23: 5 | ULC23: 5 | ULD23: 5 | ULE23: 5 | ULF23: 5 | ULG23: 5 | ULH23: 5 | ULI23: 5 | ULJ23: 5 | ULK23: 5 | ULL23: 5 | ULM23: 5 | ULN23: 5 | ULO23: 5 | ULP23: 5 | ULQ23: 5 | ULR23: 5 | ULS23: 5 | ULT23: 5 | ULU23: 5 | ULV23: 5 | ULW23: 5 | ULX23: 5 | ULY23: 5 | ULZ23: 5 | UMA23: 5 | UMB23: 5 | UMC23: 5 | UMD23: 5 | UME23: 5 | UMF23: 5 | UMG23: 5 | UMH23: 5 | UMI23: 5 | UMJ23: 5 | UMK23: 5 | UML23: 5 | UMM23: 5 | UMN23: 5 | UMO23: 5 | UMP23: 5 | UMQ23: 5 | UMR23: 5 | UMS23: 5 | UMT23: 5 | UMU23: 5 | UMV23: 5 | UMW23: 5 | UMX23: 5 | UMY23: 5 | UMZ23: 5 | UNA23: 5 | UNB23: 5 | UNC23: 5 | UND23: 5 | UNE23: 5 | UNF23: 5 | UNG23: 5 | UNH23: 5 | UNI23: 5 | UNJ23: 5 | UNK23: 5 | UNL23: 5 | UNM23: 5 | UNN23: 5 | UNO23: 5 | UNP23: 5 | UNQ23: 5 | UNR23: 5 | UNS23: 5 | UNT23: 5 | UNU23: 5 | UNV23: 5 | UNW23: 5 | UNX23: 5 | UNY23: 5 | UNZ23: 5 | UOA23: 5 | UOB23: 5 | UOC23: 5 | UOD23: 5 | UOE23: 5 | UOF23: 5 | UOG23: 5 | UOH23: 5 | UOI23: 5 | UOJ23: 5 | UOK23: 5 | UOL23: 5 | UOM23: 5 | UON23: 5 | UOO23: 5 | UOP23: 5 | UOQ23: 5 | UOR23: 5 | UOS23: 5 | UOT23: 5 | UOU23: 5 | UOV23: 5 | UOW23: 5 | UOX23: 5 | UOY23: 5 | UOZ23: 5 | UPA23: 5 | UPB23: 5 | UPC23: 5 | UPD23: 5 | UPE23: 5 | UPF23: 5 | UPG23: 5 | UPH23: 5 | UPI23: 5 | UPJ23: 5 | UPK23: 5 | UPL23: 5 | UPM23: 5 | UPN23: 5 | UPO23: 5 | UPP23: 5 | UPQ23: 5 | UPR23: 5 | UPS23: 5 | UPT23: 5 | UPU23: 5 | UPV23: 5 | UPW23: 5 | UPX23: 5 | UPY23: 5 | UPZ23: 5 | UQA23: 5 | UQB23: 5 | UQC23: 5 | UQD23: 5 | UQE23: 5 | UQF23: 5 | UQG23: 5 | UQH23: 5 | UQI23: 5 | UQJ23: 5 | UQK23: 5 | UQL23: 5 | UQM23: 5 | UQN23: 5 | UQO23: 5 | UQP23: 5 | UQQ23: 5 | UQR23: 5 | UQS23: 5 | UQT23: 5 | UQU23: 5 | UQV23: 5 | UQW23: 5 | UQX23: 5 | UQY23: 5 | UQZ23: 5 | URA23: 5 | URB23: 5 | URC23: 5 | URD23: 5 | URE23: 5 | URF23: 5 | URG23: 5 | URH23: 5 | URI23: 5 | URJ23: 5 | URK23: 5 | URL23: 5 | URM23: 5 | URN23: 5 | URO23: 5 | URP23: 5 | URQ23: 5 | URR23: 5 | URS23: 5 | URT23: 5 | URU23: 5 | URV23: 5 | URW23: 5 | URX23: 5 | URY23: 5 | URZ23: 5 | USA23: 5 | USB23: 5 | USC23: 5 | USD23: 5 | USE23: 5 | USF23: 5 | USG23: 5 | USH23: 5 | USI23: 5 | USJ23: 5 | USK23: 5 | USL23: 5 | USM23: 5 | USN23: 5 | USO23: 5 | USP23: 5 | USQ23: 5 | USR23: 5 | USS23: 5 | UST23: 5 | USU23: 5 | USV23: 5 | USW23: 5 | USX23: 5 | USY23: 5 | USZ23: 5 | UTA23: 5 | UTB23: 5 | UTC23: 5 | UTD23: 5 | UTE23: 5 | UTF23: 5 | UTG23: 5 | UTH23: 5 | UTI23: 5 | UTJ23: 5 | UTK23: 5 | UTL23: 5 | UTM23: 5 | UTN23: 5 | UTO23: 5 | UTP23: 5 | UTQ23: 5 | UTR23: 5 | UTS23: 5 | UTT23: 5 | UTU23: 5 | UTV23: 5 | UTW23: 5 | UTX23: 5 | UTY23: 5 | UTZ23: 5 | UUA23: 5 | UUB23: 5 | UUC23: 5 | UUD23: 5 | UUE23: 5 | UUF23: 5 | UUG23: 5 | UUH23: 5 | UUI23: 5 | UUJ23: 5 | UUK23: 5 | UUL23: 5 | UUM23: 5 | UUN23: 5 | UUO23: 5 | UUP23: 5 | UUQ23: 5 | UUR23: 5 | UUS23: 5 | UUT23: 5 | UUU23: 5 | UUV23: 5 | UUW23: 5 | UUX23: 5 | UUY23: 5 | UUZ23: 5 | UVA23: 5 | UVB23: 5 | UVC23: 5 | UVD23: 5 | UVE23: 5 | UVF23: 5 | UVG23: 5 | UVH23: 5 | UVI23: 5 | UVJ23: 5 | UVK23: 5 | UVL23: 5 | UVM23: 5 | UVN23: 5 | UVO23: 5 | UVP23: 5 | UVQ23: 5 | UVR23: 5 | UVS23: 5 | UVT23: 5 | UVU23: 5 | UVV23: 5 | UVW23: 5 | UVX23: 5 | UVY23: 5 | UVZ23: 5 | UWA23: 5 | UWB23: 5 | UWC23: 5 | UWD23: 5 | UWE23: 5 | UWF23: 5 | UWG23: 5 | UWH23: 5 | UWI23: 5 | UWJ23: 5 | UWK23: 5 | UWL23: 5 | UWM23: 5 | UWN23: 5 | UWO23: 5 | UWP23: 5 | UWQ23: 5 | UWR23: 5 | UWS23: 5 | UWT23: 5 | UWU23: 5 | UWV23: 5 | UWW23: 5 | UWX23: 5 | UWY23: 5 | UWZ23: 5 | UXA23: 5 | UXB23: 5 | UXC23: 5 | UXD23: 5 | UXE23: 5 | UXF23: 5 | UXG23: 5 | UXH23: 5 | UXI23: 5 | UXJ23: 5 | UXK23: 5 | UXL23: 5 | UXM23: 5 | UXN23: 5 | UXO23: 5 | UXP23: 5 | UXQ23: 5 | UXR23: 5 | UXS23: 5 | UXT23: 5 | UXU23: 5 | UXV23: 5 | UXW23: 5 | UXX23: 5 | UXY23: 5 | UXZ23: 5 | UYA23: 5 | UYB23: 5 | UYC23: 5 | UYD23: 5 | UYE23: 5 | UYF23: 5 | UYG23: 5 | UYH23: 5 | UYI23: 5 | UYJ23: 5 | UYK23: 5 | UYL23: 5 | UYM23: 5 | UYN23: 5 | UYO23: 5 | UYP23: 5 | UYQ23: 5 | UYR23: 5 | UYS23: 5 | UYT23: 5 | UYU23: 5 | UYV23: 5 | UYW23: 5 | UYX23: 5 | UYY23: 5 | UYZ23: 5 | UZA23: 5 | UZB23: 5 | UZC23: 5 | UZD23: 5 | UZE23: 5 | UZF23: 5 | UZG23: 5 | UZH23: 5 | UZI23: 5 | UZJ23: 5 | UZK23: 5 | UZL23: 5 | UZM23: 5 | UZN23: 5 | UZO23: 5 | UZP23: 5 | UZQ23: 5 | UZR23: 5 | UZS23: 5 | UZT23: 5 | UZU23: 5 | UZV23: 5 | UZW23: 5 | UZX23: 5 | UZY23: 5 | UZZ23: 5 | VAA23: 5 | VAB23: 5 | VAC23: 5 | VAD23: 5 | VAE23: 5 | VAF23: 5 | VAG23: 5 | VAH23: 5 | VAI23: 5 | VAJ23: 5 | VAK23: 5 | VAL23: 5 | VAM23: 5 | VAN23: 5 | VAO23: 5 | VAP23: 5 | VAQ23: 5 | VAR23: 5 | VAS23: 5 | VAT23: 5 | VAU23: 5 | VAV23: 5 | VAW23: 5 | VAX23: 5 | VAY23: 5 | VAZ23: 5 | VBA23: 5 | VBB23: 5 | VBC23: 5 | VBD23: 5 | VBE23: 5 | VBF23: 5 | VBG23: 5 | VBH23: 5 | VBI23: 5 | VBJ23: 5 | VBK23: 5 | VBL23: 5 | VBM23: 5 | VBN23: 5 | VBO23: 5 | VBP23: 5 | VBQ23: 5 | VBR23: 5 | VBS23: 5 | VBT23: 5 | VBU23: 5 | VBV23: 5 | VBW23: 5 | VBX23: 5 | VBY23: 5 | VBZ23: 5 | VCA23: 5 | VCB23: 5 | VCC23: 5 | VCD23: 5 | VCE23: 5 | VCF23: 5 | VCG23: 5 | VCH23: 5 | VCI23: 5 | VCJ23: 5 | VCK23: 5 | VCL23: 5 | VCM23: 5 | VCN23: 5 | VCO23: 5 | VCP23: 5 | VCQ23: 5 | VCR23: 5 | VCS23: 5 | VCT23: 5 | VCU23: 5 | VCV23: 5 | VCW23: 5 | VCX23: 5 | VCY23: 5 | VCZ23: 5 | VDA23: 5 | VDB23: 5 | VDC23: 5 | VDD23: 5 | VDE23: 5 | VDF23: 5 | VDG23: 5 | VDH23: 5 | VDI23: 5 | VDJ23: 5 | VDK23: 5 | VDL23: 5 | VDM23: 5 | VDN23: 5 | VDO23: 5 | VDP23: 5 | VDQ23: 5 | VDR23: 5 | VDS23: 5 | VDT23: 5 | VDU23: 5 | VDV23: 5 | VDW23: 5 | VDX23: 5 | VDY23: 5 | VDZ23: 5 | VEA23: 5 | VEB23: 5 | VEC23: 5 | VED23: 5 | VEE23: 5 | VEF23: 5 | VEG23: 5 | VEH23: 5 | VEI23: 5 | VEJ23: 5 | VEK23: 5 | VEL23: 5 | VEM23: 5 | VEN23: 5 | VEO23: 5 | VEP23: 5 | VEQ23: 5 | VER23: 5 | VES23: 5 | VET23: 5 | VEU23: 5 | VEV23: 5 | VEW23: 5 | VEX23: 5 | VEY23: 5 | VEZ23: 5 | VFA23: 5 | VFB23: 5 | VFC23: 5 | VFD23: 5 | VFE23: 5 | VFF23: 5 | VFG23: 5 | VFH23: 5 | VFI23: 5 | VFJ23: 5 | VFK23: 5 | VFL23: 5 | VFM23: 5 | VFN23: 5 | VFO23: 5 | VFP23: 5 | VFQ23: 5 | VFR23: 5 | VFS23: 5 | VFT23: 5 | VFU23: 5 | VFV23: 5 | VFW23: 5 | VFX23: 5 | VFY23: 5 | VFZ23: 5 | VGA23: 5 | VGB23: 5 | VGC23: 5 | VGD23: 5 | VGE23: 5 | VGF23: 5 | VGG23: 5 | VGH23: 5 | VGI23: 5 | VGJ23: 5 | VGK23: 5 | VGL23: 5 | VGM23: 5 | VGN23: 5 | VGO23: 5 | VGP23: 5 | VGQ23: 5 | VGR23: 5 | VGS23: 5 | VGT23: 5 | VGU23: 5 | VGV23: 5 | VGW23: 5 | VGX23: 5 | VGY23: 5 | VGZ23: 5 | VHA23: 5 | VHB23: 5 | VHC23: 5 | VHD23: 5 | VHE23: 5 | VHF23: 5 | VHG23: 5 | VHH23: 5 | VHI23: 5 | VHJ23: 5 | VHK23: 5 | VHL23: 5 | VHM23: 5 | VHN23: 5 | VHO23: 5 | VHP23: 5 | VHQ23: 5 | VHR23: 5 | VHS23: 5 | VHT23: 5 | VHU23: 5 | VHV23: 5 | VHW23: 5 | VHX23: 5 | VHY23: 5 | VHZ23: 5 | VIA23: 5 | VIB23: 5 | VIC23: 5 | VID23: 5 | VIE23: 5 | VIF23: 5 | VIG23: 5 | VIH23: 5 | VII23: 5 | VIJ23: 5 | VIK23: 5 | VIL23: 5 | VIM23: 5 | VIN23: 5 | VIO23: 5 | VIP23: 5 | VIQ23: 5 | VIR23: 5 | VIS23: 5 | VIT23: 5 | VIU23: 5 | VIV23: 5 | VIW23: 5 | VIX23: 5 | VIY23: 5 | VIZ23: 5 | VJA23: 5 | VJB23: 5 | VJC23: 5 | VJD23: 5 | VJE23: 5 | VJF23: 5 | VJG23: 5 | VJH23: 5 | VJI23: 5 | VJJ23: 5 | VJK23: 5 | VJL23: 5 | VJM23: 5 | VJN23: 5 | VJO23: 5 | VJP23: 5 | VJQ23: 5 | VJR23: 5 | VJS23: 5 | VJT23: 5 | VJU23: 5 | VJV23: 5 | VJW23: 5 | VJX23: 5 | VJY23: 5 | VJZ23: 5 | VKA23: 5 | VKB23: 5 | VKC23: 5 | VKD23: 5 | VKE23: 5 | VKF23: 5 | VKG23: 5 | VKH23: 5 | VKI23: 5 | VKJ23: 5 | VKK23: 5 | VKL23: 5 | VKM23: 5 | VKN23: 5 | VKO23: 5 | VKP23: 5 | VKQ23: 5 | VKR23: 5 | VKS23: 5 | VKT23: 5 | VKU23: 5 | VKV23: 5 | VKW23: 5 | VKX23: 5 | VKY23: 5 | VKZ23: 5 | VLA23: 5 | VLB23: 5 | VLC23: 5 | VLD23: 5 | VLE23: 5 | VLF23: 5 | VLG23: 5 | VLH23: 5 | VLI23: 5 | VLJ23: 5 | VLK23: 5 | VLL23: 5 | VLM23: 5 | VLN23: 5 | VLO23: 5 | VLP23: 5 | VLQ23: 5 | VLR23: 5 | VLS23: 5 | VLT23: 5 | VLU23: 5 | VLV23: 5 | VLW23: 5 | VLX23: 5 | VLY23: 5 | VLZ23: 5 | VMA23: 5 | VMB23: 5 | VMC23: 5 | VMD23: 5 | VME23: 5 | VMF23: 5 | VMG23: 5 | VMH23: 5 | VMI23: 5 | VMJ23: 5 | VMK23: 5 | VML23: 5 | VMM23: 5 | VMN23: 5 | VMO23: 5 | VMP23: 5 | VMQ23: 5 | VMR23: 5 | VMS23: 5 | VMT23: 5 | VMU23: 5 | VMV23: 5 | VMW23: 5 | VMX23: 5 | VMY23: 5 | VMZ23: 5 | VNA23: 5 | VNB23: 5 | VNC23: 5 | VND23: 5 | VNE23: 5 | VNF23: 5 | VNG23: 5 | VNH23: 5 | VNI23: 5 | VNJ23: 5 | VNK23: 5 | VNL23: 5 | VNM23: 5 | VNN23: 5 | VNO23: 5 | VNP23: 5 | VNQ23: 5 | VNR23: 5 | VNS23: 5 | VNT23: 5 | VNU23: 5 | VNV23: 5 | VNW23: 5 | VNX23: 5 | VNY23: 5 | VNZ23: 5 | VOA23: 5 | VOB23: 5 | VOC23: 5 | VOD23: 5 | VOE23: 5 | VOF23: 5 | VOG23: 5 | VOH23: 5 | VOI23: 5 | VOJ23: 5 | VOK23: 5 | VOL23: 5 | VOM23: 5 | VON23: 5 | VOO23: 5 | VOP23: 5 | VOQ23: 5 | VOR23: 5 | VOS23: 5 | VOT23: 5 | VOU23: 5 | VOV23: 5 | VOW23: 5 | VOX23: 5 | VOY23: 5 | VOZ23: 5 | VPA23: 5 | VPB23: 5 | VPC23: 5 | VPD23: 5 | VPE23: 5 | VPF23: 5 | VPG23: 5 | VPH23: 5 | VPI23: 5 | VPJ23: 5 | VPK23: 5 | VPL23: 5 | VPM23: 5 | VPN23: 5 | VPO23: 5 | VPP23: 5 | VPQ23: 5 | VPR23: 5 | VPS23: 5 | VPT23: 5 | VPU23: 5 | VPV23: 5 | VPW23: 5 | VPX23: 5 | VPY23: 5 | VPZ23: 5 | VQA23: 5 | VQB23: 5 | VQC23: 5 | VQD23: 5 | VQE23: 5 | VQF23: 5 | VQG23: 5 | VQH23: 5 | VQI23: 5 | VQJ23: 5 | VQK23: 5 | VQL23: 5 | VQM23: 5 | VQN23: 5 | VQO23: 5 | VQP23: 5 | VQQ23: 5 | VQR23: 5 | VQS23: 5 | VQT23: 5 | VQU23: 5 | VQV23: 5 | VQW23: 5 | VQX23: 5 | VQY23: 5 | VQZ23: 5 | VRA23: 5 | VRB23: 5 | VRC23: 5 | VRD23: 5 | VRE23: 5 | VRF23: 5 | VRG23: 5 | VRH23: 5 | VRI23: 5 | VRJ23: 5 | VRK23: 5 | VRL23: 5 | VRM23: 5 | VRN23: 5 | VRO23: 5 | VRP23: 5 | VRQ23: 5 | VRR23: 5 | VRS23: 5 | VRT23: 5 | VRU23: 5 | VRV23: 5 | VRW23: 5 | VRX23: 5 | VRY23: 5 | VRZ23: 5 | VSA23: 5 | VSB23: 5 | VSC23: 5 | VSD23: 5 | VSE23: 5 | VSF23: 5 | VSG23: 5 | VSH23: 5 | VSI23: 5 | VSJ23: 5 | VSK23: 5 | VSL23: 5 | VSM23: 5 | VSN23: 5 | VSO23: 5 | VSP23: 5 | VSQ23: 5 | VSR23: 5 | VSS23: 5 | VST23: 5 | VSU23: 5 | VSV23: 5 | VSW23: 5 | VSX23: 5 | VSY23: 5 | VSZ23: 5 | VTA23: 5 | VTB23: 5 | VTC23: 5 | VTD23: 5 | VTE23: 5 | VTF23: 5 | VTG23: 5 | VTH23: 5 | VTI23: 5 | VTJ23: 5 | VTK23: 5 | VTL23: 5 | VTM23: 5 | VTN23: 5 | VTO23: 5 | VTP23: 5 | VTQ23: 5 | VTR23: 5 | VTS23: 5 | VTT23: 5 | VTU23: 5 | VTV23: 5 | VTW23: 5 | VTX23: 5 | VTY23: 5 | VTZ23: 5 | VUA23: 5 | VUB23: 5 | VUC23: 5 | VUD23: 5 | VUE23: 5 | VUF23: 5 | VUG23: 5 | VUH23: 5 | VUI23: 5 | VUJ23: 5 | VUK23: 5 | VUL23: 5 | VUM23: 5 | VUN23: 5 | VUO23: 5 | VUP23: 5 | VUQ23: 5 | VUR23: 5 | VUS23: 5 | VUT23: 5 | VUU23: 5 | VUV23: 5 | VUW23: 5 | VUX23: 5 | VUY23: 5 | VUZ23: 5 | VVA23: 5 | VVB23: 5 | VVC23: 5 | VVD23: 5 | VVE23: 5 | VVF23: 5 | VVG23: 5 | VVH23: 5 | VVI23: 5 | VVJ23: 5 | VVK23: 5 | VVL23: 5 | VVM23: 5 | VVN23: 5 | VVO23: 5 | VVP23: 5 | VVQ23: 5 | VVR23: 5 | VVS23: 5 | VVT23: 5 | VVU23: 5 | VVV23: 5 | VVW23: 5 | VVX23: 5 | VVY23: 5 | VVZ23: 5 | VWA23: 5 | VWB23: 5 | VWC23: 5 | VWD23: 5 | VWE23: 5 | VWF23: 5 | VWG23: 5 | VWH23: 5 | VWI23: 5 | VWJ23: 5 | VWK23: 5 | VWL23: 5 | VWM23: 5 | VWN23: 5 | VWO23: 5 | VWP23: 5 | VWQ23: 5 | VWR23: 5 | VWS23: 5 | VWT23: 5 | VWU23: 5 | VWV23: 5 | VWW23: 5 | VWX23: 5 | VWY23: 5 | VWZ23: 5 | VXA23: 5 | VXB23: 5 | VXC23: 5 | VXD23: 5 | VXE23: 5 | VXF23: 5 | VXG23: 5 | VXH23: 5 | VXI23: 5 | VXJ23: 5 | VXK23: 5 | VXL23: 5 | VXM23: 5 | VXN23: 5 | VXO23: 5 | VXP23: 5 | VXQ23: 5 | VXR23: 5 | VXS23: 5 | VXT23: 5 | VXU23: 5 | VXV23: 5 | VXW23: 5 | VXX23: 5 | VXY23: 5 | VXZ23: 5 | VYA23: 5 | VYB23: 5 | VYC23: 5 | VYD23: 5 | VYE23: 5 | VYF23: 5 | VYG23: 5 | VYH23: 5 | VYI23: 5 | VYJ23: 5 | VYK23: 5 | VYL23: 5 | VYM23: 5 | VYN23: 5 | VYO23: 5 | VYP23: 5 | VYQ23: 5 | VYR23: 5 | VYS23: 5 | VYT23: 5 | VYU23: 5 | VYV23: 5 | VYW23: 5 | VYX23: 5 | VYY23: 5 | VYZ23: 5 | VZA23: 5 | VZB23: 5 | VZC23: 5 | VZD23: 5 | VZE23: 5 | VZF23: 5 | VZG23: 5 | VZH23: 5 | VZI23: 5 | VZJ23: 5 | VZK23: 5 | VZL23: 5 | VZM23: 5 | VZN23: 5 | VZO23: 5 | VZP23: 5 | VZQ23: 5 | VZR23: 5 | VZS23: 5 | VZT23: 5 | VZU23: 5 | VZV23: 5 | VZW23: 5 | VZX23: 5 | VZY23: 5 | VZZ23: 5 | WAA23: 5 | WAB23: 5 | WAC23: 5 | WAD23: 5 | WAE23: 5 | WAF23: 5 | WAG23: 5 | WAH23: 5 | WAI23: 5 | WAJ23: 5 | WAK23: 5 | WAL23: 5 | WAM23: 5 | WAN23: 5 | WAO23: 5 | WAP23: 5 | WAQ23: 5 | WAR23: 5 | WAS23: 5 | WAT23: 5 | WAU23: 5 | WAV23: 5 | WAW23: 5 | WAX23: 5 | WAY23: 5 | WAZ23: 5 | WBA23: 5 | WBB23: 5 | WBC23: 5 | WBD23: 5 | WBE23: 5 | WBF23: 5 | WBG23: 5 | WBH23: 5 | WBI23: 5 | WBJ23: 5 | WBK23: 5 | WBL23: 5 | WBM23: 5 | WBN23: 5 | WBO23: 5 | WBP23: 5 | WBQ23: 5 | WBR23: 5 | WBS23: 5 | WBT23: 5 | WBU23: 5 | WBV23: 5 | WBW23: 5 | WBX23: 5 | WBY23: 5 | WBZ23: 5 | WCA23: 5 | WCB23: 5 | WCC23: 5 | WCD23: 5 | WCE23: 5 | WCF23: 5 | WCG23: 5 | WCH23: 5 | WCI23: 5 | WCJ23: 5 | WCK23: 5 | WCL23: 5 | WCM23: 5 | WCN23: 5 | WCO23: 5 | WCP23: 5 | WCQ23: 5 | WCR23: 5 | WCS23: 5 | WCT23: 5 | WCU23: 5 | WCV23: 5 | WCW23: 5 | WCX23: 5 | WCY23: 5 | WCZ23: 5 | WDA23: 5 | WDB23: 5 | WDC23: 5 | WDD23: 5 | WDE23: 5 | WDF23: 5 | WDG23: 5 | WDH23: 5 | WDI23: 5 | WDJ23: 5 | WDK23: 5 | WDL23: 5 | WDM23: 5 | WDN23: 5 | WDO23: 5 | WDP23: 5 | WDQ23: 5 | WDR23: 5 | WDS23: 5 | WDT23: 5 | WDU23: 5 | WDV23: 5 | WDW23: 5 | WDX23: 5 | WDY23: 5 | WDZ23: 5 | WEA23: 5 | WEB23: 5 | WEC23: 5 | WED23: 5 | WEE23: 5 | WEF23: 5 | WEG23: 5 | WEH23: 5 | WEI23: 5 | WEJ23: 5 | WEK23: 5 | WEL23: 5 | WEM23: 5 | WEN23: 5 | WEO23: 5 | WEP23: 5 | WEQ23: 5 | WER23: 5 | WES23: 5 | WET23: 5 | WEU23: 5 | WEV23: 5 | WEW23: 5 | WEX23: 5 | WEY23: 5 | WEZ23: 5 | WFA23: 5 | WFB23: 5 | WFC23: 5 | WFD23: 5 | WFE23: 5 | WFF23: 5 | WFG23: 5 | WFH23: 5 | WFI23: 5 | WFJ23: 5 | WFK23: 5 | WFL23: 5 | WFM23: 5 | WFN23: 5 | WFO23: 5 | WFP23: 5 | WFQ23: 5 | WFR23: 5 | WFS23: 5 | WFT23: 5 | WFU23: 5 | WFV23: 5 | WFW23: 5 | WFX23: 5 | WFY23: 5 | WFZ23: 5 | WGA23: 5 | WGB23: 5 | WGC23: 5 | WGD23: 5 | WGE23: 5 | WGF23: 5 | WGG23: 5 | WGH23: 5 | WGI23: 5 | WGJ23: 5 | WGK23: 5 | WGL23: 5 | WGM23: 5 | WGN23: 5 | WGO23: 5 | WGP23: 5 | WGQ23: 5 | WGR23: 5 | WGS23: 5 | WGT23: 5 | WGU23: 5 | WGV23: 5 | WGW23: 5 | WGX23: 5 | WGY23: 5 | WGZ23: 5 | WHA23: 5 | WHB23: 5 | WHC23: 5 | WHD23: 5 | WHE23: 5 | WHF23: 5 | WHG23: 5 | WHH23: 5 | WHI23: 5 | WHJ23: 5 | WHK23: 5 | WHL23: 5 | WHM23: 5 | WHN23: 5 | WHO23: 5 | WHP23: 5 | WHQ23: 5 | WHR23: 5 | WHS23: 5 | WHT23: 5 | WHU23: 5 | WHV23: 5 | WHW23: 5 | WHX23: 5 | WHY23: 5 | WHZ23: 5 | WIA23: 5 | WIB23: 5 | WIC23: 5 | WID23: 5 | WIE23: 5 | WIF23: 5 | WIG23: 5 | WIH23: 5 | WII23: 5 | WIJ23: 5 | WIK23: 5 | WIL23: 5 | WIM23: 5 | WIN23: 5 | WIO23: 5 | WIP23: 5 | WIQ23: 5 | WIR23: 5 | WIS23: 5 | WIT23: 5 | WIU23: 5 | WIV23: 5 | WIW23: 5 | WIX23: 5 | WIY23: 5 | WIZ23: 5 | WJA23: 5 | WJB23: 5 | WJC23: 5 | WJD23: 5 | WJE23: 5 | WJF23: 5 | WJG23: 5 | WJH23: 5 | WJI23: 5 | WJJ23: 5 | WJK23: 5 | WJL23: 5 | WJM23: 5 | WJN23: 5 | WJO23: 5 | WJP23: 5 | WJQ23: 5 | WJR23: 5 | WJS23: 5 | WJT23: 5 | WJU23: 5 | WJV23: 5 | WJW23: 5 | WJX23: 5 | WJY23: 5 | WJZ23: 5 | WKA23: 5 | WKB23: 5 | WKC23: 5 | WKD23: 5 | WKE23: 5 | WKF23: 5 | WKG23: 5 | WKH23: 5 | WKI23: 5 | WKJ23: 5 | WKK23: 5 | WKL23: 5 | WKM23: 5 | WKN23: 5 | WKO23: 5 | WKP23: 5 | WKQ23: 5 | WKR23: 5 | WKS23: 5 | WKT23: 5 | WKU23: 5 | WKV23: 5 | WKW23: 5 | WKX23: 5 | WKY23: 5 | WKZ23: 5 | WLA23: 5 | WLB23: 5 | WLC23: 5 | WLD23: 5 | WLE23: 5 | WLF23: 5 | WLG23: 5 | WLH23: 5 | WLI23: 5 | WLJ23: 5 | WLK23: 5 | WLL23: 5 | WLM23: 5 | WLN23: 5 | WLO23: 5 | WLP23: 5 | WLQ23: 5 | WLR23: 5 | WLS23: 5 | WLT23: 5 | WLU23: 5 | WLV23: 5 | WLW23: 5 | WLX23: 5 | WLY23: 5 | WLZ23: 5 | WMA23: 5 | WMB23: 5 | WMC23: 5 | WMD23: 5 | WME23: 5 | WMF23: 5 | WMG23: 5 | WMH23: 5 | WMI23: 5 | WMJ23: 5 | WMK23: 5 | WML23: 5 | WMM23: 5 | WMN23: 5 | WMO23: 5 | WMP23: 5 | WMQ23: 5 | WMR23: 5 | WMS23: 5 | WMT23: 5 | WMU23: 5 | WMV23: 5 | WMW23: 5 | WMX23: 5 | WMY23: 5 | WMZ23: 5 | WNA23: 5 | WNB23: 5 | WNC23: 5 | WND23: 5 | WNE23: 5 | WNF23: 5 | WNG23: 5 | WNH23: 5 | WNI23: 5 | WNJ23: 5 | WNK23: 5 | WNL23: 5 | WNM23: 5 | WNN23: 5 | WNO23: 5 | WNP23: 5 | WNQ23: 5 | WNR23: 5 | WNS23: 5 | WNT23: 5 | WNU23: 5 | WNV23: 5 | WNW23: 5 | WNX23: 5 | WNY23: 5 | WNZ23: 5 | WOA23: 5 | WOB23: 5 | WOC23: 5 | WOD23: 5 | WOE23: 5 | WOF23: 5 | WOG23: 5 | WOH23: 5 | WOI23: 5 | WOJ23: 5 | WOK23: 5 | WOL23: 5 | WOM23: 5 | WON23: 5 | WOO23: 5 | WOP23: 5 | WOQ23: 5 | WOR23: 5 | WOS23: 5 | WOT23: 5 | WOU23: 5 | WOV23: 5 | WOW23: 5 | WOX23: 5 | WOY23: 5 | WOZ23: 5 | WPA23: 5 | WPB23: 5 | WPC23: 5 | WPD23: 5 | WPE23: 5 | WPF23: 5 | WPG23: 5 | WPH23: 5 | WPI23: 5 | WPJ23: 5 | WPK23: 5 | WPL23: 5 | WPM23: 5 | WPN23: 5 | WPO23: 5 | WPP23: 5 | WPQ23: 5 | WPR23: 5 | WPS23: 5 | WPT23: 5 | WPU23: 5 | WPV23: 5 | WPW23: 5 | WPX23: 5 | WPY23: 5 | WPZ23: 5 | WQA23: 5 | WQB23: 5 | WQC23: 5 | WQD23: 5 | WQE23: 5 | WQF23: 5 | WQG23: 5 | WQH23: 5 | WQI23: 5 | WQJ23: 5 | WQK23: 5 | WQL23: 5 | WQM23: 5 | WQN23: 5 | WQO23: 5 | WQP23: 5 | WQQ23: 5 | WQR23: 5 | WQS23: 5 | WQT23: 5 | WQU23: 5 | WQV23: 5 | WQW23: 5 | WQX23: 5 | WQY23: 5 | WQZ23: 5 | WRA23: 5 | WRB23: 5 | WRC23: 5 | WRD23: 5 | WRE23: 5 | WRF23: 5 | WRG23: 5 | WRH23: 5 | WRI23: 5 | WRJ23: 5 | WRK23: 5 | WRL23: 5 | WRM23: 5 | WRN23: 5 | WRO23: 5 | WRP23: 5 | WRQ23: 5 | WRR23: 5 | WRS23: 5 | WRT23: 5 | WRU23: 5 | WRV23: 5 | WRW23: 5 | WRX23: 5 | WRY23: 5 | WRZ23: 5 | WSA23: 5 | WSB23: 5 | WSC23: 5 | WSD23: 5 | WSE23: 5 | WSF23: 5 | WSG23: 5 | WSH23: 5 | WSI23: 5 | WSJ23: 5 | WSK23: 5 | WSL23: 5 | WSM23: 5 | WSN23: 5 | WSO23: 5 | WSP23: 5 | WSQ23: 5 | WSR23: 5 | WSS23: 5 | WST23: 5 | WSU23: 5 | WSV23: 5 | WSW23: 5 | WSX23: 5 | WSY23: 5 | WSZ23: 5 | WTA23: 5 | WTB23: 5 | WTC23: 5 | WTD23: 5 | WTE23: 5 | WTF23: 5 | WTG23: 5 | WTH23: 5 | WTI23: 5 | WTJ23: 5 | WTK23: 5 | WTL23: 5 | WTM23: 5 | WTN23: 5 | WTO23: 5 | WTP23: 5 | WTQ23: 5 | WTR23: 5 | WTS23: 5 | WTT23: 5 | WTU23: 5 | WTV23: 5 | WTW23: 5 | WTX23: 5 | WTY23: 5 | WTZ23: 5 | WUA23: 5 | WUB23: 5 | WUC23: 5 | WUD23: 5 | WUE23: 5 | WUF23: 5 | WUG23: 5 | WUH23: 5 | WUI23: 5 | WUJ23: 5 | WUK23: 5 | WUL23: 5 | WUM23: 5 | WUN23: 5 | WUO23: 5 | WUP23: 5 | WUQ23: 5 | WUR23: 5 | WUS23: 5 | WUT23: 5 | WUU23: 5 | WUV23: 5 | WUW23: 5 | WUX23: 5 | WUY23: 5 | WUZ23: 5 | WVA23: 5 | WVB23: 5 | WVC23: 5 | WVD23: 5 | WVE23: 5 | WVF23: 5 | WVG23: 5 | WVH23: 5 | WVI23: 5 | WVJ23: 5 | WVK23: 5 | WVL23: 5 | WVM23: 5 | WVN23: 5 | WVO23: 5 | WVP23: 5 | WVQ23: 5 | WVR23: 5 | WVS23: 5 | WVT23: 5 | WVU23: 5 | WVV23: 5 | WVW23: 5 | WVX23: 5 | WVY23: 5 | WVZ23: 5 | WWA23: 5 | WWB23: 5 | WWC23: 5 | WWD23: 5 | WWE23: 5 | WWF23: 5 | WWG23: 5 | WWH23: 5 | WWI23: 5 | WWJ23: 5 | WWK23: 5 | WWL23: 5 | WWM23: 5 | WWN23: 5 | WWO23: 5 | WWP23: 5 | WWQ23: 5 | WWR23: 5 | WWS23: 5 | WWT23: 5 | WWU23: 5 | WWV23: 5 | WWW23: 5 | WWX23: 5 | WWY23: 5 | WWZ23: 5 | WXA23: 5 | WXB23: 5 | WXC23: 5 | WXD23: 5 | WXE23: 5 | WXF23: 5 | WXG23: 5 | WXH23: 5 | WXI23: 5 | WXJ23: 5 | WXK23: 5 | WXL23: 5 | WXM23: 5 | WXN23: 5 | WXO23: 5 | WXP23: 5 | WXQ23: 5 | WXR23: 5 | WXS23: 5 | WXT23: 5 | WXU23: 5 | WXV23: 5 | WXW23: 5 | WXX23: 5 | WXY23: 5 | WXZ23: 5 | WYA23: 5 | WYB23: 5 | WYC23: 5 | WYD23: 5 | WYE23: 5 | WYF23: 5 | WYG23: 5 | WYH23: 5 | WYI23: 5 | WYJ23: 5 | WYK23: 5 | WYL23: 5 | WYM23: 5 | WYN23: 5 | WYO23: 5 | WYP23: 5 | WYQ23: 5 | WYR23: 5 | WYS23: 5 | WYT23: 5 | WYU23: 5 | WYV23: 5 | WYW23: 5 | WYX23: 5 | WYY23: 5 | WYZ23: 5 | WZA23: 5 | WZB23: 5 | WZC23: 5 | WZD23: 5 | WZE23: 5 | WZF23: 5 | WZG23: 5 | WZH23: 5 | WZI23: 5 | WZJ23: 5 | WZK23: 5 | WZL23: 5 | WZM23: 5 | WZN23: 5 | WZO23: 5 | WZP23: 5 | WZQ23: 5 | WZR23: 5 | WZS23: 5 | WZT23: 5 | WZU23: 5 | WZV23: 5 | WZW23: 5 | WZX23: 5 | WZY23: 5 | WZZ23: 5 | XAA23: 5 | XAB23: 5 | XAC23: 5 | XAD23: 5 | XAE23: 5 | XAF23: 5 | XAG23: 5 | XAH23: 5 | XAI23: 5 | XAJ23: 5 | XAK23: 5 | XAL23: 5 | XAM23: 5 | XAN23: 5 | XAO23: 5 | XAP23: 5 | XAQ23: 5 | XAR23: 5 | XAS23: 5 | XAT23: 5 | XAU23: 5 | XAV23: 5 | XAW23: 5 | XAX23: 5 | XAY23: 5 | XAZ23: 5 | XBA23: 5 | XBB23: 5 | XBC23: 5 | XBD23: 5 | XBE23: 5 | XBF23: 5 | XBG23: 5 | XBH23: 5 | XBI23: 5 | XBJ23: 5 | XBK23: 5 | XBL23: 5 | XBM23: 5 | XBN23: 5 | XBO23: 5 | XBP23: 5 | XBQ23: 5 | XBR23: 5 | XBS23: 5 | XBT23: 5 | XBU23: 5 | XBV23: 5 | XBW23: 5 | XBX23: 5 | XBY23: 5 | XBZ23: 5 | XCA23: 5 | XCB23: 5 | XCC23: 5 | XCD23: 5 | XCE23: 5 | XCF23: 5 | XCG23: 5 | XCH23: 5 | XCI23: 5 | XCJ23: 5 | XCK23: 5 | XCL23: 5 | XCM23: 5 | XCN23: 5 | XCO23: 5 | XCP23: 5 | XCQ23: 5 | XCR23: 5 | XCS23: 5 | XCT23: 5 | XCU23: 5 | XCV23: 5 | XCW23: 5 | XCX23: 5 | XCY23: 5 | XCZ23: 5 | XDA23: 5 | XDB23: 5 | XDC23: 5 | XDD23: 5 | XDE23: 5 | XDF23: 5 | XDG23: 5 | XDH23: 5 | XDI23: 5 | XDJ23: 5 | XDK23: 5 | XDL23: 5 | XDM23: 5 | XDN23: 5 | XDO23: 5 | XDP23: 5 | XDQ23: 5 | XDR23: 5 | XDS23: 5 | XDT23: 5 | XDU23: 5 | XDV23: 5 | XDW23: 5 | XDX23: 5 | XDY23: 5 | XDZ23: 5 | XEA23: 5 | XEB23: 5 | XEC23: 5 | XED23: 5 | XEE23: 5 | XEF23: 5 | XEG23: 5 | XEH23: 5 | XEI23: 5 | XEJ23: 5 | XEK23: 5 | XEL23: 5 | XEM23: 5 | XEN23: 5 | XEO23: 5 | XEP23: 5 | XEQ23: 5 | XER23: 5 | XES23: 5 | XET23: 5 | XEU23: 5 | XEV23: 5 | XEW23: 5 | XEX23: 5 | XEY23: 5 | XEZ23: 5 | XFA23: 5 | XFB23: 5 | XFC23: 5 | XFD23: 5
D24: Average Functional Service Life (Years) | I24: 30 | J24: 30 | K24: 30 | L24: 30 | M24: 30 | N24: 30 | O24: 30 | P24: 30 | Q24: 30 | R24: 30 | S24: 30 | T24: 30 | U24: 30 | V24: 30 | W24: 30 | X24: 30 | Y24: 30
D25: Length Overall (LOA; Feet) | I25: 434.3289946 | J25: 495.7279762 | K25: 525.9693391 | L25: 579.2899135 | M25: 582.3555742 | N25: 656.4388488 | O25: 667.8356247 | P25: 694.8578757 | Q25: 744.0866161 | R25: 765.5887032 | S25: 795.5913834 | T25: 867.1151777 | U25: 932.5479695 | V25: 967.2493865 | W25: 1024.601715 | X25: 1118.295856 | Y25: 1146.186165
D26: Length Between Perpendiculars (LBP; Feet) | I26: ? | J26: ? | K26: ? | L26: ? | M26: ? | N26: ? | O26: ? | P26: ? | Q26: ? | R26: ? | S26: ? | T26: ? | U26: ? | V26: ? | W26: ? | X26: ? | Y26: ?
D27: Extreme Breadth or Beam (XB; Feet) | I27: 70.75534267 | J27: 76.64165275 | K27: 79.56226161 | L27: 84.75008401 | M27: 85.04994822 | N27: 92.35509921 | O27: 93.48975614 | P27: 96.19293103 | Q27: 101.1684422 | R27: 103.3645838 | S27: 106.4551585 | T27: 113.9678983 | U27: 121.0717554 | V27: 124.960068 | W27: 131.6470263 | X27: 143.8946468 | Y27: 148.3297637
D28: Summer Loadline Draft (Feet) | I28: 25.1476002 | J28: 29.5510994 | K28: 31.20109906 | L28: 33.62997781 | M28: 33.75545588 | N28: 36.45593344 | O28: 36.82559261 | P28: 37.66444862 | Q28: 39.07907703 | R28: 39.65932206 | S28: 40.4379231 | T28: 42.18178027 | U28: 43.68770657 | V28: 44.47078173 | W28: 45.77349808 | X28: 48.12575166 | Y28: 49.01905342
D29: Immersion Rate (Metric Tonnes Per Inch or TPI) | I29: 50.41279237 | J29: 66.747037 | K29: 74.92016057 | L29: 89.55989048 | M29: 90.41111832 | N29: 111.3331322 | O29: 114.6166435 | P29: 122.4788942 | Q29: 137.1067925 | R29: 143.6332108 | S29: 152.8966093 | T29: 175.8477146 | U29: 198.225757 | V29: 210.8168308 | W29: 233.1856798 | X29: 277.6464501 | Y29: 295.6035989
D30: Horsepower (Total) | I30: 6053.482 | J30: 11368.362 | K30: 13982.242 | L30: 16567.082 | M30: 19122.882 | N30: 24147.362 | O30: 26616.042 | P30: 30264.612 | Q30: 33847.842 | R30: 36200.362 | S30: 41954.612 | T30: 47527.362 | U30: 56066.242 | V30: 68003.362 | W30: 72668.612 | X30: 85575.362 | Y30: 100243.362
D31: Service Speed (Knots) | I31: 15.75828171 | J31: 17.03648555 | K31: 17.49269625 | L31: 17.8784169 | M31: 18.21254332 | N31: 18.77090009 | O31: 19.0093882 | P31: 19.32925686 | Q31: 19.61283144 | R31: 19.78546756 | S31: 20.17118821 | T31: 20.50531463 | U31: 20.96152533 | V31: 21.51988209 | W31: 21.72016746 | X31: 22.23972917 | Y31: 22.79808594
D32: Manning or Crew | I32: 16.286814 | J32: 16.76309 | K32: 17.001228 | L32: 17.239366 | M32: 17.477504 | N32: 17.95378 | O32: 18.191918 | P32: 18.549125 | Q32: 18.906332 | R32: 19.14447 | S32: 19.739815 | T32: 20.33516 | U32: 21.287712 | V32: 22.71654 | W32: 23.311885 | X32: 25.09792 | Y32: 27.4793
D33: Bunkerage Consumption (Metric Tonnes/Day)
E34: At-Sea
F35: Propulsion\Prime Mover(s)
G36: Service Speed | I36: 17.82766563 | J36: 33.06067577 | K36: 40.50446502 | L36: 47.83311038 | M36: 55.04661185 | N36: 69.12818315 | O36: 75.99625297 | P36: 86.08246293 | Q36: 95.90959914 | R36: 102.3170934 | S36: 117.8320747 | T36: 132.6274066 | U36: 154.8030672 | V36: 184.6122416 | W36: 195.8093272 | X36: 225.0826883 | Y36: 254.0387465
G37: Economic Speed | I37: ? | J37: ? | K37: ? | L37: ? | M37: ? | N37: ? | O37: ? | P37: ? | Q37: ? | R37: ? | S37: ? | T37: ? | U37: ? | V37: ? | W37: ? | X37: ? | Y37: ?
G38: Half-Power | I38: ? | J38: ? | K38: ? | L38: ? | M38: ? | N38: ? | O38: ? | P38: ? | Q38: ? | R38: ? | S38: ? | T38: ? | U38: ? | V38: ? | W38: ? | X38: ? | Y38: ?
G39: Base Idle | I39: ? | J39: ? | K39: ? | L39: ? | M39: ? | N39: ? | O39: ? | P39: ? | Q39: ? | R39: ? | S39: ? | T39: ? | U39: ? | V39: ? | W39: ? | X39: ? | Y39: ?
F40: Auxiliary Power Generation | I40: 1.710328335 | J40: 2.114011779 | K40: 2.288708273 | L40: 2.572474778 | M40: 2.588054802 | N40: 2.947204335 | O40: 3.000099688 | P40: 3.123681761 | Q40: 3.343727202 | R40: 3.438406914 | S40: 3.569678554 | T40: 3.882162026 | U40: 4.173935478 | V40: 4.334221216 | W40: 4.614623792 | X40: 5.167679986 | Y40: 5.394665975
E41: In-Port
F42: Propulsion\Prime Mover(s)
G43: Within-Harbor\Channel Transit | I43: ? | J43: ? | K43: ? | L43: ? | M43: ? | N43: ? | O43: ? | P43: ? | Q43: ? | R43: ? | S43: ? | T43: ? | U43: ? | V43: ? | W43: ? | X43: ? | Y43: ?
G44: Maneuvering | I44: ? | J44: ? | K44: ? | L44: ? | M44: ? | N44: ? | O44: ? | P44: ? | Q44: ? | R44: ? | S44: ? | T44: ? | U44: ? | V44: ? | W44: ? | X44: ? | Y44: ?
F45: Auxiliary Power Generation | I45: 1.710328335 | J45: 2.114011779 | K45: 2.288708273 | L45: 2.572474778 | M45: 2.588054802 | N45: 2.947204335 | O45: 3.000099688 | P45: 3.123681761 | Q45: 3.343727202 | R45: 3.438406914 | S45: 3.569678554 | T45: 3.882162026 | U45: 4.173935478 | V45: 4.334221216 | W45: 4.614623792 | X45: 5.167679986 | Y45: 5.394665975
C47: Annual Discount\Interest Rate (%) | I47: 0.04125 | J47: 0.04125 | K47: 0.04125 | L47: 0.04125 | M47: 0.04125 | N47: 0.04125 | O47: 0.04125 | P47: 0.04125 | Q47: 0.04125 | R47: 0.04125 | S47: 0.04125 | T47: 0.04125 | U47: 0.04125 | V47: 0.04125 | W47: 0.04125 | X47: 0.04125 | Y47: 0.04125
C48: CRF (for specified rate & period) | I48: 0.058711 | J48: 0.058711 | K48: 0.058711 | L48: 0.058711 | M48: 0.058711 | N48: 0.058711 | O48: 0.058711 | P48: 0.058711 | Q48: 0.058711 | R48: 0.058711 | S48: 0.058711 | T48: 0.058711 | U48: 0.058711 | V48: 0.058711 | W48: 0.058711 | X48: 0.058711 | Y48: 0.058711
C50: Hull Asset Capital Costs (Fixed Capital Asset)
D51: Replacement Cost(s) [1.] | I51: 14219233.33 | J51: 23823623.92 | K51: 27550031.61 | L51: 31276439.31 | M51: 35002847.01 | N51: 40912935.46 | O51: 42288379.14 | P51: 44351544.65 | Q51: 46414710.17 | R51: 47790153.85 | S51: 51459612.66 | T51: 55129071.48 | U51: 65240098.65 | V51: 73595921.24 | W51: 96418389.85 | X51: 120410878.8 | Y51: 155859383.7
D52: Scrap Value; Baseline | I52: 2215241.37 | J52: 3497749.532 | K52: 4150662.778 | L52: 5339897.619 | M52: 5409852.61 | N52: 7158727.376 | O52: 7438547.338 | P52: 8114778.914 | Q52: 9397287.076 | R52: 9980245.332 | S52: 10819705.22 | T52: 12964991.6 | U52: 15156914.64 | V52: 16439422.8 | W52: 18817892.48 | X52: 24017880.12 | Y52: 26349713.14
D53: Scrap Value; Adjusted (Discount of Future Value) | I53: 806391.039 | J53: 1273249.009 | K53: 1510922.157 | L53: 1943826.82 | M53: 1969291.8 | N53: 2605916.305 | O53: 2707776.226 | P53: 2953937.701 | Q53: 3420795.671 | R53: 3633003.839 | S53: 3938583.601 | T53: 4719509.66 | U53: 5517412.372 | V53: 5984270.342 | W53: 6850079.668 | X53: 8742976.528 | Y53: 9591809.2
D54: Replacement Costs Adjusted for Scrap | I54: 13412842.29 | J54: 22550374.91 | K54: 26039109.46 | L54: 29332612.49 | M54: 33033555.21 | N54: 38307019.15 | O54: 39580602.91 | P54: 41397606.95 | Q54: 42993914.5 | R54: 44157150.01 | S54: 47521029.06 | T54: 50409561.82 | U54: 59722686.28 | V54: 67611650.9 | W54: 89568310.18 | X54: 111667902.3 | Y54: 146267574.5
D55: Average Annual Capital Asset Cost (Adjusted for Scrap) | I55: 787467.9708 | J55: 1323932.511 | K55: 1528756.116 | L55: 1722117.679 | M55: 1939400.026 | N55: 2249005.094 | O55: 2323777.197 | P55: 2430453.504 | Q55: 2524172.72 | R55: 2592466.277 | S55: 2789959.616 | T55: 2959545.375 | U55: 3506318.912 | V55: 3969480.024 | W55: 5258555.491 | X55: 6556022.545 | Y55: 8587369.302
C57: Operating Costs (Quasi Fixed\Variable Costs)
D58: Crew Cost | I58: 828848.2193 | J58: 915743.2397 | K58: 946757.4148 | L58: 972979.5263 | M58: 995694.1525 | N58: 1033652.435 | O58: 1049865.365 | P58: 1071610.718 | Q58: 1090888.722 | R58: 1102624.893 | S58: 1128847.005 | T58: 1151561.631 | U58: 1182575.806 | V58: 1220534.089 | W58: 1234149.914 | X58: 1269470.826 | Y58: 1307429.109
D59: Lubes & Stores | I59: 155923.2587 | J59: 188684.162 | K59: 205064.6136 | L59: 221445.0653 | M59: 237825.5169 | N59: 270586.4202 | O59: 286966.8719 | P59: 311537.5493 | Q59: 336108.2268 | R59: 352488.6784 | S59: 393439.8076 | T59: 434390.9367 | U59: 499912.7433 | V59: 598195.4532 | W59: 639146.5823 | X59: 761999.9696 | Y59: 925804.4861
D60: Maintenance & Repair | I60: 311478.9858 | J60: 398539.2987 | K60: 429612.4693 | L60: 455884.4607 | M60: 478642.2948 | N60: 516672.7821 | O60: 532916.5524 | P60: 554703.2694 | Q60: 574017.9442 | R60: 585776.44 | S60: 612048.4315 | T60: 634806.2656 | U60: 665879.4362 | V60: 703909.9235 | W60: 717551.6495 | X60: 752939.7491 | Y60: 790970.2363
D61: Insurance | I61: 159864.9788 | J61: 208712.7351 | K61: 226147.254 | L61: 240887.9297 | M61: 253656.8837 | N61: 274995.0103 | O61: 284109.0567 | P61: 296333.1369 | Q61: 307170.2049 | R61: 313767.6558 | S61: 328508.3314 | T61: 341277.2855 | U61: 358711.8044 | V61: 380049.9309 | W61: 387704.0236 | X61: 407559.5607 | Y61: 428897.6872
D62: Administration | I62: 163653.5277 | J62: 188591.2666 | K62: 197491.9308 | L62: 205017.3352 | M62: 211536.137 | N62: 222429.6697 | O62: 227082.5693 | P62: 233323.2023 | Q62: 238855.7383 | R62: 242223.8665 | S62: 249749.2709 | T62: 256268.0727 | U62: 265168.737 | V62: 276062.2696 | W62: 279969.8343 | X62: 290106.4758 | Y62: 301000.0085
E63: Average Annual Operating Costs | I63: 1619768.97 | J63: 1900270.702 | K63: 2005073.683 | L63: 2096214.317 | M63: 2177354.985 | N63: 2318336.317 | O63: 2380940.415 | P63: 2467507.876 | Q63: 2547040.836 | R63: 2596881.534 | S63: 2712592.846 | T63: 2818304.191 | U63: 2972248.527 | V63: 3178751.666 | W63: 3258522.004 | X63: 3482076.581 | Y63: 3754101.527
C65: Average Annual Total Fixed Capital Asset & Operating Costs | I65: 2407240 | J65: 3224200 | K65: 3533830 | L65: 3818330 | M65: 4116760 | N65: 4567340 | O65: 4704720 | P65: 4897960 | Q65: 5071210 | R65: 5189350 | S65: 5502550 | T65: 5777850 | U65: 6478570 | V65: 7148230 | W65: 8517080 | X65: 10038100 | Y65: 12341470
C67: Intensity of Employment
D68: Applied Allowances for Temporary Withdrawals from Service (Days) [2.] | I68: 15 | J68: 15 | K68: 15 | L68: 15 | M68: 15 | N68: 15 | O68: 15 | P68: 15 | Q68: 15 | R68: 15 | S68: 15 | T68: 15 | U68: 15 | V68: 15 | W68: 15 | X68: 15 | Y68: 15
D69: Applied Average Operating Days per Year: | I69: 350 | J69: 350 | K69: 350 | L69: 350 | M69: 350 | N69: 350 | O69: 350 | P69: 350 | Q69: 350 | R69: 350 | S69: 350 | T69: 350 | U69: 350 | V69: 350 | W69: 350 | X69: 350 | Y69: 350
D70: Applied Operational Hours Per Day | I70: 24 | J70: 24 | K70: 24 | L70: 24 | M70: 24 | N70: 24 | O70: 24 | P70: 24 | Q70: 24 | R70: 24 | S70: 24 | T70: 24 | U70: 24 | V70: 24 | W70: 24 | X70: 24 | Y70: 24
C72: Average Daily Total Capital & Operating Costs (Excluding Bunkerage) | I72: 6878 | J72: 9212 | K72: 10097 | L72: 10910 | M72: 11762 | N72: 13050 | O72: 13442 | P72: 13994 | Q72: 14489 | R72: 14827 | S72: 15722 | T72: 16508 | U72: 18510 | V72: 20424 | W72: 24335 | X72: 28680 | Y72: 35261
D74: Average Daily Bunkerage Costs (Variable)
E75: At-Sea
F76: Propulsion\Prime Mover(s)
G77: Service Speed | I77: 9208 | J77: 17077 | K77: 20922 | L77: 24707 | M77: 28433 | N77: 35707 | O77: 39254 | P77: 44464 | Q77: 49540 | R77: 52850 | S77: 60863 | T77: 68506 | U77: 79960 | V77: 95357 | W77: 101141 | X77: 116261 | Y77: 131218
G78: Economic Speed | I78: ? | J78: ? | K78: ? | L78: ? | M78: ? | N78: ? | O78: ? | P78: ? | Q78: ? | R78: ? | S78: ? | T78: ? | U78: ? | V78: ? | W78: ? | X78: ? | Y78: ?
G79: Half-Power | I79: ? | J79: ? | K79: ? | L79: ? | M79: ? | N79: ? | O79: ? | P79: ? | Q79: ? | R79: ? | S79: ? | T79: ? | U79: ? | V79: ? | W79: ? | X79: ? | Y79: ?
G80: Base Idle | I80: ? | J80: ? | K80: ? | L80: ? | M80: ? | N80: ? | O80: ? | P80: ? | Q80: ? | R80: ? | S80: ? | T80: ? | U80: ? | V80: ? | W80: ? | X80: ? | Y80: ?
F81: Auxiliary Power Generation | I81: 1401 | J81: 1732 | K81: 1875 | L81: 2107 | M81: 2120 | N81: 2414 | O81: 2458 | P81: 2559 | Q81: 2739 | R81: 2817 | S81: 2924 | T81: 3180 | U81: 3419 | V81: 3551 | W81: 3780 | X81: 4233 | Y81: 4419
E82: In-Port
F83: Propulsion\Prime Mover(s) (PPMV)
G84: Within-Harbor\Channel Transit | I84: ? | J84: ? | K84: ? | L84: ? | M84: ? | N84: ? | O84: ? | P84: ? | Q84: ? | R84: ? | S84: ? | T84: ? | U84: ? | V84: ? | W84: ? | X84: ? | Y84: ?
G85: Maneuvering | I85: ? | J85: ? | K85: ? | L85: ? | M85: ? | N85: ? | O85: ? | P85: ? | Q85: ? | R85: ? | S85: ? | T85: ? | U85: ? | V85: ? | W85: ? | X85: ? | Y85: ?
F86: Auxiliary Power Generation (APG) | I86: 1401 | J86: 1732 | K86: 1875 | L86: 2107 | M86: 2120 | N86: 2414 | O86: 2458 | P86: 2559 | Q86: 2739 | R86: 2817 | S86: 2924 | T86: 3180 | U86: 3419 | V86: 3551 | W86: 3780 | X86: 4233 | Y86: 4419
D88: Average Daily Total Vessel Costs; Inclusive
E89: At-Sea
F90: Propulsion\Prime Mover(s) & Auxiliary Power Generation (PPMV&APG)
G91: Service Speed | I91: 17487 | J91: 28021 | K91: 32894 | L91: 37724 | M91: 42315 | N91: 51171 | O91: 55154 | P91: 61017 | Q91: 66768 | R91: 70494 | S91: 79509 | T91: 88194 | U91: 101889 | V91: 119332 | W91: 129256 | X91: 149174 | Y91: 170898
G92: Economic Speed | I92: ? | J92: ? | K92: ? | L92: ? | M92: ? | N92: ? | O92: ? | P92: ? | Q92: ? | R92: ? | S92: ? | T92: ? | U92: ? | V92: ? | W92: ? | X92: ? | Y92: ?
G93: Half-Power | I93: ? | J93: ? | K93: ? | L93: ? | M93: ? | N93: ? | O93: ? | P93: ? | Q93: ? | R93: ? | S93: ? | T93: ? | U93: ? | V93: ? | W93: ? | X93: ? | Y93: ?
G94: Base Idle | I94: ? | J94: ? | K94: ? | L94: ? | M94: ? | N94: ? | O94: ? | P94: ? | Q94: ? | R94: ? | S94: ? | T94: ? | U94: ? | V94: ? | W94: ? | X94: ? | Y94: ?
E95: In-Port
F96: Propulsion\Prime Mover(s) & Auxiliary Power Generation (PPMV&APG)
G97: Within-Harbor\Channel Transit | I97: ? | J97: ? | K97: ? | L97: ? | M97: ? | N97: ? | O97: ? | P97: ? | Q97: ? | R97: ? | S97: ? | T97: ? | U97: ? | V97: ? | W97: ? | X97: ? | Y97: ?
G98: Maneuvering | I98: ? | J98: ? | K98: ? | L98: ? | M98: ? | N98: ? | O98: ? | P98: ? | Q98: ? | R98: ? | S98: ? | T98: ? | U98: ? | V98: ? | W98: ? | X98: ? | Y98: ?
G99: Dockside\Static Condition | I99: 8279 | J99: 10944 | K99: 11972 | L99: 13017 | M99: 13882 | N99: 15464 | O99: 15900 | P99: 16553 | Q99: 17228 | R99: 17644 | S99: 18646 | T99: 19688 | U99: 21929 | V99: 23975 | W99: 28115 | X99: 32913 | Y99: 39680
D101: Average Hourly Total Vessel Costs; Inclusive
E102: At-Sea
F103: Propulsion\Prime Mover(s) & Auxiliary Power Generation (PPMV&APG)
G104: Service Speed | I104: 729 | J104: 1168 | K104: 1371 | L104: 1572 | M104: 1763 | N104: 2132 | O104: 2298 | P104: 2542 | Q104: 2782 | R104: 2937 | S104: 3313 | T104: 3675 | U104: 4245 | V104: 4972 | W104: 5386 | X104: 6216 | Y104: 7121
G105: Economic Speed | I105: ? | J105: ? | K105: ? | L105: ? | M105: ? | N105: ? | O105: ? | P105: ? | Q105: ? | R105: ? | S105: ? | T105: ? | U105: ? | V105: ? | W105: ? | X105: ? | Y105: ?
G106: Half-Power | I106: ? | J106: ? | K106: ? | L106: ? | M106: ? | N106: ? | O106: ? | P106: ? | Q106: ? | R106: ? | S106: ? | T106: ? | U106: ? | V106: ? | W106: ? | X106: ? | Y106: ?
G107: Base Idle | I107: ? | J107: ? | K107: ? | L107: ? | M107: ? | N107: ? | O107: ? | P107: ? | Q107: ? | R107: ? | S107: ? | T107: ? | U107: ? | V107: ? | W107: ? | X107: ? | Y107: ?
E108: In-Port
F109: Propulsion\Prime Mover(s) & Auxiliary Power Generation (PPMV&APG)
G110: Within-Harbor\Channel Transit | I110: ? | J110: ? | K110: ? | L110: ? | M110: ? | N110: ? | O110: ? | P110: ? | Q110: ? | R110: ? | S110: ? | T110: ? | U110: ? | V110: ? | W110: ? | X110: ? | Y110: ?
G111: Maneuvering | I111: ? | J111: ? | K111: ? | L111: ? | M111: ? | N111: ? | O111: ? | P111: ? | Q111: ? | R111: ? | S111: ? | T111: ? | U111: ? | V111: ? | W111: ? | X111: ? | Y111: ?
G112: Dockside\Static Condition | I112: 345 | J112: 456 | K112: 499 | L112: 542 | M112: 578 | N112: 644 | O112: 663 | P112: 690 | Q112: 718 | R112: 735 | S112: 777 | T112: 820 | U112: 914 | V112: 999 | W112: 1171 | X112: 1371 | Y112: 1653
C115: Applied Bunkerage Cost(s) & Scrap\Breakage Value (Per Metric Tonne)
E117: HVO Price (Heavy Vicosity Oil) | I117: 516.5273533 | J117: 516.5273533 | K117: 516.5273533 | L117: 516.5273533 | M117: 516.5273533 | N117: 516.5273533 | O117: 516.5273533 | P117: 516.5273533 | Q117: 516.5273533 | R117: 516.5273533 | S117: 516.5273533 | T117: 516.5273533 | U117: 516.5273533 | V117: 516.5273533 | W117: 516.5273533 | X117: 516.5273533 | Y117: 516.5273533
E118: IFO Price (Intermediate Fuel Oil) | I118: Not Applic. | J118: Not Applic. | K118: Not Applic. | L118: Not Applic. | M118: Not Applic. | N118: Not Applic. | O118: Not Applic. | P118: Not Applic. | Q118: Not Applic. | R118: Not Applic. | S118: Not Applic. | T118: Not Applic. | U118: Not Applic. | V118: Not Applic. | W118: Not Applic. | X118: Not Applic. | Y118: Not Applic.
E119: MDO Price (Marine Diesel Oil;) | I119: 819.1876975 | J119: 819.1876975 | K119: 819.1876975 | L119: 819.1876975 | M119: 819.1876975 | N119: 819.1876975 | O119: 819.1876975 | P119: 819.1876975 | Q119: 819.1876975 | R119: 819.1876975 | S119: 819.1876975 | T119: 819.1876975 | U119: 819.1876975 | V119: 819.1876975 | W119: 819.1876975 | X119: 819.1876975 | Y119: 819.1876975
E120: MGO Price (Marine Gasoline Oil) | I120: Not Applic. | J120: Not Applic. | K120: Not Applic. | L120: Not Applic. | M120: Not Applic. | N120: Not Applic. | O120: Not Applic. | P120: Not Applic. | Q120: Not Applic. | R120: Not Applic. | S120: Not Applic. | T120: Not Applic. | U120: Not Applic. | V120: Not Applic. | W120: Not Applic. | X120: Not Applic. | Y120: Not Applic.
E121: Scrap Price (Per Light Displacement Tonne) | I121: 467.1270872 | J121: 467.1270872 | K121: 467.1270872 | L121: 467.1270872 | M121: 467.1270872 | N121: 467.1270872 | O121: 467.1270872 | P121: 467.1270872 | Q121: 467.1270872 | R121: 467.1270872 | S121: 467.1270872 | T121: 467.1270872 | U121: 467.1270872 | V121: 467.1270872 | W121: 467.1270872 | X121: 467.1270872 | Y121: 467.1270872
D123: Note(s) | G123: [1.] Excludes cost of containers for containerized cargo carriers.
G124: [2.] Annual average number of days for drydocking or repairs and involuntary lay-up.
L125: =118-15 -> 103

Sheet Int Gas VOC (hidden)
C3: Aggregate Vessel Operating Costs (VOCs)
C4: Deep-Draft Self-Propelled Carriers
C5: Liquid Natural Gas Carriers (Open Registry Flag)
C7: Maritime Strategies International, Ltd.
C9: Generated: | G9: 2011
C10: Price Level: | G10: CY 2011
C11: Currency: | G11: U.S. Dollars
C13: General Vessel Specifications
D14: General Vessel Type | I14: LNGC | J14: LNGC
D15: Deadweight Tonnage (DWT; Metric Tonnes) | I15: 74743.05377 | J15: 114875
D16: Light Displacement Tonnage (LDT; Metric Tonnes) | I16: 49408.2 | J16: 83400
D17: Displacement (Metric Tonnes) | I17: ? | J17: ?
D18: TEU Capacity | I18: Not Applic. | J18: Not Applic.
D19: Volumetric Capacity (Cubic Meters)
E20: Grain Cubic | I20: ? | J20: ?
E21: Bale Cubic | I21: ? | J21: ?
E22: Liquid Cubic | I22: 135000 | J22: 210000
D23: Average Vessel Age (Years) | I23: 5 | J23: 5
D24: Average Functional Service Life (Years) | I24: 40 | J24: 40
D25: Length Overall (LOA; Feet) | I25: 924.6427723 | J25: 1049.576324
D26: Length Between Perpendiculars (LBP; Feet) | I26: ? | J26: ?
D27: Extreme Breadth or Beam (XB; Feet) | I27: 144.9384324 | J27: 165.8646548
D28: Summer Loadline Draft (Feet) | I28: 39.36310152 | J28: 42.38588993
D29: Immersion Rate (Metric Tonnes Per Inch or TPI) | I29: ? | J29: ?
D30: Horsepower (Total) | I30: ? | J30: ?
D31: Service Speed (Knots) | I31: 19.48336365 | J31: 19.56302513
D32: Manning or Crew | I32: 28 | J32: 30
D33: Bunkerage Consumption (Metric Tonnes/Day)
E34: At-Sea
F35: Propulsion\Prime Mover(s)
G36: Service Speed | I36: 201.4723356 | J36: 340.9174911
G37: Economic Speed | I37: ? | J37: ?
G38: Half-Power | I38: ? | J38: ?
G39: Base Idle | I39: ? | J39: ?
F40: Auxiliary Power Generation | I40: 2.63371754 | J40: 2.992164591
E41: In-Port
F42: Propulsion\Prime Mover(s)
G43: Within-Harbor\Channel Transit | I43: ? | J43: ?
G44: Maneuvering | I44: ? | J44: ?
F45: Auxiliary Power Generation | I45: 2.6 | J45: 3
C47: Annual Discount\Interest Rate (%) | I47: 0.04125 | J47: 0.04125
C48: CRF (for specified rate & period) | I48: 0.05147 | J48: 0.05147
C50: Hull Asset Capital Costs (Fixed Capital Asset)
D51: Replacement Cost(s) [1.] | I51: 230085726.5 | J51: 261691309.7
D52: Scrap Value; Baseline | I52: 23057155.34 | J52: 38919992.13
D53: Scrap Value; Adjusted (Discount of Future Value) | I53: 5602478.789 | J53: 9456866.087
D54: Replacement Costs Adjusted for Scrap | I54: 224483247.7 | J54: 252234443.7
D55: Average Annual Capital Asset Cost (Adjusted for Scrap) | I55: 11554152.76 | J55: 12982506.81
C57: Operating Costs (Quasi Fixed\Variable Costs)
D58: Crew Cost | I58: 2336874.473 | J58: 2534532.201
D59: Lubes & Stores | I59: 444467.7321 | J59: 600696.3626
D60: Maintenance & Repair | I60: 766953.693 | J60: 822291.7385
D61: Insurance | I61: 450816.6038 | J61: 482541.8611
D62: Administration | I62: 352379.7818 | J62: 466508.59
E63: Average Annual Operating Costs | I63: 4351492.284 | J63: 4906570.754
C65: Average Annual Total Fixed Capital Asset & Operating Costs | I65: 15905650 | J65: 17889080
C67: Intensity of Employment
D68: Applied Allowances for Temporary Withdrawals from Service (Days) [2.] | I68: 17 | J68: 17
D69: Applied Average Operating Days per Year: | I69: 348 | J69: 348
D70: Applied Operational Hours Per Day | I70: 24 | J70: 24
C72: Average Daily Total Capital & Operating Costs (Excluding Bunkerage) | I72: 45706 | J72: 51405
D74: Average Daily Bunkerage Costs (Variable)
E75: At-Sea
F76: Propulsion\Prime Mover(s)
G77: Service Speed | I77: 103956 | J77: 175908
G78: Economic Speed | I78: ? | J78: ?
G79: Half-Power | I79: ? | J79: ?
G80: Base Idle | I80: ? | J80: ?
F81: Auxiliary Power Generation | I81: 1998 | J81: 2305
E82: In-Port
F83: Propulsion\Prime Mover(s) (PPMV)
G84: Within-Harbor\Channel Transit | I84: ? | J84: ?
G85: Maneuvering | I85: ? | J85: ?
F86: Auxiliary Power Generation (APG) | I86: 1998 | J86: 2305
D88: Average Daily Total Vessel Costs; Inclusive
E89: At-Sea
F90: Propulsion\Prime Mover(s) & Auxiliary Power Generation (PPMV&APG)
G91: Service Speed | I91: 151660 | J91: 229618
G92: Economic Speed | I92: ? | J92: ?
G93: Half-Power | I93: ? | J93: ?
G94: Base Idle | I94: ? | J94: ?
E95: In-Port
F96: Propulsion\Prime Mover(s) & Auxiliary Power Generation (PPMV&APG)
G97: Within-Harbor\Channel Transit | I97: ? | J97: ?
G98: Maneuvering | I98: ? | J98: ?
G99: Dockside\Static Condition | I99: 47704 | J99: 53710
D101: Average Hourly Total Vessel Costs; Inclusive
E102: At-Sea
F103: Propulsion\Prime Mover(s) & Auxiliary Power Generation (PPMV&APG)
G104: Service Speed | I104: 6319 | J104: 9567
G105: Economic Speed | I105: ? | J105: ?
G106: Half-Power | I106: ? | J106: ?
G107: Base Idle | I107: ? | J107: ?
E108: In-Port
F109: Propulsion\Prime Mover(s) & Auxiliary Power Generation (PPMV&APG)
G110: Within-Harbor\Channel Transit | I110: ? | J110: ?
G111: Maneuvering | I111: ? | J111: ?
G112: Dockside\Static Condition | I112: 1988 | J112: 2238
C115: Applied Bunkerage Cost(s) & Scrap\Breakage Value (Per Metric Tonne)
E117: HVO Price (Heavy Vicosity Oil) | I117: 515.9831689 | J117: 515.9831689
E118: IFO Price (Intermediate Fuel Oil) | I118: Not Applic. | J118: Not Applic.
E119: MDO Price (Marine Diesel Oil;) | I119: 768.2847432 | J119: 768.2847432
E120: MGO Price (Marine Gasoline Oil) | I120: Not Applic. | J120: Not Applic.
E121: Scrap Price (Per Light Displacement Tonne) | I121: 466.6665723 | J121: 466.6665723
D124: Note(s) | G124: [1.] Excludes cost of containers for containerized cargo carriers.
G125: [2.] Annual average number of days for drydocking or repairs and involuntary lay-up.

Sheet Int Gen Cargo VOC (hidden)
C3: Aggregate Vessel Operating Costs (VOCs)
C4: Deep-Draft Self-Propelled Carriers
C5: General Cargo Carriers (Open Registry Flag)
C7: Maritime Strategies International, Ltd.
C9: Generated: | G9: 2011
C10: Price Level: | G10: CY 2011
C11: Currency: | G11: U.S. Dollars
C13: General Vessel Specifications
D14: General Vessel Type | I14: MPP | J14: MPP | K14: MPP | L14: MPP | M14: MPP | N14: MPP
D15: Deadweight Tonnage (DWT; Metric Tonnes) | I15: 11000 | J15: 14000 | K15: 16000 | L15: 20000 | M15: 24000 | N15: 30000
D16: Light Displacement Tonnage (LDT; Metric Tonnes) | I16: 4226.299 | J16: 5378.926 | K16: 6147.344 | L16: 7684.18 | M16: 9221.016 | N16: 11526.27
D17: Displacement (Metric Tonnes) | I17: ? | J17: ? | K17: ? | L17: ? | M17: ? | N17: ?
D18: TEU Capacity | I18: 429.387 | J18: 535.287 | K18: 605.887 | L18: 747.087 | M18: 888.287 | N18: 1100.087
D19: Volumetric Capacity (Cubic Meters)
E20: Grain Cubic | I20: ? | J20: ? | K20: ? | L20: ? | M20: ? | N20: ?
E21: Bale Cubic | I21: ? | J21: ? | K21: ? | L21: ? | M21: ? | N21: ?
E22: Liquid Cubic | I22: ? | J22: ? | K22: ? | L22: ? | M22: ? | N22: ?
D23: Average Vessel Age (Years) | I23: 5 | J23: 5 | K23: 5 | L23: 5 | M23: 5 | N23: 5
D24: Average Functional Service Life (Years) | I24: 30 | J24: 30 | K24: 30 | L24: 30 | M24: 28 | N24: 27
D25: Length Overall (LOA; Feet) | I25: 435.852796 | J25: 462.9235379 | K25: 477.9126034 | L25: 502.9607455 | M25: 523.4265678 | N25: 548.47471
D26: Length Between Perpendiculars (LBP; Feet) | I26: ? | J26: ? | K26: ? | L26: ? | M26: ? | N26: ?
D27: Extreme Breadth or Beam (XB; Feet) | I27: 66.38900601 | J27: 70.50161459 | K27: 72.77876531 | L27: 76.58409893 | M27: 79.69328289 | N27: 83.49861651
D28: Summer Loadline Draft (Feet) | I28: 26.48486123 | J28: 28.36010883 | K28: 29.39843313 | L28: 31.13357097 | M28: 32.55128181 | N28: 34.28641965
D29: Immersion Rate (Metric Tonnes Per Inch or TPI) | I29: ? | J29: ? | K29: ? | L29: ? | M29: ? | N29: ?
D30: Horsepower (Total) | I30: 6819.120621 | J30: 8474.850621 | K30: 9578.670621 | L30: 11786.31062 | M30: 13993.95062 | N30: 17305.41062
D31: Service Speed (Knots) | I31: 13.91010466 | J31: 14.31013619 | K31: 14.53163358 | L31: 14.90177662 | M31: 15.2042055 | N31: 15.57434853
D32: Manning or Crew | I32: 23 | J32: 23 | K32: 23 | L32: 23 | M32: 23 | N32: 24
D33: Bunkerage Consumption (Metric Tonnes/Day)
E34: At-Sea
F35: Propulsion\Prime Mover(s)
G36: Service Speed | I36: 21.25138258 | J36: 24.08281806 | K36: 25.65058343 | L36: 28.27046724 | M36: 30.41106818 | N36: 33.03095199
G37: Economic Speed | I37: ? | J37: ? | K37: ? | L37: ? | M37: ? | N37: ?
G38: Half-Power | I38: ? | J38: ? | K38: ? | L38: ? | M38: ? | N38: ?
G39: Base Idle | I39: ? | J39: ? | K39: ? | L39: ? | M39: ? | N39: ?
F40: Auxiliary Power Generation | I40: 1.491084171 | J40: 1.601759276 | K40: 1.66653559 | L40: 1.78068213 | M40: 1.879726564 | N40: 2.008475259
E41: In-Port
F42: Propulsion\Prime Mover(s)
G43: Within-Harbor\Channel Transit | I43: ? | J43: ? | K43: ? | L43: ? | M43: ? | N43: ?
G44: Maneuvering | I44: ? | J44: ? | K44: ? | L44: ? | M44: ? | N44: ?
F45: Auxiliary Power Generation | I45: 1.491084171 | J45: 1.601759276 | K45: 1.66653559 | L45: 1.78068213 | M45: 1.879726564 | N45: 2.008475259
C47: Annual Discount\Interest Rate (%) | I47: 0.04125 | J47: 0.04125 | K47: 0.04125 | L47: 0.04125 | M47: 0.04125 | N47: 0.04125
C48: CRF (for specified rate & period) | I48: 0.05871 | J48: 0.05871 | K48: 0.05871 | L48: 0.05871 | M48: 0.06088 | N48: 0.0621
C50: Hull Asset Capital Costs (Fixed Capital Asset)
D51: Replacement Cost(s) [1.] | I51: 19621392.61 | J51: 23711778.16 | K51: 26438701.86 | L51: 31892549.25 | M51: 37346396.65 | N51: 45527167.75
D52: Scrap Value; Baseline | I52: 1972369.434 | J52: 2510300 | K52: 2868900 | L52: 3586100 | M52: 4303400 | N52: 5379200
D53: Scrap Value; Adjusted (Discount of Future Value) | I53: 717980.92 | J53: 746600 | K53: 853200 | L53: 1066500 | M53: 1387600 | N53: 1806100
D54: Replacement Costs Adjusted for Scrap | I54: 18903411.69 | J54: 22965200 | K54: 25585500 | L54: 30826000 | M54: 35958800 | N54: 43721100
D55: Average Annual Capital Asset Cost (Adjusted for Scrap) | I55: 1109819.3 | J55: 1348300 | K55: 1502200 | L55: 1809800 | M55: 2189200 | N55: 2715100
C57: Operating Costs (Quasi Fixed\Variable Costs)
D58: Crew Cost | I58: 536107.2669 | J58: 577046.8552 | K58: 599715.0988 | L58: 637595.8718 | M58: 668546.717 | N58: 706427.49
D59: Lubes & Stores | I59: 240168.5639 | J59: 260546.6019 | K59: 271829.9183 | L59: 290685.4042 | M59: 306091.458 | N59: 324946.9439
D60: Maintenance & Repair | I60: 253394.8828 | J60: 289189.9238 | K60: 309204.9905 | L60: 339999.2181 | M60: 358478.9047 | N60: 363108.6703
D61: Insurance | I61: 121723.1314 | J61: 141860.2067 | K61: 153756.2939 | L61: 173879.7571 | M61: 189111.6051 | N61: 202787.5989
D62: Administration | I62: 139210.3106 | J62: 154452.5061 | K62: 162892.1073 | L62: 176995.477 | M62: 188518.769 | N62: 202622.1387
E63: Average Annual Operating Costs | I63: 1290604.156 | J63: 1423096.094 | K63: 1497398.409 | L63: 1619155.728 | M63: 1710747.454 | N63: 1799892.842
C65: Average Annual Total Fixed Capital Asset & Operating Costs | I65: 2400420 | J65: 2771400 | K65: 2999600 | L65: 3428960 | M65: 3899950 | N65: 4514990
C67: Intensity of Employment
D68: Applied Allowances for Temporary Withdrawals from Service (Days) [2.] | I68: 17 | J68: 17 | K68: 17 | L68: 17 | M68: 17 | N68: 17
D69: Applied Average Operating Days per Year: | I69: 348 | J69: 348 | K69: 348 | L69: 348 | M69: 348 | N69: 348
D70: Applied Operational Hours Per Day | I70: 24 | J70: 24 | K70: 24 | L70: 24 | M70: 24 | N70: 24
C72: Average Daily Total Capital & Operating Costs (Excluding Bunkerage) | I72: 6898 | J72: 7964 | K72: 8620 | L72: 9853 | M72: 11207 | N72: 12974
D74: Average Daily Bunkerage Costs (Variable)
E75: At-Sea
F76: Propulsion\Prime Mover(s)
G77: Service Speed | I77: 10965 | J77: 12426 | K77: 13235 | L77: 14587 | M77: 15692 | N77: 17043
G78: Economic Speed | I78: ? | J78: ? | K78: ? | L78: ? | M78: ? | N78: ?
G79: Half-Power | I79: ? | J79: ? | K79: ? | L79: ? | M79: ? | N79: ?
G80: Base Idle | I80: ? | J80: ? | K80: ? | L80: ? | M80: ? | N80: ?
F81: Auxiliary Power Generation | I81: 1146 | J81: 1231 | K81: 1280 | L81: 1368 | M81: 1444 | N81: 1543
E82: In-Port
F83: Propulsion\Prime Mover(s) (PPMV)
G84: Within-Harbor\Channel Transit | I84: ? | J84: ? | K84: ? | L84: ? | M84: ? | N84: ?
G85: Maneuvering | I85: ? | J85: ? | K85: ? | L85: ? | M85: ? | N85: ?
F86: Auxiliary Power Generation (APG) | I86: 1146 | J86: 1231 | K86: 1280 | L86: 1368 | M86: 1444 | N86: 1543
D88: Average Daily Total Vessel Costs; Inclusive
E89: At-Sea
F90: Propulsion\Prime Mover(s) & Auxiliary Power Generation (PPMV&APG)
G91: Service Speed | I91: 19009 | J91: 21621 | K91: 23135 | L91: 25808 | M91: 28343 | N91: 31560
G92: Economic Speed | I92: ? | J92: ? | K92: ? | L92: ? | M92: ? | N92: ?
G93: Half-Power | I93: ? | J93: ? | K93: ? | L93: ? | M93: ? | N93: ?
G94: Base Idle | I94: ? | J94: ? | K94: ? | L94: ? | M94: ? | N94: ?
E95: In-Port
F96: Propulsion\Prime Mover(s) & Auxiliary Power Generation (PPMV&APG)
G97: Within-Harbor\Channel Transit | I97: ? | J97: ? | K97: ? | L97: ? | M97: ? | N97: ?
G98: Maneuvering | I98: ? | J98: ? | K98: ? | L98: ? | M98: ? | N98: ?
G99: Dockside\Static Condition | I99: 8044 | J99: 9195 | K99: 9900 | L99: 11221 | M99: 12651 | N99: 14517
D101: Average Hourly Total Vessel Costs; Inclusive
E102: At-Sea
F103: Propulsion\Prime Mover(s) & Auxiliary Power Generation (PPMV&APG)
G104: Service Speed | I104: 792 | J104: 901 | K104: 964 | L104: 1075 | M104: 1181 | N104: 1315
G105: Economic Speed | I105: ? | J105: ? | K105: ? | L105: ? | M105: ? | N105: ?
G106: Half-Power | I106: ? | J106: ? | K106: ? | L106: ? | M106: ? | N106: ?
G107: Base Idle | I107: ? | J107: ? | K107: ? | L107: ? | M107: ? | N107: ?
E108: In-Port
F109: Propulsion\Prime Mover(s) & Auxiliary Power Generation (PPMV&APG)
G110: Within-Harbor\Channel Transit | I110: ? | J110: ? | K110: ? | L110: ? | M110: ? | N110: ?
G111: Maneuvering | I111: ? | J111: ? | K111: ? | L111: ? | M111: ? | N111: ?
G112: Dockside\Static Condition | I112: 335 | J112: 383 | K112: 413 | L112: 468 | M112: 527 | N112: 605
C115: Applied Bunkerage Cost(s) & Scrap\Breakage Value (Per Metric Tonne)
E117: HVO Price (Heavy Vicosity Oil) | I117: 515.9831689 | J117: 515.9831689 | K117: 515.9831689 | L117: 515.9831689 | M117: 515.9831689 | N117: 515.9831689
E118: IFO Price (Intermediate Fuel Oil) | I118: Not Applic. | J118: Not Applic. | K118: Not Applic. | L118: Not Applic. | M118: Not Applic. | N118: Not Applic.
E119: MDO Price (Marine Diesel Oil;) | I119: 768.2847432 | J119: 768.2847432 | K119: 768.2847432 | L119: 768.2847432 | M119: 768.2847432 | N119: 768.2847432
E120: MGO Price (Marine Gasoline Oil) | I120: Not Applic. | J120: Not Applic. | K120: Not Applic. | L120: Not Applic. | M120: Not Applic. | N120: Not Applic.
E121: Scrap Price (Per Light Displacement Tonne) | I121: 466.6895158 | J121: 466.6895158 | K121: 466.6895158 | L121: 466.6895158 | M121: 466.6895158 | N121: 466.6895158
D124: Note(s) | G124: [1.] Excludes cost of containers for containerized cargo carriers.
G125: [2.] Annual average number of days for drydocking or repairs and involuntary lay-up.

Sheet Int Oil Tanker VOC (hidden)
C3: Aggregate Vessel Operating Costs (VOCs)
C4: Deep-Draft Self-Propelled Carriers
C5: Oil Tankers (Open Registry Flag)
C7: Maritime Strategies International, Ltd.
C9: Generated: | G9: 2011
C10: Price Level: | G10: CY 2011
C11: Currency: | G11: U.S. Dollars
C13: General Vessel Specifications
D14: General Vessel Type | I14: Products | J14: Products | K14: Products | L14: Products | M14: Products | N14: Products | O14: Crude | P14: Crude | Q14: Crude | R14: Crude | S14: Crude | T14: Crude | U14: Crude | V14: Crude
D15: Deadweight Tonnage (DWT; Metric Tonnes) | I15: 20000 | J15: 25000 | K15: 35000 | L15: 50000 | M15: 60000 | N15: 70000 | O15: 80000 | P15: 90000 | Q15: 110000 | R15: 150000 | S15: 165000 | T15: 265000 | U15: 300000 | V15: 320000
D16: Light Displacement Tonnage (LDT; Metric Tonnes) | I16: 2880.54 | J16: 3600.675 | K16: 5040.945 | L16: 7201.35 | M16: 8641.62 | N16: 10081.89 | O16: 11522.16 | P16: 12962.43 | Q16: 15842.97 | R16: 21604.05 | S16: 23764.455 | T16: 38167.155 | U16: 43208.1 | V16: 46088.64
D17: Displacement (Metric Tonnes) | I17: ? | J17: ? | K17: ? | L17: ? | M17: ? | N17: ? | O17: ? | P17: ? | Q17: ? | R17: ? | S17: ? | T17: ? | U17: ? | V17: ?
D18: TEU Capacity | I18: Not Applic. | J18: Not Applic. | K18: Not Applic. | L18: Not Applic. | M18: Not Applic. | N18: Not Applic. | O18: Not Applic. | P18: Not Applic. | Q18: Not Applic. | R18: Not Applic. | S18: Not Applic. | T18: Not Applic. | U18: Not Applic. | V18: Not Applic.
D19: Volumetric Capacity (Cubic Meters)
E20: Grain Cubic | I20: ? | J20: ? | K20: ? | L20: ? | M20: ? | N20: ? | O20: ? | P20: ? | Q20: ? | R20: ? | S20: ? | T20: ? | U20: ? | V20: ?
E21: Bale Cubic | I21: ? | J21: ? | K21: ? | L21: ? | M21: ? | N21: ? | O21: ? | P21: ? | Q21: ? | R21: ? | S21: ? | T21: ? | U21: ? | V21: ?
E22: Liquid Cubic | I22: ? | J22: ? | K22: ? | L22: ? | M22: ? | N22: ? | O22: ? | P22: ? | Q22: ? | R22: ? | S22: ? | T22: ? | U22: ? | V22: ?
D23: Average Vessel Age (Years) | I23: 5 | J23: 5 | K23: 5 | L23: 5 | M23: 5 | N23: 5 | O23: 5 | P23: 5 | Q23: 5 | R23: 5 | S23: 5 | T23: 5 | U23: 5 | V23: 5
D24: Average Functional Service Life (Years) | I24: 30 | J24: 30 | K24: 28.5 | L24: 27 | M24: 25 | N24: 25 | O24: 25 | P24: 25 | Q24: 25 | R24: 25 | S24: 25 | T24: 25 | U24: 25 | V24: 25
D25: Length Overall (LOA; Feet) | I25: 518.2610852 | J25: 537.3566973 | K25: 574.5820517 | L25: 628.0054084 | M25: 662.0111963 | N25: 694.7291577 | O25: 726.1592924 | P25: 756.3016006 | Q25: 812.7227372 | R25: 910.1110915 | S25: 941.3194397 | T25: 1075.325066 | U25: 1091.802133 | V25: 1094.134553
D26: Length Between Perpendiculars (LBP; Feet) | I26: ? | J26: ? | K26: ? | L26: ? | M26: ? | N26: ? | O26: ? | P26: ? | Q26: ? | R26: ? | S26: ? | T26: ? | U26: ? | V26: ?
D27: Extreme Breadth or Beam (XB; Feet) | I27: 80.30605235 | J27: 84.04877911 | K27: 91.34947265 | L27: 101.838613 | M27: 108.5234399 | N27: 114.9619201 | O27: 121.1540537 | P27: 127.0998406 | Q27: 138.2523745 | R27: 157.6012823 | S27: 163.8409428 | T27: 191.2737466 | U27: 195.0552881 | V27: 195.8612624
D28: Summer Loadline Draft (Feet) | I28: 32.40677673 | J28: 33.48830898 | K28: 35.60890281 | L28: 38.68361686 | M28: 40.66264177 | N28: 42.58503911 | O28: 44.45080889 | P28: 46.2599511 | Q28: 49.70835282 | R28: 55.92562546 | S28: 58.02351398 | T28: 68.75335239 | U28: 71.17096957 | V28: 72.24101348
D29: Immersion Rate (Metric Tonnes Per Inch or TPI) | I29: 73.808939 | J29: 82.54357575 | K29: 99.69857375 | L29: 124.645382 | M29: 140.752795 | N29: 156.441174 | O29: 171.710519 | P29: 186.56083 | Q29: 215.00435 | R29: 266.862982 | S29: 284.5814538 | T29: 378.6101438 | U29: 401.620507 | V29: 412.464599
D30: Horsepower (Total) | I30: 9499.2 | J30: 9922.7 | K30: 10769.7 | L30: 12040.2 | M30: 12887.2 | N30: 13734.2 | O30: 14581.2 | P30: 15428.2 | Q30: 17122.2 | R30: 20510.2 | S30: 21780.7 | T30: 30250.7 | U30: 33215.2 | V30: 34909.2
D31: Service Speed (Knots) | I31: 14.09836546 | J31: 14.2194822 | K31: 14.40211092 | L31: 14.59570516 | M31: 14.69466474 | N31: 14.77833388 | O31: 14.85081138 | P31: 14.91474107 | Q31: 15.0236601 | R31: 15.19200444 | S31: 15.24373643 | T31: 15.50089473 | U31: 15.5682274 | V31: 15.6032573
D32: Manning or Crew | I32: 23 | J32: 23 | K32: 23 | L32: 23 | M32: 23 | N32: 23 | O32: 23 | P32: 23 | Q32: 23 | R32: 23 | S32: 23 | T32: 23 | U32: 23 | V32: 23
D33: Bunkerage Consumption (Metric Tonnes/Day)
E34: At-Sea
F35: Propulsion\Prime Mover(s)
G36: Service Speed | I36: 24.245378 | J36: 25.5111975 | K36: 28.0428365 | L36: 31.840295 | M36: 34.371934 | N36: 36.903573 | O36: 39.435212 | P36: 41.966851 | Q36: 47.030129 | R36: 57.156685 | S36: 60.9541435 | T36: 86.2705335 | U36: 95.13127 | V36: 100.194548
G37: Economic Speed | I37: ? | J37: ? | K37: ? | L37: ? | M37: ? | N37: ? | O37: ? | P37: ? | Q37: ? | R37: ? | S37: ? | T37: ? | U37: ? | V37: ?
G38: Half-Power | I38: ? | J38: ? | K38: ? | L38: ? | M38: ? | N38: ? | O38: ? | P38: ? | Q38: ? | R38: ? | S38: ? | T38: ? | U38: ? | V38: ?
G39: Base Idle | I39: ? | J39: ? | K39: ? | L39: ? | M39: ? | N39: ? | O39: ? | P39: ? | Q39: ? | R39: ? | S39: ? | T39: ? | U39: ? | V39: ?
F40: Auxiliary Power Generation | I40: 1.761761247 | J40: 1.882430107 | K40: 2.080190482 | L40: 2.312555997 | M40: 2.44118412 | N40: 2.555503632 | O40: 2.658850064 | P40: 2.753471732 | Q40: 2.922501968 | R40: 3.204392756 | S40: 3.296361995 | T40: 3.794232757 | U40: 3.936580517 | V40: 4.012736502
E41: In-Port
F42: Propulsion\Prime Mover(s)
G43: Within-Harbor\Channel Transit | I43: ? | J43: ? | K43: ? | L43: ? | M43: ? | N43: ? | O43: ? | P43: ? | Q43: ? | R43: ? | S43: ? | T43: ? | U43: ? | V43: ?
G44: Maneuvering | I44: ? | J44: ? | K44: ? | L44: ? | M44: ? | N44: ? | O44: ? | P44: ? | Q44: ? | R44: ? | S44: ? | T44: ? | U44: ? | V44: ?
F45: Auxiliary Power Generation | I45: 1.761761247 | J45: 1.882430107 | K45: 2.080190482 | L45: 2.312555997 | M45: 2.44118412 | N45: 2.555503632 | O45: 2.658850064 | P45: 2.753471732 | Q45: 2.922501968 | R45: 3.204392756 | S45: 3.296361995 | T45: 3.794232757 | U45: 3.936580517 | V45: 4.012736502
C47: Annual Discount\Interest Rate (%) | I47: 0.04125 | J47: 0.04125 | K47: 0.04125 | L47: 0.04125 | M47: 0.04125 | N47: 0.04125 | O47: 0.04125 | P47: 0.04125 | Q47: 0.04125 | R47: 0.04125 | S47: 0.04125 | T47: 0.04125 | U47: 0.04125 | V47: 0.04125
C48: CRF (for specified rate & period) | I48: 0.05871 | J48: 0.05871 | K48: 0.06031 | L48: 0.0621 | M48: 0.06486 | N48: 0.06486 | O48: 0.06486 | P48: 0.06486 | Q48: 0.06486 | R48: 0.06486 | S48: 0.06486 | T48: 0.06486 | U48: 0.06486 | V48: 0.06486
C50: Hull Asset Capital Costs (Fixed Capital Asset)
D51: Replacement Cost(s) [1.] | I51: 34481461.73 | J51: 33712815.23 | K51: 40606409.61 | L51: 46731357.49 | M51: 57840395.55 | N51: 61133294.02 | O51: 64426192.5 | P51: 67719090.97 | Q51: 72532062.31 | R51: 82158004.99 | S51: 87307265.37 | T51: 121635667.9 | U51: 133650608.7 | V51: 140516289.2
D52: Scrap Value; Baseline | I52: 1345578.26 | J52: 1681972.825 | K52: 2354761.954 | L52: 3363945.649 | M52: 4036734.779 | N52: 4709523.909 | O52: 5382313.039 | P52: 6055102.169 | Q52: 7400680.428 | R52: 10091836.95 | S52: 11101020.64 | T52: 17828911.94 | U52: 20183673.9 | V52: 21529252.16
D53: Scrap Value; Adjusted (Discount of Future Value) | I53: 489816.715 | J53: 612270.8937 | K53: 910760.4681 | L53: 1382415.687 | M53: 1798580.697 | N53: 2098344.147 | O53: 2398107.596 | P53: 2697871.046 | Q53: 3297397.945 | R53: 4496451.743 | S53: 4946096.917 | T53: 7943731.412 | U53: 8992903.485 | V53: 9592430.384
D54: Replacement Costs Adjusted for Scrap | I54: 33991645.01 | J54: 33100544.34 | K54: 39695649.14 | L54: 45348941.81 | M54: 56041814.85 | N54: 59034949.88 | O54: 62028084.9 | P54: 65021219.93 | Q54: 69234664.37 | R54: 77661553.25 | S54: 82361168.45 | T54: 113691936.5 | U54: 124657705.3 | V54: 130923858.9
D55: Average Annual Capital Asset Cost (Adjusted for Scrap) | I55: 1995649.479 | J55: 1943332.958 | K55: 2394044.6 | L55: 2816169.286 | M55: 3634872.111 | N55: 3829006.849 | O55: 4023141.587 | P55: 4217276.325 | Q55: 4490560.331 | R55: 5037128.344 | S55: 5341945.386 | T55: 7374058.998 | U55: 8085298.763 | V55: 8491721.485
C57: Operating Costs (Quasi Fixed\Variable Costs)
D58: Crew Cost | I58: 1502067.569 | J58: 1504162.761 | K58: 1508353.146 | L58: 1514638.723 | M58: 1518829.108 | N58: 1523019.493 | O58: 1527209.877 | P58: 1531400.262 | Q58: 1539781.032 | R58: 1556542.571 | S58: 1562828.148 | T58: 1604731.996 | U58: 1619398.343 | V58: 1627779.113
D59: Lubes & Stores | I59: 334487.6041 | J59: 336463.7321 | K59: 340415.9881 | L59: 346344.372 | M59: 350296.628 | N59: 354248.884 | O59: 358201.14 | P59: 362153.396 | Q59: 370057.908 | R59: 385866.9319 | S59: 391795.3159 | T59: 431317.8757 | U59: 445150.7717 | V59: 453055.2836
D60: Maintenance & Repair | I60: 286662.3793 | J60: 294055.172 | K60: 308840.7575 | L60: 331019.1357 | M60: 345804.7212 | N60: 360590.3066 | O60: 375375.8921 | P60: 390161.4776 | Q60: 419732.6485 | R60: 478874.9904 | S60: 501053.3686 | T60: 648909.2233 | U60: 700658.7725 | V60: 730229.9434
D61: Insurance | I61: 118635.0704 | J61: 122019.9726 | K61: 129043.7556 | L61: 140214.3769 | M61: 148084.7556 | N61: 156293.7725 | O61: 164841.4277 | P61: 173727.7211 | Q61: 192516.2227 | R61: 234156.8849 | S61: 251169.016 | T61: 384054.9227 | U61: 438565.3188 | V61: 471576.6269
D62: Administration | I62: 118420.0411 | J62: 121746.67 | K62: 128660.7034 | L62: 139683.6925 | M62: 147466.978 | N62: 155597.9644 | O62: 164076.6516 | P62: 172903.0397 | Q62: 191598.9183 | R62: 233163.0858 | S62: 250183.9146 | T62: 383648.9055 | U62: 438576.0849 | V62: 471875.3992
E63: Average Annual Operating Costs | I63: 2360272.663 | J63: 2378448.308 | K63: 2415314.35 | L63: 2471900.3 | M63: 2510482.191 | N63: 2549750.42 | O63: 2589704.989 | P63: 2630345.897 | Q63: 2713686.729 | R63: 2888604.464 | S63: 2957029.763 | T63: 3452662.924 | U63: 3642349.291 | V63: 3754516.366
C65: Average Annual Total Fixed Capital Asset & Operating Costs | I65: 4355920 | J65: 4321780 | K65: 4809360 | L65: 5288070 | M65: 6145350 | N65: 6378760 | O65: 6612850 | P65: 6847620 | Q65: 7204250 | R65: 7925730 | S65: 8298980 | T65: 10826720 | U65: 11727650 | V65: 12246240
C67: Intensity of Employment
D68: Applied Allowances for Temporary Withdrawals from Service (Days) [2.] | I68: 17 | J68: 17 | K68: 17 | L68: 17 | M68: 17 | N68: 17 | O68: 17 | P68: 17 | Q68: 17 | R68: 17 | S68: 17 | T68: 17 | U68: 17 | V68: 17
D69: Applied Average Operating Days per Year: | I69: 348 | J69: 348 | K69: 348 | L69: 348 | M69: 348 | N69: 348 | O69: 348 | P69: 348 | Q69: 348 | R69: 348 | S69: 348 | T69: 348 | U69: 348 | V69: 348
D70: Applied Operational Hours Per Day | I70: 24 | J70: 24 | K70: 24 | L70: 24 | M70: 24 | N70: 24 | O70: 24 | P70: 24 | Q70: 24 | R70: 24 | S70: 24 | T70: 24 | U70: 24 | V70: 24
C72: Average Daily Total Capital & Operating Costs (Excluding Bunkerage) | I72: 12517 | J72: 12419 | K72: 13820 | L72: 15196 | M72: 17659 | N72: 18330 | O72: 19002 | P72: 19677 | Q72: 20702 | R72: 22775 | S72: 23848 | T72: 31111 | U72: 33700 | V72: 35190
D74: Average Daily Bunkerage Costs (Variable)
E75: At-Sea
F76: Propulsion\Prime Mover(s)
G77: Service Speed | I77: 12523 | J77: 13177 | K77: 14485 | L77: 16446 | M77: 17754 | N77: 19062 | O77: 20369 | P77: 21677 | Q77: 24292 | R77: 29523 | S77: 31484 | T77: 44561 | U77: 49138 | V77: 51753
G78: Economic Speed | I78: ? | J78: ? | K78: ? | L78: ? | M78: ? | N78: ? | O78: ? | P78: ? | Q78: ? | R78: ? | S78: ? | T78: ? | U78: ? | V78: ?
G79: Half-Power | I79: ? | J79: ? | K79: ? | L79: ? | M79: ? | N79: ? | O79: ? | P79: ? | Q79: ? | R79: ? | S79: ? | T79: ? | U79: ? | V79: ?
G80: Base Idle | I80: ? | J80: ? | K80: ? | L80: ? | M80: ? | N80: ? | O80: ? | P80: ? | Q80: ? | R80: ? | S80: ? | T80: ? | U80: ? | V80: ?
F81: Auxiliary Power Generation | I81: 1443 | J81: 1542 | K81: 1704 | L81: 1894 | M81: 2000 | N81: 2093 | O81: 2178 | P81: 2256 | Q81: 2394 | R81: 2625 | S81: 2700 | T81: 3108 | U81: 3225 | V81: 3287
E82: In-Port
F83: Propulsion\Prime Mover(s) (PPMV)
G84: Within-Harbor\Channel Transit | I84: ? | J84: ? | K84: ? | L84: ? | M84: ? | N84: ? | O84: ? | P84: ? | Q84: ? | R84: ? | S84: ? | T84: ? | U84: ? | V84: ?
G85: Maneuvering | I85: ? | J85: ? | K85: ? | L85: ? | M85: ? | N85: ? | O85: ? | P85: ? | Q85: ? | R85: ? | S85: ? | T85: ? | U85: ? | V85: ?
F86: Auxiliary Power Generation (APG) | I86: 1443 | J86: 1542 | K86: 1704 | L86: 1894 | M86: 2000 | N86: 2093 | O86: 2178 | P86: 2256 | Q86: 2394 | R86: 2625 | S86: 2700 | T86: 3108 | U86: 3225 | V86: 3287
D88: Average Daily Total Vessel Costs; Inclusive
E89: At-Sea
F90: Propulsion\Prime Mover(s) & Auxiliary Power Generation (PPMV&APG)
G91: Service Speed | I91: 26483 | J91: 27138 | K91: 30009 | L91: 33536 | M91: 37413 | N91: 39485 | O91: 41549 | P91: 43610 | Q91: 47388 | R91: 54923 | S91: 58032 | T91: 78780 | U91: 86063 | V91: 90230
G92: Economic Speed | I92: ? | J92: ? | K92: ? | L92: ? | M92: ? | N92: ? | O92: ? | P92: ? | Q92: ? | R92: ? | S92: ? | T92: ? | U92: ? | V92: ?
G93: Half-Power | I93: ? | J93: ? | K93: ? | L93: ? | M93: ? | N93: ? | O93: ? | P93: ? | Q93: ? | R93: ? | S93: ? | T93: ? | U93: ? | V93: ?
G94: Base Idle | I94: ? | J94: ? | K94: ? | L94: ? | M94: ? | N94: ? | O94: ? | P94: ? | Q94: ? | R94: ? | S94: ? | T94: ? | U94: ? | V94: ?
E95: In-Port
F96: Propulsion\Prime Mover(s) & Auxiliary Power Generation (PPMV&APG)
G97: Within-Harbor\Channel Transit | I97: ? | J97: ? | K97: ? | L97: ? | M97: ? | N97: ? | O97: ? | P97: ? | Q97: ? | R97: ? | S97: ? | T97: ? | U97: ? | V97: ?
G98: Maneuvering | I98: ? | J98: ? | K98: ? | L98: ? | M98: ? | N98: ? | O98: ? | P98: ? | Q98: ? | R98: ? | S98: ? | T98: ? | U98: ? | V98: ?
G99: Dockside\Static Condition | I99: 13960 | J99: 13961 | K99: 15524 | L99: 17090 | M99: 19659 | N99: 20423 | O99: 21180 | P99: 21933 | Q99: 23096 | R99: 25400 | S99: 26548 | T99: 34219 | U99: 36925 | V99: 38477
D101: Average Hourly Total Vessel Costs; Inclusive
E102: At-Sea
F103: Propulsion\Prime Mover(s) & Auxiliary Power Generation (PPMV&APG)
G104: Service Speed | I104: 1103 | J104: 1131 | K104: 1250 | L104: 1397 | M104: 1559 | N104: 1645 | O104: 1731 | P104: 1817 | Q104: 1975 | R104: 2288 | S104: 2418 | T104: 3283 | U104: 3586 | V104: 3760
G105: Economic Speed | I105: ? | J105: ? | K105: ? | L105: ? | M105: ? | N105: ? | O105: ? | P105: ? | Q105: ? | R105: ? | S105: ? | T105: ? | U105: ? | V105: ?
G106: Half-Power | I106: ? | J106: ? | K106: ? | L106: ? | M106: ? | N106: ? | O106: ? | P106: ? | Q106: ? | R106: ? | S106: ? | T106: ? | U106: ? | V106: ?
G107: Base Idle | I107: ? | J107: ? | K107: ? | L107: ? | M107: ? | N107: ? | O107: ? | P107: ? | Q107: ? | R107: ? | S107: ? | T107: ? | U107: ? | V107: ?
E108: In-Port
F109: Propulsion\Prime Mover(s) & Auxiliary Power Generation (PPMV&APG)
G110: Within-Harbor\Channel Transit | I110: ? | J110: ? | K110: ? | L110: ? | M110: ? | N110: ? | O110: ? | P110: ? | Q110: ? | R110: ? | S110: ? | T110: ? | U110: ? | V110: ?
G111: Maneuvering | I111: ? | J111: ? | K111: ? | L111: ? | M111: ? | N111: ? | O111: ? | P111: ? | Q111: ? | R111: ? | S111: ? | T111: ? | U111: ? | V111: ?
G112: Dockside\Static Condition | I112: 582 | J112: 582 | K112: 647 | L112: 712 | M112: 819 | N112: 851 | O112: 883 | P112: 914 | Q112: 962 | R112: 1058 | S112: 1106 | T112: 1426 | U112: 1539 | V112: 1603
C115: Applied Bunkerage Cost(s) & Scrap\Breakage Value (Per Metric Tonne)
E117: HVO Price (Heavy Vicosity Oil) | I117: 516.5273533 | J117: 516.5273533 | K117: 516.5273533 | L117: 516.5273533 | M117: 516.5273533 | N117: 516.5273533 | O117: 516.5273533 | P117: 516.5273533 | Q117: 516.5273533 | R117: 516.5273533 | S117: 516.5273533 | T117: 516.5273533 | U117: 516.5273533 | V117: 516.5273533
E118: IFO Price (Intermediate Fuel Oil) | I118: Not Applic. | J118: Not Applic. | K118: Not Applic. | L118: Not Applic. | M118: Not Applic. | N118: Not Applic. | O118: Not Applic. | P118: Not Applic. | Q118: Not Applic. | R118: Not Applic. | S118: Not Applic. | T118: Not Applic. | U118: Not Applic. | V118: Not Applic.
E119: MDO Price (Marine Diesel Oil;) | I119: 819.1876975 | J119: 819.1876975 | K119: 819.1876975 | L119: 819.1876975 | M119: 819.1876975 | N119: 819.1876975 | O119: 819.1876975 | P119: 819.1876975 | Q119: 819.1876975 | R119: 819.1876975 | S119: 819.1876975 | T119: 819.1876975 | U119: 819.1876975 | V119: 819.1876975
E120: MGO Price (Marine Gasoline Oil) | I120: Not Applic. | J120: Not Applic. | K120: Not Applic. | L120: Not Applic. | M120: Not Applic. | N120: Not Applic. | O120: Not Applic. | P120: Not Applic. | Q120: Not Applic. | R120: Not Applic. | S120: Not Applic. | T120: Not Applic. | U120: Not Applic. | V120: Not Applic.
E121: Scrap Price (Per Light Displacement Tonne) | I121: 467.1270872 | J121: 467.1270872 | K121: 467.1270872 | L121: 467.1270872 | M121: 467.1270872 | N121: 467.1270872 | O121: 467.1270872 | P121: 467.1270872 | Q121: 467.1270872 | R121: 467.1270872 | S121: 467.1270872 | T121: 467.1270872 | U121: 467.1270872 | V121: 467.1270872
D124: Note(s) | G124: [1.] Excludes cost of containers for containerized cargo carriers.
G125: [2.] Annual average number of days for drydocking or repairs and involuntary lay-up.

Sheet RoRo VOC (hidden)
C3: Aggregate Vessel Operating Costs (VOCs)
C4: Deep-Draft Self-Propelled Carriers
C5: Roll-On Roll-Of (Open Registry Flag)
C7: Maritime Strategies International, Ltd.
C9: Generated: | G9: 2011
C10: Price Level: | G10: 2011
C11: Currency: | G11: U.S. Dollars
C13: General Vessel Specifications
D14: General Vessel Type | I14: RoRo(1.2k Line Metres) | J14: RoRo(2.5k Line Metres)
D15: Deadweight Tonnage (DWT; Metric Tonnes) | I15: 8000 | J15: 28000
D16: Light Displacement Tonnage (LDT; Metric Tonnes) | I16: 4647.653637 | J16: 6671.680269
D17: Displacement (Metric Tonnes) | I17: ? | J17: ?
D18: TEU Capacity | I18: Not Applic. | J18: Not Applic.
D19: Volumetric Capacity (Cubic Meters)
E20: Grain Cubic | I20: ? | J20: ?
E21: Bale Cubic | I21: ? | J21: ?
E22: Liquid Cubic | I22: ? | J22: ?
D23: Average Vessel Age (Years) | I23: 5 | J23: 5
D24: Average Functional Service Life (Years) | I24: 30 | J24: 30
D25: Length Overall (LOA; Feet) | I25: 491.0166731 | J25: 669.5989863
D26: Length Between Perpendiculars (LBP; Feet) | I26: ? | J26: ?
D27: Extreme Breadth or Beam (XB; Feet) | I27: 74.16036475 | J27: 94.27091155
D28: Summer Loadline Draft (Feet) | I28: 21.91729254 | J28: 35.15387699
D29: Immersion Rate (Metric Tonnes Per Inch or TPI) | I29: ? | J29: ?
D30: Horsepower (Total) | I30: ? | J30: ?
D31: Service Speed (Knots) | I31: 16.94183301 | J31: 19.69791154
D32: Manning or Crew | I32: 20.806 | J32: 25.606
D33: Bunkerage Consumption (Metric Tonnes/Day)
E34: At-Sea
F35: Propulsion\Prime Mover(s)
G36: Service Speed | I36: 32.12839049 | J36: 54.79087259
G37: Economic Speed | I37: ? | J37: ?
G38: Half-Power | I38: ? | J38: ?
G39: Base Idle | I39: ? | J39: ?
F40: Auxiliary Power Generation | I40: 1.340711008 | J40: 1.944753784
E41: In-Port
F42: Propulsion\Prime Mover(s)
G43: Within-Harbor\Channel Transit | I43: ? | J43: ?
G44: Maneuvering | I44: ? | J44: ?
F45: Auxiliary Power Generation | I45: 1.340711008 | J45: 1.944753784
C47: Annual Discount\Interest Rate (%) | I47: 0.04125 | J47: 0.04125
C48: CRF (for specified rate & period) | I48: 0.05871 | J48: 0.05871
C50: Hull Asset Capital Costs (Fixed Capital Asset)
D51: Replacement Cost(s) [1.] | I51: 43657796.4 | J51: 62964336.58
D52: Scrap Value; Baseline | I52: 2171682.873 | J52: 3117438.369
D53: Scrap Value; Adjusted (Discount of Future Value) | I53: 790534.8968 | J53: 1134808.332
D54: Replacement Costs Adjusted for Scrap | I54: 42867261.51 | J54: 61829528.24
D55: Average Annual Capital Asset Cost (Adjusted for Scrap) | I55: 2516736.923 | J55: 3630011.603
C57: Operating Costs (Quasi Fixed\Variable Costs)
D58: Crew Cost | I58: 859952.5366 | J58: 1201089.659
D59: Lubes & Stores | I59: 118703.6639 | J59: 192252.0368
D60: Maintenance & Repair | I60: 673116.2572 | J60: 697772.4585
D61: Insurance | I61: 246413.8472 | J61: 306138.0886
D62: Administration | I62: 247593.4151 | J62: 281716.2102
E63: Average Annual Operating Costs | I63: 2145779.72 | J63: 2678968.453
C65: Average Annual Total Fixed Capital Asset & Operating Costs | I65: 4662516.643 | J65: 6308980.057
C67: Intensity of Employment
D68: Applied Allowances for Temporary Withdrawals from Service (Days) [2.] | I68: 17 | J68: 17
D69: Applied Average Operating Days per Year: | I69: 348 | J69: 348
D70: Applied Operational Hours Per Day | I70: 24 | J70: 24
C72: Average Daily Total Capital & Operating Costs (Excluding Bunkerage) | I72: 13398.03633 | J72: 18129.25304
D74: Average Daily Bunkerage Costs (Variable)
E75: At-Sea
F76: Propulsion\Prime Mover(s)
G77: Service Speed | I77: 16595.1925 | J77: 28300.9844
G78: Economic Speed | I78: ? | J78: ?
G79: Half-Power | I79: ? | J79: ?
G80: Base Idle | I80: ? | J80: ?
F81: Auxiliary Power Generation | I81: 1098.293964 | J81: 1593.118375
E82: In-Port
F83: Propulsion\Prime Mover(s) (PPMV)
G84: Within-Harbor\Channel Transit | I84: ? | J84: ?
G85: Maneuvering | I85: ? | J85: ?
F86: Auxiliary Power Generation (APG) | I86: 1098.293964 | J86: 1593.118375
D88: Average Daily Total Vessel Costs; Inclusive
E89: At-Sea
F90: Propulsion\Prime Mover(s) & Auxiliary Power Generation (PPMV&APG)
G91: Service Speed | I91: 31091.5228 | J91: 48023.35581
G92: Economic Speed | I92: ? | J92: ?
G93: Half-Power | I93: ? | J93: ?
G94: Base Idle | I94: ? | J94: ?
E95: In-Port
F96: Propulsion\Prime Mover(s) & Auxiliary Power Generation (PPMV&APG)
G97: Within-Harbor\Channel Transit | I97: ? | J97: ?
G98: Maneuvering | I98: ? | J98: ?
G99: Dockside\Static Condition | I99: 14496.33029 | J99: 19722.37141
D101: Average Hourly Total Vessel Costs; Inclusive
E102: At-Sea
F103: Propulsion\Prime Mover(s) & Auxiliary Power Generation (PPMV&APG)
G104: Service Speed | I104: 1295.480117 | J104: 2000.973159
G105: Economic Speed | I105: ? | J105: ?
G106: Half-Power | I106: ? | J106: ?
G107: Base Idle | I107: ? | J107: ?
E108: In-Port
F109: Propulsion\Prime Mover(s) & Auxiliary Power Generation (PPMV&APG)
G110: Within-Harbor\Channel Transit | I110: ? | J110: ?
G111: Maneuvering | I111: ? | J111: ?
G112: Dockside\Static Condition | I112: 604.0137623 | J112: 821.7654755
C115: Applied Bunkerage Cost(s) & Scrap\Breakage Value (Per Metric Tonne)
E117: HVO Price (Heavy Vicosity Oil) | I117: 516.5273533 | J117: 516.5273533
E118: IFO Price (Intermediate Fuel Oil) | I118: Not Applic. | J118: Not Applic.
E119: MDO Price (Marine Diesel Oil;) | I119: 819.1876975 | J119: 819.1876975
E120: MGO Price (Marine Gasoline Oil) | I120: Not Applic. | J120: Not Applic.
E121: Scrap Price (Per Light Displacement Tonne) | I121: 467.2643537 | J121: 467.2643537
D124: Note(s) | G124: [1.] Excludes cost of containers for containerized cargo carriers.
G125: [2.] Annual average number of days for drydocking or repairs and involuntary lay-up.

Sheet POH Variables (hidden)
B1: Data from the Port of Houston Tariff 15
B2: Port Dues (100 ft. & < 250 ft.) | C2: 282
B3: Port Dues (> 250 ft.) | C3: 603
B5: Vessel Characteristics
B6: Length | C6: =length_overall -> 579.2899135
B7: Cargo | C7: ='Vessel Operating Cost Model'!C25 -> 1400 | D7: ='Vessel Operating Cost Model'!D25 -> TEUs | E7: =IF(D7="TEUs",0,C7) -> 0
B8: Extreme Breadth | C8: =extreme_breadth -> 84.75008401
B9: Summerline Draft | C9: =summer_loadline_draft -> 33.62997781
B10: Number of Days at Port | C10: ='Vessel Operating Cost Model'!C6 -> 2
C12: Charge
B13: Port Dues | C13: =IF(C6>250,C3,C2) -> 603
B14: Pilotage | C14: =IF(C9>40,D26,C26) + E14*G14 -> 701.6571672 | D14: Units | E14: =(C6*C8)/100 -> 490.9486884 | F14: Cost Per Unit | G14: =IF(E14>G76,H77,VLOOKUP(CEILING(E14,100),G45:H77,2)) -> 1.283
B15: Dockage | C15: =E15*C6*C10 -> 8225.916772 | D15: Rate per foot | E15: =IF(C6>900,H41,VLOOKUP(CEILING(C6,100),G29:H41,2)) -> 7.1
B16: Wharfage | C16: =IF(C7="Not Applic.", (C34+ C33)*#REF!,C7*C35) -> 85722
B17: Cargo Handling (Throughput Charge) | C17: =IF(D7="TEUs",C39*C7,0) -> 140000
B18: Wharfage Storage | C18: =IF(C10<7,0,IF(AND(C10>7,C10<14),0.27*E7,IF(AND(C10>13,C10<21),0.36*E7,IF(C10>20,E7*0.59,0)))) -> 0
B19: Terminal Use | C19: 0
B20: Harbor Security Fee | C20: =(0.08*C15)+(C42*C7) -> 5558.073342 | D20: Charge | E20: =IF(Data!A10=2,'POH Variables'!C42,IF(OR(Data!A10=1,Data!A10=3,Data!A10=5),'POH Variables'!C43,'POH Variables'!C44)) -> 3.5
B21: Total | C21: =SUM(C13:C20) -> 240810.6473
B25: I ZONE DRAFT RATES | C25: 40 Ft & Under | D25: Over 40 Ft | F25: Dockage Based on Length in Feet
B26: 1. Sea - To and Including Barbours Cut | C26: 71.77 | D26: 77.87 | F26: LOA Equal | G26: LOA Less | H26: Rate
B27: 2. Baytown - To and Including Lynchburg | C27: 73.02 | D27: 173.55 | F27: or | G27: than | H27: Per
B28: 3. Above Lynchburg - To and Including Shell | C28: 74.29 | D28: 180.03 | F28: Over Feet | G28: Feet | H28: Foot
B29: 4. Above Shell - To and Including Targa | C29: 75.5 | D29: 186.51 | F29: 0 | G29: 200 | H29: 2.85
B30: 5. Above Targa - To and Including U.S. Gypsum | C30: 76.82 | D30: 192.98 | F30: 200 | G30: 300 | H30: 3.44
B31: 6. Above U.S. Gypsum - To and Including Turning Basin | C31: 78.05 | D31: - | F31: 300 | G31: 350 | H31: 3.44
F32: 350 | G32: 400 | H32: 3.86
B33: Loading or Unloading | C33: 32.77 | D33: metric tons | F33: 400 | G33: 450 | H33: 5.06
B34: Wharfage Export/Import | C34: 4.13 | D34: metric tons | F34: 450 | G34: 500 | H34: 5.23
B35: Containers, Loaded | C35: 61.23 | D35: per container | F35: 500 | G35: 550 | H35: 6.98
B36: Containers, Empty | C36: 13.25 | D36: per container | F36: 550 | G36: 600 | H36: 7.1
F37: 600 | G37: 650 | H37: 8.11
B38: Throughput Charges - Container Only | F38: 650 | G38: 700 | H38: 8.25
B39: Loaded Throughput Charge | C39: 100 | F39: 700 | G39: 800 | H39: 10.53
B40: Empty Handling Charge | C40: 33.98 | F40: 800 | G40: 900 | H40: 12.65
F41: 900 | G41: And Over | H41: 15.14
B42: Containers | C42: 3.5 | D42: per container
B43: Bulk Cargo (dry or liquid) | C43: 0.0375 | D43: per metric ton
B44: Break-bulk | C44: 0.47 | D44: per metric ton | F44: Units | H44: Cost per Units
F45: 0 | G45: 200 | H45: 0
F46: 201 | G46: 300 | H46: 0.853
F47: 301 | G47: 400 | H47: 1.073
F48: 401 | G48: 500 | H48: 1.283
F49: 501 | G49: 600 | H49: 1.498
F50: 601 | G50: 700 | H50: 1.759
F51: 701 | G51: 800 | H51: 2.024
F52: 801 | G52: 900 | H52: 2.291
F53: 901 | G53: 1000 | H53: 2.81
F54: 1001 | G54: 1050 | H54: 2.91
F55: 1051 | G55: 1100 | H55: 3.514
F56: 1101 | G56: 1150 | H56: 3.847
F57: 1151 | G57: 1200 | H57: 3.863
F58: 1201 | G58: 1250 | H58: 5.118
F59: 1251 | G59: 1300 | H59: 5.201
F60: 1301 | G60: 1350 | H60: 5.284
F61: 1351 | G61: 1400 | H61: 5.366
F62: 1401 | G62: 1450 | H62: 5.447
F63: 1451 | G63: 1500 | H63: 5.529
F64: 1501 | G64: 1550 | H64: 5.611
F65: 1551 | G65: 1600 | H65: 5.694
F66: 1601 | G66: 1650 | H66: 5.776
F67: 1651 | G67: 1700 | H67: 5.858
F68: 1701 | G68: 1750 | H68: 5.94
F69: 1751 | G69: 1800 | H69: 6.022
F70: 1801 | G70: 1850 | H70: 6.104
F71: 1851 | G71: 1900 | H71: 6.186
F72: 1901 | G72: 2000 | H72: 6.268
F73: 2001 | G73: 2100 | H73: 6.52
F74: 2101 | G74: 2200 | H74: 6.774
F75: 2201 | G75: 2300 | H75: 7.027
F76: 2301 | G76: 2400 | H76: 7.281
F77: 2401 | G77: over | H77: 7.534
